Workbook

Sheet 7 day speed and Vol Summary
B1: =IF(Input2!A1="","2Lane","Multi") -> 2Lane | Q1: =E4&" - "&E7&" to "&E8&" ("&LEFT(E6,8)&"-"&LEFT(G6,8)&")"&TEXT(B15," yyyy-mmm")&".xlsm" -> VIPOND RD (STANMORE BAY) (10994) - DUNCANSBY RD to COOPER RD (E1753938-N5946454) 2024-Oct.xlsm
B2: Auckland Transport | X2: Direction: | AA2: P | AB2: S | AC2: =Input2!B15 -> 0 | AD2: =Input2!B16 -> 0 | AG2: 2013-10-07
B3: Count Programme Site ID: | E3: ATC9 | P3: Location: | Q3: =Input!B4 -> -36.615015, 174.721501 [50] 1753938, 5946454
B4: Road Name: | E4: =Input!B2 -> VIPOND RD (STANMORE BAY) (10994) | P4: Carriageway ID: | Q4: =IFERROR(VLOOKUP($E$3,Programme,6,0),"") -> 4376
P5: Road ID: | Q5: =IFERROR(VLOOKUP($E$3,Programme,2,0),"") -> 10994
B6: GPS Location: | E6: =IFERROR(LEFT(Input!B3,FIND(" ",Input!B3)-1),"") -> E1753938 | G6: =IFERROR(RIGHT(Input!B3,LEN(Input!B3)-FIND(" ",Input!B3)),"") -> N5946454 | I6: =IF(CountID2="","",IFERROR(LEFT(Input2!B3,FIND(" ",Input2!B3)-1),"")) ->  | K6: =IF(CountID2="","",IFERROR(RIGHT(Input2!B3,LEN(Input2!B3)-FIND(" ",Input2!B3)),"")) ->  | P6: Carriageway start: | Q6: =IFERROR(VLOOKUP($E$3,Programme,4,0),"") -> 752
B7: Carriageway Start Name: | E7: =Input!B5 -> DUNCANSBY RD | I7: =IF(CountID2="","",Input2!B5) ->  | P7: Posted Speed Limit (Kph): | Q7: =Input!B7 -> 50 | U7: =IF(CountID2="","",Input2!B7) -> 
B8: Carriageway End Name: | E8: =Input!B6 -> COOPER RD | I8: =IF(CountID2="","",Input2!B6) ->  | P8: Count Start Date: | Q8: =IFERROR(IF(E4="","",B15),"") -> 2024-10-30
B9: Note:
B11: =IF(Input2!A1="","Direction 1: Towards "&Input!B6,"Direction 1/Lane 1 : Towards "&Input!B6) -> Direction 1: Towards COOPER RD
D12: Summary of Speed Classification | T12: Summary of Vehicle Classification
B13: Date | D13: <10 | E13: 10-20 | F13: 20-30 | G13: 30-40 | H13: 40-50 | I13: 50-60 | J13: 60-70 | K13: 70-80 | L13: 80-90 | M13: 90-100 | N13: 100-110 | O13: 110-120 | P13: 121+ | Q13: Daily | R13: 85th Percentile | T13: CL1 | U13: CL2 | V13: CL3 | W13: CL4 | X13: CL5 | Y13: CL6 | Z13: CL7 | AA13: CL8 | AB13: CL9 | AC13: CL10 | AD13: CL11 | AE13: CL12 | AF13: CL13 | AG13: CL14 | AH13: Daily | AI13: %HCV
B14: =IFERROR(TEXT(B15,"MMMM"),0) -> October | C14: Day | Q14: Total | R14: Total | S14: Speed | AH14: Total
B15: =IFERROR(DATEVALUE(RIGHT(Input!$A$10,LEN(Input!$A$10)-FIND(",",Input!$A$10)-1)),1) -> 2024-10-30 | C15: =IFERROR(WEEKDAY(B15,2),0) -> 3 | D15: =SUMIF(Input!$B$15:$B$62,$AA$2,Input!V$15:V$62) -> 0 | E15: =SUMIF(Input!$B$15:$B$62,$AA$2,Input!W$15:W$62) -> 6 | F15: =SUMIF(Input!$B$15:$B$62,$AA$2,Input!X$15:X$62) -> 48 | G15: =SUMIF(Input!$B$15:$B$62,$AA$2,Input!Y$15:Y$62) -> 477 | H15: =SUMIF(Input!$B$15:$B$62,$AA$2,Input!Z$15:Z$62) -> 2508 | I15: =SUMIF(Input!$B$15:$B$62,$AA$2,Input!AA$15:AA$62) -> 1203 | J15: =SUMIF(Input!$B$15:$B$62,$AA$2,Input!AB$15:AB$62) -> 61 | K15: =SUMIF(Input!$B$15:$B$62,$AA$2,Input!AC$15:AC$62) -> 7 | L15: =SUMIF(Input!$B$15:$B$62,$AA$2,Input!AD$15:AD$62) -> 0 | M15: =SUMIF(Input!$B$15:$B$62,$AA$2,Input!AE$15:AE$62) -> 0 | N15: =SUMIF(Input!$B$15:$B$62,$AA$2,Input!AF$15:AF$62) -> 0 | O15: =SUMIF(Input!$B$15:$B$62,$AA$2,Input!AG$15:AG$62) -> 1 | P15: =SUMPRODUCT((Input!$B$15:$B$62=$AA$2)*Input!AH$15:AK$62) -> 1 | Q15: =SUM(D15:P15) -> 4312 | R15: =SUMIFS(Input!C$15:C$62,Input!AL$15:AL$62,">0",Input!B$15:B$62,"P") -> 4296 | S15: =IFERROR(SUMPRODUCT((Input!B$15:B$62="P")*Input!C$15:C$62*Input!AL$15:AL$62)/R15,0) -> 52.58880354 | T15: =SUMIF(Input!$B$15:$B$62,$AA$2,Input!D$15:D$62) -> 21 | U15: =SUMIF(Input!$B$15:$B$62,$AA$2,Input!E$15:E$62) -> 4076 | V15: =SUMIF(Input!$B$15:$B$62,$AA$2,Input!F$15:F$62) -> 15 | W15: =SUMIF(Input!$B$15:$B$62,$AA$2,Input!G$15:G$62) -> 39 | X15: =SUMIF(Input!$B$15:$B$62,$AA$2,Input!H$15:H$62) -> 143 | Y15: =SUMIF(Input!$B$15:$B$62,$AA$2,Input!I$15:I$62) -> 4 | Z15: =SUMIF(Input!$B$15:$B$62,$AA$2,Input!J$15:J$62) -> 8 | AA15: =SUMIF(Input!$B$15:$B$62,$AA$2,Input!K$15:K$62) -> 4 | AB15: =SUMIF(Input!$B$15:$B$62,$AA$2,Input!L$15:L$62) -> 1 | AC15: =SUMIF(Input!$B$15:$B$62,$AA$2,Input!M$15:M$62) -> 0 | AD15: =SUMIF(Input!$B$15:$B$62,$AA$2,Input!N$15:N$62) -> 0 | AE15: =SUMIF(Input!$B$15:$B$62,$AA$2,Input!O$15:O$62) -> 0 | AF15: =SUMIF(Input!$B$15:$B$62,$AA$2,Input!P$15:P$62) -> 0 | AG15: =SUMIF(Input!$B$15:$B$62,$AA$2,Input!Q$15:Q$62) -> 1 | AH15: =SUM(T15:AG15) -> 4312 | AI15: =IFERROR(SUM(W15:AF15)/AH15,0) -> 0.04615027829
B16: =IFERROR(DATEVALUE(RIGHT(Input!$A$73,LEN(Input!$A$73)-FIND(",",Input!$A$73)-1)),2) -> 2024-10-31 | C16: =IFERROR(WEEKDAY(B16,2),0) -> 4 | D16: =SUMIF(Input!$B$78:$B$125,$AA$2,Input!V$78:V$125) -> 0 | E16: =SUMIF(Input!$B$78:$B$125,$AA$2,Input!W$78:W$125) -> 4 | F16: =SUMIF(Input!$B$78:$B$125,$AA$2,Input!X$78:X$125) -> 64 | G16: =SUMIF(Input!$B$78:$B$125,$AA$2,Input!Y$78:Y$125) -> 463 | H16: =SUMIF(Input!$B$78:$B$125,$AA$2,Input!Z$78:Z$125) -> 2766 | I16: =SUMIF(Input!$B$78:$B$125,$AA$2,Input!AA$78:AA$125) -> 1380 | J16: =SUMIF(Input!$B$78:$B$125,$AA$2,Input!AB$78:AB$125) -> 63 | K16: =SUMIF(Input!$B$78:$B$125,$AA$2,Input!AC$78:AC$125) -> 6 | L16: =SUMIF(Input!$B$78:$B$125,$AA$2,Input!AD$78:AD$125) -> 4 | M16: =SUMIF(Input!$B$78:$B$125,$AA$2,Input!AE$78:AE$125) -> 2 | N16: =SUMIF(Input!$B$78:$B$125,$AA$2,Input!AF$78:AF$125) -> 1 | O16: =SUMIF(Input!$B$78:$B$125,$AA$2,Input!AG$78:AG$125) -> 0 | P16: =SUMPRODUCT((Input!$B$78:$B$125=$AA$2)*Input!AH$78:AK$125) -> 0 | Q16: 4753 | R16: =SUMIFS(Input!C$78:C$125,Input!AL$78:AL$125,">0",Input!B$78:B$125,"P") -> 4729 | S16: =IFERROR(SUMPRODUCT((Input!B$78:B$125="P")*Input!C$78:C$125*Input!AL$78:AL$125)/R16,0) -> 52.67128357 | T16: =SUMIF(Input!$B$78:$B$125,$AA$2,Input!D$78:D$125) -> 38 | U16: =SUMIF(Input!$B$78:$B$125,$AA$2,Input!E$78:E$125) -> 4511 | V16: =SUMIF(Input!$B$78:$B$125,$AA$2,Input!F$78:F$125) -> 44 | W16: =SUMIF(Input!$B$78:$B$125,$AA$2,Input!G$78:G$125) -> 44 | X16: =SUMIF(Input!$B$78:$B$125,$AA$2,Input!H$78:H$125) -> 101 | Y16: =SUMIF(Input!$B$78:$B$125,$AA$2,Input!I$78:I$125) -> 3 | Z16: =SUMIF(Input!$B$78:$B$125,$AA$2,Input!J$78:J$125) -> 5 | AA16: =SUMIF(Input!$B$78:$B$125,$AA$2,Input!K$78:K$125) -> 2 | AB16: =SUMIF(Input!$B$78:$B$125,$AA$2,Input!L$78:L$125) -> 1 | AC16: =SUMIF(Input!$B$78:$B$125,$AA$2,Input!M$78:M$125) -> 1 | AD16: =SUMIF(Input!$B$78:$B$125,$AA$2,Input!N$78:N$125) -> 0 | AE16: =SUMIF(Input!$B$78:$B$125,$AA$2,Input!O$78:O$125) -> 0 | AF16: =SUMIF(Input!$B$78:$B$125,$AA$2,Input!P$78:P$125) -> 0 | AG16: =SUMIF(Input!$B$78:$B$125,$AA$2,Input!Q$78:Q$125) -> 3 | AH16: =SUM(T16:AG16) -> 4753 | AI16: 0.03303176941
B17: =IFERROR(DATEVALUE(RIGHT(Input!$A$136,LEN(Input!$A$136)-FIND(",",Input!$A$136)-1)),3) -> 2024-11-01 | C17: 5 | D17: =SUMIF(Input!$B$141:$B$188,$AA$2,Input!V$141:V$188) -> 0 | E17: =SUMIF(Input!$B$141:$B$188,$AA$2,Input!W$141:W$188) -> 12 | F17: =SUMIF(Input!$B$141:$B$188,$AA$2,Input!X$141:X$188) -> 58 | G17: =SUMIF(Input!$B$141:$B$188,$AA$2,Input!Y$141:Y$188) -> 443 | H17: =SUMIF(Input!$B$141:$B$188,$AA$2,Input!Z$141:Z$188) -> 2531 | I17: =SUMIF(Input!$B$141:$B$188,$AA$2,Input!AA$141:AA$188) -> 1410 | J17: =SUMIF(Input!$B$141:$B$188,$AA$2,Input!AB$141:AB$188) -> 71 | K17: =SUMIF(Input!$B$141:$B$188,$AA$2,Input!AC$141:AC$188) -> 6 | L17: =SUMIF(Input!$B$141:$B$188,$AA$2,Input!AD$141:AD$188) -> 1 | M17: =SUMIF(Input!$B$141:$B$188,$AA$2,Input!AE$141:AE$188) -> 0 | N17: =SUMIF(Input!$B$141:$B$188,$AA$2,Input!AF$141:AF$188) -> 0 | O17: =SUMIF(Input!$B$141:$B$188,$AA$2,Input!AG$141:AG$188) -> 0 | P17: =SUMPRODUCT((Input!$B$141:$B$188=$AA$2)*Input!AH$141:AK$188) -> 0 | Q17: 4532 | R17: =SUMIFS(Input!C$144:C$188,Input!AL$144:AL$188,">0",Input!B$144:B$188,"P") -> 4497 | S17: =IFERROR(SUMPRODUCT((Input!B$141:B$188="P")*Input!C$141:C$188*Input!AL$141:AL$188)/R17,0) -> 53.13698021 | T17: =SUMIF(Input!$B$141:$B$188,$AA$2,Input!D$141:D$188) -> 46 | U17: =SUMIF(Input!$B$141:$B$188,$AA$2,Input!E$141:E$188) -> 4303 | V17: =SUMIF(Input!$B$141:$B$188,$AA$2,Input!F$141:F$188) -> 25 | W17: =SUMIF(Input!$B$141:$B$188,$AA$2,Input!G$141:G$188) -> 52 | X17: =SUMIF(Input!$B$141:$B$188,$AA$2,Input!H$141:H$188) -> 93 | Y17: =SUMIF(Input!$B$141:$B$188,$AA$2,Input!I$141:I$188) -> 5 | Z17: =SUMIF(Input!$B$141:$B$188,$AA$2,Input!J$141:J$188) -> 3 | AA17: =SUMIF(Input!$B$141:$B$188,$AA$2,Input!K$141:K$188) -> 2 | AB17: =SUMIF(Input!$B$141:$B$188,$AA$2,Input!L$141:L$188) -> 1 | AC17: =SUMIF(Input!$B$141:$B$188,$AA$2,Input!M$141:M$188) -> 0 | AD17: =SUMIF(Input!$B$141:$B$188,$AA$2,Input!N$141:N$188) -> 0 | AE17: =SUMIF(Input!$B$141:$B$188,$AA$2,Input!O$141:O$188) -> 0 | AF17: =SUMIF(Input!$B$141:$B$188,$AA$2,Input!P$141:P$188) -> 0 | AG17: =SUMIF(Input!$B$141:$B$188,$AA$2,Input!Q$141:Q$188) -> 2 | AH17: 4532 | AI17: 0.03442188879
B18: =IFERROR(DATEVALUE(RIGHT(Input!$A$199,LEN(Input!$A$199)-FIND(",",Input!$A$199)-1)),4) -> 2024-11-02 | C18: 6 | D18: =SUMIF(Input!$B$204:$B$251,$AA$2,Input!V$204:V$251) -> 0 | E18: =SUMIF(Input!$B$204:$B$251,$AA$2,Input!W$204:W$251) -> 13 | F18: =SUMIF(Input!$B$204:$B$251,$AA$2,Input!X$204:X$251) -> 34 | G18: =SUMIF(Input!$B$204:$B$251,$AA$2,Input!Y$204:Y$251) -> 383 | H18: =SUMIF(Input!$B$204:$B$251,$AA$2,Input!Z$204:Z$251) -> 1749 | I18: =SUMIF(Input!$B$204:$B$251,$AA$2,Input!AA$204:AA$251) -> 1035 | J18: =SUMIF(Input!$B$204:$B$251,$AA$2,Input!AB$204:AB$251) -> 61 | K18: =SUMIF(Input!$B$204:$B$251,$AA$2,Input!AC$204:AC$251) -> 12 | L18: =SUMIF(Input!$B$204:$B$251,$AA$2,Input!AD$204:AD$251) -> 1 | M18: =SUMIF(Input!$B$204:$B$251,$AA$2,Input!AE$204:AE$251) -> 2 | N18: =SUMIF(Input!$B$204:$B$251,$AA$2,Input!AF$204:AF$251) -> 0 | O18: =SUMIF(Input!$B$204:$B$251,$AA$2,Input!AG$204:AG$251) -> 0 | P18: =SUMPRODUCT((Input!$B$204:$B$251=$AA$2)*Input!AH$204:AK$251) -> 0 | Q18: 3290 | R18: =SUMIFS(Input!C$204:C$251,Input!AL$204:AL$251,">0",Input!B$204:B$251,"P") -> 3259 | S18: =IFERROR(SUMPRODUCT((Input!B$204:B$251="P")*Input!C$204:C$251*Input!AL$204:AL$251)/R18,0) -> 53.26219699 | T18: =SUMIF(Input!$B$204:$B$251,$AA$2,Input!D$204:D$251) -> 49 | U18: =SUMIF(Input!$B$204:$B$251,$AA$2,Input!E$204:E$251) -> 3108 | V18: =SUMIF(Input!$B$204:$B$251,$AA$2,Input!F$204:F$251) -> 31 | W18: =SUMIF(Input!$B$204:$B$251,$AA$2,Input!G$204:G$251) -> 22 | X18: =SUMIF(Input!$B$204:$B$251,$AA$2,Input!H$204:H$251) -> 72 | Y18: =SUMIF(Input!$B$204:$B$251,$AA$2,Input!I$204:I$251) -> 4 | Z18: =SUMIF(Input!$B$204:$B$251,$AA$2,Input!J$204:J$251) -> 2 | AA18: =SUMIF(Input!$B$204:$B$251,$AA$2,Input!K$204:K$251) -> 1 | AB18: =SUMIF(Input!$B$204:$B$251,$AA$2,Input!L$204:L$251) -> 0 | AC18: =SUMIF(Input!$B$204:$B$251,$AA$2,Input!M$204:M$251) -> 0 | AD18: =SUMIF(Input!$B$204:$B$251,$AA$2,Input!N$204:N$251) -> 0 | AE18: =SUMIF(Input!$B$204:$B$251,$AA$2,Input!O$204:O$251) -> 0 | AF18: =SUMIF(Input!$B$204:$B$251,$AA$2,Input!P$204:P$251) -> 0 | AG18: =SUMIF(Input!$B$204:$B$251,$AA$2,Input!Q$204:Q$251) -> 1 | AH18: 3290 | AI18: 0.03069908815
B19: =IFERROR(DATEVALUE(RIGHT(Input!$A$262,LEN(Input!$A$262)-FIND(",",Input!$A$262)-1)),5) -> 2024-11-03 | C19: 7 | D19: =SUMIF(Input!$B$267:$B$314,$AA$2,Input!V$267:V$314) -> 0 | E19: =SUMIF(Input!$B$267:$B$314,$AA$2,Input!W$267:W$314) -> 3 | F19: =SUMIF(Input!$B$267:$B$314,$AA$2,Input!X$267:X$314) -> 28 | G19: =SUMIF(Input!$B$267:$B$314,$AA$2,Input!Y$267:Y$314) -> 373 | H19: =SUMIF(Input!$B$267:$B$314,$AA$2,Input!Z$267:Z$314) -> 1650 | I19: =SUMIF(Input!$B$267:$B$314,$AA$2,Input!AA$267:AA$314) -> 941 | J19: =SUMIF(Input!$B$267:$B$314,$AA$2,Input!AB$267:AB$314) -> 50 | K19: =SUMIF(Input!$B$267:$B$314,$AA$2,Input!AC$267:AC$314) -> 8 | L19: =SUMIF(Input!$B$267:$B$314,$AA$2,Input!AD$267:AD$314) -> 2 | M19: =SUMIF(Input!$B$267:$B$314,$AA$2,Input!AE$267:AE$314) -> 0 | N19: =SUMIF(Input!$B$267:$B$314,$AA$2,Input!AF$267:AF$314) -> 0 | O19: =SUMIF(Input!$B$267:$B$314,$AA$2,Input!AG$267:AG$314) -> 0 | P19: =SUMPRODUCT((Input!$B$267:$B$314=$AA$2)*Input!AH$267:AK$314) -> 2 | Q19: 3057 | R19: =SUMIFS(Input!C$267:C$314,Input!AL$267:AL$314,">0",Input!B$267:B$314,"P") -> 3034 | S19: =IFERROR(SUMPRODUCT((Input!B$267:B$314="P")*Input!C$267:C$314*Input!AL$267:AL$314)/R19,0) -> 53.09624258 | T19: =SUMIF(Input!$B$267:$B$314,$AA$2,Input!D$267:D$314) -> 41 | U19: =SUMIF(Input!$B$267:$B$314,$AA$2,Input!E$267:E$314) -> 2898 | V19: =SUMIF(Input!$B$267:$B$314,$AA$2,Input!F$267:F$314) -> 33 | W19: =SUMIF(Input!$B$267:$B$314,$AA$2,Input!G$267:G$314) -> 16 | X19: =SUMIF(Input!$B$267:$B$314,$AA$2,Input!H$267:H$314) -> 58 | Y19: =SUMIF(Input!$B$267:$B$314,$AA$2,Input!I$267:I$314) -> 6 | Z19: =SUMIF(Input!$B$267:$B$314,$AA$2,Input!J$267:J$314) -> 3 | AA19: =SUMIF(Input!$B$267:$B$314,$AA$2,Input!K$267:K$314) -> 1 | AB19: =SUMIF(Input!$B$267:$B$314,$AA$2,Input!L$267:L$314) -> 0 | AC19: =SUMIF(Input!$B$267:$B$314,$AA$2,Input!M$267:M$314) -> 0 | AD19: =SUMIF(Input!$B$267:$B$314,$AA$2,Input!N$267:N$314) -> 0 | AE19: =SUMIF(Input!$B$267:$B$314,$AA$2,Input!O$267:O$314) -> 0 | AF19: =SUMIF(Input!$B$267:$B$314,$AA$2,Input!P$267:P$314) -> 0 | AG19: =SUMIF(Input!$B$267:$B$314,$AA$2,Input!Q$267:Q$314) -> 1 | AH19: 3057 | AI19: 0.02747791953
B20: =IFERROR(DATEVALUE(RIGHT(Input!$A$325,LEN(Input!$A$325)-FIND(",",Input!$A$325)-1)),6) -> 2024-11-04 | C20: 1 | D20: =SUMIF(Input!$B$330:$B$377,$AA$2,Input!V$330:V$377) -> 0 | E20: =SUMIF(Input!$B$330:$B$377,$AA$2,Input!W$330:W$377) -> 4 | F20: =SUMIF(Input!$B$330:$B$377,$AA$2,Input!X$330:X$377) -> 50 | G20: =SUMIF(Input!$B$330:$B$377,$AA$2,Input!Y$330:Y$377) -> 423 | H20: =SUMIF(Input!$B$330:$B$377,$AA$2,Input!Z$330:Z$377) -> 2525 | I20: =SUMIF(Input!$B$330:$B$377,$AA$2,Input!AA$330:AA$377) -> 1317 | J20: =SUMIF(Input!$B$330:$B$377,$AA$2,Input!AB$330:AB$377) -> 47 | K20: =SUMIF(Input!$B$330:$B$377,$AA$2,Input!AC$330:AC$377) -> 6 | L20: =SUMIF(Input!$B$330:$B$377,$AA$2,Input!AD$330:AD$377) -> 4 | M20: =SUMIF(Input!$B$330:$B$377,$AA$2,Input!AE$330:AE$377) -> 1 | N20: =SUMIF(Input!$B$330:$B$377,$AA$2,Input!AF$330:AF$377) -> 2 | O20: =SUMIF(Input!$B$330:$B$377,$AA$2,Input!AG$330:AG$377) -> 0 | P20: =SUMPRODUCT((Input!$B$330:$B$377=$AA$2)*Input!AH$330:AK$377) -> 0 | Q20: 4379 | R20: =SUMIFS(Input!C$330:C$377,Input!AL$330:AL$377,">0",Input!B$330:B$377,"P") -> 4369 | S20: =IFERROR(SUMPRODUCT((Input!B$330:B$377="P")*Input!C$330:C$377*Input!AL$330:AL$377)/R20,0) -> 52.91998169 | T20: =SUMIF(Input!$B$330:$B$377,$AA$2,Input!D$330:D$377) -> 41 | U20: =SUMIF(Input!$B$330:$B$377,$AA$2,Input!E$330:E$377) -> 4150 | V20: =SUMIF(Input!$B$330:$B$377,$AA$2,Input!F$330:F$377) -> 36 | W20: =SUMIF(Input!$B$330:$B$377,$AA$2,Input!G$330:G$377) -> 50 | X20: =SUMIF(Input!$B$330:$B$377,$AA$2,Input!H$330:H$377) -> 86 | Y20: =SUMIF(Input!$B$330:$B$377,$AA$2,Input!I$330:I$377) -> 4 | Z20: =SUMIF(Input!$B$330:$B$377,$AA$2,Input!J$330:J$377) -> 8 | AA20: =SUMIF(Input!$B$330:$B$377,$AA$2,Input!K$330:K$377) -> 1 | AB20: =SUMIF(Input!$B$330:$B$377,$AA$2,Input!L$330:L$377) -> 1 | AC20: =SUMIF(Input!$B$330:$B$377,$AA$2,Input!M$330:M$377) -> 0 | AD20: =SUMIF(Input!$B$330:$B$377,$AA$2,Input!N$330:N$377) -> 0 | AE20: =SUMIF(Input!$B$330:$B$377,$AA$2,Input!O$330:O$377) -> 0 | AF20: =SUMIF(Input!$B$330:$B$377,$AA$2,Input!P$330:P$377) -> 0 | AG20: =SUMIF(Input!$B$330:$B$377,$AA$2,Input!Q$330:Q$377) -> 2 | AH20: 4379 | AI20: 0.03425439598
B21: =IFERROR(DATEVALUE(RIGHT(Input!$A$388,LEN(Input!$A$388)-FIND(",",Input!$A$388)-1)),7) -> 2024-11-05 | C21: 2 | D21: =SUMIF(Input!$B$393:$B$440,$AA$2,Input!V$393:V$440) -> 0 | E21: =SUMIF(Input!$B$393:$B$440,$AA$2,Input!W$393:W$440) -> 7 | F21: =SUMIF(Input!$B$393:$B$440,$AA$2,Input!X$393:X$440) -> 53 | G21: =SUMIF(Input!$B$393:$B$440,$AA$2,Input!Y$393:Y$440) -> 472 | H21: =SUMIF(Input!$B$393:$B$440,$AA$2,Input!Z$393:Z$440) -> 2459 | I21: =SUMIF(Input!$B$393:$B$440,$AA$2,Input!AA$393:AA$440) -> 1330 | J21: =SUMIF(Input!$B$393:$B$440,$AA$2,Input!AB$393:AB$440) -> 55 | K21: =SUMIF(Input!$B$393:$B$440,$AA$2,Input!AC$393:AC$440) -> 7 | L21: =SUMIF(Input!$B$393:$B$440,$AA$2,Input!AD$393:AD$440) -> 4 | M21: =SUMIF(Input!$B$393:$B$440,$AA$2,Input!AE$393:AE$440) -> 1 | N21: =SUMIF(Input!$B$393:$B$440,$AA$2,Input!AF$393:AF$440) -> 0 | O21: =SUMIF(Input!$B$393:$B$440,$AA$2,Input!AG$393:AG$440) -> 1 | P21: =SUMPRODUCT((Input!$B$393:$B$440=$AA$2)*Input!AH$393:AK$440) -> 0 | Q21: 4389 | R21: =SUMIFS(Input!C$393:C$440,Input!AL$393:AL$440,">0",Input!B$393:B$440,"P") -> 4362 | S21: =IFERROR(SUMPRODUCT((Input!B$393:B$440="P")*Input!C$393:C$440*Input!AL$393:AL$440)/R21,0) -> 52.74076112 | T21: =SUMIF(Input!$B$393:$B$440,$AA$2,Input!D$393:D$440) -> 51 | U21: =SUMIF(Input!$B$393:$B$440,$AA$2,Input!E$393:E$440) -> 4192 | V21: =SUMIF(Input!$B$393:$B$440,$AA$2,Input!F$393:F$440) -> 26 | W21: =SUMIF(Input!$B$393:$B$440,$AA$2,Input!G$393:G$440) -> 51 | X21: =SUMIF(Input!$B$393:$B$440,$AA$2,Input!H$393:H$440) -> 59 | Y21: =SUMIF(Input!$B$393:$B$440,$AA$2,Input!I$393:I$440) -> 0 | Z21: =SUMIF(Input!$B$393:$B$440,$AA$2,Input!J$393:J$440) -> 2 | AA21: =SUMIF(Input!$B$393:$B$440,$AA$2,Input!K$393:K$440) -> 3 | AB21: =SUMIF(Input!$B$393:$B$440,$AA$2,Input!L$393:L$440) -> 2 | AC21: =SUMIF(Input!$B$393:$B$440,$AA$2,Input!M$393:M$440) -> 1 | AD21: =SUMIF(Input!$B$393:$B$440,$AA$2,Input!N$393:N$440) -> 0 | AE21: =SUMIF(Input!$B$393:$B$440,$AA$2,Input!O$393:O$440) -> 0 | AF21: =SUMIF(Input!$B$393:$B$440,$AA$2,Input!P$393:P$440) -> 1 | AG21: =SUMIF(Input!$B$393:$B$440,$AA$2,Input!Q$393:Q$440) -> 1 | AH21: 4389 | AI21: 0.02711323764
B22: Total | D22: =SUM(D15:D21) -> 0 | E22: =SUM(E15:E21) -> 49 | F22: 335 | G22: 3034 | H22: 16188 | I22: 8616 | J22: 408 | K22: 52 | L22: 16 | M22: 6 | N22: 3 | O22: 2 | P22: 3 | Q22: 28712 | R22: 28546 | S22: =IFERROR(SUMPRODUCT(R15:R21,S15:S21)/R22,0) -> 52.89354375 | T22: =SUM(T15:T21) -> 287 | U22: 27238 | V22: 210 | W22: 274 | X22: 612 | Y22: 26 | Z22: 31 | AA22: 14 | AB22: 6 | AC22: 2 | AD22: 0 | AE22: 0 | AF22: 1 | AG22: 11 | AH22: 28712 | AI22: 0.03364446921
B24: =IF(Input2!A1="","Direction 2: Towards "&Input!B5,"Direction 1/Lane 2 : Towards "&Input!B6) -> Direction 2: Towards DUNCANSBY RD
D25: Summary of Speed Classification | T25: Summary of Vehicle Classification
B26: Date | D26: <10 | E26: 10-20 | F26: 20-30 | G26: 30-40 | H26: 40-50 | I26: 50-60 | J26: 60-70 | K26: 70-80 | L26: 80-90 | M26: 90-100 | N26: 100-110 | O26: 110-120 | P26: 121+ | Q26: Daily | R26: 85th Percentile | T26: CL1 | U26: CL2 | V26: CL3 | W26: CL4 | X26: CL5 | Y26: CL6 | Z26: CL7 | AA26: CL8 | AB26: CL9 | AC26: CL10 | AD26: CL11 | AE26: CL12 | AF26: CL13 | AG26: CL14 | AH26: Daily | AI26: %HCV
B27: =IFERROR(TEXT(B28,"MMMM"),0) -> October | C27: Day | Q27: Total | R27: Total | S27: Speed | AH27: Total
B28: =IFERROR(DATEVALUE(RIGHT(Input!$A$10,LEN(Input!$A$10)-FIND(",",Input!$A$10)-1)),1) -> 2024-10-30 | C28: =IFERROR(WEEKDAY(B28,2),0) -> 3 | D28: =SUMIF(Input!$B$15:$B$62,$AB$2,Input!V$15:V$62) -> 0 | E28: =SUMIF(Input!$B$15:$B$62,$AB$2,Input!W$15:W$62) -> 8 | F28: =SUMIF(Input!$B$15:$B$62,$AB$2,Input!X$15:X$62) -> 220 | G28: =SUMIF(Input!$B$15:$B$62,$AB$2,Input!Y$15:Y$62) -> 807 | H28: =SUMIF(Input!$B$15:$B$62,$AB$2,Input!Z$15:Z$62) -> 4288 | I28: =SUMIF(Input!$B$15:$B$62,$AB$2,Input!AA$15:AA$62) -> 272 | J28: =SUMIF(Input!$B$15:$B$62,$AB$2,Input!AB$15:AB$62) -> 4 | K28: =SUMIF(Input!$B$15:$B$62,$AB$2,Input!AC$15:AC$62) -> 0 | L28: =SUMIF(Input!$B$15:$B$62,$AB$2,Input!AD$15:AD$62) -> 0 | M28: =SUMIF(Input!$B$15:$B$62,$AB$2,Input!AE$15:AE$62) -> 0 | N28: =SUMIF(Input!$B$15:$B$62,$AB$2,Input!AF$15:AF$62) -> 0 | O28: =SUMIF(Input!$B$15:$B$62,$AB$2,Input!AG$15:AG$62) -> 0 | P28: =SUMPRODUCT((Input!$B$15:$B$62=$AB$2)*Input!AH$15:AK$62) -> 0 | Q28: =SUM(D28:P28) -> 5599 | R28: =SUMIFS(Input!C$15:C$62,Input!AL$15:AL$62,">0",Input!B$15:B$62,"S") -> 5592 | S28: =IFERROR(SUMPRODUCT((Input!B$15:B$62="S")*Input!C$15:C$62*Input!AL$15:AL$62)/R28,0) -> 47.61496781 | T28: =SUMIF(Input!$B$15:$B$62,$AB$2,Input!D$15:D$62) -> 26 | U28: =SUMIF(Input!$B$15:$B$62,$AB$2,Input!E$15:E$62) -> 5445 | V28: =SUMIF(Input!$B$15:$B$62,$AB$2,Input!F$15:F$62) -> 31 | W28: =SUMIF(Input!$B$15:$B$62,$AB$2,Input!G$15:G$62) -> 65 | X28: =SUMIF(Input!$B$15:$B$62,$AB$2,Input!H$15:H$62) -> 17 | Y28: =SUMIF(Input!$B$15:$B$62,$AB$2,Input!I$15:I$62) -> 4 | Z28: =SUMIF(Input!$B$15:$B$62,$AB$2,Input!J$15:J$62) -> 9 | AA28: =SUMIF(Input!$B$15:$B$62,$AB$2,Input!K$15:K$62) -> 1 | AB28: =SUMIF(Input!$B$15:$B$62,$AB$2,Input!L$15:L$62) -> 0 | AC28: =SUMIF(Input!$B$15:$B$62,$AB$2,Input!M$15:M$62) -> 0 | AD28: =SUMIF(Input!$B$15:$B$62,$AB$2,Input!N$15:N$62) -> 0 | AE28: =SUMIF(Input!$B$15:$B$62,$AB$2,Input!O$15:O$62) -> 0 | AF28: =SUMIF(Input!$B$15:$B$62,$AB$2,Input!P$15:P$62) -> 0 | AG28: =SUMIF(Input!$B$15:$B$62,$AB$2,Input!Q$15:Q$62) -> 1 | AH28: =SUM(T28:AG28) -> 5599 | AI28: =IFERROR(SUM(W28:AF28)/AH28,0) -> 0.01714591891
B29: =IFERROR(DATEVALUE(RIGHT(Input!$A$73,LEN(Input!$A$73)-FIND(",",Input!$A$73)-1)),2) -> 2024-10-31 | C29: =IFERROR(WEEKDAY(B29,2),0) -> 4 | D29: =SUMIF(Input!$B$78:$B$125,$AB$2,Input!V$78:V$125) -> 0 | E29: =SUMIF(Input!$B$78:$B$125,$AB$2,Input!W$78:W$125) -> 13 | F29: =SUMIF(Input!$B$78:$B$125,$AB$2,Input!X$78:X$125) -> 206 | G29: =SUMIF(Input!$B$78:$B$125,$AB$2,Input!Y$78:Y$125) -> 843 | H29: =SUMIF(Input!$B$78:$B$125,$AB$2,Input!Z$78:Z$125) -> 4213 | I29: =SUMIF(Input!$B$78:$B$125,$AB$2,Input!AA$78:AA$125) -> 325 | J29: =SUMIF(Input!$B$78:$B$125,$AB$2,Input!AB$78:AB$125) -> 4 | K29: =SUMIF(Input!$B$78:$B$125,$AB$2,Input!AC$78:AC$125) -> 0 | L29: =SUMIF(Input!$B$78:$B$125,$AB$2,Input!AD$78:AD$125) -> 0 | M29: =SUMIF(Input!$B$78:$B$125,$AB$2,Input!AE$78:AE$125) -> 0 | N29: =SUMIF(Input!$B$78:$B$125,$AB$2,Input!AF$78:AF$125) -> 0 | O29: =SUMIF(Input!$B$78:$B$125,$AB$2,Input!AG$78:AG$125) -> 0 | P29: =SUMPRODUCT((Input!$B$78:$B$125=$AB$2)*Input!AH$78:AK$125) -> 0 | Q29: 5604 | R29: =SUMIFS(Input!C$78:C$125,Input!AL$78:AL$125,">0",Input!B$78:B$125,"S") -> 5580 | S29: =IFERROR(SUMPRODUCT((Input!B$78:B$125="S")*Input!C$78:C$125*Input!AL$78:AL$125)/R29,0) -> 47.8152509 | T29: =SUMIF(Input!$B$78:$B$125,$AB$2,Input!D$78:D$125) -> 34 | U29: =SUMIF(Input!$B$78:$B$125,$AB$2,Input!E$78:E$125) -> 5427 | V29: =SUMIF(Input!$B$78:$B$125,$AB$2,Input!F$78:F$125) -> 46 | W29: =SUMIF(Input!$B$78:$B$125,$AB$2,Input!G$78:G$125) -> 66 | X29: =SUMIF(Input!$B$78:$B$125,$AB$2,Input!H$78:H$125) -> 18 | Y29: =SUMIF(Input!$B$78:$B$125,$AB$2,Input!I$78:I$125) -> 6 | Z29: =SUMIF(Input!$B$78:$B$125,$AB$2,Input!J$78:J$125) -> 6 | AA29: =SUMIF(Input!$B$78:$B$125,$AB$2,Input!K$78:K$125) -> 1 | AB29: =SUMIF(Input!$B$78:$B$125,$AB$2,Input!L$78:L$125) -> 0 | AC29: =SUMIF(Input!$B$78:$B$125,$AB$2,Input!M$78:M$125) -> 0 | AD29: =SUMIF(Input!$B$78:$B$125,$AB$2,Input!N$78:N$125) -> 0 | AE29: =SUMIF(Input!$B$78:$B$125,$AB$2,Input!O$78:O$125) -> 0 | AF29: =SUMIF(Input!$B$78:$B$125,$AB$2,Input!P$78:P$125) -> 0 | AG29: =SUMIF(Input!$B$78:$B$125,$AB$2,Input!Q$78:Q$125) -> 0 | AH29: =SUM(T29:AG29) -> 5604 | AI29: 0.01730906495
B30: =IFERROR(DATEVALUE(RIGHT(Input!$A$136,LEN(Input!$A$136)-FIND(",",Input!$A$136)-1)),3) -> 2024-11-01 | C30: 5 | D30: =SUMIF(Input!$B$141:$B$188,$AB$2,Input!V$141:V$188) -> 0 | E30: =SUMIF(Input!$B$141:$B$188,$AB$2,Input!W$141:W$188) -> 8 | F30: =SUMIF(Input!$B$141:$B$188,$AB$2,Input!X$141:X$188) -> 197 | G30: =SUMIF(Input!$B$141:$B$188,$AB$2,Input!Y$141:Y$188) -> 782 | H30: =SUMIF(Input!$B$141:$B$188,$AB$2,Input!Z$141:Z$188) -> 4305 | I30: =SUMIF(Input!$B$141:$B$188,$AB$2,Input!AA$141:AA$188) -> 288 | J30: =SUMIF(Input!$B$141:$B$188,$AB$2,Input!AB$141:AB$188) -> 2 | K30: =SUMIF(Input!$B$141:$B$188,$AB$2,Input!AC$141:AC$188) -> 0 | L30: =SUMIF(Input!$B$141:$B$188,$AB$2,Input!AD$141:AD$188) -> 0 | M30: =SUMIF(Input!$B$141:$B$188,$AB$2,Input!AE$141:AE$188) -> 0 | N30: =SUMIF(Input!$B$141:$B$188,$AB$2,Input!AF$141:AF$188) -> 0 | O30: =SUMIF(Input!$B$141:$B$188,$AB$2,Input!AG$141:AG$188) -> 0 | P30: =SUMPRODUCT((Input!$B$141:$B$188=$AB$2)*Input!AH$141:AK$188) -> 0 | Q30: 5582 | R30: =SUMIFS(Input!C$144:C$188,Input!AL$144:AL$188,">0",Input!B$144:B$188,"S") -> 5561 | S30: =IFERROR(SUMPRODUCT((Input!B$141:B$188="S")*Input!C$141:C$188*Input!AL$141:AL$188)/R30,0) -> 47.7595936 | T30: =SUMIF(Input!$B$141:$B$188,$AB$2,Input!D$141:D$188) -> 45 | U30: =SUMIF(Input!$B$141:$B$188,$AB$2,Input!E$141:E$188) -> 5372 | V30: =SUMIF(Input!$B$141:$B$188,$AB$2,Input!F$141:F$188) -> 58 | W30: =SUMIF(Input!$B$141:$B$188,$AB$2,Input!G$141:G$188) -> 68 | X30: =SUMIF(Input!$B$141:$B$188,$AB$2,Input!H$141:H$188) -> 23 | Y30: =SUMIF(Input!$B$141:$B$188,$AB$2,Input!I$141:I$188) -> 6 | Z30: =SUMIF(Input!$B$141:$B$188,$AB$2,Input!J$141:J$188) -> 7 | AA30: =SUMIF(Input!$B$141:$B$188,$AB$2,Input!K$141:K$188) -> 1 | AB30: =SUMIF(Input!$B$141:$B$188,$AB$2,Input!L$141:L$188) -> 0 | AC30: =SUMIF(Input!$B$141:$B$188,$AB$2,Input!M$141:M$188) -> 0 | AD30: =SUMIF(Input!$B$141:$B$188,$AB$2,Input!N$141:N$188) -> 0 | AE30: =SUMIF(Input!$B$141:$B$188,$AB$2,Input!O$141:O$188) -> 0 | AF30: =SUMIF(Input!$B$141:$B$188,$AB$2,Input!P$141:P$188) -> 1 | AG30: =SUMIF(Input!$B$141:$B$188,$AB$2,Input!Q$141:Q$188) -> 1 | AH30: 5582 | AI30: 0.01898960946
B31: =IFERROR(DATEVALUE(RIGHT(Input!$A$199,LEN(Input!$A$199)-FIND(",",Input!$A$199)-1)),4) -> 2024-11-02 | C31: 6 | D31: =SUMIF(Input!$B$204:$B$251,$AB$2,Input!V$204:V$251) -> 0 | E31: =SUMIF(Input!$B$204:$B$251,$AB$2,Input!W$204:W$251) -> 7 | F31: =SUMIF(Input!$B$204:$B$251,$AB$2,Input!X$204:X$251) -> 200 | G31: =SUMIF(Input!$B$204:$B$251,$AB$2,Input!Y$204:Y$251) -> 615 | H31: =SUMIF(Input!$B$204:$B$251,$AB$2,Input!Z$204:Z$251) -> 3170 | I31: =SUMIF(Input!$B$204:$B$251,$AB$2,Input!AA$204:AA$251) -> 219 | J31: =SUMIF(Input!$B$204:$B$251,$AB$2,Input!AB$204:AB$251) -> 3 | K31: =SUMIF(Input!$B$204:$B$251,$AB$2,Input!AC$204:AC$251) -> 1 | L31: =SUMIF(Input!$B$204:$B$251,$AB$2,Input!AD$204:AD$251) -> 0 | M31: =SUMIF(Input!$B$204:$B$251,$AB$2,Input!AE$204:AE$251) -> 0 | N31: =SUMIF(Input!$B$204:$B$251,$AB$2,Input!AF$204:AF$251) -> 0 | O31: =SUMIF(Input!$B$204:$B$251,$AB$2,Input!AG$204:AG$251) -> 0 | P31: =SUMPRODUCT((Input!$B$204:$B$251=$AB$2)*Input!AH$204:AK$251) -> 0 | Q31: 4215 | R31: =SUMIFS(Input!C$204:C$251,Input!AL$204:AL$251,">0",Input!B$204:B$251,"S") -> 4202 | S31: =IFERROR(SUMPRODUCT((Input!B$204:B$251="S")*Input!C$204:C$251*Input!AL$204:AL$251)/R31,0) -> 47.83191337 | T31: =SUMIF(Input!$B$204:$B$251,$AB$2,Input!D$204:D$251) -> 37 | U31: =SUMIF(Input!$B$204:$B$251,$AB$2,Input!E$204:E$251) -> 4056 | V31: =SUMIF(Input!$B$204:$B$251,$AB$2,Input!F$204:F$251) -> 55 | W31: =SUMIF(Input!$B$204:$B$251,$AB$2,Input!G$204:G$251) -> 45 | X31: =SUMIF(Input!$B$204:$B$251,$AB$2,Input!H$204:H$251) -> 7 | Y31: =SUMIF(Input!$B$204:$B$251,$AB$2,Input!I$204:I$251) -> 4 | Z31: =SUMIF(Input!$B$204:$B$251,$AB$2,Input!J$204:J$251) -> 8 | AA31: =SUMIF(Input!$B$204:$B$251,$AB$2,Input!K$204:K$251) -> 0 | AB31: =SUMIF(Input!$B$204:$B$251,$AB$2,Input!L$204:L$251) -> 0 | AC31: =SUMIF(Input!$B$204:$B$251,$AB$2,Input!M$204:M$251) -> 0 | AD31: =SUMIF(Input!$B$204:$B$251,$AB$2,Input!N$204:N$251) -> 0 | AE31: =SUMIF(Input!$B$204:$B$251,$AB$2,Input!O$204:O$251) -> 0 | AF31: =SUMIF(Input!$B$204:$B$251,$AB$2,Input!P$204:P$251) -> 0 | AG31: =SUMIF(Input!$B$204:$B$251,$AB$2,Input!Q$204:Q$251) -> 3 | AH31: 4215 | AI31: 0.01518386714
B32: =IFERROR(DATEVALUE(RIGHT(Input!$A$262,LEN(Input!$A$262)-FIND(",",Input!$A$262)-1)),5) -> 2024-11-03 | C32: 7 | D32: =SUMIF(Input!$B$267:$B$314,$AB$2,Input!V$267:V$314) -> 0 | E32: =SUMIF(Input!$B$267:$B$314,$AB$2,Input!W$267:W$314) -> 6 | F32: =SUMIF(Input!$B$267:$B$314,$AB$2,Input!X$267:X$314) -> 180 | G32: =SUMIF(Input!$B$267:$B$314,$AB$2,Input!Y$267:Y$314) -> 541 | H32: =SUMIF(Input!$B$267:$B$314,$AB$2,Input!Z$267:Z$314) -> 2718 | I32: =SUMIF(Input!$B$267:$B$314,$AB$2,Input!AA$267:AA$314) -> 199 | J32: =SUMIF(Input!$B$267:$B$314,$AB$2,Input!AB$267:AB$314) -> 5 | K32: =SUMIF(Input!$B$267:$B$314,$AB$2,Input!AC$267:AC$314) -> 1 | L32: =SUMIF(Input!$B$267:$B$314,$AB$2,Input!AD$267:AD$314) -> 0 | M32: =SUMIF(Input!$B$267:$B$314,$AB$2,Input!AE$267:AE$314) -> 0 | N32: =SUMIF(Input!$B$267:$B$314,$AB$2,Input!AF$267:AF$314) -> 0 | O32: =SUMIF(Input!$B$267:$B$314,$AB$2,Input!AG$267:AG$314) -> 0 | P32: =SUMPRODUCT((Input!$B$267:$B$314=$AB$2)*Input!AH$267:AK$314) -> 1 | Q32: 3651 | R32: =SUMIFS(Input!C$267:C$314,Input!AL$267:AL$314,">0",Input!B$267:B$314,"S") -> 3627 | S32: =IFERROR(SUMPRODUCT((Input!B$267:B$314="S")*Input!C$267:C$314*Input!AL$267:AL$314)/R32,0) -> 47.99426523 | T32: =SUMIF(Input!$B$267:$B$314,$AB$2,Input!D$267:D$314) -> 46 | U32: =SUMIF(Input!$B$267:$B$314,$AB$2,Input!E$267:E$314) -> 3535 | V32: =SUMIF(Input!$B$267:$B$314,$AB$2,Input!F$267:F$314) -> 27 | W32: =SUMIF(Input!$B$267:$B$314,$AB$2,Input!G$267:G$314) -> 34 | X32: =SUMIF(Input!$B$267:$B$314,$AB$2,Input!H$267:H$314) -> 3 | Y32: =SUMIF(Input!$B$267:$B$314,$AB$2,Input!I$267:I$314) -> 2 | Z32: =SUMIF(Input!$B$267:$B$314,$AB$2,Input!J$267:J$314) -> 3 | AA32: =SUMIF(Input!$B$267:$B$314,$AB$2,Input!K$267:K$314) -> 1 | AB32: =SUMIF(Input!$B$267:$B$314,$AB$2,Input!L$267:L$314) -> 0 | AC32: =SUMIF(Input!$B$267:$B$314,$AB$2,Input!M$267:M$314) -> 0 | AD32: =SUMIF(Input!$B$267:$B$314,$AB$2,Input!N$267:N$314) -> 0 | AE32: =SUMIF(Input!$B$267:$B$314,$AB$2,Input!O$267:O$314) -> 0 | AF32: =SUMIF(Input!$B$267:$B$314,$AB$2,Input!P$267:P$314) -> 0 | AG32: =SUMIF(Input!$B$267:$B$314,$AB$2,Input!Q$267:Q$314) -> 0 | AH32: 3651 | AI32: 0.01177759518
B33: =IFERROR(DATEVALUE(RIGHT(Input!$A$325,LEN(Input!$A$325)-FIND(",",Input!$A$325)-1)),6) -> 2024-11-04 | C33: 1 | D33: =SUMIF(Input!$B$330:$B$377,$AB$2,Input!V$330:V$377) -> 0 | E33: =SUMIF(Input!$B$330:$B$377,$AB$2,Input!W$330:W$377) -> 11 | F33: =SUMIF(Input!$B$330:$B$377,$AB$2,Input!X$330:X$377) -> 205 | G33: =SUMIF(Input!$B$330:$B$377,$AB$2,Input!Y$330:Y$377) -> 823 | H33: =SUMIF(Input!$B$330:$B$377,$AB$2,Input!Z$330:Z$377) -> 4010 | I33: =SUMIF(Input!$B$330:$B$377,$AB$2,Input!AA$330:AA$377) -> 262 | J33: =SUMIF(Input!$B$330:$B$377,$AB$2,Input!AB$330:AB$377) -> 4 | K33: =SUMIF(Input!$B$330:$B$377,$AB$2,Input!AC$330:AC$377) -> 0 | L33: =SUMIF(Input!$B$330:$B$377,$AB$2,Input!AD$330:AD$377) -> 0 | M33: =SUMIF(Input!$B$330:$B$377,$AB$2,Input!AE$330:AE$377) -> 0 | N33: =SUMIF(Input!$B$330:$B$377,$AB$2,Input!AF$330:AF$377) -> 0 | O33: =SUMIF(Input!$B$330:$B$377,$AB$2,Input!AG$330:AG$377) -> 0 | P33: =SUMPRODUCT((Input!$B$330:$B$377=$AB$2)*Input!AH$330:AK$377) -> 0 | Q33: 5315 | R33: =SUMIFS(Input!C$330:C$377,Input!AL$330:AL$377,">0",Input!B$330:B$377,"S") -> 5295 | S33: =IFERROR(SUMPRODUCT((Input!B$330:B$377="S")*Input!C$330:C$377*Input!AL$330:AL$377)/R33,0) -> 47.46534466 | T33: =SUMIF(Input!$B$330:$B$377,$AB$2,Input!D$330:D$377) -> 31 | U33: =SUMIF(Input!$B$330:$B$377,$AB$2,Input!E$330:E$377) -> 5119 | V33: =SUMIF(Input!$B$330:$B$377,$AB$2,Input!F$330:F$377) -> 64 | W33: =SUMIF(Input!$B$330:$B$377,$AB$2,Input!G$330:G$377) -> 59 | X33: =SUMIF(Input!$B$330:$B$377,$AB$2,Input!H$330:H$377) -> 26 | Y33: =SUMIF(Input!$B$330:$B$377,$AB$2,Input!I$330:I$377) -> 5 | Z33: =SUMIF(Input!$B$330:$B$377,$AB$2,Input!J$330:J$377) -> 5 | AA33: =SUMIF(Input!$B$330:$B$377,$AB$2,Input!K$330:K$377) -> 1 | AB33: =SUMIF(Input!$B$330:$B$377,$AB$2,Input!L$330:L$377) -> 0 | AC33: =SUMIF(Input!$B$330:$B$377,$AB$2,Input!M$330:M$377) -> 0 | AD33: =SUMIF(Input!$B$330:$B$377,$AB$2,Input!N$330:N$377) -> 0 | AE33: =SUMIF(Input!$B$330:$B$377,$AB$2,Input!O$330:O$377) -> 0 | AF33: =SUMIF(Input!$B$330:$B$377,$AB$2,Input!P$330:P$377) -> 0 | AG33: =SUMIF(Input!$B$330:$B$377,$AB$2,Input!Q$330:Q$377) -> 5 | AH33: 5315 | AI33: 0.01806208843
B34: =IFERROR(DATEVALUE(RIGHT(Input!$A$388,LEN(Input!$A$388)-FIND(",",Input!$A$388)-1)),7) -> 2024-11-05 | C34: 2 | D34: =SUMIF(Input!$B$393:$B$440,$AB$2,Input!V$393:V$440) -> 0 | E34: =SUMIF(Input!$B$393:$B$440,$AB$2,Input!W$393:W$440) -> 3 | F34: =SUMIF(Input!$B$393:$B$440,$AB$2,Input!X$393:X$440) -> 200 | G34: =SUMIF(Input!$B$393:$B$440,$AB$2,Input!Y$393:Y$440) -> 755 | H34: =SUMIF(Input!$B$393:$B$440,$AB$2,Input!Z$393:Z$440) -> 4136 | I34: =SUMIF(Input!$B$393:$B$440,$AB$2,Input!AA$393:AA$440) -> 253 | J34: =SUMIF(Input!$B$393:$B$440,$AB$2,Input!AB$393:AB$440) -> 3 | K34: =SUMIF(Input!$B$393:$B$440,$AB$2,Input!AC$393:AC$440) -> 0 | L34: =SUMIF(Input!$B$393:$B$440,$AB$2,Input!AD$393:AD$440) -> 0 | M34: =SUMIF(Input!$B$393:$B$440,$AB$2,Input!AE$393:AE$440) -> 0 | N34: =SUMIF(Input!$B$393:$B$440,$AB$2,Input!AF$393:AF$440) -> 0 | O34: =SUMIF(Input!$B$393:$B$440,$AB$2,Input!AG$393:AG$440) -> 0 | P34: =SUMPRODUCT((Input!$B$393:$B$440=$AB$2)*Input!AH$393:AK$440) -> 0 | Q34: 5350 | R34: =SUMIFS(Input!C$393:C$440,Input!AL$393:AL$440,">0",Input!B$393:B$440,"S") -> 5327 | S34: =IFERROR(SUMPRODUCT((Input!B$393:B$440="S")*Input!C$393:C$440*Input!AL$393:AL$440)/R34,0) -> 47.34163694 | T34: =SUMIF(Input!$B$393:$B$440,$AB$2,Input!D$393:D$440) -> 45 | U34: =SUMIF(Input!$B$393:$B$440,$AB$2,Input!E$393:E$440) -> 5158 | V34: =SUMIF(Input!$B$393:$B$440,$AB$2,Input!F$393:F$440) -> 36 | W34: =SUMIF(Input!$B$393:$B$440,$AB$2,Input!G$393:G$440) -> 65 | X34: =SUMIF(Input!$B$393:$B$440,$AB$2,Input!H$393:H$440) -> 32 | Y34: =SUMIF(Input!$B$393:$B$440,$AB$2,Input!I$393:I$440) -> 4 | Z34: =SUMIF(Input!$B$393:$B$440,$AB$2,Input!J$393:J$440) -> 6 | AA34: =SUMIF(Input!$B$393:$B$440,$AB$2,Input!K$393:K$440) -> 0 | AB34: =SUMIF(Input!$B$393:$B$440,$AB$2,Input!L$393:L$440) -> 0 | AC34: =SUMIF(Input!$B$393:$B$440,$AB$2,Input!M$393:M$440) -> 0 | AD34: =SUMIF(Input!$B$393:$B$440,$AB$2,Input!N$393:N$440) -> 0 | AE34: =SUMIF(Input!$B$393:$B$440,$AB$2,Input!O$393:O$440) -> 1 | AF34: =SUMIF(Input!$B$393:$B$440,$AB$2,Input!P$393:P$440) -> 0 | AG34: =SUMIF(Input!$B$393:$B$440,$AB$2,Input!Q$393:Q$440) -> 3 | AH34: 5350 | AI34: 0.02018691589
B35: Total | D35: =SUM(D28:D34) -> 0 | E35: =SUM(E28:E34) -> 56 | F35: 1408 | G35: 5166 | H35: 26840 | I35: 1818 | J35: 25 | K35: 2 | L35: 0 | M35: 0 | N35: 0 | O35: 0 | P35: 1 | Q35: 35316 | R35: 35184 | S35: =IFERROR(SUMPRODUCT(R28:R34,S28:S34)/R35,0) -> 47.67069975 | T35: =SUM(T28:T34) -> 264 | U35: 34112 | V35: 317 | W35: 402 | X35: 126 | Y35: 31 | Z35: 44 | AA35: 5 | AB35: 0 | AC35: 0 | AD35: 0 | AE35: 1 | AF35: 1 | AG35: 13 | AH35: 35316 | AI35: 0.01727262431
B37: =IF(Input2!A1="","Both Directions","Direction 1/Both Lanes : Towards "&Input!B6) -> Both Directions
D38: Summary of Speed Classification | T38: Summary of Vehicle Classification
B39: Date | D39: <10 | E39: 10-20 | F39: 20-30 | G39: 30-40 | H39: 40-50 | I39: 50-60 | J39: 60-70 | K39: 70-80 | L39: 80-90 | M39: 90-100 | N39: 100-110 | O39: 110-120 | P39: 121+ | Q39: Daily | R39: 85th Percentile | T39: CL1 | U39: CL2 | V39: CL3 | W39: CL4 | X39: CL5 | Y39: CL6 | Z39: CL7 | AA39: CL8 | AB39: CL9 | AC39: CL10 | AD39: CL11 | AE39: CL12 | AF39: CL13 | AG39: CL14 | AH39: Daily | AI39: %HCV
B40: =IFERROR(TEXT(B41,"MMMM"),0) -> October | C40: Day | Q40: Total | R40: Total | S40: Speed | AH40: Total
B41: =IFERROR(DATEVALUE(RIGHT(Input!$A$10,LEN(Input!$A$10)-FIND(",",Input!$A$10)-1)),1) -> 2024-10-30 | C41: =IFERROR(WEEKDAY(B41,2),0) -> 3 | D41: =D15+D28 -> 0 | E41: =E15+E28 -> 14 | F41: 268 | G41: 1284 | H41: 6796 | I41: 1475 | J41: 65 | K41: 7 | L41: 0 | M41: 0 | N41: 0 | O41: 1 | P41: 1 | Q41: =SUM(D41:P41) -> 9911 | R41: =SUMIF(Input!AL$15:AL$62,">0",Input!C$15:C$62) -> 9888 | S41: =IFERROR(SUMPRODUCT(Input!C$15:C$62*Input!AL$15:AL$62)/R41,0) -> 49.77593042 | T41: =T15+T28 -> 47 | U41: 9521 | V41: 46 | W41: 104 | X41: 160 | Y41: 8 | Z41: 17 | AA41: 5 | AB41: 1 | AC41: 0 | AD41: 0 | AE41: 0 | AF41: 0 | AG41: 2 | AH41: =SUM(T41:AG41) -> 9911 | AI41: =IFERROR(SUM(W41:AF41)/AH41,0) -> 0.02976490768
B42: =IFERROR(DATEVALUE(RIGHT(Input!$A$73,LEN(Input!$A$73)-FIND(",",Input!$A$73)-1)),2) -> 2024-10-31 | C42: =IFERROR(WEEKDAY(B42,2),0) -> 4 | D42: =D16+D29 -> 0 | E42: =E16+E29 -> 17 | F42: 270 | G42: 1306 | H42: 6979 | I42: 1705 | J42: 67 | K42: 6 | L42: 4 | M42: 2 | N42: 1 | O42: 0 | P42: 0 | Q42: 10357 | R42: =SUMIF(Input!AL$78:AL$125,">0",Input!C$78:C$125) -> 10309 | S42: =IFERROR(SUMPRODUCT(Input!C$78:C$125*Input!AL$78:AL$125)/R42,0) -> 50.04283636 | T42: =T16+T29 -> 72 | U42: 9938 | V42: 90 | W42: 110 | X42: 119 | Y42: 9 | Z42: 11 | AA42: 3 | AB42: 1 | AC42: 1 | AD42: 0 | AE42: 0 | AF42: 0 | AG42: 3 | AH42: =SUM(T42:AG42) -> 10357 | AI42: 0.0245244762
B43: =IFERROR(DATEVALUE(RIGHT(Input!$A$136,LEN(Input!$A$136)-FIND(",",Input!$A$136)-1)),3) -> 2024-11-01 | C43: 5 | D43: =D17+D30 -> 0 | E43: =E17+E30 -> 20 | F43: 255 | G43: 1225 | H43: 6836 | I43: 1698 | J43: 73 | K43: 6 | L43: 1 | M43: 0 | N43: 0 | O43: 0 | P43: 0 | Q43: 10114 | R43: =SUMIF(Input!AL$141:AL$188,">0",Input!C$141:C$188) -> 10069 | S43: =IFERROR(SUMPRODUCT(Input!C$141:C$188*Input!AL$141:AL$188)/R43,0) -> 50.1090575 | T43: =T17+T30 -> 91 | U43: 9675 | V43: 83 | W43: 120 | X43: 116 | Y43: 11 | Z43: 10 | AA43: 3 | AB43: 1 | AC43: 0 | AD43: 0 | AE43: 0 | AF43: 1 | AG43: 3 | AH43: 10114 | AI43: 0.02590468657
B44: =IFERROR(DATEVALUE(RIGHT(Input!$A$199,LEN(Input!$A$199)-FIND(",",Input!$A$199)-1)),4) -> 2024-11-02 | C44: 6 | D44: =D18+D31 -> 0 | E44: =E18+E31 -> 20 | F44: 234 | G44: 998 | H44: 4919 | I44: 1254 | J44: 64 | K44: 13 | L44: 1 | M44: 2 | N44: 0 | O44: 0 | P44: 0 | Q44: 7505 | R44: =SUMIF(Input!AL$204:AL$251,">0",Input!C$204:C$251) -> 7461 | S44: =IFERROR(SUMPRODUCT(Input!C$204:C$251*Input!AL$204:AL$251)/R44,0) -> 50.20388688 | T44: =T18+T31 -> 86 | U44: 7164 | V44: 86 | W44: 67 | X44: 79 | Y44: 8 | Z44: 10 | AA44: 1 | AB44: 0 | AC44: 0 | AD44: 0 | AE44: 0 | AF44: 0 | AG44: 4 | AH44: 7505 | AI44: 0.0219853431
B45: =IFERROR(DATEVALUE(RIGHT(Input!$A$262,LEN(Input!$A$262)-FIND(",",Input!$A$262)-1)),5) -> 2024-11-03 | C45: 7 | D45: =D19+D32 -> 0 | E45: =E19+E32 -> 9 | F45: 208 | G45: 914 | H45: 4368 | I45: 1140 | J45: 55 | K45: 9 | L45: 2 | M45: 0 | N45: 0 | O45: 0 | P45: 3 | Q45: 6708 | R45: =SUMIF(Input!AL$267:AL$314,">0",Input!C$267:C$314) -> 6661 | S45: =IFERROR(SUMPRODUCT(Input!C$267:C$314*Input!AL$267:AL$314)/R45,0) -> 50.31815043 | T45: =T19+T32 -> 87 | U45: 6433 | V45: 60 | W45: 50 | X45: 61 | Y45: 8 | Z45: 6 | AA45: 2 | AB45: 0 | AC45: 0 | AD45: 0 | AE45: 0 | AF45: 0 | AG45: 1 | AH45: 6708 | AI45: 0.01893261777
B46: =IFERROR(DATEVALUE(RIGHT(Input!$A$325,LEN(Input!$A$325)-FIND(",",Input!$A$325)-1)),6) -> 2024-11-04 | C46: 1 | D46: =D20+D33 -> 0 | E46: =E20+E33 -> 15 | F46: 255 | G46: 1246 | H46: 6535 | I46: 1579 | J46: 51 | K46: 6 | L46: 4 | M46: 1 | N46: 2 | O46: 0 | P46: 0 | Q46: 9694 | R46: =SUMIF(Input!AL$330:AL$377,">0",Input!C$330:C$377) -> 9664 | S46: =IFERROR(SUMPRODUCT(Input!C$330:C$377*Input!AL$330:AL$377)/R46,0) -> 49.93133278 | T46: =T20+T33 -> 72 | U46: 9269 | V46: 100 | W46: 109 | X46: 112 | Y46: 9 | Z46: 13 | AA46: 2 | AB46: 1 | AC46: 0 | AD46: 0 | AE46: 0 | AF46: 0 | AG46: 7 | AH46: 9694 | AI46: 0.02537652156
B47: =IFERROR(DATEVALUE(RIGHT(Input!$A$388,LEN(Input!$A$388)-FIND(",",Input!$A$388)-1)),7) -> 2024-11-05 | C47: 2 | D47: =D21+D34 -> 0 | E47: =E21+E34 -> 10 | F47: 253 | G47: 1227 | H47: 6595 | I47: 1583 | J47: 58 | K47: 7 | L47: 4 | M47: 1 | N47: 0 | O47: 1 | P47: 0 | Q47: 9739 | R47: =SUMIF(Input!AL$393:AL$440,">0",Input!C$393:C$440) -> 9689 | S47: =IFERROR(SUMPRODUCT(Input!C$393:C$440*Input!AL$393:AL$440)/R47,0) -> 49.77232945 | T47: =T21+T34 -> 96 | U47: 9350 | V47: 62 | W47: 116 | X47: 91 | Y47: 4 | Z47: 8 | AA47: 3 | AB47: 2 | AC47: 1 | AD47: 0 | AE47: 1 | AF47: 1 | AG47: 4 | AH47: 9739 | AI47: 0.02330834788
B48: Total | D48: =SUM(D41:D47) -> 0 | E48: =SUM(E41:E47) -> 105 | F48: 1743 | G48: 8200 | H48: 43028 | I48: 10434 | J48: 433 | K48: 54 | L48: 16 | M48: 6 | N48: 3 | O48: 2 | P48: 4 | Q48: 64028 | R48: 63741 | S48: =IFERROR(SUMPRODUCT(R41:R47,S41:S47)/R48,0) -> 50.00149041 | T48: =SUM(T41:T47) -> 551 | U48: 61350 | V48: 527 | W48: 676 | X48: 738 | Y48: 57 | Z48: 75 | AA48: 19 | AB48: 6 | AC48: 2 | AD48: 0 | AE48: 1 | AF48: 2 | AG48: 24 | AH48: 64028 | AI48: 0.02461423127
B50: ="Direction 2/Lane 1 : Towards "&Input!B5 -> Direction 2/Lane 1 : Towards DUNCANSBY RD
D51: Summary of Speed Classification | T51: Summary of Vehicle Classification
B52: Date | D52: <10 | E52: 10-20 | F52: 20-30 | G52: 30-40 | H52: 40-50 | I52: 50-60 | J52: 60-70 | K52: 70-80 | L52: 80-90 | M52: 90-100 | N52: 100-110 | O52: 110-120 | P52: 121+ | Q52: Daily | R52: 85th Percentile | T52: CL1 | U52: CL2 | V52: CL3 | W52: CL4 | X52: CL5 | Y52: CL6 | Z52: CL7 | AA52: CL8 | AB52: CL9 | AC52: CL10 | AD52: CL11 | AE52: CL12 | AF52: CL13 | AG52: CL14 | AH52: Daily | AI52: %HCV
B53: =IFERROR(TEXT(B54,"MMMM"),0) -> January | C53: Day | Q53: Total | R53: Total | S53: Speed | AH53: Total
B54: =IFERROR(DATEVALUE(RIGHT(Input2!$A$10,LEN(Input2!$A$10)-FIND(",",Input2!$A$10)-1)),1) -> 1900-01-01 | C54: =IFERROR(WEEKDAY(B54,2),0) -> 7 | D54: =SUMIF(Input2!$B$15:$B$62,$AC$2,Input2!V$15:V$62) -> 0 | E54: =SUMIF(Input2!$B$15:$B$62,$AC$2,Input2!W$15:W$62) -> 0 | F54: =SUMIF(Input2!$B$15:$B$62,$AC$2,Input2!X$15:X$62) -> 0 | G54: =SUMIF(Input2!$B$15:$B$62,$AC$2,Input2!Y$15:Y$62) -> 0 | H54: =SUMIF(Input2!$B$15:$B$62,$AC$2,Input2!Z$15:Z$62) -> 0 | I54: =SUMIF(Input2!$B$15:$B$62,$AC$2,Input2!AA$15:AA$62) -> 0 | J54: =SUMIF(Input2!$B$15:$B$62,$AC$2,Input2!AB$15:AB$62) -> 0 | K54: =SUMIF(Input2!$B$15:$B$62,$AC$2,Input2!AC$15:AC$62) -> 0 | L54: =SUMIF(Input2!$B$15:$B$62,$AC$2,Input2!AD$15:AD$62) -> 0 | M54: =SUMIF(Input2!$B$15:$B$62,$AC$2,Input2!AE$15:AE$62) -> 0 | N54: =SUMIF(Input2!$B$15:$B$62,$AC$2,Input2!AF$15:AF$62) -> 0 | O54: =SUMIF(Input2!$B$15:$B$62,$AC$2,Input2!AG$15:AG$62) -> 0 | P54: =SUMPRODUCT((Input2!$B$15:$B$62=$AC$2)*Input2!AH$15:AK$62) -> 0 | Q54: =SUM(D54:P54) -> 0 | R54: =SUMIFS(Input2!C$15:C$62,Input2!AL$15:AL$62,">0",Input2!B$15:B$62,"P") -> 0 | S54: =IFERROR(SUMPRODUCT((Input2!B$15:B$62="P")*Input2!C$15:C$62*Input2!AL$15:AL$62)/R54,0) -> 0 | T54: =SUMIF(Input2!$B$15:$B$62,$AC$2,Input2!D$15:D$62) -> 0 | U54: =SUMIF(Input2!$B$15:$B$62,$AC$2,Input2!E$15:E$62) -> 0 | V54: =SUMIF(Input2!$B$15:$B$62,$AC$2,Input2!F$15:F$62) -> 0 | W54: =SUMIF(Input2!$B$15:$B$62,$AC$2,Input2!G$15:G$62) -> 0 | X54: =SUMIF(Input2!$B$15:$B$62,$AC$2,Input2!H$15:H$62) -> 0 | Y54: =SUMIF(Input2!$B$15:$B$62,$AC$2,Input2!I$15:I$62) -> 0 | Z54: =SUMIF(Input2!$B$15:$B$62,$AC$2,Input2!J$15:J$62) -> 0 | AA54: =SUMIF(Input2!$B$15:$B$62,$AC$2,Input2!K$15:K$62) -> 0 | AB54: =SUMIF(Input2!$B$15:$B$62,$AC$2,Input2!L$15:L$62) -> 0 | AC54: =SUMIF(Input2!$B$15:$B$62,$AC$2,Input2!M$15:M$62) -> 0 | AD54: =SUMIF(Input2!$B$15:$B$62,$AC$2,Input2!N$15:N$62) -> 0 | AE54: =SUMIF(Input2!$B$15:$B$62,$AC$2,Input2!O$15:O$62) -> 0 | AF54: =SUMIF(Input2!$B$15:$B$62,$AC$2,Input2!P$15:P$62) -> 0 | AG54: =SUMIF(Input2!$B$15:$B$62,$AC$2,Input2!Q$15:Q$62) -> 0 | AH54: =SUM(T54:AG54) -> 0 | AI54: =IFERROR(SUM(W54:AF54)/AH54,0) -> 0
B55: =IFERROR(DATEVALUE(RIGHT(Input2!$A$73,LEN(Input2!$A$73)-FIND(",",Input2!$A$73)-1)),2) -> 1900-01-02 | C55: 1 | D55: =SUMIF(Input2!$B$78:$B$125,$AC$2,Input2!V$78:V$125) -> 0 | E55: =SUMIF(Input2!$B$78:$B$125,$AC$2,Input2!W$78:W$125) -> 0 | F55: =SUMIF(Input2!$B$78:$B$125,$AC$2,Input2!X$78:X$125) -> 0 | G55: =SUMIF(Input2!$B$78:$B$125,$AC$2,Input2!Y$78:Y$125) -> 0 | H55: =SUMIF(Input2!$B$78:$B$125,$AC$2,Input2!Z$78:Z$125) -> 0 | I55: =SUMIF(Input2!$B$78:$B$125,$AC$2,Input2!AA$78:AA$125) -> 0 | J55: =SUMIF(Input2!$B$78:$B$125,$AC$2,Input2!AB$78:AB$125) -> 0 | K55: =SUMIF(Input2!$B$78:$B$125,$AC$2,Input2!AC$78:AC$125) -> 0 | L55: =SUMIF(Input2!$B$78:$B$125,$AC$2,Input2!AD$78:AD$125) -> 0 | M55: =SUMIF(Input2!$B$78:$B$125,$AC$2,Input2!AE$78:AE$125) -> 0 | N55: =SUMIF(Input2!$B$78:$B$125,$AC$2,Input2!AF$78:AF$125) -> 0 | O55: =SUMIF(Input2!$B$78:$B$125,$AC$2,Input2!AG$78:AG$125) -> 0 | P55: =SUMPRODUCT((Input2!$B$78:$B$125=$AC$2)*Input2!AH$78:AK$125) -> 0 | Q55: 0 | R55: =SUMIFS(Input2!C$78:C$125,Input2!AL$78:AL$125,">0",Input2!B$78:B$125,"P") -> 0 | S55: =IFERROR(SUMPRODUCT((Input2!B$78:B$125="P")*Input2!C$78:C$125*Input2!AL$78:AL$125)/R55,0) -> 0 | T55: =SUMIF(Input2!$B$78:$B$125,$AC$2,Input2!D$78:D$125) -> 0 | U55: =SUMIF(Input2!$B$78:$B$125,$AC$2,Input2!E$78:E$125) -> 0 | V55: =SUMIF(Input2!$B$78:$B$125,$AC$2,Input2!F$78:F$125) -> 0 | W55: =SUMIF(Input2!$B$78:$B$125,$AC$2,Input2!G$78:G$125) -> 0 | X55: =SUMIF(Input2!$B$78:$B$125,$AC$2,Input2!H$78:H$125) -> 0 | Y55: =SUMIF(Input2!$B$78:$B$125,$AC$2,Input2!I$78:I$125) -> 0 | Z55: =SUMIF(Input2!$B$78:$B$125,$AC$2,Input2!J$78:J$125) -> 0 | AA55: =SUMIF(Input2!$B$78:$B$125,$AC$2,Input2!K$78:K$125) -> 0 | AB55: =SUMIF(Input2!$B$78:$B$125,$AC$2,Input2!L$78:L$125) -> 0 | AC55: =SUMIF(Input2!$B$78:$B$125,$AC$2,Input2!M$78:M$125) -> 0 | AD55: =SUMIF(Input2!$B$78:$B$125,$AC$2,Input2!N$78:N$125) -> 0 | AE55: =SUMIF(Input2!$B$78:$B$125,$AC$2,Input2!O$78:O$125) -> 0 | AF55: =SUMIF(Input2!$B$78:$B$125,$AC$2,Input2!P$78:P$125) -> 0 | AG55: =SUMIF(Input2!$B$78:$B$125,$AC$2,Input2!Q$78:Q$125) -> 0 | AH55: 0 | AI55: 0
B56: =IFERROR(DATEVALUE(RIGHT(Input2!$A$136,LEN(Input2!$A$136)-FIND(",",Input2!$A$136)-1)),3) -> 1900-01-03 | C56: 2 | D56: =SUMIF(Input2!$B$141:$B$188,$AC$2,Input2!V$141:V$188) -> 0 | E56: =SUMIF(Input2!$B$141:$B$188,$AC$2,Input2!W$141:W$188) -> 0 | F56: =SUMIF(Input2!$B$141:$B$188,$AC$2,Input2!X$141:X$188) -> 0 | G56: =SUMIF(Input2!$B$141:$B$188,$AC$2,Input2!Y$141:Y$188) -> 0 | H56: =SUMIF(Input2!$B$141:$B$188,$AC$2,Input2!Z$141:Z$188) -> 0 | I56: =SUMIF(Input2!$B$141:$B$188,$AC$2,Input2!AA$141:AA$188) -> 0 | J56: =SUMIF(Input2!$B$141:$B$188,$AC$2,Input2!AB$141:AB$188) -> 0 | K56: =SUMIF(Input2!$B$141:$B$188,$AC$2,Input2!AC$141:AC$188) -> 0 | L56: =SUMIF(Input2!$B$141:$B$188,$AC$2,Input2!AD$141:AD$188) -> 0 | M56: =SUMIF(Input2!$B$141:$B$188,$AC$2,Input2!AE$141:AE$188) -> 0 | N56: =SUMIF(Input2!$B$141:$B$188,$AC$2,Input2!AF$141:AF$188) -> 0 | O56: =SUMIF(Input2!$B$141:$B$188,$AC$2,Input2!AG$141:AG$188) -> 0 | P56: =SUMPRODUCT((Input2!$B$141:$B$188=$AC$2)*Input2!AH$141:AK$188) -> 0 | Q56: 0 | R56: =SUMIFS(Input2!C$144:C$188,Input2!AL$144:AL$188,">0",Input2!B$144:B$188,"P") -> 0 | S56: =IFERROR(SUMPRODUCT((Input2!B$141:B$188="P")*Input2!C$141:C$188*Input2!AL$141:AL$188)/R56,0) -> 0 | T56: =SUMIF(Input2!$B$141:$B$188,$AC$2,Input2!D$141:D$188) -> 0 | U56: =SUMIF(Input2!$B$141:$B$188,$AC$2,Input2!E$141:E$188) -> 0 | V56: =SUMIF(Input2!$B$141:$B$188,$AC$2,Input2!F$141:F$188) -> 0 | W56: =SUMIF(Input2!$B$141:$B$188,$AC$2,Input2!G$141:G$188) -> 0 | X56: =SUMIF(Input2!$B$141:$B$188,$AC$2,Input2!H$141:H$188) -> 0 | Y56: =SUMIF(Input2!$B$141:$B$188,$AC$2,Input2!I$141:I$188) -> 0 | Z56: =SUMIF(Input2!$B$141:$B$188,$AC$2,Input2!J$141:J$188) -> 0 | AA56: =SUMIF(Input2!$B$141:$B$188,$AC$2,Input2!K$141:K$188) -> 0 | AB56: =SUMIF(Input2!$B$141:$B$188,$AC$2,Input2!L$141:L$188) -> 0 | AC56: =SUMIF(Input2!$B$141:$B$188,$AC$2,Input2!M$141:M$188) -> 0 | AD56: =SUMIF(Input2!$B$141:$B$188,$AC$2,Input2!N$141:N$188) -> 0 | AE56: =SUMIF(Input2!$B$141:$B$188,$AC$2,Input2!O$141:O$188) -> 0 | AF56: =SUMIF(Input2!$B$141:$B$188,$AC$2,Input2!P$141:P$188) -> 0 | AG56: =SUMIF(Input2!$B$141:$B$188,$AC$2,Input2!Q$141:Q$188) -> 0 | AH56: 0 | AI56: 0
B57: =IFERROR(DATEVALUE(RIGHT(Input2!$A$199,LEN(Input2!$A$199)-FIND(",",Input2!$A$199)-1)),4) -> 1900-01-04 | C57: 3 | D57: =SUMIF(Input2!$B$204:$B$251,$AC$2,Input2!V$204:V$251) -> 0 | E57: =SUMIF(Input2!$B$204:$B$251,$AC$2,Input2!W$204:W$251) -> 0 | F57: =SUMIF(Input2!$B$204:$B$251,$AC$2,Input2!X$204:X$251) -> 0 | G57: =SUMIF(Input2!$B$204:$B$251,$AC$2,Input2!Y$204:Y$251) -> 0 | H57: =SUMIF(Input2!$B$204:$B$251,$AC$2,Input2!Z$204:Z$251) -> 0 | I57: =SUMIF(Input2!$B$204:$B$251,$AC$2,Input2!AA$204:AA$251) -> 0 | J57: =SUMIF(Input2!$B$204:$B$251,$AC$2,Input2!AB$204:AB$251) -> 0 | K57: =SUMIF(Input2!$B$204:$B$251,$AC$2,Input2!AC$204:AC$251) -> 0 | L57: =SUMIF(Input2!$B$204:$B$251,$AC$2,Input2!AD$204:AD$251) -> 0 | M57: =SUMIF(Input2!$B$204:$B$251,$AC$2,Input2!AE$204:AE$251) -> 0 | N57: =SUMIF(Input2!$B$204:$B$251,$AC$2,Input2!AF$204:AF$251) -> 0 | O57: =SUMIF(Input2!$B$204:$B$251,$AC$2,Input2!AG$204:AG$251) -> 0 | P57: =SUMPRODUCT((Input2!$B$204:$B$251=$AC$2)*Input2!AH$204:AK$251) -> 0 | Q57: 0 | R57: =SUMIFS(Input2!C$204:C$251,Input2!AL$204:AL$251,">0",Input2!B$204:B$251,"P") -> 0 | S57: =IFERROR(SUMPRODUCT((Input2!B$204:B$251="P")*Input2!C$204:C$251*Input2!AL$204:AL$251)/R57,0) -> 0 | T57: =SUMIF(Input2!$B$204:$B$251,$AC$2,Input2!D$204:D$251) -> 0 | U57: =SUMIF(Input2!$B$204:$B$251,$AC$2,Input2!E$204:E$251) -> 0 | V57: =SUMIF(Input2!$B$204:$B$251,$AC$2,Input2!F$204:F$251) -> 0 | W57: =SUMIF(Input2!$B$204:$B$251,$AC$2,Input2!G$204:G$251) -> 0 | X57: =SUMIF(Input2!$B$204:$B$251,$AC$2,Input2!H$204:H$251) -> 0 | Y57: =SUMIF(Input2!$B$204:$B$251,$AC$2,Input2!I$204:I$251) -> 0 | Z57: =SUMIF(Input2!$B$204:$B$251,$AC$2,Input2!J$204:J$251) -> 0 | AA57: =SUMIF(Input2!$B$204:$B$251,$AC$2,Input2!K$204:K$251) -> 0 | AB57: =SUMIF(Input2!$B$204:$B$251,$AC$2,Input2!L$204:L$251) -> 0 | AC57: =SUMIF(Input2!$B$204:$B$251,$AC$2,Input2!M$204:M$251) -> 0 | AD57: =SUMIF(Input2!$B$204:$B$251,$AC$2,Input2!N$204:N$251) -> 0 | AE57: =SUMIF(Input2!$B$204:$B$251,$AC$2,Input2!O$204:O$251) -> 0 | AF57: =SUMIF(Input2!$B$204:$B$251,$AC$2,Input2!P$204:P$251) -> 0 | AG57: =SUMIF(Input2!$B$204:$B$251,$AC$2,Input2!Q$204:Q$251) -> 0 | AH57: 0 | AI57: 0
B58: =IFERROR(DATEVALUE(RIGHT(Input2!$A$262,LEN(Input2!$A$262)-FIND(",",Input2!$A$262)-1)),5) -> 1900-01-05 | C58: 4 | D58: =SUMIF(Input2!$B$267:$B$314,$AC$2,Input2!V$267:V$314) -> 0 | E58: =SUMIF(Input2!$B$267:$B$314,$AC$2,Input2!W$267:W$314) -> 0 | F58: =SUMIF(Input2!$B$267:$B$314,$AC$2,Input2!X$267:X$314) -> 0 | G58: =SUMIF(Input2!$B$267:$B$314,$AC$2,Input2!Y$267:Y$314) -> 0 | H58: =SUMIF(Input2!$B$267:$B$314,$AC$2,Input2!Z$267:Z$314) -> 0 | I58: =SUMIF(Input2!$B$267:$B$314,$AC$2,Input2!AA$267:AA$314) -> 0 | J58: =SUMIF(Input2!$B$267:$B$314,$AC$2,Input2!AB$267:AB$314) -> 0 | K58: =SUMIF(Input2!$B$267:$B$314,$AC$2,Input2!AC$267:AC$314) -> 0 | L58: =SUMIF(Input2!$B$267:$B$314,$AC$2,Input2!AD$267:AD$314) -> 0 | M58: =SUMIF(Input2!$B$267:$B$314,$AC$2,Input2!AE$267:AE$314) -> 0 | N58: =SUMIF(Input2!$B$267:$B$314,$AC$2,Input2!AF$267:AF$314) -> 0 | O58: =SUMIF(Input2!$B$267:$B$314,$AC$2,Input2!AG$267:AG$314) -> 0 | P58: =SUMPRODUCT((Input2!$B$267:$B$314=$AC$2)*Input2!AH$267:AK$314) -> 0 | Q58: 0 | R58: =SUMIFS(Input2!C$267:C$314,Input2!AL$267:AL$314,">0",Input2!B$267:B$314,"P") -> 0 | S58: =IFERROR(SUMPRODUCT((Input2!B$267:B$314="P")*Input2!C$267:C$314*Input2!AL$267:AL$314)/R58,0) -> 0 | T58: =SUMIF(Input2!$B$267:$B$314,$AC$2,Input2!D$267:D$314) -> 0 | U58: =SUMIF(Input2!$B$267:$B$314,$AC$2,Input2!E$267:E$314) -> 0 | V58: =SUMIF(Input2!$B$267:$B$314,$AC$2,Input2!F$267:F$314) -> 0 | W58: =SUMIF(Input2!$B$267:$B$314,$AC$2,Input2!G$267:G$314) -> 0 | X58: =SUMIF(Input2!$B$267:$B$314,$AC$2,Input2!H$267:H$314) -> 0 | Y58: =SUMIF(Input2!$B$267:$B$314,$AC$2,Input2!I$267:I$314) -> 0 | Z58: =SUMIF(Input2!$B$267:$B$314,$AC$2,Input2!J$267:J$314) -> 0 | AA58: =SUMIF(Input2!$B$267:$B$314,$AC$2,Input2!K$267:K$314) -> 0 | AB58: =SUMIF(Input2!$B$267:$B$314,$AC$2,Input2!L$267:L$314) -> 0 | AC58: =SUMIF(Input2!$B$267:$B$314,$AC$2,Input2!M$267:M$314) -> 0 | AD58: =SUMIF(Input2!$B$267:$B$314,$AC$2,Input2!N$267:N$314) -> 0 | AE58: =SUMIF(Input2!$B$267:$B$314,$AC$2,Input2!O$267:O$314) -> 0 | AF58: =SUMIF(Input2!$B$267:$B$314,$AC$2,Input2!P$267:P$314) -> 0 | AG58: =SUMIF(Input2!$B$267:$B$314,$AC$2,Input2!Q$267:Q$314) -> 0 | AH58: 0 | AI58: 0
B59: =IFERROR(DATEVALUE(RIGHT(Input2!$A$325,LEN(Input2!$A$325)-FIND(",",Input2!$A$325)-1)),6) -> 1900-01-06 | C59: 5 | D59: =SUMIF(Input2!$B$330:$B$377,$AC$2,Input2!V$330:V$377) -> 0 | E59: =SUMIF(Input2!$B$330:$B$377,$AC$2,Input2!W$330:W$377) -> 0 | F59: =SUMIF(Input2!$B$330:$B$377,$AC$2,Input2!X$330:X$377) -> 0 | G59: =SUMIF(Input2!$B$330:$B$377,$AC$2,Input2!Y$330:Y$377) -> 0 | H59: =SUMIF(Input2!$B$330:$B$377,$AC$2,Input2!Z$330:Z$377) -> 0 | I59: =SUMIF(Input2!$B$330:$B$377,$AC$2,Input2!AA$330:AA$377) -> 0 | J59: =SUMIF(Input2!$B$330:$B$377,$AC$2,Input2!AB$330:AB$377) -> 0 | K59: =SUMIF(Input2!$B$330:$B$377,$AC$2,Input2!AC$330:AC$377) -> 0 | L59: =SUMIF(Input2!$B$330:$B$377,$AC$2,Input2!AD$330:AD$377) -> 0 | M59: =SUMIF(Input2!$B$330:$B$377,$AC$2,Input2!AE$330:AE$377) -> 0 | N59: =SUMIF(Input2!$B$330:$B$377,$AC$2,Input2!AF$330:AF$377) -> 0 | O59: =SUMIF(Input2!$B$330:$B$377,$AC$2,Input2!AG$330:AG$377) -> 0 | P59: =SUMPRODUCT((Input2!$B$330:$B$377=$AC$2)*Input2!AH$330:AK$377) -> 0 | Q59: 0 | R59: =SUMIFS(Input2!C$330:C$377,Input2!AL$330:AL$377,">0",Input2!B$330:B$377,"P") -> 0 | S59: =IFERROR(SUMPRODUCT((Input2!B$330:B$377="P")*Input2!C$330:C$377*Input2!AL$330:AL$377)/R59,0) -> 0 | T59: =SUMIF(Input2!$B$330:$B$377,$AC$2,Input2!D$330:D$377) -> 0 | U59: =SUMIF(Input2!$B$330:$B$377,$AC$2,Input2!E$330:E$377) -> 0 | V59: =SUMIF(Input2!$B$330:$B$377,$AC$2,Input2!F$330:F$377) -> 0 | W59: =SUMIF(Input2!$B$330:$B$377,$AC$2,Input2!G$330:G$377) -> 0 | X59: =SUMIF(Input2!$B$330:$B$377,$AC$2,Input2!H$330:H$377) -> 0 | Y59: =SUMIF(Input2!$B$330:$B$377,$AC$2,Input2!I$330:I$377) -> 0 | Z59: =SUMIF(Input2!$B$330:$B$377,$AC$2,Input2!J$330:J$377) -> 0 | AA59: =SUMIF(Input2!$B$330:$B$377,$AC$2,Input2!K$330:K$377) -> 0 | AB59: =SUMIF(Input2!$B$330:$B$377,$AC$2,Input2!L$330:L$377) -> 0 | AC59: =SUMIF(Input2!$B$330:$B$377,$AC$2,Input2!M$330:M$377) -> 0 | AD59: =SUMIF(Input2!$B$330:$B$377,$AC$2,Input2!N$330:N$377) -> 0 | AE59: =SUMIF(Input2!$B$330:$B$377,$AC$2,Input2!O$330:O$377) -> 0 | AF59: =SUMIF(Input2!$B$330:$B$377,$AC$2,Input2!P$330:P$377) -> 0 | AG59: =SUMIF(Input2!$B$330:$B$377,$AC$2,Input2!Q$330:Q$377) -> 0 | AH59: 0 | AI59: 0
B60: =IFERROR(DATEVALUE(RIGHT(Input2!$A$388,LEN(Input2!$A$388)-FIND(",",Input2!$A$388)-1)),7) -> 1900-01-07 | C60: 6 | D60: =SUMIF(Input2!$B$393:$B$440,$AC$2,Input2!V$393:V$440) -> 0 | E60: =SUMIF(Input2!$B$393:$B$440,$AC$2,Input2!W$393:W$440) -> 0 | F60: =SUMIF(Input2!$B$393:$B$440,$AC$2,Input2!X$393:X$440) -> 0 | G60: =SUMIF(Input2!$B$393:$B$440,$AC$2,Input2!Y$393:Y$440) -> 0 | H60: =SUMIF(Input2!$B$393:$B$440,$AC$2,Input2!Z$393:Z$440) -> 0 | I60: =SUMIF(Input2!$B$393:$B$440,$AC$2,Input2!AA$393:AA$440) -> 0 | J60: =SUMIF(Input2!$B$393:$B$440,$AC$2,Input2!AB$393:AB$440) -> 0 | K60: =SUMIF(Input2!$B$393:$B$440,$AC$2,Input2!AC$393:AC$440) -> 0 | L60: =SUMIF(Input2!$B$393:$B$440,$AC$2,Input2!AD$393:AD$440) -> 0 | M60: =SUMIF(Input2!$B$393:$B$440,$AC$2,Input2!AE$393:AE$440) -> 0 | N60: =SUMIF(Input2!$B$393:$B$440,$AC$2,Input2!AF$393:AF$440) -> 0 | O60: =SUMIF(Input2!$B$393:$B$440,$AC$2,Input2!AG$393:AG$440) -> 0 | P60: =SUMPRODUCT((Input2!$B$393:$B$440=$AC$2)*Input2!AH$393:AK$440) -> 0 | Q60: 0 | R60: =SUMIFS(Input2!C$393:C$440,Input2!AL$393:AL$440,">0",Input2!B$393:B$440,"P") -> 0 | S60: =IFERROR(SUMPRODUCT((Input2!B$393:B$440="P")*Input2!C$393:C$440*Input2!AL$393:AL$440)/R60,0) -> 0 | T60: =SUMIF(Input2!$B$393:$B$440,$AC$2,Input2!D$393:D$440) -> 0 | U60: =SUMIF(Input2!$B$393:$B$440,$AC$2,Input2!E$393:E$440) -> 0 | V60: =SUMIF(Input2!$B$393:$B$440,$AC$2,Input2!F$393:F$440) -> 0 | W60: =SUMIF(Input2!$B$393:$B$440,$AC$2,Input2!G$393:G$440) -> 0 | X60: =SUMIF(Input2!$B$393:$B$440,$AC$2,Input2!H$393:H$440) -> 0 | Y60: =SUMIF(Input2!$B$393:$B$440,$AC$2,Input2!I$393:I$440) -> 0 | Z60: =SUMIF(Input2!$B$393:$B$440,$AC$2,Input2!J$393:J$440) -> 0 | AA60: =SUMIF(Input2!$B$393:$B$440,$AC$2,Input2!K$393:K$440) -> 0 | AB60: =SUMIF(Input2!$B$393:$B$440,$AC$2,Input2!L$393:L$440) -> 0 | AC60: =SUMIF(Input2!$B$393:$B$440,$AC$2,Input2!M$393:M$440) -> 0 | AD60: =SUMIF(Input2!$B$393:$B$440,$AC$2,Input2!N$393:N$440) -> 0 | AE60: =SUMIF(Input2!$B$393:$B$440,$AC$2,Input2!O$393:O$440) -> 0 | AF60: =SUMIF(Input2!$B$393:$B$440,$AC$2,Input2!P$393:P$440) -> 0 | AG60: =SUMIF(Input2!$B$393:$B$440,$AC$2,Input2!Q$393:Q$440) -> 0 | AH60: 0 | AI60: 0
B61: Total | D61: =SUM(D54:D60) -> 0 | E61: 0 | F61: 0 | G61: 0 | H61: 0 | I61: 0 | J61: 0 | K61: 0 | L61: 0 | M61: 0 | N61: 0 | O61: 0 | P61: 0 | Q61: 0 | R61: 0 | S61: =IFERROR(SUMPRODUCT(R54:R60,S54:S60)/R61,0) -> 0 | T61: =SUM(T54:T60) -> 0 | U61: 0 | V61: 0 | W61: 0 | X61: 0 | Y61: 0 | Z61: 0 | AA61: 0 | AB61: 0 | AC61: 0 | AD61: 0 | AE61: 0 | AF61: 0 | AG61: 0 | AH61: 0 | AI61: 0
B63: ="Direction 2/Lane 2 : Towards "&Input!B5 -> Direction 2/Lane 2 : Towards DUNCANSBY RD
D64: Summary of Speed Classification | T64: Summary of Vehicle Classification
B65: Date | D65: <10 | E65: 10-20 | F65: 20-30 | G65: 30-40 | H65: 40-50 | I65: 50-60 | J65: 60-70 | K65: 70-80 | L65: 80-90 | M65: 90-100 | N65: 100-110 | O65: 110-120 | P65: 121+ | Q65: Daily | R65: 85th Percentile | T65: CL1 | U65: CL2 | V65: CL3 | W65: CL4 | X65: CL5 | Y65: CL6 | Z65: CL7 | AA65: CL8 | AB65: CL9 | AC65: CL10 | AD65: CL11 | AE65: CL12 | AF65: CL13 | AG65: CL14 | AH65: Daily | AI65: %HCV
B66: =IFERROR(TEXT(B67,"MMMM"),0) -> January | C66: Day | Q66: Total | R66: Total | S66: Speed | AH66: Total
B67: =IFERROR(DATEVALUE(RIGHT(Input2!$A$10,LEN(Input2!$A$10)-FIND(",",Input2!$A$10)-1)),1) -> 1900-01-01 | C67: =IFERROR(WEEKDAY(B67,2),0) -> 7 | D67: =SUMIF(Input2!$B$15:$B$62,$AD$2,Input2!V$15:V$62) -> 0 | E67: =SUMIF(Input2!$B$15:$B$62,$AD$2,Input2!W$15:W$62) -> 0 | F67: =SUMIF(Input2!$B$15:$B$62,$AD$2,Input2!X$15:X$62) -> 0 | G67: =SUMIF(Input2!$B$15:$B$62,$AD$2,Input2!Y$15:Y$62) -> 0 | H67: =SUMIF(Input2!$B$15:$B$62,$AD$2,Input2!Z$15:Z$62) -> 0 | I67: =SUMIF(Input2!$B$15:$B$62,$AD$2,Input2!AA$15:AA$62) -> 0 | J67: =SUMIF(Input2!$B$15:$B$62,$AD$2,Input2!AB$15:AB$62) -> 0 | K67: =SUMIF(Input2!$B$15:$B$62,$AD$2,Input2!AC$15:AC$62) -> 0 | L67: =SUMIF(Input2!$B$15:$B$62,$AD$2,Input2!AD$15:AD$62) -> 0 | M67: =SUMIF(Input2!$B$15:$B$62,$AD$2,Input2!AE$15:AE$62) -> 0 | N67: =SUMIF(Input2!$B$15:$B$62,$AD$2,Input2!AF$15:AF$62) -> 0 | O67: =SUMIF(Input2!$B$15:$B$62,$AD$2,Input2!AG$15:AG$62) -> 0 | P67: =SUMPRODUCT((Input2!$B$15:$B$62=$AD$2)*Input2!AH$15:AK$62) -> 0 | Q67: =SUM(D67:P67) -> 0 | R67: =SUMIFS(Input2!C$15:C$62,Input2!AL$15:AL$62,">0",Input2!B$15:B$62,"S") -> 0 | S67: =IFERROR(SUMPRODUCT((Input2!B$15:B$62="S")*Input2!C$15:C$62*Input2!AL$15:AL$62)/R67,0) -> 0 | T67: =SUMIF(Input2!$B$15:$B$62,$AD$2,Input2!D$15:D$62) -> 0 | U67: =SUMIF(Input2!$B$15:$B$62,$AD$2,Input2!E$15:E$62) -> 0 | V67: =SUMIF(Input2!$B$15:$B$62,$AD$2,Input2!F$15:F$62) -> 0 | W67: =SUMIF(Input2!$B$15:$B$62,$AD$2,Input2!G$15:G$62) -> 0 | X67: =SUMIF(Input2!$B$15:$B$62,$AD$2,Input2!H$15:H$62) -> 0 | Y67: =SUMIF(Input2!$B$15:$B$62,$AD$2,Input2!I$15:I$62) -> 0 | Z67: =SUMIF(Input2!$B$15:$B$62,$AD$2,Input2!J$15:J$62) -> 0 | AA67: =SUMIF(Input2!$B$15:$B$62,$AD$2,Input2!K$15:K$62) -> 0 | AB67: =SUMIF(Input2!$B$15:$B$62,$AD$2,Input2!L$15:L$62) -> 0 | AC67: =SUMIF(Input2!$B$15:$B$62,$AD$2,Input2!M$15:M$62) -> 0 | AD67: =SUMIF(Input2!$B$15:$B$62,$AD$2,Input2!N$15:N$62) -> 0 | AE67: =SUMIF(Input2!$B$15:$B$62,$AD$2,Input2!O$15:O$62) -> 0 | AF67: =SUMIF(Input2!$B$15:$B$62,$AD$2,Input2!P$15:P$62) -> 0 | AG67: =SUMIF(Input2!$B$15:$B$62,$AD$2,Input2!Q$15:Q$62) -> 0 | AH67: =SUM(T67:AG67) -> 0 | AI67: =IFERROR(SUM(W67:AF67)/AH67,0) -> 0
B68: =IFERROR(DATEVALUE(RIGHT(Input2!$A$73,LEN(Input2!$A$73)-FIND(",",Input2!$A$73)-1)),2) -> 1900-01-02 | C68: 1 | D68: =SUMIF(Input2!$B$78:$B$125,$AD$2,Input2!V$78:V$125) -> 0 | E68: =SUMIF(Input2!$B$78:$B$125,$AD$2,Input2!W$78:W$125) -> 0 | F68: =SUMIF(Input2!$B$78:$B$125,$AD$2,Input2!X$78:X$125) -> 0 | G68: =SUMIF(Input2!$B$78:$B$125,$AD$2,Input2!Y$78:Y$125) -> 0 | H68: =SUMIF(Input2!$B$78:$B$125,$AD$2,Input2!Z$78:Z$125) -> 0 | I68: =SUMIF(Input2!$B$78:$B$125,$AD$2,Input2!AA$78:AA$125) -> 0 | J68: =SUMIF(Input2!$B$78:$B$125,$AD$2,Input2!AB$78:AB$125) -> 0 | K68: =SUMIF(Input2!$B$78:$B$125,$AD$2,Input2!AC$78:AC$125) -> 0 | L68: =SUMIF(Input2!$B$78:$B$125,$AD$2,Input2!AD$78:AD$125) -> 0 | M68: =SUMIF(Input2!$B$78:$B$125,$AD$2,Input2!AE$78:AE$125) -> 0 | N68: =SUMIF(Input2!$B$78:$B$125,$AD$2,Input2!AF$78:AF$125) -> 0 | O68: =SUMIF(Input2!$B$78:$B$125,$AD$2,Input2!AG$78:AG$125) -> 0 | P68: =SUMPRODUCT((Input2!$B$78:$B$125=$AD$2)*Input2!AH$78:AK$125) -> 0 | Q68: 0 | R68: =SUMIFS(Input2!C$78:C$125,Input2!AL$78:AL$125,">0",Input2!B$78:B$125,"S") -> 0 | S68: =IFERROR(SUMPRODUCT((Input2!B$78:B$125="S")*Input2!C$78:C$125*Input2!AL$78:AL$125)/R68,0) -> 0 | T68: =SUMIF(Input2!$B$78:$B$125,$AD$2,Input2!D$78:D$125) -> 0 | U68: =SUMIF(Input2!$B$78:$B$125,$AD$2,Input2!E$78:E$125) -> 0 | V68: =SUMIF(Input2!$B$78:$B$125,$AD$2,Input2!F$78:F$125) -> 0 | W68: =SUMIF(Input2!$B$78:$B$125,$AD$2,Input2!G$78:G$125) -> 0 | X68: =SUMIF(Input2!$B$78:$B$125,$AD$2,Input2!H$78:H$125) -> 0 | Y68: =SUMIF(Input2!$B$78:$B$125,$AD$2,Input2!I$78:I$125) -> 0 | Z68: =SUMIF(Input2!$B$78:$B$125,$AD$2,Input2!J$78:J$125) -> 0 | AA68: =SUMIF(Input2!$B$78:$B$125,$AD$2,Input2!K$78:K$125) -> 0 | AB68: =SUMIF(Input2!$B$78:$B$125,$AD$2,Input2!L$78:L$125) -> 0 | AC68: =SUMIF(Input2!$B$78:$B$125,$AD$2,Input2!M$78:M$125) -> 0 | AD68: =SUMIF(Input2!$B$78:$B$125,$AD$2,Input2!N$78:N$125) -> 0 | AE68: =SUMIF(Input2!$B$78:$B$125,$AD$2,Input2!O$78:O$125) -> 0 | AF68: =SUMIF(Input2!$B$78:$B$125,$AD$2,Input2!P$78:P$125) -> 0 | AG68: =SUMIF(Input2!$B$78:$B$125,$AD$2,Input2!Q$78:Q$125) -> 0 | AH68: 0 | AI68: 0
B69: =IFERROR(DATEVALUE(RIGHT(Input2!$A$136,LEN(Input2!$A$136)-FIND(",",Input2!$A$136)-1)),3) -> 1900-01-03 | C69: 2 | D69: =SUMIF(Input2!$B$141:$B$188,$AD$2,Input2!V$141:V$188) -> 0 | E69: =SUMIF(Input2!$B$141:$B$188,$AD$2,Input2!W$141:W$188) -> 0 | F69: =SUMIF(Input2!$B$141:$B$188,$AD$2,Input2!X$141:X$188) -> 0 | G69: =SUMIF(Input2!$B$141:$B$188,$AD$2,Input2!Y$141:Y$188) -> 0 | H69: =SUMIF(Input2!$B$141:$B$188,$AD$2,Input2!Z$141:Z$188) -> 0 | I69: =SUMIF(Input2!$B$141:$B$188,$AD$2,Input2!AA$141:AA$188) -> 0 | J69: =SUMIF(Input2!$B$141:$B$188,$AD$2,Input2!AB$141:AB$188) -> 0 | K69: =SUMIF(Input2!$B$141:$B$188,$AD$2,Input2!AC$141:AC$188) -> 0 | L69: =SUMIF(Input2!$B$141:$B$188,$AD$2,Input2!AD$141:AD$188) -> 0 | M69: =SUMIF(Input2!$B$141:$B$188,$AD$2,Input2!AE$141:AE$188) -> 0 | N69: =SUMIF(Input2!$B$141:$B$188,$AD$2,Input2!AF$141:AF$188) -> 0 | O69: =SUMIF(Input2!$B$141:$B$188,$AD$2,Input2!AG$141:AG$188) -> 0 | P69: =SUMPRODUCT((Input2!$B$141:$B$188=$AD$2)*Input2!AH$141:AK$188) -> 0 | Q69: 0 | R69: =SUMIFS(Input2!C$144:C$188,Input2!AL$144:AL$188,">0",Input2!B$144:B$188,"S") -> 0 | S69: =IFERROR(SUMPRODUCT((Input2!B$141:B$188="S")*Input2!C$141:C$188*Input2!AL$141:AL$188)/R69,0) -> 0 | T69: =SUMIF(Input2!$B$141:$B$188,$AD$2,Input2!D$141:D$188) -> 0 | U69: =SUMIF(Input2!$B$141:$B$188,$AD$2,Input2!E$141:E$188) -> 0 | V69: =SUMIF(Input2!$B$141:$B$188,$AD$2,Input2!F$141:F$188) -> 0 | W69: =SUMIF(Input2!$B$141:$B$188,$AD$2,Input2!G$141:G$188) -> 0 | X69: =SUMIF(Input2!$B$141:$B$188,$AD$2,Input2!H$141:H$188) -> 0 | Y69: =SUMIF(Input2!$B$141:$B$188,$AD$2,Input2!I$141:I$188) -> 0 | Z69: =SUMIF(Input2!$B$141:$B$188,$AD$2,Input2!J$141:J$188) -> 0 | AA69: =SUMIF(Input2!$B$141:$B$188,$AD$2,Input2!K$141:K$188) -> 0 | AB69: =SUMIF(Input2!$B$141:$B$188,$AD$2,Input2!L$141:L$188) -> 0 | AC69: =SUMIF(Input2!$B$141:$B$188,$AD$2,Input2!M$141:M$188) -> 0 | AD69: =SUMIF(Input2!$B$141:$B$188,$AD$2,Input2!N$141:N$188) -> 0 | AE69: =SUMIF(Input2!$B$141:$B$188,$AD$2,Input2!O$141:O$188) -> 0 | AF69: =SUMIF(Input2!$B$141:$B$188,$AD$2,Input2!P$141:P$188) -> 0 | AG69: =SUMIF(Input2!$B$141:$B$188,$AD$2,Input2!Q$141:Q$188) -> 0 | AH69: 0 | AI69: 0
B70: =IFERROR(DATEVALUE(RIGHT(Input2!$A$199,LEN(Input2!$A$199)-FIND(",",Input2!$A$199)-1)),4) -> 1900-01-04 | C70: 3 | D70: =SUMIF(Input2!$B$204:$B$251,$AD$2,Input2!V$204:V$251) -> 0 | E70: =SUMIF(Input2!$B$204:$B$251,$AD$2,Input2!W$204:W$251) -> 0 | F70: =SUMIF(Input2!$B$204:$B$251,$AD$2,Input2!X$204:X$251) -> 0 | G70: =SUMIF(Input2!$B$204:$B$251,$AD$2,Input2!Y$204:Y$251) -> 0 | H70: =SUMIF(Input2!$B$204:$B$251,$AD$2,Input2!Z$204:Z$251) -> 0 | I70: =SUMIF(Input2!$B$204:$B$251,$AD$2,Input2!AA$204:AA$251) -> 0 | J70: =SUMIF(Input2!$B$204:$B$251,$AD$2,Input2!AB$204:AB$251) -> 0 | K70: =SUMIF(Input2!$B$204:$B$251,$AD$2,Input2!AC$204:AC$251) -> 0 | L70: =SUMIF(Input2!$B$204:$B$251,$AD$2,Input2!AD$204:AD$251) -> 0 | M70: =SUMIF(Input2!$B$204:$B$251,$AD$2,Input2!AE$204:AE$251) -> 0 | N70: =SUMIF(Input2!$B$204:$B$251,$AD$2,Input2!AF$204:AF$251) -> 0 | O70: =SUMIF(Input2!$B$204:$B$251,$AD$2,Input2!AG$204:AG$251) -> 0 | P70: =SUMPRODUCT((Input2!$B$204:$B$251=$AD$2)*Input2!AH$204:AK$251) -> 0 | Q70: 0 | R70: =SUMIFS(Input2!C$204:C$251,Input2!AL$204:AL$251,">0",Input2!B$204:B$251,"S") -> 0 | S70: =IFERROR(SUMPRODUCT((Input2!B$204:B$251="S")*Input2!C$204:C$251*Input2!AL$204:AL$251)/R70,0) -> 0 | T70: =SUMIF(Input2!$B$204:$B$251,$AD$2,Input2!D$204:D$251) -> 0 | U70: =SUMIF(Input2!$B$204:$B$251,$AD$2,Input2!E$204:E$251) -> 0 | V70: =SUMIF(Input2!$B$204:$B$251,$AD$2,Input2!F$204:F$251) -> 0 | W70: =SUMIF(Input2!$B$204:$B$251,$AD$2,Input2!G$204:G$251) -> 0 | X70: =SUMIF(Input2!$B$204:$B$251,$AD$2,Input2!H$204:H$251) -> 0 | Y70: =SUMIF(Input2!$B$204:$B$251,$AD$2,Input2!I$204:I$251) -> 0 | Z70: =SUMIF(Input2!$B$204:$B$251,$AD$2,Input2!J$204:J$251) -> 0 | AA70: =SUMIF(Input2!$B$204:$B$251,$AD$2,Input2!K$204:K$251) -> 0 | AB70: =SUMIF(Input2!$B$204:$B$251,$AD$2,Input2!L$204:L$251) -> 0 | AC70: =SUMIF(Input2!$B$204:$B$251,$AD$2,Input2!M$204:M$251) -> 0 | AD70: =SUMIF(Input2!$B$204:$B$251,$AD$2,Input2!N$204:N$251) -> 0 | AE70: =SUMIF(Input2!$B$204:$B$251,$AD$2,Input2!O$204:O$251) -> 0 | AF70: =SUMIF(Input2!$B$204:$B$251,$AD$2,Input2!P$204:P$251) -> 0 | AG70: =SUMIF(Input2!$B$204:$B$251,$AD$2,Input2!Q$204:Q$251) -> 0 | AH70: 0 | AI70: 0
B71: =IFERROR(DATEVALUE(RIGHT(Input2!$A$262,LEN(Input2!$A$262)-FIND(",",Input2!$A$262)-1)),5) -> 1900-01-05 | C71: 4 | D71: =SUMIF(Input2!$B$267:$B$314,$AD$2,Input2!V$267:V$314) -> 0 | E71: =SUMIF(Input2!$B$267:$B$314,$AD$2,Input2!W$267:W$314) -> 0 | F71: =SUMIF(Input2!$B$267:$B$314,$AD$2,Input2!X$267:X$314) -> 0 | G71: =SUMIF(Input2!$B$267:$B$314,$AD$2,Input2!Y$267:Y$314) -> 0 | H71: =SUMIF(Input2!$B$267:$B$314,$AD$2,Input2!Z$267:Z$314) -> 0 | I71: =SUMIF(Input2!$B$267:$B$314,$AD$2,Input2!AA$267:AA$314) -> 0 | J71: =SUMIF(Input2!$B$267:$B$314,$AD$2,Input2!AB$267:AB$314) -> 0 | K71: =SUMIF(Input2!$B$267:$B$314,$AD$2,Input2!AC$267:AC$314) -> 0 | L71: =SUMIF(Input2!$B$267:$B$314,$AD$2,Input2!AD$267:AD$314) -> 0 | M71: =SUMIF(Input2!$B$267:$B$314,$AD$2,Input2!AE$267:AE$314) -> 0 | N71: =SUMIF(Input2!$B$267:$B$314,$AD$2,Input2!AF$267:AF$314) -> 0 | O71: =SUMIF(Input2!$B$267:$B$314,$AD$2,Input2!AG$267:AG$314) -> 0 | P71: =SUMPRODUCT((Input2!$B$267:$B$314=$AD$2)*Input2!AH$267:AK$314) -> 0 | Q71: 0 | R71: =SUMIFS(Input2!C$267:C$314,Input2!AL$267:AL$314,">0",Input2!B$267:B$314,"S") -> 0 | S71: =IFERROR(SUMPRODUCT((Input2!B$267:B$314="S")*Input2!C$267:C$314*Input2!AL$267:AL$314)/R71,0) -> 0 | T71: =SUMIF(Input2!$B$267:$B$314,$AD$2,Input2!D$267:D$314) -> 0 | U71: =SUMIF(Input2!$B$267:$B$314,$AD$2,Input2!E$267:E$314) -> 0 | V71: =SUMIF(Input2!$B$267:$B$314,$AD$2,Input2!F$267:F$314) -> 0 | W71: =SUMIF(Input2!$B$267:$B$314,$AD$2,Input2!G$267:G$314) -> 0 | X71: =SUMIF(Input2!$B$267:$B$314,$AD$2,Input2!H$267:H$314) -> 0 | Y71: =SUMIF(Input2!$B$267:$B$314,$AD$2,Input2!I$267:I$314) -> 0 | Z71: =SUMIF(Input2!$B$267:$B$314,$AD$2,Input2!J$267:J$314) -> 0 | AA71: =SUMIF(Input2!$B$267:$B$314,$AD$2,Input2!K$267:K$314) -> 0 | AB71: =SUMIF(Input2!$B$267:$B$314,$AD$2,Input2!L$267:L$314) -> 0 | AC71: =SUMIF(Input2!$B$267:$B$314,$AD$2,Input2!M$267:M$314) -> 0 | AD71: =SUMIF(Input2!$B$267:$B$314,$AD$2,Input2!N$267:N$314) -> 0 | AE71: =SUMIF(Input2!$B$267:$B$314,$AD$2,Input2!O$267:O$314) -> 0 | AF71: =SUMIF(Input2!$B$267:$B$314,$AD$2,Input2!P$267:P$314) -> 0 | AG71: =SUMIF(Input2!$B$267:$B$314,$AD$2,Input2!Q$267:Q$314) -> 0 | AH71: 0 | AI71: 0
B72: =IFERROR(DATEVALUE(RIGHT(Input2!$A$325,LEN(Input2!$A$325)-FIND(",",Input2!$A$325)-1)),6) -> 1900-01-06 | C72: 5 | D72: =SUMIF(Input2!$B$330:$B$377,$AD$2,Input2!V$330:V$377) -> 0 | E72: =SUMIF(Input2!$B$330:$B$377,$AD$2,Input2!W$330:W$377) -> 0 | F72: =SUMIF(Input2!$B$330:$B$377,$AD$2,Input2!X$330:X$377) -> 0 | G72: =SUMIF(Input2!$B$330:$B$377,$AD$2,Input2!Y$330:Y$377) -> 0 | H72: =SUMIF(Input2!$B$330:$B$377,$AD$2,Input2!Z$330:Z$377) -> 0 | I72: =SUMIF(Input2!$B$330:$B$377,$AD$2,Input2!AA$330:AA$377) -> 0 | J72: =SUMIF(Input2!$B$330:$B$377,$AD$2,Input2!AB$330:AB$377) -> 0 | K72: =SUMIF(Input2!$B$330:$B$377,$AD$2,Input2!AC$330:AC$377) -> 0 | L72: =SUMIF(Input2!$B$330:$B$377,$AD$2,Input2!AD$330:AD$377) -> 0 | M72: =SUMIF(Input2!$B$330:$B$377,$AD$2,Input2!AE$330:AE$377) -> 0 | N72: =SUMIF(Input2!$B$330:$B$377,$AD$2,Input2!AF$330:AF$377) -> 0 | O72: =SUMIF(Input2!$B$330:$B$377,$AD$2,Input2!AG$330:AG$377) -> 0 | P72: =SUMPRODUCT((Input2!$B$330:$B$377=$AD$2)*Input2!AH$330:AK$377) -> 0 | Q72: 0 | R72: =SUMIFS(Input2!C$330:C$377,Input2!AL$330:AL$377,">0",Input2!B$330:B$377,"S") -> 0 | S72: =IFERROR(SUMPRODUCT((Input2!B$330:B$377="S")*Input2!C$330:C$377*Input2!AL$330:AL$377)/R72,0) -> 0 | T72: =SUMIF(Input2!$B$330:$B$377,$AD$2,Input2!D$330:D$377) -> 0 | U72: =SUMIF(Input2!$B$330:$B$377,$AD$2,Input2!E$330:E$377) -> 0 | V72: =SUMIF(Input2!$B$330:$B$377,$AD$2,Input2!F$330:F$377) -> 0 | W72: =SUMIF(Input2!$B$330:$B$377,$AD$2,Input2!G$330:G$377) -> 0 | X72: =SUMIF(Input2!$B$330:$B$377,$AD$2,Input2!H$330:H$377) -> 0 | Y72: =SUMIF(Input2!$B$330:$B$377,$AD$2,Input2!I$330:I$377) -> 0 | Z72: =SUMIF(Input2!$B$330:$B$377,$AD$2,Input2!J$330:J$377) -> 0 | AA72: =SUMIF(Input2!$B$330:$B$377,$AD$2,Input2!K$330:K$377) -> 0 | AB72: =SUMIF(Input2!$B$330:$B$377,$AD$2,Input2!L$330:L$377) -> 0 | AC72: =SUMIF(Input2!$B$330:$B$377,$AD$2,Input2!M$330:M$377) -> 0 | AD72: =SUMIF(Input2!$B$330:$B$377,$AD$2,Input2!N$330:N$377) -> 0 | AE72: =SUMIF(Input2!$B$330:$B$377,$AD$2,Input2!O$330:O$377) -> 0 | AF72: =SUMIF(Input2!$B$330:$B$377,$AD$2,Input2!P$330:P$377) -> 0 | AG72: =SUMIF(Input2!$B$330:$B$377,$AD$2,Input2!Q$330:Q$377) -> 0 | AH72: 0 | AI72: 0
B73: =IFERROR(DATEVALUE(RIGHT(Input2!$A$388,LEN(Input2!$A$388)-FIND(",",Input2!$A$388)-1)),7) -> 1900-01-07 | C73: 6 | D73: =SUMIF(Input2!$B$393:$B$440,$AD$2,Input2!V$393:V$440) -> 0 | E73: =SUMIF(Input2!$B$393:$B$440,$AD$2,Input2!W$393:W$440) -> 0 | F73: =SUMIF(Input2!$B$393:$B$440,$AD$2,Input2!X$393:X$440) -> 0 | G73: =SUMIF(Input2!$B$393:$B$440,$AD$2,Input2!Y$393:Y$440) -> 0 | H73: =SUMIF(Input2!$B$393:$B$440,$AD$2,Input2!Z$393:Z$440) -> 0 | I73: =SUMIF(Input2!$B$393:$B$440,$AD$2,Input2!AA$393:AA$440) -> 0 | J73: =SUMIF(Input2!$B$393:$B$440,$AD$2,Input2!AB$393:AB$440) -> 0 | K73: =SUMIF(Input2!$B$393:$B$440,$AD$2,Input2!AC$393:AC$440) -> 0 | L73: =SUMIF(Input2!$B$393:$B$440,$AD$2,Input2!AD$393:AD$440) -> 0 | M73: =SUMIF(Input2!$B$393:$B$440,$AD$2,Input2!AE$393:AE$440) -> 0 | N73: =SUMIF(Input2!$B$393:$B$440,$AD$2,Input2!AF$393:AF$440) -> 0 | O73: =SUMIF(Input2!$B$393:$B$440,$AD$2,Input2!AG$393:AG$440) -> 0 | P73: =SUMPRODUCT((Input2!$B$393:$B$440=$AD$2)*Input2!AH$393:AK$440) -> 0 | Q73: 0 | R73: =SUMIFS(Input2!C$393:C$440,Input2!AL$393:AL$440,">0",Input2!B$393:B$440,"S") -> 0 | S73: =IFERROR(SUMPRODUCT((Input2!B$393:B$440="S")*Input2!C$393:C$440*Input2!AL$393:AL$440)/R73,0) -> 0 | T73: =SUMIF(Input2!$B$393:$B$440,$AD$2,Input2!D$393:D$440) -> 0 | U73: =SUMIF(Input2!$B$393:$B$440,$AD$2,Input2!E$393:E$440) -> 0 | V73: =SUMIF(Input2!$B$393:$B$440,$AD$2,Input2!F$393:F$440) -> 0 | W73: =SUMIF(Input2!$B$393:$B$440,$AD$2,Input2!G$393:G$440) -> 0 | X73: =SUMIF(Input2!$B$393:$B$440,$AD$2,Input2!H$393:H$440) -> 0 | Y73: =SUMIF(Input2!$B$393:$B$440,$AD$2,Input2!I$393:I$440) -> 0 | Z73: =SUMIF(Input2!$B$393:$B$440,$AD$2,Input2!J$393:J$440) -> 0 | AA73: =SUMIF(Input2!$B$393:$B$440,$AD$2,Input2!K$393:K$440) -> 0 | AB73: =SUMIF(Input2!$B$393:$B$440,$AD$2,Input2!L$393:L$440) -> 0 | AC73: =SUMIF(Input2!$B$393:$B$440,$AD$2,Input2!M$393:M$440) -> 0 | AD73: =SUMIF(Input2!$B$393:$B$440,$AD$2,Input2!N$393:N$440) -> 0 | AE73: =SUMIF(Input2!$B$393:$B$440,$AD$2,Input2!O$393:O$440) -> 0 | AF73: =SUMIF(Input2!$B$393:$B$440,$AD$2,Input2!P$393:P$440) -> 0 | AG73: =SUMIF(Input2!$B$393:$B$440,$AD$2,Input2!Q$393:Q$440) -> 0 | AH73: 0 | AI73: 0
B74: Total | D74: =SUM(D67:D73) -> 0 | E74: 0 | F74: 0 | G74: 0 | H74: 0 | I74: 0 | J74: 0 | K74: 0 | L74: 0 | M74: 0 | N74: 0 | O74: 0 | P74: 0 | Q74: 0 | R74: 0 | S74: =IFERROR(SUMPRODUCT(R67:R73,S67:S73)/R74,0) -> 0 | T74: =SUM(T67:T73) -> 0 | U74: 0 | V74: 0 | W74: 0 | X74: 0 | Y74: 0 | Z74: 0 | AA74: 0 | AB74: 0 | AC74: 0 | AD74: 0 | AE74: 0 | AF74: 0 | AG74: 0 | AH74: 0 | AI74: 0
B76: ="Direction 2/Both Lanes : Towards "&Input!B5 -> Direction 2/Both Lanes : Towards DUNCANSBY RD
D77: Summary of Speed Classification | T77: Summary of Vehicle Classification
B78: Date | D78: <10 | E78: 10-20 | F78: 20-30 | G78: 30-40 | H78: 40-50 | I78: 50-60 | J78: 60-70 | K78: 70-80 | L78: 80-90 | M78: 90-100 | N78: 100-110 | O78: 110-120 | P78: 121+ | Q78: Daily | R78: 85th Percentile | T78: CL1 | U78: CL2 | V78: CL3 | W78: CL4 | X78: CL5 | Y78: CL6 | Z78: CL7 | AA78: CL8 | AB78: CL9 | AC78: CL10 | AD78: CL11 | AE78: CL12 | AF78: CL13 | AG78: CL14 | AH78: Daily | AI78: %HCV
B79: =IFERROR(TEXT(B80,"MMMM"),0) -> January | C79: Day | Q79: Total | R79: Total | S79: Speed | AH79: Total
B80: =IFERROR(DATEVALUE(RIGHT(Input2!$A$10,LEN(Input2!$A$10)-FIND(",",Input2!$A$10)-1)),1) -> 1900-01-01 | C80: =IFERROR(WEEKDAY(B80,2),0) -> 7 | D80: =D54+D67 -> 0 | E80: 0 | F80: 0 | G80: 0 | H80: 0 | I80: 0 | J80: 0 | K80: 0 | L80: 0 | M80: 0 | N80: 0 | O80: 0 | P80: 0 | Q80: =SUM(D80:P80) -> 0 | R80: =SUMIF(Input2!AL$15:AL$62,">0",Input2!C$15:C$62) -> 0 | S80: =IFERROR(SUMPRODUCT(Input2!C$15:C$62*Input2!AL$15:AL$62)/R80,0) -> 0 | T80: =T54+T67 -> 0 | U80: 0 | V80: 0 | W80: 0 | X80: 0 | Y80: 0 | Z80: 0 | AA80: 0 | AB80: 0 | AC80: 0 | AD80: 0 | AE80: 0 | AF80: 0 | AG80: 0 | AH80: =SUM(T80:AG80) -> 0 | AI80: =IFERROR(SUM(W80:AF80)/AH80,0) -> 0
B81: =IFERROR(DATEVALUE(RIGHT(Input2!$A$73,LEN(Input2!$A$73)-FIND(",",Input2!$A$73)-1)),2) -> 1900-01-02 | C81: 1 | D81: 0 | E81: 0 | F81: 0 | G81: 0 | H81: 0 | I81: 0 | J81: 0 | K81: 0 | L81: 0 | M81: 0 | N81: 0 | O81: 0 | P81: 0 | Q81: 0 | R81: =SUMIF(Input2!AL$78:AL$125,">0",Input2!C$78:C$125) -> 0 | S81: =IFERROR(SUMPRODUCT(Input2!C$78:C$125*Input2!AL$78:AL$125)/R81,0) -> 0 | T81: 0 | U81: 0 | V81: 0 | W81: 0 | X81: 0 | Y81: 0 | Z81: 0 | AA81: 0 | AB81: 0 | AC81: 0 | AD81: 0 | AE81: 0 | AF81: 0 | AG81: 0 | AH81: 0 | AI81: 0
B82: =IFERROR(DATEVALUE(RIGHT(Input2!$A$136,LEN(Input2!$A$136)-FIND(",",Input2!$A$136)-1)),3) -> 1900-01-03 | C82: 2 | D82: 0 | E82: 0 | F82: 0 | G82: 0 | H82: 0 | I82: 0 | J82: 0 | K82: 0 | L82: 0 | M82: 0 | N82: 0 | O82: 0 | P82: 0 | Q82: 0 | R82: =SUMIF(Input2!AL$141:AL$188,">0",Input2!C$141:C$188) -> 0 | S82: =IFERROR(SUMPRODUCT(Input2!C$141:C$188*Input2!AL$141:AL$188)/R82,0) -> 0 | T82: 0 | U82: 0 | V82: 0 | W82: 0 | X82: 0 | Y82: 0 | Z82: 0 | AA82: 0 | AB82: 0 | AC82: 0 | AD82: 0 | AE82: 0 | AF82: 0 | AG82: 0 | AH82: 0 | AI82: 0
B83: =IFERROR(DATEVALUE(RIGHT(Input2!$A$199,LEN(Input2!$A$199)-FIND(",",Input2!$A$199)-1)),4) -> 1900-01-04 | C83: 3 | D83: 0 | E83: 0 | F83: 0 | G83: 0 | H83: 0 | I83: 0 | J83: 0 | K83: 0 | L83: 0 | M83: 0 | N83: 0 | O83: 0 | P83: 0 | Q83: 0 | R83: =SUMIF(Input2!AL$204:AL$251,">0",Input2!C$204:C$251) -> 0 | S83: =IFERROR(SUMPRODUCT(Input2!C$204:C$251*Input2!AL$204:AL$251)/R83,0) -> 0 | T83: 0 | U83: 0 | V83: 0 | W83: 0 | X83: 0 | Y83: 0 | Z83: 0 | AA83: 0 | AB83: 0 | AC83: 0 | AD83: 0 | AE83: 0 | AF83: 0 | AG83: 0 | AH83: 0 | AI83: 0
B84: =IFERROR(DATEVALUE(RIGHT(Input2!$A$262,LEN(Input2!$A$262)-FIND(",",Input2!$A$262)-1)),5) -> 1900-01-05 | C84: 4 | D84: 0 | E84: 0 | F84: 0 | G84: 0 | H84: 0 | I84: 0 | J84: 0 | K84: 0 | L84: 0 | M84: 0 | N84: 0 | O84: 0 | P84: 0 | Q84: 0 | R84: =SUMIF(Input2!AL$267:AL$314,">0",Input2!C$267:C$314) -> 0 | S84: =IFERROR(SUMPRODUCT(Input2!C$267:C$314*Input2!AL$267:AL$314)/R84,0) -> 0 | T84: 0 | U84: 0 | V84: 0 | W84: 0 | X84: 0 | Y84: 0 | Z84: 0 | AA84: 0 | AB84: 0 | AC84: 0 | AD84: 0 | AE84: 0 | AF84: 0 | AG84: 0 | AH84: 0 | AI84: 0
B85: =IFERROR(DATEVALUE(RIGHT(Input2!$A$325,LEN(Input2!$A$325)-FIND(",",Input2!$A$325)-1)),6) -> 1900-01-06 | C85: 5 | D85: 0 | E85: 0 | F85: 0 | G85: 0 | H85: 0 | I85: 0 | J85: 0 | K85: 0 | L85: 0 | M85: 0 | N85: 0 | O85: 0 | P85: 0 | Q85: 0 | R85: =SUMIF(Input2!AL$330:AL$377,">0",Input2!C$330:C$377) -> 0 | S85: =IFERROR(SUMPRODUCT(Input2!C$330:C$377*Input2!AL$330:AL$377)/R85,0) -> 0 | T85: 0 | U85: 0 | V85: 0 | W85: 0 | X85: 0 | Y85: 0 | Z85: 0 | AA85: 0 | AB85: 0 | AC85: 0 | AD85: 0 | AE85: 0 | AF85: 0 | AG85: 0 | AH85: 0 | AI85: 0
B86: =IFERROR(DATEVALUE(RIGHT(Input2!$A$388,LEN(Input2!$A$388)-FIND(",",Input2!$A$388)-1)),7) -> 1900-01-07 | C86: 6 | D86: 0 | E86: 0 | F86: 0 | G86: 0 | H86: 0 | I86: 0 | J86: 0 | K86: 0 | L86: 0 | M86: 0 | N86: 0 | O86: 0 | P86: 0 | Q86: 0 | R86: =SUMIF(Input2!AL$393:AL$440,">0",Input2!C$393:C$440) -> 0 | S86: =IFERROR(SUMPRODUCT(Input2!C$393:C$440*Input2!AL$393:AL$440)/R86,0) -> 0 | T86: 0 | U86: 0 | V86: 0 | W86: 0 | X86: 0 | Y86: 0 | Z86: 0 | AA86: 0 | AB86: 0 | AC86: 0 | AD86: 0 | AE86: 0 | AF86: 0 | AG86: 0 | AH86: 0 | AI86: 0
B87: Total | D87: =SUM(D80:D86) -> 0 | E87: 0 | F87: 0 | G87: 0 | H87: 0 | I87: 0 | J87: 0 | K87: 0 | L87: 0 | M87: 0 | N87: 0 | O87: 0 | P87: 0 | Q87: 0 | R87: 0 | S87: =IFERROR(SUMPRODUCT(R80:R86,S80:S86)/R87,0) -> 0 | T87: =SUM(T80:T86) -> 0 | U87: 0 | V87: 0 | W87: 0 | X87: 0 | Y87: 0 | Z87: 0 | AA87: 0 | AB87: 0 | AC87: 0 | AD87: 0 | AE87: 0 | AF87: 0 | AG87: 0 | AH87: 0 | AI87: 0
B89: Both Directions/Both Lanes
D90: Summary of Speed Classification | T90: Summary of Vehicle Classification
B91: Date | D91: <10 | E91: 10-20 | F91: 20-30 | G91: 30-40 | H91: 40-50 | I91: 50-60 | J91: 60-70 | K91: 70-80 | L91: 80-90 | M91: 90-100 | N91: 100-110 | O91: 110-120 | P91: 121+ | Q91: Daily | R91: 85th Percentile | T91: CL1 | U91: CL2 | V91: CL3 | W91: CL4 | X91: CL5 | Y91: CL6 | Z91: CL7 | AA91: CL8 | AB91: CL9 | AC91: CL10 | AD91: CL11 | AE91: CL12 | AF91: CL13 | AG91: CL14 | AH91: Daily | AI91: %HCV
B92: =IFERROR(TEXT(B93,"MMMM"),0) -> October | C92: Day | Q92: Total | R92: Total | S92: Speed | AH92: Total
B93: =IFERROR(DATEVALUE(RIGHT(Input!$A$10,LEN(Input!$A$10)-FIND(",",Input!$A$10)-1)),1) -> 2024-10-30 | C93: =IFERROR(WEEKDAY(B93,2),0) -> 3 | D93: =D41+D80 -> 0 | E93: =E41+E80 -> 14 | F93: 268 | G93: 1284 | H93: 6796 | I93: 1475 | J93: 65 | K93: 7 | L93: 0 | M93: 0 | N93: 0 | O93: 1 | P93: 1 | Q93: =SUM(D93:P93) -> 9911 | R93: =R41+R80 -> 9888 | S93: =IFERROR((R41*S41+R80*S80)/R93,0) -> 49.77593042 | T93: =T41+T80 -> 47 | U93: 9521 | V93: 46 | W93: 104 | X93: 160 | Y93: 8 | Z93: 17 | AA93: 5 | AB93: 1 | AC93: 0 | AD93: 0 | AE93: 0 | AF93: 0 | AG93: 2 | AH93: =SUM(T93:AG93) -> 9911 | AI93: =IFERROR(SUM(W93:AF93)/AH93,0) -> 0.02976490768
B94: =IFERROR(DATEVALUE(RIGHT(Input!$A$73,LEN(Input!$A$73)-FIND(",",Input!$A$73)-1)),2) -> 2024-10-31 | C94: 4 | D94: =D42+D81 -> 0 | E94: 17 | F94: 270 | G94: 1306 | H94: 6979 | I94: 1705 | J94: 67 | K94: 6 | L94: 4 | M94: 2 | N94: 1 | O94: 0 | P94: 0 | Q94: 10357 | R94: =R42+R81 -> 10309 | S94: =IFERROR((R42*S42+R81*S81)/R94,0) -> 50.04283636 | T94: =T42+T81 -> 72 | U94: 9938 | V94: 90 | W94: 110 | X94: 119 | Y94: 9 | Z94: 11 | AA94: 3 | AB94: 1 | AC94: 1 | AD94: 0 | AE94: 0 | AF94: 0 | AG94: 3 | AH94: 10357 | AI94: 0.0245244762
B95: =IFERROR(DATEVALUE(RIGHT(Input!$A$136,LEN(Input!$A$136)-FIND(",",Input!$A$136)-1)),3) -> 2024-11-01 | C95: 5 | D95: 0 | E95: 20 | F95: 255 | G95: 1225 | H95: 6836 | I95: 1698 | J95: 73 | K95: 6 | L95: 1 | M95: 0 | N95: 0 | O95: 0 | P95: 0 | Q95: 10114 | R95: 10069 | S95: 50.1090575 | T95: =T43+T82 -> 91 | U95: 9675 | V95: 83 | W95: 120 | X95: 116 | Y95: 11 | Z95: 10 | AA95: 3 | AB95: 1 | AC95: 0 | AD95: 0 | AE95: 0 | AF95: 1 | AG95: 3 | AH95: 10114 | AI95: 0.02590468657
B96: =IFERROR(DATEVALUE(RIGHT(Input!$A$199,LEN(Input!$A$199)-FIND(",",Input!$A$199)-1)),4) -> 2024-11-02 | C96: 6 | D96: 0 | E96: 20 | F96: 234 | G96: 998 | H96: 4919 | I96: 1254 | J96: 64 | K96: 13 | L96: 1 | M96: 2 | N96: 0 | O96: 0 | P96: 0 | Q96: 7505 | R96: 7461 | S96: 50.20388688 | T96: =T44+T83 -> 86 | U96: 7164 | V96: 86 | W96: 67 | X96: 79 | Y96: 8 | Z96: 10 | AA96: 1 | AB96: 0 | AC96: 0 | AD96: 0 | AE96: 0 | AF96: 0 | AG96: 4 | AH96: 7505 | AI96: 0.0219853431
B97: =IFERROR(DATEVALUE(RIGHT(Input!$A$262,LEN(Input!$A$262)-FIND(",",Input!$A$262)-1)),5) -> 2024-11-03 | C97: 7 | D97: 0 | E97: 9 | F97: 208 | G97: 914 | H97: 4368 | I97: 1140 | J97: 55 | K97: 9 | L97: 2 | M97: 0 | N97: 0 | O97: 0 | P97: 3 | Q97: 6708 | R97: 6661 | S97: 50.31815043 | T97: =T45+T84 -> 87 | U97: 6433 | V97: 60 | W97: 50 | X97: 61 | Y97: 8 | Z97: 6 | AA97: 2 | AB97: 0 | AC97: 0 | AD97: 0 | AE97: 0 | AF97: 0 | AG97: 1 | AH97: 6708 | AI97: 0.01893261777
B98: =IFERROR(DATEVALUE(RIGHT(Input!$A$325,LEN(Input!$A$325)-FIND(",",Input!$A$325)-1)),6) -> 2024-11-04 | C98: 1 | D98: 0 | E98: 15 | F98: 255 | G98: 1246 | H98: 6535 | I98: 1579 | J98: 51 | K98: 6 | L98: 4 | M98: 1 | N98: 2 | O98: 0 | P98: 0 | Q98: 9694 | R98: 9664 | S98: 49.93133278 | T98: =T46+T85 -> 72 | U98: 9269 | V98: 100 | W98: 109 | X98: 112 | Y98: 9 | Z98: 13 | AA98: 2 | AB98: 1 | AC98: 0 | AD98: 0 | AE98: 0 | AF98: 0 | AG98: 7 | AH98: 9694 | AI98: 0.02537652156
B99: =IFERROR(DATEVALUE(RIGHT(Input!$A$388,LEN(Input!$A$388)-FIND(",",Input!$A$388)-1)),7) -> 2024-11-05 | C99: 2 | D99: 0 | E99: 10 | F99: 253 | G99: 1227 | H99: 6595 | I99: 1583 | J99: 58 | K99: 7 | L99: 4 | M99: 1 | N99: 0 | O99: 1 | P99: 0 | Q99: 9739 | R99: 9689 | S99: 49.77232945 | T99: =T47+T86 -> 96 | U99: 9350 | V99: 62 | W99: 116 | X99: 91 | Y99: 4 | Z99: 8 | AA99: 3 | AB99: 2 | AC99: 1 | AD99: 0 | AE99: 1 | AF99: 1 | AG99: 4 | AH99: 9739 | AI99: 0.02330834788
B100: Total | D100: =SUM(D93:D99) -> 0 | E100: 105 | F100: 1743 | G100: 8200 | H100: 43028 | I100: 10434 | J100: 433 | K100: 54 | L100: 16 | M100: 6 | N100: 3 | O100: 2 | P100: 4 | Q100: 64028 | R100: 63741 | S100: =IFERROR(SUMPRODUCT(R93:R99,S93:S99)/R100,0) -> 50.00149041 | T100: =SUM(T93:T99) -> 551 | U100: 61350 | V100: 527 | W100: 676 | X100: 738 | Y100: 57 | Z100: 75 | AA100: 19 | AB100: 6 | AC100: 2 | AD100: 0 | AE100: 1 | AF100: 2 | AG100: 24 | AH100: 64028 | AI100: 0.02461423127
B102: SUMMARY OF 7DAYS DATA
B104: =IF(Input2!A1="","Direction 1: Towards "&Input!B6,"Direction 1/Lane 1 : Towards "&Input!B6) -> Direction 1: Towards COOPER RD
B105: Posted Speed | G105: =$Q$7 -> 50 | H105: kph | K105: 5/Day (Av) = | Q105: =SUMPRODUCT((C15:C21<6)*Q15:Q21)/5 -> 4473 | T105: Cars & LCV = | W105: =IFERROR(SUM(T22:V22)/$AH$22*100,0) -> 96.59724157 | X105: %
B106: Vehicles Exceeding Posted Speed | G106: =SUM(OFFSET(D22,0,G105/10):P22) -> 9106 | K106: 7/Day (Av) = | Q106: =AVERAGE(Q15:Q21) -> 4101.714286 | T106: MCV = | W106: =IFERROR(W22/$AH$22*100,0) -> 0.9543048203 | X106: %
B107: Percentage Exceeding Posted Speed | G107: =IFERROR(G106/Q22*100,0) -> 31.71496239 | H107: % | K107: Saturday = | Q107: =SUMPRODUCT((C15:C21=6)*Q15:Q21) -> 3290 | T107: HCV1 = | W107: =IFERROR(SUM(X22:Z22)/$AH$22*100,0) -> 2.330036222 | X107: %
B108: 85th Percentile Speed | G108: =S22 -> 52.89354375 | H108: kph | K108: Sunday = | Q108: =SUMPRODUCT((C15:C21=7)*Q15:Q21) -> 3057 | T108: HCV2 = | W108: =IFERROR(SUM(AA22:AF22)/$AH$22*100,0) -> 0.08010587907 | X108: %
K109: Total Vehicles Surveyed | Q109: =Q22 -> 28712 | T109: Total HCV = | W109: =IFERROR(SUM(W106:W108),0) -> 3.364446921 | X109: %
B110: =IF(Input2!A1="","Direction 2: Towards "&Input!B5,"Direction 1/Lane 2 : Towards "&Input!B6) -> Direction 2: Towards DUNCANSBY RD
B111: Posted Speed | G111: =$Q$7 -> 50 | H111: kph | K111: 5/Day (Av) = | Q111: =SUMPRODUCT((C28:C34<6)*Q28:Q34)/5 -> 5490 | T111: Cars & LCV = | W111: =IFERROR(SUM(T35:V35)/$AH$35*100,0) -> 98.23592706 | X111: %
B112: Vehicles Exceeding Posted Speed | G112: =SUM(OFFSET(D35,0,G111/10):P35) -> 1846 | K112: 7/Day (Av) = | Q112: =AVERAGE(Q28:Q34) -> 5045.142857 | T112: MCV = | W112: =IFERROR(W35/$AH$35*100,0) -> 1.138294258 | X112: %
B113: Percentage Exceeding Posted Speed | G113: =IFERROR(G112/Q35*100,0) -> 5.227092536 | H113: % | K113: Saturday = | Q113: =SUMPRODUCT((C28:C34=6)*Q28:Q34) -> 4215 | T113: HCV1 = | W113: =IFERROR(SUM(X35:Z35)/$AH$35*100,0) -> 0.5691471288 | X113: %
B114: 85th Percentile Speed | G114: =S35 -> 47.67069975 | H114: kph | K114: Sunday = | Q114: =SUMPRODUCT((C28:C34=7)*Q28:Q34) -> 3651 | T114: HCV2 = | W114: =IFERROR(SUM(AA35:AF35)/$AH$35*100,0) -> 0.01982104429 | X114: %
K115: Total Vehicles Surveyed | Q115: =Q35 -> 35316 | T115: Total HCV = | W115: =IFERROR(SUM(W112:W114),0) -> 1.727262431 | X115: %
B116: =IF(Input2!A1="","Both Directions","Direction 1/Both Lanes : Towards "&Input!B6) -> Both Directions
B117: Posted Speed | G117: =$Q$7 -> 50 | H117: kph | K117: 5/Day (Av) = | Q117: =Q105+Q111 -> 9963 | T117: Cars & LCV = | W117: =IFERROR(SUM(T48:V48)/$AH$48*100,0) -> 97.50109327 | X117: %
B118: Vehicles Exceeding Posted Speed | G118: =SUM(OFFSET(D48,0,G117/10):P48) -> 10952 | K118: 7/Day (Av) = | Q118: =Q106+Q112 -> 9146.857143 | T118: MCV = | W118: =IFERROR(W48/$AH$48*100,0) -> 1.055788093 | X118: %
B119: Percentage Exceeding Posted Speed | G119: =IFERROR(G118/Q48*100,0) -> 17.10501656 | H119: % | K119: Saturday = | Q119: 7505 | T119: HCV1 = | W119: =IFERROR(SUM(X48:Z48)/$AH$48*100,0) -> 1.358780534 | X119: %
B120: 85th Percentile Speed | G120: =S48 -> 50.00149041 | H120: kph | K120: Sunday = | Q120: 6708 | T120: HCV2 = | W120: =IFERROR(SUM(AA48:AF48)/$AH$48*100,0) -> 0.04685450116 | X120: %
K121: Total Vehicles Surveyed | Q121: 64028 | T121: Total HCV = | W121: =IFERROR(SUM(W118:W120),0) -> 2.461423127 | X121: %
B123: ="Direction 2/Lane 1 : Towards "&Input!B5 -> Direction 2/Lane 1 : Towards DUNCANSBY RD
B124: Posted Speed | G124: =$Q$7 -> 50 | H124: kph | K124: 5/Day (Av) = | Q124: =SUMPRODUCT((C54:C60<6)*Q54:Q60)/5 -> 0 | T124: Cars & LCV = | W124: =IFERROR(SUM(T61:V61)/$AH$61*100,0) -> 0 | X124: %
B125: Vehicles Exceeding Posted Speed | G125: =SUM(OFFSET(D61,0,G124/10):P61) -> 0 | K125: 7/Day (Av) = | Q125: =AVERAGE(Q54:Q60) -> 0 | T125: MCV = | W125: =IFERROR(W61/$AH$61*100,0) -> 0 | X125: %
B126: Percentage Exceeding Posted Speed | G126: =IFERROR(G125/Q61*100,0) -> 0 | H126: % | K126: Saturday = | Q126: =SUMPRODUCT((C54:C60=6)*Q54:Q60) -> 0 | T126: HCV1 = | W126: =IFERROR(SUM(X61:Z61)/$AH$61*100,0) -> 0 | X126: %
B127: 85th Percentile Speed | G127: =S61 -> 0 | H127: kph | K127: Sunday = | Q127: =SUMPRODUCT((C54:C60=7)*Q54:Q60) -> 0 | T127: HCV2 = | W127: =IFERROR(SUM(AA61:AF61)/$AH$61*100,0) -> 0 | X127: %
K128: Total Vehicles Surveyed | Q128: =Q61 -> 0 | T128: Total HCV = | W128: =IFERROR(SUM(W125:W127),0) -> 0 | X128: %
B129: ="Direction 2/Lane 2 : Towards "&Input!B5 -> Direction 2/Lane 2 : Towards DUNCANSBY RD
B130: Posted Speed | G130: =$Q$7 -> 50 | H130: kph | K130: 5/Day (Av) = | Q130: =SUMPRODUCT((C67:C73<6)*Q67:Q73)/5 -> 0 | T130: Cars & LCV = | W130: =IFERROR(SUM(T74:V74)/$AH$74*100,0) -> 0 | X130: %
B131: Vehicles Exceeding Posted Speed | G131: =SUM(OFFSET(D74,0,G130/10):P74) -> 0 | K131: 7/Day (Av) = | Q131: =AVERAGE(Q67:Q73) -> 0 | T131: MCV = | W131: =IFERROR(W74/$AH$74*100,0) -> 0 | X131: %
B132: Percentage Exceeding Posted Speed | G132: =IFERROR(G131/Q74*100,0) -> 0 | H132: % | K132: Saturday = | Q132: =SUMPRODUCT((C67:C73=6)*Q67:Q73) -> 0 | T132: HCV1 = | W132: =IFERROR(SUM(X74:Z74)/$AH$74*100,0) -> 0 | X132: %
B133: 85th Percentile Speed | G133: =S74 -> 0 | H133: kph | K133: Sunday = | Q133: =SUMPRODUCT((C67:C73=7)*Q67:Q73) -> 0 | T133: HCV2 = | W133: =IFERROR(SUM(AA74:AF74)/$AH$74*100,0) -> 0 | X133: %
K134: Total Vehicles Surveyed | Q134: =Q74 -> 0 | T134: Total HCV = | W134: =IFERROR(SUM(W131:W133),0) -> 0 | X134: %
B135: ="Direction 2/Both Lanes : Towards "&Input!B5 -> Direction 2/Both Lanes : Towards DUNCANSBY RD
B136: Posted Speed | G136: =$Q$7 -> 50 | H136: kph | K136: 5/Day (Av) = | Q136: =Q124+Q130 -> 0 | T136: Cars & LCV = | W136: =IFERROR(SUM(T87:V87)/$AH$87*100,0) -> 0 | X136: %
B137: Vehicles Exceeding Posted Speed | G137: =SUM(OFFSET(D87,0,G136/10):P87) -> 0 | K137: 7/Day (Av) = | Q137: =Q125+Q131 -> 0 | T137: MCV = | W137: =IFERROR(W87/$AH$87*100,0) -> 0 | X137: %
B138: Percentage Exceeding Posted Speed | G138: =IFERROR(G137/Q87*100,0) -> 0 | H138: % | K138: Saturday = | Q138: 0 | T138: HCV1 = | W138: =IFERROR(SUM(X87:Z87)/$AH$87*100,0) -> 0 | X138: %
B139: 85th Percentile Speed | G139: =S87 -> 0 | H139: kph | K139: Sunday = | Q139: 0 | T139: HCV2 = | W139: =IFERROR(SUM(AA87:AF87)/$AH$87*100,0) -> 0 | X139: %
K140: Total Vehicles Surveyed | Q140: 0 | T140: Total HCV = | W140: =IFERROR(SUM(W137:W139),0) -> 0 | X140: %
B142: Both Directions /Both Lanes
B143: Posted Speed | G143: =$Q$7 -> 50 | H143: kph | K143: 5/Day (Av) = | Q143: =Q117+Q136 -> 9963 | T143: Cars & LCV = | W143: =IFERROR(SUM(T100:V100)/$AH$100*100,0) -> 97.50109327 | X143: %
B144: Vehicles Exceeding Posted Speed | G144: =SUM(OFFSET(D100,0,G143/10):P100) -> 10952 | K144: 7/Day (Av) = | Q144: =Q118+Q137 -> 9146.857143 | T144: MCV = | W144: =IFERROR(W100/$AH$100*100,0) -> 1.055788093 | X144: %
B145: Percentage Exceeding Posted Speed | G145: =IFERROR(G144/Q100*100,0) -> 17.10501656 | H145: % | K145: Saturday = | Q145: =Q119+Q138 -> 7505 | T145: HCV1 = | W145: =IFERROR(SUM(X100:Z100)/$AH$100*100,0) -> 1.358780534 | X145: %
B146: 85th Percentile Speed | G146: =S100 -> 50.00149041 | H146: kph | K146: Sunday = | Q146: =Q120+Q139 -> 6708 | T146: HCV2 = | W146: =IFERROR(SUM(AA100:AF100)/$AH$100*100,0) -> 0.04685450116 | X146: %
K147: Total Vehicles Surveyed | Q147: =Q121+Q140 -> 64028 | T147: Total HCV = | W147: =IFERROR(SUM(W144:W146),0) -> 2.461423127 | X147: %
B150: Peaks Summary | E150: Direction 1 | L150: Direction 2
E151: =LEFT(Input!$A$10,3) -> Wed | F151: =LEFT(Input!$A$73,3) -> Thu | G151: =LEFT(Input!$A$136,3) -> Fri | H151: =LEFT(Input!$A$199,3) -> Sat | I151: =LEFT(Input!$A$262,3) -> Sun | J151: =LEFT(Input!$A$325,3) -> Mon | K151: =LEFT(Input!$A$388,3) -> Tue | L151: =LEFT(Input!$A$10,3) -> Wed | M151: =LEFT(Input!$A$73,3) -> Thu | N151: =LEFT(Input!$A$136,3) -> Fri | O151: =LEFT(Input!$A$199,3) -> Sat | P151: =LEFT(Input!$A$262,3) -> Sun | Q151: =LEFT(Input!$A$325,3) -> Mon | R151: =LEFT(Input!$A$388,3) -> Tue
B152: AM PEAK
B153: 60 Minutes beginning | E153: =OFFSET(Peaks!$C$3,MATCH(E154,Peaks!E4:E19,0),0) -> 0800 | F153: =OFFSET(Peaks!$C$3,MATCH(F154,Peaks!F4:F19,0),0) -> 0800 | G153: =OFFSET(Peaks!$C$3,MATCH(G154,Peaks!G4:G19,0),0) -> 0800 | H153: =OFFSET(Peaks!$C$3,MATCH(H154,Peaks!H4:H19,0),0) -> 0900 | I153: =OFFSET(Peaks!$C$3,MATCH(I154,Peaks!I4:I19,0),0) -> 0900 | J153: =OFFSET(Peaks!$C$3,MATCH(J154,Peaks!J4:J19,0),0) -> 0815 | K153: =OFFSET(Peaks!$C$3,MATCH(K154,Peaks!K4:K19,0),0) -> 0815 | L153: =OFFSET(Peaks!$C$3,MATCH(L154,Peaks!M4:M19,0),0) -> 0800 | M153: =OFFSET(Peaks!$C$3,MATCH(M154,Peaks!N4:N19,0),0) -> 0800 | N153: =OFFSET(Peaks!$C$3,MATCH(N154,Peaks!O4:O19,0),0) -> 0800 | O153: =OFFSET(Peaks!$C$3,MATCH(O154,Peaks!P4:P19,0),0) -> 0900 | P153: =OFFSET(Peaks!$C$3,MATCH(P154,Peaks!Q4:Q19,0),0) -> 0900 | Q153: =OFFSET(Peaks!$C$3,MATCH(Q154,Peaks!R4:R19,0),0) -> 0800 | R153: =OFFSET(Peaks!$C$3,MATCH(R154,Peaks!S4:S19,0),0) -> 0800
B154: Volume | E154: =MAX(Peaks!E3:E20) -> 223 | F154: =MAX(Peaks!F3:F20) -> 236 | G154: =MAX(Peaks!G3:G20) -> 225 | H154: =MAX(Peaks!H3:H20) -> 159 | I154: =MAX(Peaks!I3:I20) -> 151 | J154: =MAX(Peaks!J3:J20) -> 224 | K154: =MAX(Peaks!K3:K20) -> 229 | L154: =MAX(Peaks!M3:M20) -> 656 | M154: =MAX(Peaks!N3:N20) -> 716 | N154: =MAX(Peaks!O3:O20) -> 709 | O154: =MAX(Peaks!P3:P20) -> 401 | P154: =MAX(Peaks!Q3:Q20) -> 350 | Q154: =MAX(Peaks!R3:R20) -> 642 | R154: =MAX(Peaks!S3:S20) -> 702
B155: MID PEAK
B156: 60 Minutes beginning | E156: =OFFSET(Peaks!$C$20,MATCH(E157,Peaks!E21:E40,0),0) -> 1400 | F156: =OFFSET(Peaks!$C$20,MATCH(F157,Peaks!F21:F40,0),0) -> 1400 | G156: =OFFSET(Peaks!$C$20,MATCH(G157,Peaks!G21:G40,0),0) -> 1400 | H156: =OFFSET(Peaks!$C$20,MATCH(H157,Peaks!H21:H40,0),0) -> 1215 | I156: =OFFSET(Peaks!$C$20,MATCH(I157,Peaks!I21:I40,0),0) -> 1245 | J156: =OFFSET(Peaks!$C$20,MATCH(J157,Peaks!J21:J40,0),0) -> 1400 | K156: =OFFSET(Peaks!$C$20,MATCH(K157,Peaks!K21:K40,0),0) -> 1400 | L156: =OFFSET(Peaks!$C$20,MATCH(L157,Peaks!M21:M40,0),0) -> 0915 | M156: =OFFSET(Peaks!$C$20,MATCH(M157,Peaks!N21:N40,0),0) -> 0915 | N156: =OFFSET(Peaks!$C$20,MATCH(N157,Peaks!O21:O40,0),0) -> 0915 | O156: =OFFSET(Peaks!$C$20,MATCH(O157,Peaks!P21:P40,0),0) -> 0930 | P156: =OFFSET(Peaks!$C$20,MATCH(P157,Peaks!Q21:Q40,0),0) -> 1015 | Q156: =OFFSET(Peaks!$C$20,MATCH(Q157,Peaks!R21:R40,0),0) -> 0915 | R156: =OFFSET(Peaks!$C$20,MATCH(R157,Peaks!S21:S40,0),0) -> 0915
B157: Volume | E157: =MAX(Peaks!E20:E41) -> 322 | F157: =MAX(Peaks!F20:F41) -> 299 | G157: =MAX(Peaks!G20:G41) -> 407 | H157: =MAX(Peaks!H20:H41) -> 320 | I157: =MAX(Peaks!I20:I41) -> 341 | J157: =MAX(Peaks!J20:J41) -> 322 | K157: =MAX(Peaks!K20:K41) -> 297 | L157: =MAX(Peaks!M20:M41) -> 363 | M157: =MAX(Peaks!N20:N41) -> 397 | N157: =MAX(Peaks!O20:O41) -> 398 | O157: =MAX(Peaks!P20:P41) -> 432 | P157: =MAX(Peaks!Q20:Q41) -> 382 | Q157: =MAX(Peaks!R20:R41) -> 340 | R157: =MAX(Peaks!S20:S41) -> 363
B158: PM PEAK
B159: 60 Minutes beginning | E159: =OFFSET(Peaks!$C$41,MATCH(E160,Peaks!E42:E60,0),0) -> 1715 | F159: =OFFSET(Peaks!$C$41,MATCH(F160,Peaks!F42:F60,0),0) -> 1645 | G159: =OFFSET(Peaks!$C$41,MATCH(G160,Peaks!G42:G60,0),0) -> 1615 | H159: =OFFSET(Peaks!$C$41,MATCH(H160,Peaks!H42:H60,0),0) -> 1445 | I159: =OFFSET(Peaks!$C$41,MATCH(I160,Peaks!I42:I60,0),0) -> 1445 | J159: =OFFSET(Peaks!$C$41,MATCH(J160,Peaks!J42:J60,0),0) -> 1645 | K159: =OFFSET(Peaks!$C$41,MATCH(K160,Peaks!K42:K60,0),0) -> 1700 | L159: =OFFSET(Peaks!$C$41,MATCH(L160,Peaks!M42:M60,0),0) -> 1445 | M159: =OFFSET(Peaks!$C$41,MATCH(M160,Peaks!N42:N60,0),0) -> 1530 | N159: =OFFSET(Peaks!$C$41,MATCH(N160,Peaks!O42:O60,0),0) -> 1500 | O159: =OFFSET(Peaks!$C$41,MATCH(O160,Peaks!P42:P60,0),0) -> 1600 | P159: =OFFSET(Peaks!$C$41,MATCH(P160,Peaks!Q42:Q60,0),0) -> 1445 | Q159: =OFFSET(Peaks!$C$41,MATCH(Q160,Peaks!R42:R60,0),0) -> 1630 | R159: =OFFSET(Peaks!$C$41,MATCH(R160,Peaks!S42:S60,0),0) -> 1445
B160: Volume | E160: =MAX(Peaks!E41:E61) -> 656 | F160: =MAX(Peaks!F41:F61) -> 878 | G160: =MAX(Peaks!G41:G61) -> 713 | H160: =MAX(Peaks!H41:H61) -> 343 | I160: =MAX(Peaks!I41:I61) -> 321 | J160: =MAX(Peaks!J41:J61) -> 722 | K160: =MAX(Peaks!K41:K61) -> 721 | L160: =MAX(Peaks!M41:M61) -> 454 | M160: =MAX(Peaks!N41:N61) -> 393 | N160: =MAX(Peaks!O41:O61) -> 403 | O160: =MAX(Peaks!P41:P61) -> 320 | P160: =MAX(Peaks!Q41:Q61) -> 293 | Q160: =MAX(Peaks!R41:R61) -> 408 | R160: =MAX(Peaks!S41:S61) -> 386
B161: AM PEAK
B162: 60 Minutes beginning | E162: =OFFSET(Peaks!$C$3,MATCH(E163,Peaks!U4:U19,0),0) -> 0800 | F162: =OFFSET(Peaks!$C$3,MATCH(F163,Peaks!V4:V19,0),0) -> 0800 | G162: =OFFSET(Peaks!$C$3,MATCH(G163,Peaks!W4:W19,0),0) -> 0800 | H162: =OFFSET(Peaks!$C$3,MATCH(H163,Peaks!X4:X19,0),0) -> 0900 | I162: =OFFSET(Peaks!$C$3,MATCH(I163,Peaks!Y4:Y19,0),0) -> 0900 | J162: =OFFSET(Peaks!$C$3,MATCH(J163,Peaks!Z4:Z19,0),0) -> 0815 | K162: =OFFSET(Peaks!$C$3,MATCH(K163,Peaks!AA4:AA19,0),0) -> 0815 | L162: =OFFSET(Peaks2!$C$3,MATCH(L163,Peaks2!U4:U19,0),0) ->  | M162: =OFFSET(Peaks2!$C$3,MATCH(M163,Peaks2!V4:V19,0),0) ->  | N162: =OFFSET(Peaks2!$C$3,MATCH(N163,Peaks2!W4:W19,0),0) ->  | O162: =OFFSET(Peaks2!$C$3,MATCH(O163,Peaks2!X4:X19,0),0) ->  | P162: =OFFSET(Peaks2!$C$3,MATCH(P163,Peaks2!Y4:Y19,0),0) ->  | Q162: =OFFSET(Peaks2!$C$3,MATCH(Q163,Peaks2!Z4:Z19,0),0) ->  | R162: =OFFSET(Peaks2!$C$3,MATCH(R163,Peaks2!AA4:AA19,0),0) -> 
B163: Volume | E163: =MAX(Peaks!U3:U20) -> 879 | F163: =MAX(Peaks!V3:V20) -> 952 | G163: =MAX(Peaks!W3:W20) -> 934 | H163: =MAX(Peaks!X3:X20) -> 560 | I163: =MAX(Peaks!Y3:Y20) -> 501 | J163: =MAX(Peaks!Z3:Z20) -> 864 | K163: =MAX(Peaks!AA3:AA20) -> 920 | L163: =MAX(Peaks2!U3:U20) -> 0 | M163: =MAX(Peaks2!V3:V20) -> 0 | N163: =MAX(Peaks2!W3:W20) -> 0 | O163: =MAX(Peaks2!X3:X20) -> 0 | P163: =MAX(Peaks2!Y3:Y20) -> 0 | Q163: =MAX(Peaks2!Z3:Z20) -> 0 | R163: =MAX(Peaks2!AA3:AA20) -> 0
B164: MID PEAK
B165: 60 Minutes beginning | E165: =OFFSET(Peaks!$C$20,MATCH(E166,Peaks!U21:U40,0),0) -> 1400 | F165: =OFFSET(Peaks!$C$20,MATCH(F166,Peaks!V21:V40,0),0) -> 1400 | G165: =OFFSET(Peaks!$C$20,MATCH(G166,Peaks!W21:W40,0),0) -> 1400 | H165: =OFFSET(Peaks!$C$20,MATCH(H166,Peaks!X21:X40,0),0) -> 1145 | I165: =OFFSET(Peaks!$C$20,MATCH(I166,Peaks!Y21:Y40,0),0) -> 1145 | J165: =OFFSET(Peaks!$C$20,MATCH(J166,Peaks!Z21:Z40,0),0) -> 1400 | K165: =OFFSET(Peaks!$C$20,MATCH(K166,Peaks!AA21:AA40,0),0) -> 1400 | L165: =OFFSET(Peaks2!$C$20,MATCH(L166,Peaks2!U21:U40,0),0) ->  | M165: =OFFSET(Peaks2!$C$20,MATCH(M166,Peaks2!V21:V40,0),0) ->  | N165: =OFFSET(Peaks2!$C$20,MATCH(N166,Peaks2!W21:W40,0),0) ->  | O165: =OFFSET(Peaks2!$C$20,MATCH(O166,Peaks2!X21:X40,0),0) ->  | P165: =OFFSET(Peaks2!$C$20,MATCH(P166,Peaks2!Y21:Y40,0),0) ->  | Q165: =OFFSET(Peaks2!$C$20,MATCH(Q166,Peaks2!Z21:Z40,0),0) ->  | R165: =OFFSET(Peaks2!$C$20,MATCH(R166,Peaks2!AA21:AA40,0),0) -> 
B166: Volume | E166: =MAX(Peaks!U20:U41) -> 652 | F166: =MAX(Peaks!V20:V41) -> 575 | G166: =MAX(Peaks!W20:W41) -> 698 | H166: =MAX(Peaks!X20:X41) -> 682 | I166: =MAX(Peaks!Y20:Y41) -> 668 | J166: =MAX(Peaks!Z20:Z41) -> 604 | K166: =MAX(Peaks!AA20:AA41) -> 574 | L166: =MAX(Peaks2!U20:U41) -> 0 | M166: =MAX(Peaks2!V20:V41) -> 0 | N166: =MAX(Peaks2!W20:W41) -> 0 | O166: =MAX(Peaks2!X20:X41) -> 0 | P166: =MAX(Peaks2!Y20:Y41) -> 0 | Q166: =MAX(Peaks2!Z20:Z41) -> 0 | R166: =MAX(Peaks2!AA20:AA41) -> 0
B167: PM PEAK
B168: 60 Minutes beginning | E168: =OFFSET(Peaks!$C$41,MATCH(E169,Peaks!U42:U60,0),0) -> 1630 | F168: =OFFSET(Peaks!$C$41,MATCH(F169,Peaks!V42:V60,0),0) -> 1645 | G168: =OFFSET(Peaks!$C$41,MATCH(G169,Peaks!W42:W60,0),0) -> 1615 | H168: =OFFSET(Peaks!$C$41,MATCH(H169,Peaks!X42:X60,0),0) -> 1445 | I168: =OFFSET(Peaks!$C$41,MATCH(I169,Peaks!Y42:Y60,0),0) -> 1445 | J168: =OFFSET(Peaks!$C$41,MATCH(J169,Peaks!Z42:Z60,0),0) -> 1645 | K168: =OFFSET(Peaks!$C$41,MATCH(K169,Peaks!AA42:AA60,0),0) -> 1645 | L168: =OFFSET(Peaks2!$C$41,MATCH(L169,Peaks2!U42:U60,0),0) ->  | M168: =OFFSET(Peaks2!$C$41,MATCH(M169,Peaks2!V42:V60,0),0) ->  | N168: =OFFSET(Peaks2!$C$41,MATCH(N169,Peaks2!W42:W60,0),0) ->  | O168: =OFFSET(Peaks2!$C$41,MATCH(O169,Peaks2!X42:X60,0),0) ->  | P168: =OFFSET(Peaks2!$C$41,MATCH(P169,Peaks2!Y42:Y60,0),0) ->  | Q168: =OFFSET(Peaks2!$C$41,MATCH(Q169,Peaks2!Z42:Z60,0),0) ->  | R168: =OFFSET(Peaks2!$C$41,MATCH(R169,Peaks2!AA42:AA60,0),0) -> 
B169: Volume | E169: =MAX(Peaks!U41:U61) -> 1022 | F169: =MAX(Peaks!V41:V61) -> 1244 | G169: =MAX(Peaks!W41:W61) -> 1089 | H169: =MAX(Peaks!X41:X61) -> 659 | I169: =MAX(Peaks!Y41:Y61) -> 614 | J169: =MAX(Peaks!Z41:Z61) -> 1128 | K169: =MAX(Peaks!AA41:AA61) -> 1049 | L169: =MAX(Peaks2!U41:U61) -> 0 | M169: =MAX(Peaks2!V41:V61) -> 0 | N169: =MAX(Peaks2!W41:W61) -> 0 | O169: =MAX(Peaks2!X41:X61) -> 0 | P169: =MAX(Peaks2!Y41:Y61) -> 0 | Q169: =MAX(Peaks2!Z41:Z61) -> 0 | R169: =MAX(Peaks2!AA41:AA61) -> 0

Sheet RAMM Traffic and Loading Table
A1: Data to upload to RAMM
A2: Road ID | B2: =IFERROR(VLOOKUP(CountID,Programme,2,0),"") -> 10994 | C2: =IFERROR(VLOOKUP(CountID2,Programme,2,0),"") -> 
A3: Carraigeway Start | B3: =IFERROR(VLOOKUP(CountID,Programme,4,0),"") -> 752 | C3: =IFERROR(VLOOKUP(CountID2,Programme,4,0),"") -> 
A4: Direction | B4: B | C4: =IF(CountID2="","","B") -> 
A5: Northing | B5: =GPS('7 day speed and Vol Summary'!G6) -> 5946454 | C5: =IF(CountID2="","",GPS('7 day speed and Vol Summary'!K6)) -> 
A6: Easting | B6: =GPS('7 day speed and Vol Summary'!E6) -> 1753938 | C6: =IF(CountID2="","",GPS('7 day speed and Vol Summary'!I6)) -> 
A7: Latest | B7: L | C7: =IF(CountID2="","","L") -> 
A8: Count Date | B8: ='7 day speed and Vol Summary'!Q8 -> 2024-10-30 | C8: =IF(CountID2="","",'7 day speed and Vol Summary'!B54) -> 
A9: Count Status | B9: C | C9: =IF(CountID2="","","C") -> 
A10: Peak Hour | B10: =IF(Type="2Lane",OFFSET(Peaks,MATCH(B14,TwoLane,0),0),IF(CountID2="",OFFSET(Peaks2,MATCH(B14,Multi,0),0),OFFSET(Peaks2,MATCH(B14,TwoLane,0),0))) -> 1645 | C10: =IF(CountID2="","",OFFSET(Peaks2!$C$3,MATCH(C14,SecondCount,0),0)) -> 
A11: Count Duration | B11: 7D | C11: =IF(CountID2="","","7D") -> 
A12: Financial Year | B12: =IFERROR(TEXT(EDATE(B8,-6),"yyyy")&"/"&TEXT(EDATE(B8,6),"yy"),"") -> 2024/25 | C12: =IF(CountID2="","",TEXT(EDATE(C8+184,-12),"yyyy")&"/"&TEXT(EDATE(C8+184,0),"yy")) -> 
A13: 7 day ADT | B13: =ROUND(IF(Type="2Lane",'7 day speed and Vol Summary'!Q118,IF(CountID2="",'7 day speed and Vol Summary'!Q144,'7 day speed and Vol Summary'!Q118)),0) -> 9147 | C13: =IF(CountID2="","",ROUND('7 day speed and Vol Summary'!Q137,0)) -> 
A14: PeakTraffic | B14: =IF(Type="2Lane",MAX(TwoLane),IF(CountID2="",MAX(Multi),MAX(TwoLane))) -> 1244 | C14: =IF(CountID2="","",(MAX(SecondCount))) -> 
A15: PcCar (CL1 & CL2) | B15: =IFERROR(ROUND(IF(Type="2Lane",SUM('7 day speed and Vol Summary'!T$48:U$48)/'7 day speed and Vol Summary'!$AH$48,IF(CountID2="",SUM('7 day speed and Vol Summary'!T$100:U$100)/'7 day speed and Vol Summary'!$AH$100,SUM('7 day speed and Vol Summary'!T$48:U$48)/'7 day speed and Vol Summary'!$AH$48)),2)*100&"%","") -> 97% | C15: =IF(CountID2="","",ROUND(SUM('7 day speed and Vol Summary'!T$87:U$87)/'7 day speed and Vol Summary'!$AH$87,2)*100&"%") -> 
A16: PcLCV (CL3) | B16: =IFERROR(ROUND(IF(Type="2Lane",'7 day speed and Vol Summary'!V$48/'7 day speed and Vol Summary'!$AH$48,IF(CountID2="",'7 day speed and Vol Summary'!V$100/'7 day speed and Vol Summary'!$AH$100,'7 day speed and Vol Summary'!V$48/'7 day speed and Vol Summary'!$AH$48)),2)*100&"%","") -> 1% | C16: =IF(CountID2="","",ROUND('7 day speed and Vol Summary'!V$87/'7 day speed and Vol Summary'!$AH$87,2)*100&"%") -> 
A17: PcMCV (CL4) | B17: =IFERROR(ROUND(IF(Type="2Lane",'7 day speed and Vol Summary'!W$48/'7 day speed and Vol Summary'!$AH$48,IF(CountID2="",'7 day speed and Vol Summary'!W$100/'7 day speed and Vol Summary'!$AH$100,'7 day speed and Vol Summary'!W$48/'7 day speed and Vol Summary'!$AH$48)),2)*100&"%","") -> 1% | C17: =IF(CountID2="","",ROUND('7 day speed and Vol Summary'!W$87/'7 day speed and Vol Summary'!$AH$87,2)*100&"%") -> 
A18: PcHCVI (CL5 to CL7) | B18: =IFERROR(ROUND(IF(Type="2Lane",SUM('7 day speed and Vol Summary'!X$48:Z$48)/'7 day speed and Vol Summary'!$AH$48,IF(CountID2="",SUM('7 day speed and Vol Summary'!X$100:Z$100)/'7 day speed and Vol Summary'!$AH$100,SUM('7 day speed and Vol Summary'!X$48:Z$48)/'7 day speed and Vol Summary'!$AH$48)),2)*100&"%","") -> 1% | C18: =IF(CountID2="","",ROUND(SUM('7 day speed and Vol Summary'!X$87:Z$87)/'7 day speed and Vol Summary'!$AH$87,2)*100&"%") -> 
A19: PcHCVII (CL8 to CL13) | B19: =IFERROR(ROUND(IF(Type="2Lane",SUM('7 day speed and Vol Summary'!AA$48:AF$48)/'7 day speed and Vol Summary'!$AH$48,IF(CountID2="",SUM('7 day speed and Vol Summary'!AA$100:AF$100)/'7 day speed and Vol Summary'!$AH$100,SUM('7 day speed and Vol Summary'!AA$48:AF$48)/'7 day speed and Vol Summary'!$AH$48)),2)*100&"%","") -> 0% | C19: =IF(CountID2="","",ROUND(SUM('7 day speed and Vol Summary'!AA$87:AF$87)/'7 day speed and Vol Summary'!$AH$87,2)*100&"%") -> 
A20: PcHeavy (CL4 to CL13) | B20: =IFERROR(ROUND(IF(Type="2Lane",SUM('7 day speed and Vol Summary'!W$48:AF$48)/'7 day speed and Vol Summary'!$AH$48,IF(CountID2="",SUM('7 day speed and Vol Summary'!W$100:AF$100)/'7 day speed and Vol Summary'!$AH$100,SUM('7 day speed and Vol Summary'!W$48:AF$48)/'7 day speed and Vol Summary'!$AH$48)),2)*100&"%","") -> 2% | C20: =IF(CountID2="","",ROUND(SUM('7 day speed and Vol Summary'!W$87:AF$87)/'7 day speed and Vol Summary'!$AH$87,2)*100&"%") -> 
A21: EsaMCV
A22: EsaHCVI
A23: EsaHCVII
A24: EsaHeavy
A25: Notes | B25: ="85th %ile Speed -"&TEXT(ROUND(IF(Type="2Lane",'7 day speed and Vol Summary'!S$48,IF(CountID2="",'7 day speed and Vol Summary'!S$100,'7 day speed and Vol Summary'!S$48)),1),"00.0")&" km/hr" -> 85th %ile Speed -50.0 km/hr | C25: =IF(CountID2="","","85th %ile Speed -"&TEXT(ROUND('7 day speed and Vol Summary'!S$87,1),"00.0")&" km/hr") -> 
A26: Auckland Transport Website
A27: 5Days ADT | B27: ='7 day speed and Vol Summary'!Q143 -> 9963
A28: 7Days ADT | B28: ='7 day speed and Vol Summary'!Q144 -> 9146.857143
A29: Sat | B29: ='7 day speed and Vol Summary'!Q145 -> 7505
A30: Sun | B30: ='7 day speed and Vol Summary'!Q146 -> 6708
A31: AM Peak | B31: =MAX(Peaks2!AN4:AN19) -> 0
A32: AM Peak Hour | B32: =OFFSET(Peaks2,MATCH(B31,Peaks2!AN4:AN19,0),0) -> 0515
A33: Mid Peak | B33: =MAX(Peaks2!AN21:AN40) -> 0
A34: Mid Peak Hour | B34: =OFFSET(Peaks2!C20,MATCH(B33,Peaks2!AN21:AN40,0),0) -> 0915
A35: PM Peak | B35: =MAX(Peaks2!AN42:AN60) -> 0
A36: PM Peak Hour | B36: =OFFSET(Peaks2!C41,MATCH(B35,Peaks2!AN42:AN60,0),0) -> 1415
A37: Description | B37: =IF(Input!B4="","",Input!B4) -> -36.615015, 174.721501 [50] 1753938, 5946454
A38: Car | B38: =ROUND('7 day speed and Vol Summary'!W143/100*0.84,3) -> 0.819
A39: LCV | B39: =ROUND('7 day speed and Vol Summary'!W143/100*0.16,3) -> 0.156
A40: MCV | B40: =ROUND('7 day speed and Vol Summary'!W144/100,3) -> 0.011
A41: HCV-I | B41: =ROUND('7 day speed and Vol Summary'!W145/100,3) -> 0.014
A42: HCV-II | B42: =ROUND('7 day speed and Vol Summary'!W146/100,3) -> 0
A43: HCV Total | B43: =ROUND('7 day speed and Vol Summary'!W147/100,3) -> 0.025

Sheet Input (hidden)
A1: Auckland Transport
A2: Site Name | B2: VIPOND RD (STANMORE BAY) (10994)
A3: Site Attribute | B3: E1753938 N5946454
A4: Description | B4: -36.615015, 174.721501 [50] 1753938, 5946454
A5: Start | B5: DUNCANSBY RD
A6: End | B6: COOPER RD
A7: Posted Limit | B7: 50
A8: Mean | B8: Average speed
A10: Wednesday, October 30, 2024
A12: Time | B12: Cd | C12: Total | D12: Cls | E12: Cls | F12: Cls | G12: Cls | H12: Cls | I12: Cls | J12: Cls | K12: Cls | L12: Cls | M12: Cls | N12: Cls | O12: Cls | P12: Cls | Q12: Cls | R12: Drop | S12: Drop | T12: Drop | U12: Drop | V12: Vbin | W12: Vbin | X12: Vbin | Y12: Vbin | Z12: Vbin | AA12: Vbin | AB12: Vbin | AC12: Vbin | AD12: Vbin | AE12: Vbin | AF12: Vbin | AG12: Vbin | AH12: Vbin | AI12: Vbin | AJ12: Vbin | AK12: Vbin | AL12: Vpp | AM12: Mean
A13: [-- | D13: 1 | E13: 2 | F13: 3 | G13: 4 | H13: 5 | I13: 6 | J13: 7 | K13: 8 | L13: 9 | M13: 10 | N13: 11 | O13: 12 | P13: 13 | Q13: 14 | R13: --00 | S13: --15 | T13: --30 | U13: --45 | V13: 0 | W13: 10 | X13: 20 | Y13: 30 | Z13: 40 | AA13: 50 | AB13: 60 | AC13: 70 | AD13: 80 | AE13: 90 | AF13: 100 | AG13: 110 | AH13: 120 | AI13: 130 | AJ13: 140 | AK13: 150 | AL13: 85
V14: 10 | W14: 20 | X14: 30 | Y14: 40 | Z14: 50 | AA14: 60 | AB14: 70 | AC14: 80 | AD14: 90 | AE14: 100 | AF14: 110 | AG14: 120 | AH14: 130 | AI14: 140 | AJ14: 150 | AK14: 160
A15: 0000 | B15: S | C15: 4 | D15: 0 | E15: 4 | F15: 0 | G15: 0 | H15: 0 | I15: 0 | J15: 0 | K15: 0 | L15: 0 | M15: 0 | N15: 0 | O15: 0 | P15: 0 | Q15: 0 | R15: 0 | S15: 0 | T15: 3 | U15: 1 | V15: 0 | W15: 1 | X15: 1 | Y15: 2 | Z15: 0 | AA15: 0 | AB15: 0 | AC15: 0 | AD15: 0 | AE15: 0 | AF15: 0 | AG15: 0 | AH15: 0 | AI15: 0 | AJ15: 0 | AK15: 0 | AL15: 0 | AM15: 26.2
A16: 0000 | B16: P | C16: 2 | D16: 0 | E16: 2 | F16: 0 | G16: 0 | H16: 0 | I16: 0 | J16: 0 | K16: 0 | L16: 0 | M16: 0 | N16: 0 | O16: 0 | P16: 0 | Q16: 0 | R16: 0 | S16: 0 | T16: 2 | U16: 0 | V16: 0 | W16: 0 | X16: 0 | Y16: 2 | Z16: 0 | AA16: 0 | AB16: 0 | AC16: 0 | AD16: 0 | AE16: 0 | AF16: 0 | AG16: 0 | AH16: 0 | AI16: 0 | AJ16: 0 | AK16: 0 | AL16: 0 | AM16: 36.4
A17: 0100 | B17: S | C17: 2 | D17: 0 | E17: 2 | F17: 0 | G17: 0 | H17: 0 | I17: 0 | J17: 0 | K17: 0 | L17: 0 | M17: 0 | N17: 0 | O17: 0 | P17: 0 | Q17: 0 | R17: 0 | S17: 2 | T17: 0 | U17: 0 | V17: 0 | W17: 0 | X17: 0 | Y17: 1 | Z17: 1 | AA17: 0 | AB17: 0 | AC17: 0 | AD17: 0 | AE17: 0 | AF17: 0 | AG17: 0 | AH17: 0 | AI17: 0 | AJ17: 0 | AK17: 0 | AL17: 0 | AM17: 43.6
A18: 0100 | B18: P | C18: 7 | D18: 0 | E18: 7 | F18: 0 | G18: 0 | H18: 0 | I18: 0 | J18: 0 | K18: 0 | L18: 0 | M18: 0 | N18: 0 | O18: 0 | P18: 0 | Q18: 0 | R18: 4 | S18: 0 | T18: 1 | U18: 2 | V18: 0 | W18: 0 | X18: 0 | Y18: 2 | Z18: 3 | AA18: 2 | AB18: 0 | AC18: 0 | AD18: 0 | AE18: 0 | AF18: 0 | AG18: 0 | AH18: 0 | AI18: 0 | AJ18: 0 | AK18: 0 | AL18: 0 | AM18: 43.5
A19: 0200 | B19: S | C19: 1 | D19: 0 | E19: 1 | F19: 0 | G19: 0 | H19: 0 | I19: 0 | J19: 0 | K19: 0 | L19: 0 | M19: 0 | N19: 0 | O19: 0 | P19: 0 | Q19: 0 | R19: 0 | S19: 0 | T19: 1 | U19: 0 | V19: 0 | W19: 0 | X19: 0 | Y19: 0 | Z19: 1 | AA19: 0 | AB19: 0 | AC19: 0 | AD19: 0 | AE19: 0 | AF19: 0 | AG19: 0 | AH19: 0 | AI19: 0 | AJ19: 0 | AK19: 0 | AL19: 0 | AM19: 49.4
A20: 0200 | B20: P | C20: 2 | D20: 0 | E20: 2 | F20: 0 | G20: 0 | H20: 0 | I20: 0 | J20: 0 | K20: 0 | L20: 0 | M20: 0 | N20: 0 | O20: 0 | P20: 0 | Q20: 0 | R20: 0 | S20: 0 | T20: 0 | U20: 2 | V20: 0 | W20: 0 | X20: 1 | Y20: 0 | Z20: 1 | AA20: 0 | AB20: 0 | AC20: 0 | AD20: 0 | AE20: 0 | AF20: 0 | AG20: 0 | AH20: 0 | AI20: 0 | AJ20: 0 | AK20: 0 | AL20: 0 | AM20: 33.2
A21: 0300 | B21: S | C21: 11 | D21: 0 | E21: 11 | F21: 0 | G21: 0 | H21: 0 | I21: 0 | J21: 0 | K21: 0 | L21: 0 | M21: 0 | N21: 0 | O21: 0 | P21: 0 | Q21: 0 | R21: 1 | S21: 4 | T21: 4 | U21: 2 | V21: 0 | W21: 1 | X21: 0 | Y21: 3 | Z21: 7 | AA21: 0 | AB21: 0 | AC21: 0 | AD21: 0 | AE21: 0 | AF21: 0 | AG21: 0 | AH21: 0 | AI21: 0 | AJ21: 0 | AK21: 0 | AL21: 47.3 | AM21: 39.3
A22: 0300 | B22: P | C22: 2 | D22: 0 | E22: 2 | F22: 0 | G22: 0 | H22: 0 | I22: 0 | J22: 0 | K22: 0 | L22: 0 | M22: 0 | N22: 0 | O22: 0 | P22: 0 | Q22: 0 | R22: 1 | S22: 1 | T22: 0 | U22: 0 | V22: 0 | W22: 0 | X22: 1 | Y22: 1 | Z22: 0 | AA22: 0 | AB22: 0 | AC22: 0 | AD22: 0 | AE22: 0 | AF22: 0 | AG22: 0 | AH22: 0 | AI22: 0 | AJ22: 0 | AK22: 0 | AL22: 0 | AM22: 30.6
A23: 0400 | B23: S | C23: 23 | D23: 0 | E23: 23 | F23: 0 | G23: 0 | H23: 0 | I23: 0 | J23: 0 | K23: 0 | L23: 0 | M23: 0 | N23: 0 | O23: 0 | P23: 0 | Q23: 0 | R23: 0 | S23: 4 | T23: 9 | U23: 10 | V23: 0 | W23: 0 | X23: 2 | Y23: 3 | Z23: 13 | AA23: 5 | AB23: 0 | AC23: 0 | AD23: 0 | AE23: 0 | AF23: 0 | AG23: 0 | AH23: 0 | AI23: 0 | AJ23: 0 | AK23: 0 | AL23: 51 | AM23: 44.3
A24: 0400 | B24: P | C24: 3 | D24: 0 | E24: 3 | F24: 0 | G24: 0 | H24: 0 | I24: 0 | J24: 0 | K24: 0 | L24: 0 | M24: 0 | N24: 0 | O24: 0 | P24: 0 | Q24: 0 | R24: 1 | S24: 1 | T24: 0 | U24: 1 | V24: 0 | W24: 0 | X24: 0 | Y24: 2 | Z24: 1 | AA24: 0 | AB24: 0 | AC24: 0 | AD24: 0 | AE24: 0 | AF24: 0 | AG24: 0 | AH24: 0 | AI24: 0 | AJ24: 0 | AK24: 0 | AL24: 0 | AM24: 38.4
A25: 0500 | B25: S | C25: 198 | D25: 1 | E25: 194 | F25: 2 | G25: 1 | H25: 0 | I25: 0 | J25: 0 | K25: 0 | L25: 0 | M25: 0 | N25: 0 | O25: 0 | P25: 0 | Q25: 0 | R25: 28 | S25: 39 | T25: 59 | U25: 72 | V25: 0 | W25: 0 | X25: 10 | Y25: 26 | Z25: 149 | AA25: 13 | AB25: 0 | AC25: 0 | AD25: 0 | AE25: 0 | AF25: 0 | AG25: 0 | AH25: 0 | AI25: 0 | AJ25: 0 | AK25: 0 | AL25: 48.3 | AM25: 43.5
A26: 0500 | B26: P | C26: 11 | D26: 0 | E26: 11 | F26: 0 | G26: 0 | H26: 0 | I26: 0 | J26: 0 | K26: 0 | L26: 0 | M26: 0 | N26: 0 | O26: 0 | P26: 0 | Q26: 0 | R26: 2 | S26: 5 | T26: 1 | U26: 3 | V26: 0 | W26: 0 | X26: 0 | Y26: 2 | Z26: 4 | AA26: 4 | AB26: 1 | AC26: 0 | AD26: 0 | AE26: 0 | AF26: 0 | AG26: 0 | AH26: 0 | AI26: 0 | AJ26: 0 | AK26: 0 | AL26: 58.9 | AM26: 48.1
A27: 0600 | B27: S | C27: 454 | D27: 3 | E27: 444 | F27: 1 | G27: 5 | H27: 1 | I27: 0 | J27: 0 | K27: 0 | L27: 0 | M27: 0 | N27: 0 | O27: 0 | P27: 0 | Q27: 0 | R27: 80 | S27: 90 | T27: 139 | U27: 145 | V27: 0 | W27: 1 | X27: 27 | Y27: 60 | Z27: 348 | AA27: 18 | AB27: 0 | AC27: 0 | AD27: 0 | AE27: 0 | AF27: 0 | AG27: 0 | AH27: 0 | AI27: 0 | AJ27: 0 | AK27: 0 | AL27: 47.9 | AM27: 42.9
A28: 0600 | B28: P | C28: 42 | D28: 0 | E28: 41 | F28: 0 | G28: 1 | H28: 0 | I28: 0 | J28: 0 | K28: 0 | L28: 0 | M28: 0 | N28: 0 | O28: 0 | P28: 0 | Q28: 0 | R28: 4 | S28: 7 | T28: 12 | U28: 19 | V28: 0 | W28: 0 | X28: 2 | Y28: 5 | Z28: 25 | AA28: 9 | AB28: 1 | AC28: 0 | AD28: 0 | AE28: 0 | AF28: 0 | AG28: 0 | AH28: 0 | AI28: 0 | AJ28: 0 | AK28: 0 | AL28: 51.5 | AM28: 45.5
A29: 0700 | B29: S | C29: 547 | D29: 0 | E29: 530 | F29: 2 | G29: 9 | H29: 6 | I29: 0 | J29: 0 | K29: 0 | L29: 0 | M29: 0 | N29: 0 | O29: 0 | P29: 0 | Q29: 0 | R29: 151 | S29: 134 | T29: 116 | U29: 146 | V29: 0 | W29: 0 | X29: 28 | Y29: 101 | Z29: 404 | AA29: 14 | AB29: 0 | AC29: 0 | AD29: 0 | AE29: 0 | AF29: 0 | AG29: 0 | AH29: 0 | AI29: 0 | AJ29: 0 | AK29: 0 | AL29: 46.8 | AM29: 42.2
A30: 0700 | B30: P | C30: 103 | D30: 0 | E30: 100 | F30: 1 | G30: 2 | H30: 0 | I30: 0 | J30: 0 | K30: 0 | L30: 0 | M30: 0 | N30: 0 | O30: 0 | P30: 0 | Q30: 0 | R30: 13 | S30: 22 | T30: 27 | U30: 41 | V30: 0 | W30: 0 | X30: 1 | Y30: 7 | Z30: 64 | AA30: 29 | AB30: 1 | AC30: 1 | AD30: 0 | AE30: 0 | AF30: 0 | AG30: 0 | AH30: 0 | AI30: 0 | AJ30: 0 | AK30: 0 | AL30: 52.5 | AM30: 47.6
A31: 0800 | B31: S | C31: 656 | D31: 2 | E31: 641 | F31: 5 | G31: 5 | H31: 2 | I31: 0 | J31: 1 | K31: 0 | L31: 0 | M31: 0 | N31: 0 | O31: 0 | P31: 0 | Q31: 0 | R31: 149 | S31: 150 | T31: 195 | U31: 162 | V31: 0 | W31: 0 | X31: 21 | Y31: 112 | Z31: 515 | AA31: 8 | AB31: 0 | AC31: 0 | AD31: 0 | AE31: 0 | AF31: 0 | AG31: 0 | AH31: 0 | AI31: 0 | AJ31: 0 | AK31: 0 | AL31: 46.3 | AM31: 42.3
A32: 0800 | B32: P | C32: 223 | D32: 0 | E32: 214 | F32: 0 | G32: 3 | H32: 5 | I32: 0 | J32: 0 | K32: 1 | L32: 0 | M32: 0 | N32: 0 | O32: 0 | P32: 0 | Q32: 0 | R32: 36 | S32: 68 | T32: 60 | U32: 59 | V32: 0 | W32: 1 | X32: 3 | Y32: 16 | Z32: 144 | AA32: 55 | AB32: 3 | AC32: 0 | AD32: 0 | AE32: 0 | AF32: 0 | AG32: 0 | AH32: 0 | AI32: 1 | AJ32: 0 | AK32: 0 | AL32: 52.8 | AM32: 47.7
A33: 0900 | B33: S | C33: 395 | D33: 0 | E33: 389 | F33: 2 | G33: 3 | H33: 1 | I33: 0 | J33: 0 | K33: 0 | L33: 0 | M33: 0 | N33: 0 | O33: 0 | P33: 0 | Q33: 0 | R33: 113 | S33: 122 | T33: 88 | U33: 72 | V33: 0 | W33: 0 | X33: 10 | Y33: 54 | Z33: 309 | AA33: 22 | AB33: 0 | AC33: 0 | AD33: 0 | AE33: 0 | AF33: 0 | AG33: 0 | AH33: 0 | AI33: 0 | AJ33: 0 | AK33: 0 | AL33: 48 | AM33: 43.3
A34: 0900 | B34: P | C34: 155 | D34: 0 | E34: 146 | F34: 2 | G34: 2 | H34: 5 | I34: 0 | J34: 0 | K34: 0 | L34: 0 | M34: 0 | N34: 0 | O34: 0 | P34: 0 | Q34: 0 | R34: 34 | S34: 36 | T34: 43 | U34: 42 | V34: 0 | W34: 0 | X34: 3 | Y34: 12 | Z34: 87 | AA34: 53 | AB34: 0 | AC34: 0 | AD34: 0 | AE34: 0 | AF34: 0 | AG34: 0 | AH34: 0 | AI34: 0 | AJ34: 0 | AK34: 0 | AL34: 52.7 | AM34: 47.4
A35: 1000 | B35: S | C35: 323 | D35: 3 | E35: 312 | F35: 2 | G35: 5 | H35: 1 | I35: 0 | J35: 0 | K35: 0 | L35: 0 | M35: 0 | N35: 0 | O35: 0 | P35: 0 | Q35: 0 | R35: 81 | S35: 87 | T35: 85 | U35: 70 | V35: 0 | W35: 2 | X35: 16 | Y35: 41 | Z35: 251 | AA35: 13 | AB35: 0 | AC35: 0 | AD35: 0 | AE35: 0 | AF35: 0 | AG35: 0 | AH35: 0 | AI35: 0 | AJ35: 0 | AK35: 0 | AL35: 47.7 | AM35: 42.7
A36: 1000 | B36: P | C36: 149 | D36: 0 | E36: 140 | F36: 0 | G36: 3 | H36: 6 | I36: 0 | J36: 0 | K36: 0 | L36: 0 | M36: 0 | N36: 0 | O36: 0 | P36: 0 | Q36: 0 | R36: 32 | S36: 37 | T36: 36 | U36: 44 | V36: 0 | W36: 0 | X36: 0 | Y36: 14 | Z36: 75 | AA36: 56 | AB36: 3 | AC36: 1 | AD36: 0 | AE36: 0 | AF36: 0 | AG36: 0 | AH36: 0 | AI36: 0 | AJ36: 0 | AK36: 0 | AL36: 54.3 | AM36: 48.2
A37: 1100 | B37: S | C37: 282 | D37: 1 | E37: 272 | F37: 4 | G37: 4 | H37: 1 | I37: 0 | J37: 0 | K37: 0 | L37: 0 | M37: 0 | N37: 0 | O37: 0 | P37: 0 | Q37: 0 | R37: 69 | S37: 78 | T37: 65 | U37: 70 | V37: 0 | W37: 1 | X37: 13 | Y37: 38 | Z37: 219 | AA37: 11 | AB37: 0 | AC37: 0 | AD37: 0 | AE37: 0 | AF37: 0 | AG37: 0 | AH37: 0 | AI37: 0 | AJ37: 0 | AK37: 0 | AL37: 47.2 | AM37: 42.6
A38: 1100 | B38: P | C38: 172 | D38: 2 | E38: 160 | F38: 2 | G38: 2 | H38: 4 | I38: 0 | J38: 2 | K38: 0 | L38: 0 | M38: 0 | N38: 0 | O38: 0 | P38: 0 | Q38: 0 | R38: 43 | S38: 34 | T38: 50 | U38: 45 | V38: 0 | W38: 2 | X38: 3 | Y38: 19 | Z38: 94 | AA38: 51 | AB38: 3 | AC38: 0 | AD38: 0 | AE38: 0 | AF38: 0 | AG38: 0 | AH38: 0 | AI38: 0 | AJ38: 0 | AK38: 0 | AL38: 52.6 | AM38: 46.4
A39: 1200 | B39: S | C39: 270 | D39: 2 | E39: 258 | F39: 4 | G39: 4 | H39: 0 | I39: 0 | J39: 2 | K39: 0 | L39: 0 | M39: 0 | N39: 0 | O39: 0 | P39: 0 | Q39: 0 | R39: 62 | S39: 81 | T39: 69 | U39: 58 | V39: 0 | W39: 0 | X39: 5 | Y39: 32 | Z39: 221 | AA39: 11 | AB39: 1 | AC39: 0 | AD39: 0 | AE39: 0 | AF39: 0 | AG39: 0 | AH39: 0 | AI39: 0 | AJ39: 0 | AK39: 0 | AL39: 47.3 | AM39: 43.5
A40: 1200 | B40: P | C40: 204 | D40: 1 | E40: 187 | F40: 0 | G40: 5 | H40: 11 | I40: 0 | J40: 0 | K40: 0 | L40: 0 | M40: 0 | N40: 0 | O40: 0 | P40: 0 | Q40: 0 | R40: 58 | S40: 49 | T40: 47 | U40: 50 | V40: 0 | W40: 0 | X40: 6 | Y40: 19 | Z40: 112 | AA40: 66 | AB40: 1 | AC40: 0 | AD40: 0 | AE40: 0 | AF40: 0 | AG40: 0 | AH40: 0 | AI40: 0 | AJ40: 0 | AK40: 0 | AL40: 52.7 | AM40: 47.1
A41: 1300 | B41: S | C41: 206 | D41: 1 | E41: 202 | F41: 0 | G41: 3 | H41: 0 | I41: 0 | J41: 0 | K41: 0 | L41: 0 | M41: 0 | N41: 0 | O41: 0 | P41: 0 | Q41: 0 | R41: 53 | S41: 43 | T41: 56 | U41: 54 | V41: 0 | W41: 0 | X41: 8 | Y41: 28 | Z41: 163 | AA41: 6 | AB41: 1 | AC41: 0 | AD41: 0 | AE41: 0 | AF41: 0 | AG41: 0 | AH41: 0 | AI41: 0 | AJ41: 0 | AK41: 0 | AL41: 47.9 | AM41: 43.1
A42: 1300 | B42: P | C42: 193 | D42: 1 | E42: 179 | F42: 2 | G42: 2 | H42: 8 | I42: 0 | J42: 1 | K42: 0 | L42: 0 | M42: 0 | N42: 0 | O42: 0 | P42: 0 | Q42: 0 | R42: 40 | S42: 43 | T42: 59 | U42: 51 | V42: 0 | W42: 0 | X42: 1 | Y42: 27 | Z42: 119 | AA42: 40 | AB42: 6 | AC42: 0 | AD42: 0 | AE42: 0 | AF42: 0 | AG42: 0 | AH42: 0 | AI42: 0 | AJ42: 0 | AK42: 0 | AL42: 52.7 | AM42: 46.7
A43: 1400 | B43: S | C43: 330 | D43: 0 | E43: 322 | F43: 1 | G43: 4 | H43: 0 | I43: 1 | J43: 1 | K43: 0 | L43: 0 | M43: 0 | N43: 0 | O43: 0 | P43: 0 | Q43: 1 | R43: 57 | S43: 62 | T43: 100 | U43: 111 | V43: 0 | W43: 0 | X43: 18 | Y43: 48 | Z43: 248 | AA43: 16 | AB43: 0 | AC43: 0 | AD43: 0 | AE43: 0 | AF43: 0 | AG43: 0 | AH43: 0 | AI43: 0 | AJ43: 0 | AK43: 0 | AL43: 47 | AM43: 42.4
A44: 1400 | B44: P | C44: 322 | D44: 1 | E44: 301 | F44: 1 | G44: 4 | H44: 15 | I44: 0 | J44: 0 | K44: 0 | L44: 0 | M44: 0 | N44: 0 | O44: 0 | P44: 0 | Q44: 0 | R44: 65 | S44: 64 | T44: 103 | U44: 90 | V44: 0 | W44: 0 | X44: 1 | Y44: 25 | Z44: 197 | AA44: 90 | AB44: 9 | AC44: 0 | AD44: 0 | AE44: 0 | AF44: 0 | AG44: 0 | AH44: 0 | AI44: 0 | AJ44: 0 | AK44: 0 | AL44: 53.3 | AM44: 47.7
A45: 1500 | B45: S | C45: 430 | D45: 0 | E45: 417 | F45: 1 | G45: 11 | H45: 0 | I45: 0 | J45: 1 | K45: 0 | L45: 0 | M45: 0 | N45: 0 | O45: 0 | P45: 0 | Q45: 0 | R45: 104 | S45: 107 | T45: 132 | U45: 87 | V45: 0 | W45: 1 | X45: 16 | Y45: 87 | Z45: 310 | AA45: 16 | AB45: 0 | AC45: 0 | AD45: 0 | AE45: 0 | AF45: 0 | AG45: 0 | AH45: 0 | AI45: 0 | AJ45: 0 | AK45: 0 | AL45: 47.2 | AM45: 42.5
A46: 1500 | B46: P | C46: 488 | D46: 0 | E46: 470 | F46: 1 | G46: 4 | H46: 12 | I46: 1 | J46: 0 | K46: 0 | L46: 0 | M46: 0 | N46: 0 | O46: 0 | P46: 0 | Q46: 0 | R46: 109 | S46: 133 | T46: 122 | U46: 124 | V46: 0 | W46: 0 | X46: 7 | Y46: 63 | Z46: 301 | AA46: 115 | AB46: 2 | AC46: 0 | AD46: 0 | AE46: 0 | AF46: 0 | AG46: 0 | AH46: 0 | AI46: 0 | AJ46: 0 | AK46: 0 | AL46: 51.3 | AM46: 46.3
A47: 1600 | B47: S | C47: 356 | D47: 2 | E47: 344 | F47: 1 | G47: 2 | H47: 1 | I47: 3 | J47: 2 | K47: 1 | L47: 0 | M47: 0 | N47: 0 | O47: 0 | P47: 0 | Q47: 0 | R47: 90 | S47: 81 | T47: 98 | U47: 87 | V47: 0 | W47: 0 | X47: 10 | Y47: 42 | Z47: 279 | AA47: 25 | AB47: 0 | AC47: 0 | AD47: 0 | AE47: 0 | AF47: 0 | AG47: 0 | AH47: 0 | AI47: 0 | AJ47: 0 | AK47: 0 | AL47: 48.5 | AM47: 43.9
A48: 1600 | B48: P | C48: 586 | D48: 1 | E48: 562 | F48: 2 | G48: 1 | H48: 20 | I48: 0 | J48: 0 | K48: 0 | L48: 0 | M48: 0 | N48: 0 | O48: 0 | P48: 0 | Q48: 0 | R48: 118 | S48: 146 | T48: 147 | U48: 175 | V48: 0 | W48: 0 | X48: 3 | Y48: 52 | Z48: 364 | AA48: 164 | AB48: 2 | AC48: 1 | AD48: 0 | AE48: 0 | AF48: 0 | AG48: 0 | AH48: 0 | AI48: 0 | AJ48: 0 | AK48: 0 | AL48: 52.6 | AM48: 47.3
A49: 1700 | B49: S | C49: 336 | D49: 1 | E49: 328 | F49: 4 | G49: 1 | H49: 2 | I49: 0 | J49: 0 | K49: 0 | L49: 0 | M49: 0 | N49: 0 | O49: 0 | P49: 0 | Q49: 0 | R49: 101 | S49: 85 | T49: 75 | U49: 75 | V49: 0 | W49: 0 | X49: 8 | Y49: 32 | Z49: 253 | AA49: 43 | AB49: 0 | AC49: 0 | AD49: 0 | AE49: 0 | AF49: 0 | AG49: 0 | AH49: 0 | AI49: 0 | AJ49: 0 | AK49: 0 | AL49: 49.7 | AM49: 44.9
A50: 1700 | B50: P | C50: 636 | D50: 3 | E50: 608 | F50: 0 | G50: 5 | H50: 16 | I50: 2 | J50: 1 | K50: 0 | L50: 0 | M50: 0 | N50: 0 | O50: 0 | P50: 0 | Q50: 1 | R50: 144 | S50: 185 | T50: 149 | U50: 158 | V50: 0 | W50: 3 | X50: 5 | Y50: 60 | Z50: 356 | AA50: 205 | AB50: 7 | AC50: 0 | AD50: 0 | AE50: 0 | AF50: 0 | AG50: 0 | AH50: 0 | AI50: 0 | AJ50: 0 | AK50: 0 | AL50: 52.8 | AM50: 47.4
A51: 1800 | B51: S | C51: 298 | D51: 1 | E51: 293 | F51: 1 | G51: 1 | H51: 1 | I51: 0 | J51: 1 | K51: 0 | L51: 0 | M51: 0 | N51: 0 | O51: 0 | P51: 0 | Q51: 0 | R51: 82 | S51: 83 | T51: 74 | U51: 59 | V51: 0 | W51: 0 | X51: 7 | Y51: 27 | Z51: 236 | AA51: 28 | AB51: 0 | AC51: 0 | AD51: 0 | AE51: 0 | AF51: 0 | AG51: 0 | AH51: 0 | AI51: 0 | AJ51: 0 | AK51: 0 | AL51: 48.8 | AM51: 44.9
A52: 1800 | B52: P | C52: 479 | D52: 4 | E52: 459 | F52: 1 | G52: 1 | H52: 9 | I52: 1 | J52: 3 | K52: 1 | L52: 0 | M52: 0 | N52: 0 | O52: 0 | P52: 0 | Q52: 0 | R52: 164 | S52: 133 | T52: 103 | U52: 79 | V52: 0 | W52: 0 | X52: 5 | Y52: 59 | Z52: 255 | AA52: 149 | AB52: 11 | AC52: 0 | AD52: 0 | AE52: 0 | AF52: 0 | AG52: 0 | AH52: 0 | AI52: 0 | AJ52: 0 | AK52: 0 | AL52: 53.3 | AM52: 47.1
A53: 1900 | B53: S | C53: 190 | D53: 4 | E53: 183 | F53: 0 | G53: 2 | H53: 1 | I53: 0 | J53: 0 | K53: 0 | L53: 0 | M53: 0 | N53: 0 | O53: 0 | P53: 0 | Q53: 0 | R53: 39 | S53: 54 | T53: 50 | U53: 47 | V53: 0 | W53: 1 | X53: 7 | Y53: 23 | Z53: 151 | AA53: 7 | AB53: 1 | AC53: 0 | AD53: 0 | AE53: 0 | AF53: 0 | AG53: 0 | AH53: 0 | AI53: 0 | AJ53: 0 | AK53: 0 | AL53: 47.8 | AM53: 43.4
A54: 1900 | B54: P | C54: 231 | D54: 4 | E54: 210 | F54: 2 | G54: 1 | H54: 11 | I54: 0 | J54: 1 | K54: 1 | L54: 1 | M54: 0 | N54: 0 | O54: 0 | P54: 0 | Q54: 0 | R54: 87 | S54: 55 | T54: 47 | U54: 42 | V54: 0 | W54: 0 | X54: 1 | Y54: 22 | Z54: 132 | AA54: 69 | AB54: 5 | AC54: 2 | AD54: 0 | AE54: 0 | AF54: 0 | AG54: 0 | AH54: 0 | AI54: 0 | AJ54: 0 | AK54: 0 | AL54: 52.7 | AM54: 48.2
A55: 2000 | B55: S | C55: 160 | D55: 3 | E55: 153 | F55: 1 | G55: 2 | H55: 0 | I55: 0 | J55: 1 | K55: 0 | L55: 0 | M55: 0 | N55: 0 | O55: 0 | P55: 0 | Q55: 0 | R55: 39 | S55: 42 | T55: 25 | U55: 54 | V55: 0 | W55: 0 | X55: 6 | Y55: 34 | Z55: 114 | AA55: 5 | AB55: 1 | AC55: 0 | AD55: 0 | AE55: 0 | AF55: 0 | AG55: 0 | AH55: 0 | AI55: 0 | AJ55: 0 | AK55: 0 | AL55: 46.4 | AM55: 42.3
A56: 2000 | B56: P | C56: 131 | D56: 2 | E56: 119 | F56: 1 | G56: 1 | H56: 7 | I56: 0 | J56: 0 | K56: 1 | L56: 0 | M56: 0 | N56: 0 | O56: 0 | P56: 0 | Q56: 0 | R56: 37 | S56: 40 | T56: 22 | U56: 32 | V56: 0 | W56: 0 | X56: 2 | Y56: 40 | Z56: 70 | AA56: 18 | AB56: 0 | AC56: 0 | AD56: 0 | AE56: 0 | AF56: 0 | AG56: 1 | AH56: 0 | AI56: 0 | AJ56: 0 | AK56: 0 | AL56: 49.9 | AM56: 43.9
A57: 2100 | B57: S | C57: 65 | D57: 1 | E57: 62 | F57: 0 | G57: 2 | H57: 0 | I57: 0 | J57: 0 | K57: 0 | L57: 0 | M57: 0 | N57: 0 | O57: 0 | P57: 0 | Q57: 0 | R57: 27 | S57: 14 | T57: 16 | U57: 8 | V57: 0 | W57: 0 | X57: 3 | Y57: 7 | Z57: 49 | AA57: 6 | AB57: 0 | AC57: 0 | AD57: 0 | AE57: 0 | AF57: 0 | AG57: 0 | AH57: 0 | AI57: 0 | AJ57: 0 | AK57: 0 | AL57: 48.3 | AM57: 43.4
A58: 2100 | B58: P | C58: 79 | D58: 1 | E58: 73 | F58: 0 | G58: 1 | H58: 4 | I58: 0 | J58: 0 | K58: 0 | L58: 0 | M58: 0 | N58: 0 | O58: 0 | P58: 0 | Q58: 0 | R58: 29 | S58: 16 | T58: 14 | U58: 20 | V58: 0 | W58: 0 | X58: 1 | Y58: 16 | Z58: 42 | AA58: 14 | AB58: 4 | AC58: 2 | AD58: 0 | AE58: 0 | AF58: 0 | AG58: 0 | AH58: 0 | AI58: 0 | AJ58: 0 | AK58: 0 | AL58: 52.7 | AM58: 46.3
A59: 2200 | B59: S | C59: 41 | D59: 1 | E59: 39 | F59: 0 | G59: 1 | H59: 0 | I59: 0 | J59: 0 | K59: 0 | L59: 0 | M59: 0 | N59: 0 | O59: 0 | P59: 0 | Q59: 0 | R59: 15 | S59: 10 | T59: 8 | U59: 8 | V59: 0 | W59: 0 | X59: 3 | Y59: 6 | Z59: 30 | AA59: 2 | AB59: 0 | AC59: 0 | AD59: 0 | AE59: 0 | AF59: 0 | AG59: 0 | AH59: 0 | AI59: 0 | AJ59: 0 | AK59: 0 | AL59: 47.5 | AM59: 42.5
A60: 2200 | B60: P | C60: 54 | D60: 1 | E60: 46 | F60: 0 | G60: 1 | H60: 6 | I60: 0 | J60: 0 | K60: 0 | L60: 0 | M60: 0 | N60: 0 | O60: 0 | P60: 0 | Q60: 0 | R60: 25 | S60: 8 | T60: 13 | U60: 8 | V60: 0 | W60: 0 | X60: 2 | Y60: 1 | Z60: 39 | AA60: 11 | AB60: 1 | AC60: 0 | AD60: 0 | AE60: 0 | AF60: 0 | AG60: 0 | AH60: 0 | AI60: 0 | AJ60: 0 | AK60: 0 | AL60: 52.1 | AM60: 46.9
A61: 2300 | B61: S | C61: 21 | D61: 0 | E61: 21 | F61: 0 | G61: 0 | H61: 0 | I61: 0 | J61: 0 | K61: 0 | L61: 0 | M61: 0 | N61: 0 | O61: 0 | P61: 0 | Q61: 0 | R61: 6 | S61: 5 | T61: 5 | U61: 5 | V61: 0 | W61: 0 | X61: 1 | Y61: 0 | Z61: 17 | AA61: 3 | AB61: 0 | AC61: 0 | AD61: 0 | AE61: 0 | AF61: 0 | AG61: 0 | AH61: 0 | AI61: 0 | AJ61: 0 | AK61: 0 | AL61: 50.7 | AM61: 46.3
A62: 2300 | B62: P | C62: 38 | D62: 0 | E62: 34 | F62: 0 | G62: 0 | H62: 4 | I62: 0 | J62: 0 | K62: 0 | L62: 0 | M62: 0 | N62: 0 | O62: 0 | P62: 0 | Q62: 0 | R62: 9 | S62: 11 | T62: 11 | U62: 7 | V62: 0 | W62: 0 | X62: 0 | Y62: 11 | Z62: 23 | AA62: 3 | AB62: 1 | AC62: 0 | AD62: 0 | AE62: 0 | AF62: 0 | AG62: 0 | AH62: 0 | AI62: 0 | AJ62: 0 | AK62: 0 | AL62: 49.5 | AM62: 43.8
A63: 07-19 | B63: S | C63: 4429 | D63: 13 | E63: 4308 | F63: 27 | G63: 52 | H63: 15 | I63: 4 | J63: 8 | K63: 1 | L63: 0 | M63: 0 | N63: 0 | O63: 0 | P63: 0 | Q63: 1 | R63: 1112 | S63: 1113 | T63: 1153 | U63: 1051 | V63: 0 | W63: 4 | X63: 160 | Y63: 642 | Z63: 3408 | AA63: 213 | AB63: 2 | AC63: 0 | AD63: 0 | AE63: 0 | AF63: 0 | AG63: 0 | AH63: 0 | AI63: 0 | AJ63: 0 | AK63: 0 | AL63: 47.5 | AM63: 43.1
A64: 07-19 | B64: P | C64: 3710 | D64: 13 | E64: 3526 | F64: 12 | G64: 34 | H64: 111 | I64: 4 | J64: 7 | K64: 2 | L64: 0 | M64: 0 | N64: 0 | O64: 0 | P64: 0 | Q64: 1 | R64: 856 | S64: 950 | T64: 946 | U64: 958 | V64: 0 | W64: 6 | X64: 38 | Y64: 373 | Z64: 2168 | AA64: 1073 | AB64: 48 | AC64: 3 | AD64: 0 | AE64: 0 | AF64: 0 | AG64: 0 | AH64: 0 | AI64: 1 | AJ64: 0 | AK64: 0 | AL64: 52.6 | AM64: 47.2
A65: 06-22 | B65: S | C65: 5298 | D65: 24 | E65: 5150 | F65: 29 | G65: 63 | H65: 17 | I65: 4 | J65: 9 | K65: 1 | L65: 0 | M65: 0 | N65: 0 | O65: 0 | P65: 0 | Q65: 1 | R65: 1297 | S65: 1313 | T65: 1383 | U65: 1305 | V65: 0 | W65: 6 | X65: 203 | Y65: 766 | Z65: 4070 | AA65: 249 | AB65: 4 | AC65: 0 | AD65: 0 | AE65: 0 | AF65: 0 | AG65: 0 | AH65: 0 | AI65: 0 | AJ65: 0 | AK65: 0 | AL65: 47.5 | AM65: 43
A66: 06-22 | B66: P | C66: 4193 | D66: 20 | E66: 3969 | F66: 15 | G66: 38 | H66: 133 | I66: 4 | J66: 8 | K66: 4 | L66: 1 | M66: 0 | N66: 0 | O66: 0 | P66: 0 | Q66: 1 | R66: 1013 | S66: 1068 | T66: 1041 | U66: 1071 | V66: 0 | W66: 6 | X66: 44 | Y66: 456 | Z66: 2437 | AA66: 1183 | AB66: 58 | AC66: 7 | AD66: 0 | AE66: 0 | AF66: 0 | AG66: 1 | AH66: 0 | AI66: 1 | AJ66: 0 | AK66: 0 | AL66: 52.6 | AM66: 47.1
A67: 06-00 | B67: S | C67: 5360 | D67: 25 | E67: 5210 | F67: 29 | G67: 64 | H67: 17 | I67: 4 | J67: 9 | K67: 1 | L67: 0 | M67: 0 | N67: 0 | O67: 0 | P67: 0 | Q67: 1 | R67: 1318 | S67: 1328 | T67: 1396 | U67: 1318 | V67: 0 | W67: 6 | X67: 207 | Y67: 772 | Z67: 4117 | AA67: 254 | AB67: 4 | AC67: 0 | AD67: 0 | AE67: 0 | AF67: 0 | AG67: 0 | AH67: 0 | AI67: 0 | AJ67: 0 | AK67: 0 | AL67: 47.5 | AM67: 43.1
A68: 06-00 | B68: P | C68: 4285 | D68: 21 | E68: 4049 | F68: 15 | G68: 39 | H68: 143 | I68: 4 | J68: 8 | K68: 4 | L68: 1 | M68: 0 | N68: 0 | O68: 0 | P68: 0 | Q68: 1 | R68: 1047 | S68: 1087 | T68: 1065 | U68: 1086 | V68: 0 | W68: 6 | X68: 46 | Y68: 468 | Z68: 2499 | AA68: 1197 | AB68: 60 | AC68: 7 | AD68: 0 | AE68: 0 | AF68: 0 | AG68: 1 | AH68: 0 | AI68: 1 | AJ68: 0 | AK68: 0 | AL68: 52.6 | AM68: 47.1
A69: 00-00 | B69: S | C69: 5599 | D69: 26 | E69: 5445 | F69: 31 | G69: 65 | H69: 17 | I69: 4 | J69: 9 | K69: 1 | L69: 0 | M69: 0 | N69: 0 | O69: 0 | P69: 0 | Q69: 1 | R69: 1347 | S69: 1377 | T69: 1472 | U69: 1403 | V69: 0 | W69: 8 | X69: 220 | Y69: 807 | Z69: 4288 | AA69: 272 | AB69: 4 | AC69: 0 | AD69: 0 | AE69: 0 | AF69: 0 | AG69: 0 | AH69: 0 | AI69: 0 | AJ69: 0 | AK69: 0 | AL69: 47.7 | AM69: 43.1
A70: 00-00 | B70: P | C70: 4312 | D70: 21 | E70: 4076 | F70: 15 | G70: 39 | H70: 143 | I70: 4 | J70: 8 | K70: 4 | L70: 1 | M70: 0 | N70: 0 | O70: 0 | P70: 0 | Q70: 1 | R70: 1055 | S70: 1094 | T70: 1069 | U70: 1094 | V70: 0 | W70: 6 | X70: 48 | Y70: 477 | Z70: 2508 | AA70: 1203 | AB70: 61 | AC70: 7 | AD70: 0 | AE70: 0 | AF70: 0 | AG70: 1 | AH70: 0 | AI70: 1 | AJ70: 0 | AK70: 0 | AL70: 52.6 | AM70: 47
A73: Thursday, October 31, 2024
A75: Time | B75: Cd | C75: Total | D75: Cls | E75: Cls | F75: Cls | G75: Cls | H75: Cls | I75: Cls | J75: Cls | K75: Cls | L75: Cls | M75: Cls | N75: Cls | O75: Cls | P75: Cls | Q75: Cls | R75: Drop | S75: Drop | T75: Drop | U75: Drop | V75: Vbin | W75: Vbin | X75: Vbin | Y75: Vbin | Z75: Vbin | AA75: Vbin | AB75: Vbin | AC75: Vbin | AD75: Vbin | AE75: Vbin | AF75: Vbin | AG75: Vbin | AH75: Vbin | AI75: Vbin | AJ75: Vbin | AK75: Vbin | AL75: Vpp | AM75: Mean
A76: [-- | D76: 1 | E76: 2 | F76: 3 | G76: 4 | H76: 5 | I76: 6 | J76: 7 | K76: 8 | L76: 9 | M76: 10 | N76: 11 | O76: 12 | P76: 13 | Q76: 14 | R76: --00 | S76: --15 | T76: --30 | U76: --45 | V76: 0 | W76: 10 | X76: 20 | Y76: 30 | Z76: 40 | AA76: 50 | AB76: 60 | AC76: 70 | AD76: 80 | AE76: 90 | AF76: 100 | AG76: 110 | AH76: 120 | AI76: 130 | AJ76: 140 | AK76: 150 | AL76: 85
V77: 10 | W77: 20 | X77: 30 | Y77: 40 | Z77: 50 | AA77: 60 | AB77: 70 | AC77: 80 | AD77: 90 | AE77: 100 | AF77: 110 | AG77: 120 | AH77: 130 | AI77: 140 | AJ77: 150 | AK77: 160
A78: 0000 | B78: S | C78: 14 | D78: 0 | E78: 14 | F78: 0 | G78: 0 | H78: 0 | I78: 0 | J78: 0 | K78: 0 | L78: 0 | M78: 0 | N78: 0 | O78: 0 | P78: 0 | Q78: 0 | R78: 6 | S78: 3 | T78: 3 | U78: 2 | V78: 0 | W78: 1 | X78: 0 | Y78: 2 | Z78: 10 | AA78: 1 | AB78: 0 | AC78: 0 | AD78: 0 | AE78: 0 | AF78: 0 | AG78: 0 | AH78: 0 | AI78: 0 | AJ78: 0 | AK78: 0 | AL78: 49.5 | AM78: 42.6
A79: 0000 | B79: P | C79: 21 | D79: 0 | E79: 19 | F79: 0 | G79: 0 | H79: 2 | I79: 0 | J79: 0 | K79: 0 | L79: 0 | M79: 0 | N79: 0 | O79: 0 | P79: 0 | Q79: 0 | R79: 8 | S79: 6 | T79: 3 | U79: 4 | V79: 0 | W79: 0 | X79: 0 | Y79: 2 | Z79: 8 | AA79: 10 | AB79: 1 | AC79: 0 | AD79: 0 | AE79: 0 | AF79: 0 | AG79: 0 | AH79: 0 | AI79: 0 | AJ79: 0 | AK79: 0 | AL79: 57.6 | AM79: 50.3
A80: 0100 | B80: S | C80: 7 | D80: 0 | E80: 7 | F80: 0 | G80: 0 | H80: 0 | I80: 0 | J80: 0 | K80: 0 | L80: 0 | M80: 0 | N80: 0 | O80: 0 | P80: 0 | Q80: 0 | R80: 2 | S80: 3 | T80: 0 | U80: 2 | V80: 0 | W80: 0 | X80: 1 | Y80: 1 | Z80: 5 | AA80: 0 | AB80: 0 | AC80: 0 | AD80: 0 | AE80: 0 | AF80: 0 | AG80: 0 | AH80: 0 | AI80: 0 | AJ80: 0 | AK80: 0 | AL80: 0 | AM80: 41.8
A81: 0100 | B81: P | C81: 16 | D81: 1 | E81: 12 | F81: 0 | G81: 0 | H81: 3 | I81: 0 | J81: 0 | K81: 0 | L81: 0 | M81: 0 | N81: 0 | O81: 0 | P81: 0 | Q81: 0 | R81: 6 | S81: 4 | T81: 3 | U81: 3 | V81: 0 | W81: 0 | X81: 0 | Y81: 3 | Z81: 6 | AA81: 6 | AB81: 0 | AC81: 0 | AD81: 0 | AE81: 1 | AF81: 0 | AG81: 0 | AH81: 0 | AI81: 0 | AJ81: 0 | AK81: 0 | AL81: 58.3 | AM81: 50
A82: 0200 | B82: S | C82: 1 | D82: 0 | E82: 1 | F82: 0 | G82: 0 | H82: 0 | I82: 0 | J82: 0 | K82: 0 | L82: 0 | M82: 0 | N82: 0 | O82: 0 | P82: 0 | Q82: 0 | R82: 0 | S82: 0 | T82: 1 | U82: 0 | V82: 0 | W82: 0 | X82: 0 | Y82: 0 | Z82: 1 | AA82: 0 | AB82: 0 | AC82: 0 | AD82: 0 | AE82: 0 | AF82: 0 | AG82: 0 | AH82: 0 | AI82: 0 | AJ82: 0 | AK82: 0 | AL82: 0 | AM82: 44.6
A83: 0200 | B83: P | C83: 4 | D83: 0 | E83: 4 | F83: 0 | G83: 0 | H83: 0 | I83: 0 | J83: 0 | K83: 0 | L83: 0 | M83: 0 | N83: 0 | O83: 0 | P83: 0 | Q83: 0 | R83: 3 | S83: 0 | T83: 1 | U83: 0 | V83: 0 | W83: 0 | X83: 0 | Y83: 0 | Z83: 3 | AA83: 0 | AB83: 1 | AC83: 0 | AD83: 0 | AE83: 0 | AF83: 0 | AG83: 0 | AH83: 0 | AI83: 0 | AJ83: 0 | AK83: 0 | AL83: 0 | AM83: 49
A84: 0300 | B84: S | C84: 7 | D84: 0 | E84: 7 | F84: 0 | G84: 0 | H84: 0 | I84: 0 | J84: 0 | K84: 0 | L84: 0 | M84: 0 | N84: 0 | O84: 0 | P84: 0 | Q84: 0 | R84: 1 | S84: 2 | T84: 3 | U84: 1 | V84: 0 | W84: 0 | X84: 2 | Y84: 3 | Z84: 1 | AA84: 1 | AB84: 0 | AC84: 0 | AD84: 0 | AE84: 0 | AF84: 0 | AG84: 0 | AH84: 0 | AI84: 0 | AJ84: 0 | AK84: 0 | AL84: 0 | AM84: 36.4
A85: 0300 | B85: P | C85: 6 | D85: 0 | E85: 6 | F85: 0 | G85: 0 | H85: 0 | I85: 0 | J85: 0 | K85: 0 | L85: 0 | M85: 0 | N85: 0 | O85: 0 | P85: 0 | Q85: 0 | R85: 2 | S85: 0 | T85: 2 | U85: 2 | V85: 0 | W85: 0 | X85: 1 | Y85: 3 | Z85: 2 | AA85: 0 | AB85: 0 | AC85: 0 | AD85: 0 | AE85: 0 | AF85: 0 | AG85: 0 | AH85: 0 | AI85: 0 | AJ85: 0 | AK85: 0 | AL85: 0 | AM85: 36.7
A86: 0400 | B86: S | C86: 32 | D86: 1 | E86: 31 | F86: 0 | G86: 0 | H86: 0 | I86: 0 | J86: 0 | K86: 0 | L86: 0 | M86: 0 | N86: 0 | O86: 0 | P86: 0 | Q86: 0 | R86: 0 | S86: 4 | T86: 13 | U86: 15 | V86: 0 | W86: 0 | X86: 4 | Y86: 5 | Z86: 21 | AA86: 2 | AB86: 0 | AC86: 0 | AD86: 0 | AE86: 0 | AF86: 0 | AG86: 0 | AH86: 0 | AI86: 0 | AJ86: 0 | AK86: 0 | AL86: 47.4 | AM86: 41.3
A87: 0400 | B87: P | C87: 6 | D87: 0 | E87: 3 | F87: 0 | G87: 1 | H87: 2 | I87: 0 | J87: 0 | K87: 0 | L87: 0 | M87: 0 | N87: 0 | O87: 0 | P87: 0 | Q87: 0 | R87: 4 | S87: 0 | T87: 2 | U87: 0 | V87: 0 | W87: 0 | X87: 1 | Y87: 4 | Z87: 0 | AA87: 1 | AB87: 0 | AC87: 0 | AD87: 0 | AE87: 0 | AF87: 0 | AG87: 0 | AH87: 0 | AI87: 0 | AJ87: 0 | AK87: 0 | AL87: 0 | AM87: 37.9
A88: 0500 | B88: S | C88: 171 | D88: 1 | E88: 166 | F88: 2 | G88: 2 | H88: 0 | I88: 0 | J88: 0 | K88: 0 | L88: 0 | M88: 0 | N88: 0 | O88: 0 | P88: 0 | Q88: 0 | R88: 22 | S88: 26 | T88: 56 | U88: 67 | V88: 0 | W88: 0 | X88: 9 | Y88: 19 | Z88: 122 | AA88: 21 | AB88: 0 | AC88: 0 | AD88: 0 | AE88: 0 | AF88: 0 | AG88: 0 | AH88: 0 | AI88: 0 | AJ88: 0 | AK88: 0 | AL88: 49.7 | AM88: 44
A89: 0500 | B89: P | C89: 8 | D89: 0 | E89: 8 | F89: 0 | G89: 0 | H89: 0 | I89: 0 | J89: 0 | K89: 0 | L89: 0 | M89: 0 | N89: 0 | O89: 0 | P89: 0 | Q89: 0 | R89: 0 | S89: 2 | T89: 1 | U89: 5 | V89: 0 | W89: 0 | X89: 0 | Y89: 1 | Z89: 5 | AA89: 2 | AB89: 0 | AC89: 0 | AD89: 0 | AE89: 0 | AF89: 0 | AG89: 0 | AH89: 0 | AI89: 0 | AJ89: 0 | AK89: 0 | AL89: 0 | AM89: 46.7
A90: 0600 | B90: S | C90: 491 | D90: 3 | E90: 476 | F90: 3 | G90: 7 | H90: 2 | I90: 0 | J90: 0 | K90: 0 | L90: 0 | M90: 0 | N90: 0 | O90: 0 | P90: 0 | Q90: 0 | R90: 82 | S90: 97 | T90: 148 | U90: 164 | V90: 0 | W90: 0 | X90: 21 | Y90: 59 | Z90: 372 | AA90: 39 | AB90: 0 | AC90: 0 | AD90: 0 | AE90: 0 | AF90: 0 | AG90: 0 | AH90: 0 | AI90: 0 | AJ90: 0 | AK90: 0 | AL90: 48.6 | AM90: 43.5
A91: 0600 | B91: P | C91: 41 | D91: 1 | E91: 34 | F91: 2 | G91: 0 | H91: 3 | I91: 0 | J91: 1 | K91: 0 | L91: 0 | M91: 0 | N91: 0 | O91: 0 | P91: 0 | Q91: 0 | R91: 9 | S91: 7 | T91: 8 | U91: 17 | V91: 0 | W91: 0 | X91: 0 | Y91: 5 | Z91: 17 | AA91: 15 | AB91: 4 | AC91: 0 | AD91: 0 | AE91: 0 | AF91: 0 | AG91: 0 | AH91: 0 | AI91: 0 | AJ91: 0 | AK91: 0 | AL91: 57.4 | AM91: 49.2
A92: 0700 | B92: S | C92: 540 | D92: 5 | E92: 521 | F92: 6 | G92: 4 | H92: 4 | I92: 0 | J92: 0 | K92: 0 | L92: 0 | M92: 0 | N92: 0 | O92: 0 | P92: 0 | Q92: 0 | R92: 137 | S92: 146 | T92: 121 | U92: 136 | V92: 0 | W92: 0 | X92: 23 | Y92: 67 | Z92: 412 | AA92: 37 | AB92: 1 | AC92: 0 | AD92: 0 | AE92: 0 | AF92: 0 | AG92: 0 | AH92: 0 | AI92: 0 | AJ92: 0 | AK92: 0 | AL92: 47.9 | AM92: 43.6
A93: 0700 | B93: P | C93: 99 | D93: 0 | E93: 91 | F93: 1 | G93: 3 | H93: 4 | I93: 0 | J93: 0 | K93: 0 | L93: 0 | M93: 0 | N93: 0 | O93: 0 | P93: 0 | Q93: 0 | R93: 20 | S93: 17 | T93: 31 | U93: 31 | V93: 0 | W93: 0 | X93: 1 | Y93: 5 | Z93: 62 | AA93: 30 | AB93: 1 | AC93: 0 | AD93: 0 | AE93: 0 | AF93: 0 | AG93: 0 | AH93: 0 | AI93: 0 | AJ93: 0 | AK93: 0 | AL93: 52 | AM93: 48
A94: 0800 | B94: S | C94: 716 | D94: 3 | E94: 698 | F94: 3 | G94: 7 | H94: 2 | I94: 1 | J94: 1 | K94: 1 | L94: 0 | M94: 0 | N94: 0 | O94: 0 | P94: 0 | Q94: 0 | R94: 129 | S94: 181 | T94: 206 | U94: 200 | V94: 0 | W94: 2 | X94: 30 | Y94: 104 | Z94: 560 | AA94: 20 | AB94: 0 | AC94: 0 | AD94: 0 | AE94: 0 | AF94: 0 | AG94: 0 | AH94: 0 | AI94: 0 | AJ94: 0 | AK94: 0 | AL94: 47 | AM94: 42.7
A95: 0800 | B95: P | C95: 236 | D95: 0 | E95: 222 | F95: 1 | G95: 2 | H95: 11 | I95: 0 | J95: 0 | K95: 0 | L95: 0 | M95: 0 | N95: 0 | O95: 0 | P95: 0 | Q95: 0 | R95: 42 | S95: 76 | T95: 57 | U95: 61 | V95: 0 | W95: 1 | X95: 4 | Y95: 17 | Z95: 143 | AA95: 69 | AB95: 2 | AC95: 0 | AD95: 0 | AE95: 0 | AF95: 0 | AG95: 0 | AH95: 0 | AI95: 0 | AJ95: 0 | AK95: 0 | AL95: 52.2 | AM95: 47.1
A96: 0900 | B96: S | C96: 420 | D96: 1 | E96: 403 | F96: 9 | G96: 5 | H96: 0 | I96: 1 | J96: 1 | K96: 0 | L96: 0 | M96: 0 | N96: 0 | O96: 0 | P96: 0 | Q96: 0 | R96: 121 | S96: 131 | T96: 95 | U96: 73 | V96: 0 | W96: 1 | X96: 9 | Y96: 78 | Z96: 317 | AA96: 15 | AB96: 0 | AC96: 0 | AD96: 0 | AE96: 0 | AF96: 0 | AG96: 0 | AH96: 0 | AI96: 0 | AJ96: 0 | AK96: 0 | AL96: 47.3 | AM96: 42.8
A97: 0900 | B97: P | C97: 159 | D97: 0 | E97: 149 | F97: 1 | G97: 1 | H97: 6 | I97: 0 | J97: 2 | K97: 0 | L97: 0 | M97: 0 | N97: 0 | O97: 0 | P97: 0 | Q97: 0 | R97: 42 | S97: 43 | T97: 37 | U97: 37 | V97: 0 | W97: 0 | X97: 1 | Y97: 19 | Z97: 101 | AA97: 35 | AB97: 3 | AC97: 0 | AD97: 0 | AE97: 0 | AF97: 0 | AG97: 0 | AH97: 0 | AI97: 0 | AJ97: 0 | AK97: 0 | AL97: 52 | AM97: 46.2
A98: 1000 | B98: S | C98: 317 | D98: 3 | E98: 307 | F98: 3 | G98: 3 | H98: 1 | I98: 0 | J98: 0 | K98: 0 | L98: 0 | M98: 0 | N98: 0 | O98: 0 | P98: 0 | Q98: 0 | R98: 98 | S98: 76 | T98: 68 | U98: 75 | V98: 0 | W98: 0 | X98: 12 | Y98: 43 | Z98: 241 | AA98: 21 | AB98: 0 | AC98: 0 | AD98: 0 | AE98: 0 | AF98: 0 | AG98: 0 | AH98: 0 | AI98: 0 | AJ98: 0 | AK98: 0 | AL98: 48.2 | AM98: 43.4
A99: 1000 | B99: P | C99: 183 | D99: 1 | E99: 170 | F99: 3 | G99: 2 | H99: 7 | I99: 0 | J99: 0 | K99: 0 | L99: 0 | M99: 0 | N99: 0 | O99: 0 | P99: 0 | Q99: 0 | R99: 47 | S99: 45 | T99: 47 | U99: 44 | V99: 0 | W99: 1 | X99: 4 | Y99: 23 | Z99: 108 | AA99: 42 | AB99: 4 | AC99: 0 | AD99: 1 | AE99: 0 | AF99: 0 | AG99: 0 | AH99: 0 | AI99: 0 | AJ99: 0 | AK99: 0 | AL99: 53.1 | AM99: 46.2
A100: 1100 | B100: S | C100: 284 | D100: 4 | E100: 271 | F100: 6 | G100: 2 | H100: 1 | I100: 0 | J100: 0 | K100: 0 | L100: 0 | M100: 0 | N100: 0 | O100: 0 | P100: 0 | Q100: 0 | R100: 78 | S100: 79 | T100: 64 | U100: 63 | V100: 0 | W100: 0 | X100: 11 | Y100: 37 | Z100: 215 | AA100: 21 | AB100: 0 | AC100: 0 | AD100: 0 | AE100: 0 | AF100: 0 | AG100: 0 | AH100: 0 | AI100: 0 | AJ100: 0 | AK100: 0 | AL100: 47.9 | AM100: 43.3
A101: 1100 | B101: P | C101: 156 | D101: 2 | E101: 148 | F101: 3 | G101: 2 | H101: 0 | I101: 1 | J101: 0 | K101: 0 | L101: 0 | M101: 0 | N101: 0 | O101: 0 | P101: 0 | Q101: 0 | R101: 46 | S101: 42 | T101: 33 | U101: 35 | V101: 0 | W101: 0 | X101: 2 | Y101: 17 | Z101: 91 | AA101: 41 | AB101: 5 | AC101: 0 | AD101: 0 | AE101: 0 | AF101: 0 | AG101: 0 | AH101: 0 | AI101: 0 | AJ101: 0 | AK101: 0 | AL101: 53.1 | AM101: 47.2
A102: 1200 | B102: S | C102: 213 | D102: 0 | E102: 205 | F102: 3 | G102: 4 | H102: 1 | I102: 0 | J102: 0 | K102: 0 | L102: 0 | M102: 0 | N102: 0 | O102: 0 | P102: 0 | Q102: 0 | R102: 60 | S102: 52 | T102: 55 | U102: 46 | V102: 0 | W102: 0 | X102: 10 | Y102: 26 | Z102: 162 | AA102: 13 | AB102: 2 | AC102: 0 | AD102: 0 | AE102: 0 | AF102: 0 | AG102: 0 | AH102: 0 | AI102: 0 | AJ102: 0 | AK102: 0 | AL102: 48.6 | AM102: 43.7
A103: 1200 | B103: P | C103: 214 | D103: 1 | E103: 194 | F103: 9 | G103: 6 | H103: 4 | I103: 0 | J103: 0 | K103: 0 | L103: 0 | M103: 0 | N103: 0 | O103: 0 | P103: 0 | Q103: 0 | R103: 40 | S103: 57 | T103: 57 | U103: 60 | V103: 0 | W103: 0 | X103: 3 | Y103: 34 | Z103: 97 | AA103: 75 | AB103: 4 | AC103: 1 | AD103: 0 | AE103: 0 | AF103: 0 | AG103: 0 | AH103: 0 | AI103: 0 | AJ103: 0 | AK103: 0 | AL103: 53.4 | AM103: 47
A104: 1300 | B104: S | C104: 239 | D104: 0 | E104: 228 | F104: 2 | G104: 6 | H104: 3 | I104: 0 | J104: 0 | K104: 0 | L104: 0 | M104: 0 | N104: 0 | O104: 0 | P104: 0 | Q104: 0 | R104: 59 | S104: 62 | T104: 69 | U104: 49 | V104: 0 | W104: 0 | X104: 7 | Y104: 40 | Z104: 178 | AA104: 14 | AB104: 0 | AC104: 0 | AD104: 0 | AE104: 0 | AF104: 0 | AG104: 0 | AH104: 0 | AI104: 0 | AJ104: 0 | AK104: 0 | AL104: 47.5 | AM104: 43.2
A105: 1300 | B105: P | C105: 237 | D105: 3 | E105: 223 | F105: 4 | G105: 2 | H105: 5 | I105: 0 | J105: 0 | K105: 0 | L105: 0 | M105: 0 | N105: 0 | O105: 0 | P105: 0 | Q105: 0 | R105: 50 | S105: 57 | T105: 63 | U105: 67 | V105: 0 | W105: 0 | X105: 3 | Y105: 13 | Z105: 138 | AA105: 80 | AB105: 3 | AC105: 0 | AD105: 0 | AE105: 0 | AF105: 0 | AG105: 0 | AH105: 0 | AI105: 0 | AJ105: 0 | AK105: 0 | AL105: 53.5 | AM105: 47.7
A106: 1400 | B106: S | C106: 276 | D106: 0 | E106: 269 | F106: 2 | G106: 4 | H106: 1 | I106: 0 | J106: 0 | K106: 0 | L106: 0 | M106: 0 | N106: 0 | O106: 0 | P106: 0 | Q106: 0 | R106: 50 | S106: 60 | T106: 75 | U106: 91 | V106: 0 | W106: 1 | X106: 8 | Y106: 45 | Z106: 201 | AA106: 21 | AB106: 0 | AC106: 0 | AD106: 0 | AE106: 0 | AF106: 0 | AG106: 0 | AH106: 0 | AI106: 0 | AJ106: 0 | AK106: 0 | AL106: 48.2 | AM106: 43.5
A107: 1400 | B107: P | C107: 299 | D107: 3 | E107: 287 | F107: 5 | G107: 3 | H107: 1 | I107: 0 | J107: 0 | K107: 0 | L107: 0 | M107: 0 | N107: 0 | O107: 0 | P107: 0 | Q107: 0 | R107: 66 | S107: 76 | T107: 89 | U107: 68 | V107: 0 | W107: 0 | X107: 3 | Y107: 24 | Z107: 151 | AA107: 118 | AB107: 2 | AC107: 1 | AD107: 0 | AE107: 0 | AF107: 0 | AG107: 0 | AH107: 0 | AI107: 0 | AJ107: 0 | AK107: 0 | AL107: 53.6 | AM107: 48.2
A108: 1500 | B108: S | C108: 375 | D108: 4 | E108: 362 | F108: 1 | G108: 6 | H108: 1 | I108: 0 | J108: 1 | K108: 0 | L108: 0 | M108: 0 | N108: 0 | O108: 0 | P108: 0 | Q108: 0 | R108: 78 | S108: 104 | T108: 104 | U108: 89 | V108: 0 | W108: 5 | X108: 13 | Y108: 45 | Z108: 295 | AA108: 17 | AB108: 0 | AC108: 0 | AD108: 0 | AE108: 0 | AF108: 0 | AG108: 0 | AH108: 0 | AI108: 0 | AJ108: 0 | AK108: 0 | AL108: 47.7 | AM108: 43.1
A109: 1500 | B109: P | C109: 508 | D109: 3 | E109: 495 | F109: 4 | G109: 0 | H109: 5 | I109: 0 | J109: 0 | K109: 1 | L109: 0 | M109: 0 | N109: 0 | O109: 0 | P109: 0 | Q109: 0 | R109: 128 | S109: 114 | T109: 115 | U109: 151 | V109: 0 | W109: 0 | X109: 7 | Y109: 36 | Z109: 292 | AA109: 159 | AB109: 10 | AC109: 1 | AD109: 2 | AE109: 0 | AF109: 1 | AG109: 0 | AH109: 0 | AI109: 0 | AJ109: 0 | AK109: 0 | AL109: 53.1 | AM109: 47.9
A110: 1600 | B110: S | C110: 370 | D110: 2 | E110: 363 | F110: 0 | G110: 4 | H110: 0 | I110: 0 | J110: 1 | K110: 0 | L110: 0 | M110: 0 | N110: 0 | O110: 0 | P110: 0 | Q110: 0 | R110: 90 | S110: 110 | T110: 83 | U110: 87 | V110: 0 | W110: 0 | X110: 10 | Y110: 79 | Z110: 258 | AA110: 23 | AB110: 0 | AC110: 0 | AD110: 0 | AE110: 0 | AF110: 0 | AG110: 0 | AH110: 0 | AI110: 0 | AJ110: 0 | AK110: 0 | AL110: 47.9 | AM110: 43.1
A111: 1600 | B111: P | C111: 758 | D111: 4 | E111: 724 | F111: 4 | G111: 5 | H111: 16 | I111: 1 | J111: 2 | K111: 0 | L111: 1 | M111: 0 | N111: 0 | O111: 0 | P111: 0 | Q111: 1 | R111: 168 | S111: 181 | T111: 200 | U111: 209 | V111: 0 | W111: 1 | X111: 12 | Y111: 68 | Z111: 470 | AA111: 200 | AB111: 7 | AC111: 0 | AD111: 0 | AE111: 0 | AF111: 0 | AG111: 0 | AH111: 0 | AI111: 0 | AJ111: 0 | AK111: 0 | AL111: 51.7 | AM111: 46.9
A112: 1700 | B112: S | C112: 372 | D112: 1 | E112: 364 | F112: 2 | G112: 2 | H112: 0 | I112: 2 | J112: 1 | K112: 0 | L112: 0 | M112: 0 | N112: 0 | O112: 0 | P112: 0 | Q112: 0 | R112: 81 | S112: 101 | T112: 97 | U112: 93 | V112: 0 | W112: 0 | X112: 7 | Y112: 39 | Z112: 307 | AA112: 19 | AB112: 0 | AC112: 0 | AD112: 0 | AE112: 0 | AF112: 0 | AG112: 0 | AH112: 0 | AI112: 0 | AJ112: 0 | AK112: 0 | AL112: 47.9 | AM112: 43.8
A113: 1700 | B113: P | C113: 863 | D113: 7 | E113: 834 | F113: 4 | G113: 8 | H113: 6 | I113: 1 | J113: 0 | K113: 1 | L113: 0 | M113: 0 | N113: 0 | O113: 0 | P113: 0 | Q113: 2 | R113: 226 | S113: 229 | T113: 214 | U113: 194 | V113: 0 | W113: 0 | X113: 8 | Y113: 72 | Z113: 576 | AA113: 204 | AB113: 3 | AC113: 0 | AD113: 0 | AE113: 0 | AF113: 0 | AG113: 0 | AH113: 0 | AI113: 0 | AJ113: 0 | AK113: 0 | AL113: 51.8 | AM113: 46.8
A114: 1800 | B114: S | C114: 312 | D114: 2 | E114: 304 | F114: 2 | G114: 3 | H114: 0 | I114: 1 | J114: 0 | K114: 0 | L114: 0 | M114: 0 | N114: 0 | O114: 0 | P114: 0 | Q114: 0 | R114: 80 | S114: 73 | T114: 89 | U114: 70 | V114: 0 | W114: 1 | X114: 9 | Y114: 37 | Z114: 242 | AA114: 23 | AB114: 0 | AC114: 0 | AD114: 0 | AE114: 0 | AF114: 0 | AG114: 0 | AH114: 0 | AI114: 0 | AJ114: 0 | AK114: 0 | AL114: 48.6 | AM114: 43.9
A115: 1800 | B115: P | C115: 382 | D115: 3 | E115: 362 | F115: 3 | G115: 1 | H115: 12 | I115: 0 | J115: 0 | K115: 0 | L115: 0 | M115: 1 | N115: 0 | O115: 0 | P115: 0 | Q115: 0 | R115: 104 | S115: 111 | T115: 93 | U115: 74 | V115: 0 | W115: 0 | X115: 2 | Y115: 40 | Z115: 183 | AA115: 148 | AB115: 8 | AC115: 1 | AD115: 0 | AE115: 0 | AF115: 0 | AG115: 0 | AH115: 0 | AI115: 0 | AJ115: 0 | AK115: 0 | AL115: 53.8 | AM115: 48.4
A116: 1900 | B116: S | C116: 220 | D116: 2 | E116: 212 | F116: 2 | G116: 2 | H116: 1 | I116: 0 | J116: 1 | K116: 0 | L116: 0 | M116: 0 | N116: 0 | O116: 0 | P116: 0 | Q116: 0 | R116: 85 | S116: 40 | T116: 52 | U116: 43 | V116: 0 | W116: 0 | X116: 5 | Y116: 49 | Z116: 159 | AA116: 7 | AB116: 0 | AC116: 0 | AD116: 0 | AE116: 0 | AF116: 0 | AG116: 0 | AH116: 0 | AI116: 0 | AJ116: 0 | AK116: 0 | AL116: 47.2 | AM116: 42.7
A117: 1900 | B117: P | C117: 206 | D117: 3 | E117: 195 | F117: 0 | G117: 5 | H117: 3 | I117: 0 | J117: 0 | K117: 0 | L117: 0 | M117: 0 | N117: 0 | O117: 0 | P117: 0 | Q117: 0 | R117: 57 | S117: 57 | T117: 56 | U117: 36 | V117: 0 | W117: 0 | X117: 2 | Y117: 22 | Z117: 105 | AA117: 73 | AB117: 1 | AC117: 1 | AD117: 1 | AE117: 1 | AF117: 0 | AG117: 0 | AH117: 0 | AI117: 0 | AJ117: 0 | AK117: 0 | AL117: 53.3 | AM117: 47.9
A118: 2000 | B118: S | C118: 112 | D118: 2 | E118: 107 | F118: 0 | G118: 2 | H118: 1 | I118: 0 | J118: 0 | K118: 0 | L118: 0 | M118: 0 | N118: 0 | O118: 0 | P118: 0 | Q118: 0 | R118: 34 | S118: 34 | T118: 24 | U118: 20 | V118: 0 | W118: 1 | X118: 9 | Y118: 44 | Z118: 53 | AA118: 5 | AB118: 0 | AC118: 0 | AD118: 0 | AE118: 0 | AF118: 0 | AG118: 0 | AH118: 0 | AI118: 0 | AJ118: 0 | AK118: 0 | AL118: 45.4 | AM118: 39.6
A119: 2000 | B119: P | C119: 147 | D119: 1 | E119: 142 | F119: 0 | G119: 0 | H119: 4 | I119: 0 | J119: 0 | K119: 0 | L119: 0 | M119: 0 | N119: 0 | O119: 0 | P119: 0 | Q119: 0 | R119: 43 | S119: 30 | T119: 37 | U119: 37 | V119: 0 | W119: 0 | X119: 3 | Y119: 25 | Z119: 84 | AA119: 33 | AB119: 2 | AC119: 0 | AD119: 0 | AE119: 0 | AF119: 0 | AG119: 0 | AH119: 0 | AI119: 0 | AJ119: 0 | AK119: 0 | AL119: 52.7 | AM119: 46.2
A120: 2100 | B120: S | C120: 80 | D120: 0 | E120: 77 | F120: 0 | G120: 2 | H120: 0 | I120: 1 | J120: 0 | K120: 0 | L120: 0 | M120: 0 | N120: 0 | O120: 0 | P120: 0 | Q120: 0 | R120: 23 | S120: 25 | T120: 18 | U120: 14 | V120: 0 | W120: 1 | X120: 5 | Y120: 18 | Z120: 55 | AA120: 1 | AB120: 0 | AC120: 0 | AD120: 0 | AE120: 0 | AF120: 0 | AG120: 0 | AH120: 0 | AI120: 0 | AJ120: 0 | AK120: 0 | AL120: 44.8 | AM120: 40.2
A121: 2100 | B121: P | C121: 116 | D121: 4 | E121: 110 | F121: 0 | G121: 1 | H121: 1 | I121: 0 | J121: 0 | K121: 0 | L121: 0 | M121: 0 | N121: 0 | O121: 0 | P121: 0 | Q121: 0 | R121: 30 | S121: 29 | T121: 32 | U121: 25 | V121: 0 | W121: 1 | X121: 4 | Y121: 18 | Z121: 75 | AA121: 16 | AB121: 2 | AC121: 0 | AD121: 0 | AE121: 0 | AF121: 0 | AG121: 0 | AH121: 0 | AI121: 0 | AJ121: 0 | AK121: 0 | AL121: 50.2 | AM121: 44.7
A122: 2200 | B122: S | C122: 26 | D122: 0 | E122: 25 | F122: 0 | G122: 1 | H122: 0 | I122: 0 | J122: 0 | K122: 0 | L122: 0 | M122: 0 | N122: 0 | O122: 0 | P122: 0 | Q122: 0 | R122: 14 | S122: 6 | T122: 3 | U122: 3 | V122: 0 | W122: 0 | X122: 1 | Y122: 3 | Z122: 18 | AA122: 3 | AB122: 1 | AC122: 0 | AD122: 0 | AE122: 0 | AF122: 0 | AG122: 0 | AH122: 0 | AI122: 0 | AJ122: 0 | AK122: 0 | AL122: 50.7 | AM122: 44
A123: 2200 | B123: P | C123: 60 | D123: 0 | E123: 53 | F123: 0 | G123: 1 | H123: 6 | I123: 0 | J123: 0 | K123: 0 | L123: 0 | M123: 0 | N123: 0 | O123: 0 | P123: 0 | Q123: 0 | R123: 20 | S123: 20 | T123: 15 | U123: 5 | V123: 0 | W123: 0 | X123: 2 | Y123: 4 | Z123: 37 | AA123: 17 | AB123: 0 | AC123: 0 | AD123: 0 | AE123: 0 | AF123: 0 | AG123: 0 | AH123: 0 | AI123: 0 | AJ123: 0 | AK123: 0 | AL123: 53.2 | AM123: 46.3
A124: 2300 | B124: S | C124: 9 | D124: 0 | E124: 9 | F124: 0 | G124: 0 | H124: 0 | I124: 0 | J124: 0 | K124: 0 | L124: 0 | M124: 0 | N124: 0 | O124: 0 | P124: 0 | Q124: 0 | R124: 2 | S124: 4 | T124: 2 | U124: 1 | V124: 0 | W124: 0 | X124: 0 | Y124: 0 | Z124: 8 | AA124: 1 | AB124: 0 | AC124: 0 | AD124: 0 | AE124: 0 | AF124: 0 | AG124: 0 | AH124: 0 | AI124: 0 | AJ124: 0 | AK124: 0 | AL124: 0 | AM124: 47.4
A125: 2300 | B125: P | C125: 28 | D125: 1 | E125: 26 | F125: 0 | G125: 1 | H125: 0 | I125: 0 | J125: 0 | K125: 0 | L125: 0 | M125: 0 | N125: 0 | O125: 0 | P125: 0 | Q125: 0 | R125: 9 | S125: 5 | T125: 5 | U125: 9 | V125: 0 | W125: 0 | X125: 1 | Y125: 8 | Z125: 12 | AA125: 6 | AB125: 0 | AC125: 1 | AD125: 0 | AE125: 0 | AF125: 0 | AG125: 0 | AH125: 0 | AI125: 0 | AJ125: 0 | AK125: 0 | AL125: 55.6 | AM125: 45.2
A126: 07-19 | B126: S | C126: 4434 | D126: 25 | E126: 4295 | F126: 39 | G126: 50 | H126: 14 | I126: 5 | J126: 5 | K126: 1 | L126: 0 | M126: 0 | N126: 0 | O126: 0 | P126: 0 | Q126: 0 | R126: 1061 | S126: 1175 | T126: 1126 | U126: 1072 | V126: 0 | W126: 10 | X126: 149 | Y126: 640 | Z126: 3388 | AA126: 244 | AB126: 3 | AC126: 0 | AD126: 0 | AE126: 0 | AF126: 0 | AG126: 0 | AH126: 0 | AI126: 0 | AJ126: 0 | AK126: 0 | AL126: 47.9 | AM126: 43.3
A127: 07-19 | B127: P | C127: 4094 | D127: 27 | E127: 3899 | F127: 42 | G127: 35 | H127: 77 | I127: 3 | J127: 4 | K127: 2 | L127: 1 | M127: 1 | N127: 0 | O127: 0 | P127: 0 | Q127: 3 | R127: 979 | S127: 1048 | T127: 1036 | U127: 1031 | V127: 0 | W127: 3 | X127: 50 | Y127: 368 | Z127: 2412 | AA127: 1201 | AB127: 52 | AC127: 4 | AD127: 3 | AE127: 0 | AF127: 1 | AG127: 0 | AH127: 0 | AI127: 0 | AJ127: 0 | AK127: 0 | AL127: 52.6 | AM127: 47.3
A128: 06-22 | B128: S | C128: 5337 | D128: 32 | E128: 5167 | F128: 44 | G128: 63 | H128: 18 | I128: 6 | J128: 6 | K128: 1 | L128: 0 | M128: 0 | N128: 0 | O128: 0 | P128: 0 | Q128: 0 | R128: 1285 | S128: 1371 | T128: 1368 | U128: 1313 | V128: 0 | W128: 12 | X128: 189 | Y128: 810 | Z128: 4027 | AA128: 296 | AB128: 3 | AC128: 0 | AD128: 0 | AE128: 0 | AF128: 0 | AG128: 0 | AH128: 0 | AI128: 0 | AJ128: 0 | AK128: 0 | AL128: 47.9 | AM128: 43.1
A129: 06-22 | B129: P | C129: 4604 | D129: 36 | E129: 4380 | F129: 44 | G129: 41 | H129: 88 | I129: 3 | J129: 5 | K129: 2 | L129: 1 | M129: 1 | N129: 0 | O129: 0 | P129: 0 | Q129: 3 | R129: 1118 | S129: 1171 | T129: 1169 | U129: 1146 | V129: 0 | W129: 4 | X129: 59 | Y129: 438 | Z129: 2693 | AA129: 1338 | AB129: 61 | AC129: 5 | AD129: 4 | AE129: 1 | AF129: 1 | AG129: 0 | AH129: 0 | AI129: 0 | AJ129: 0 | AK129: 0 | AL129: 52.7 | AM129: 47.2
A130: 06-00 | B130: S | C130: 5372 | D130: 32 | E130: 5201 | F130: 44 | G130: 64 | H130: 18 | I130: 6 | J130: 6 | K130: 1 | L130: 0 | M130: 0 | N130: 0 | O130: 0 | P130: 0 | Q130: 0 | R130: 1301 | S130: 1381 | T130: 1373 | U130: 1317 | V130: 0 | W130: 12 | X130: 190 | Y130: 813 | Z130: 4053 | AA130: 300 | AB130: 4 | AC130: 0 | AD130: 0 | AE130: 0 | AF130: 0 | AG130: 0 | AH130: 0 | AI130: 0 | AJ130: 0 | AK130: 0 | AL130: 47.9 | AM130: 43.2
A131: 06-00 | B131: P | C131: 4692 | D131: 37 | E131: 4459 | F131: 44 | G131: 43 | H131: 94 | I131: 3 | J131: 5 | K131: 2 | L131: 1 | M131: 1 | N131: 0 | O131: 0 | P131: 0 | Q131: 3 | R131: 1147 | S131: 1196 | T131: 1189 | U131: 1160 | V131: 0 | W131: 4 | X131: 62 | Y131: 450 | Z131: 2742 | AA131: 1361 | AB131: 61 | AC131: 6 | AD131: 4 | AE131: 1 | AF131: 1 | AG131: 0 | AH131: 0 | AI131: 0 | AJ131: 0 | AK131: 0 | AL131: 52.7 | AM131: 47.2
A132: 00-00 | B132: S | C132: 5604 | D132: 34 | E132: 5427 | F132: 46 | G132: 66 | H132: 18 | I132: 6 | J132: 6 | K132: 1 | L132: 0 | M132: 0 | N132: 0 | O132: 0 | P132: 0 | Q132: 0 | R132: 1332 | S132: 1419 | T132: 1449 | U132: 1404 | V132: 0 | W132: 13 | X132: 206 | Y132: 843 | Z132: 4213 | AA132: 325 | AB132: 4 | AC132: 0 | AD132: 0 | AE132: 0 | AF132: 0 | AG132: 0 | AH132: 0 | AI132: 0 | AJ132: 0 | AK132: 0 | AL132: 47.9 | AM132: 43.2
A133: 00-00 | B133: P | C133: 4753 | D133: 38 | E133: 4511 | F133: 44 | G133: 44 | H133: 101 | I133: 3 | J133: 5 | K133: 2 | L133: 1 | M133: 1 | N133: 0 | O133: 0 | P133: 0 | Q133: 3 | R133: 1170 | S133: 1208 | T133: 1201 | U133: 1174 | V133: 0 | W133: 4 | X133: 64 | Y133: 463 | Z133: 2766 | AA133: 1380 | AB133: 63 | AC133: 6 | AD133: 4 | AE133: 2 | AF133: 1 | AG133: 0 | AH133: 0 | AI133: 0 | AJ133: 0 | AK133: 0 | AL133: 52.7 | AM133: 47.2
A136: Friday, November 1, 2024
A138: Time | B138: Cd | C138: Total | D138: Cls | E138: Cls | F138: Cls | G138: Cls | H138: Cls | I138: Cls | J138: Cls | K138: Cls | L138: Cls | M138: Cls | N138: Cls | O138: Cls | P138: Cls | Q138: Cls | R138: Drop | S138: Drop | T138: Drop | U138: Drop | V138: Vbin | W138: Vbin | X138: Vbin | Y138: Vbin | Z138: Vbin | AA138: Vbin | AB138: Vbin | AC138: Vbin | AD138: Vbin | AE138: Vbin | AF138: Vbin | AG138: Vbin | AH138: Vbin | AI138: Vbin | AJ138: Vbin | AK138: Vbin | AL138: Vpp | AM138: Mean
A139: [-- | D139: 1 | E139: 2 | F139: 3 | G139: 4 | H139: 5 | I139: 6 | J139: 7 | K139: 8 | L139: 9 | M139: 10 | N139: 11 | O139: 12 | P139: 13 | Q139: 14 | R139: --00 | S139: --15 | T139: --30 | U139: --45 | V139: 0 | W139: 10 | X139: 20 | Y139: 30 | Z139: 40 | AA139: 50 | AB139: 60 | AC139: 70 | AD139: 80 | AE139: 90 | AF139: 100 | AG139: 110 | AH139: 120 | AI139: 130 | AJ139: 140 | AK139: 150 | AL139: 85
V140: 10 | W140: 20 | X140: 30 | Y140: 40 | Z140: 50 | AA140: 60 | AB140: 70 | AC140: 80 | AD140: 90 | AE140: 100 | AF140: 110 | AG140: 120 | AH140: 130 | AI140: 140 | AJ140: 150 | AK140: 160
A141: 0000 | B141: S | C141: 8 | D141: 1 | E141: 7 | F141: 0 | G141: 0 | H141: 0 | I141: 0 | J141: 0 | K141: 0 | L141: 0 | M141: 0 | N141: 0 | O141: 0 | P141: 0 | Q141: 0 | R141: 3 | S141: 2 | T141: 3 | U141: 0 | V141: 0 | W141: 1 | X141: 0 | Y141: 0 | Z141: 6 | AA141: 1 | AB141: 0 | AC141: 0 | AD141: 0 | AE141: 0 | AF141: 0 | AG141: 0 | AH141: 0 | AI141: 0 | AJ141: 0 | AK141: 0 | AL141: 0 | AM141: 42.1
A142: 0000 | B142: P | C142: 11 | D142: 0 | E142: 11 | F142: 0 | G142: 0 | H142: 0 | I142: 0 | J142: 0 | K142: 0 | L142: 0 | M142: 0 | N142: 0 | O142: 0 | P142: 0 | Q142: 0 | R142: 4 | S142: 3 | T142: 3 | U142: 1 | V142: 0 | W142: 0 | X142: 0 | Y142: 1 | Z142: 4 | AA142: 6 | AB142: 0 | AC142: 0 | AD142: 0 | AE142: 0 | AF142: 0 | AG142: 0 | AH142: 0 | AI142: 0 | AJ142: 0 | AK142: 0 | AL142: 54.6 | AM142: 49.5
A143: 0100 | B143: S | C143: 3 | D143: 0 | E143: 3 | F143: 0 | G143: 0 | H143: 0 | I143: 0 | J143: 0 | K143: 0 | L143: 0 | M143: 0 | N143: 0 | O143: 0 | P143: 0 | Q143: 0 | R143: 3 | S143: 0 | T143: 0 | U143: 0 | V143: 0 | W143: 0 | X143: 0 | Y143: 3 | Z143: 0 | AA143: 0 | AB143: 0 | AC143: 0 | AD143: 0 | AE143: 0 | AF143: 0 | AG143: 0 | AH143: 0 | AI143: 0 | AJ143: 0 | AK143: 0 | AL143: 0 | AM143: 33.7
A144: 0100 | B144: P | C144: 8 | D144: 0 | E144: 7 | F144: 0 | G144: 0 | H144: 1 | I144: 0 | J144: 0 | K144: 0 | L144: 0 | M144: 0 | N144: 0 | O144: 0 | P144: 0 | Q144: 0 | R144: 6 | S144: 0 | T144: 1 | U144: 1 | V144: 0 | W144: 0 | X144: 0 | Y144: 3 | Z144: 5 | AA144: 0 | AB144: 0 | AC144: 0 | AD144: 0 | AE144: 0 | AF144: 0 | AG144: 0 | AH144: 0 | AI144: 0 | AJ144: 0 | AK144: 0 | AL144: 0 | AM144: 41.3
A145: 0200 | B145: S | C145: 0 | D145: 0 | E145: 0 | F145: 0 | G145: 0 | H145: 0 | I145: 0 | J145: 0 | K145: 0 | L145: 0 | M145: 0 | N145: 0 | O145: 0 | P145: 0 | Q145: 0 | R145: 0 | S145: 0 | T145: 0 | U145: 0 | V145: 0 | W145: 0 | X145: 0 | Y145: 0 | Z145: 0 | AA145: 0 | AB145: 0 | AC145: 0 | AD145: 0 | AE145: 0 | AF145: 0 | AG145: 0 | AH145: 0 | AI145: 0 | AJ145: 0 | AK145: 0 | AL145: 0 | AM145: -
A146: 0200 | B146: P | C146: 4 | D146: 0 | E146: 3 | F146: 0 | G146: 0 | H146: 1 | I146: 0 | J146: 0 | K146: 0 | L146: 0 | M146: 0 | N146: 0 | O146: 0 | P146: 0 | Q146: 0 | R146: 1 | S146: 2 | T146: 0 | U146: 1 | V146: 0 | W146: 0 | X146: 0 | Y146: 0 | Z146: 3 | AA146: 1 | AB146: 0 | AC146: 0 | AD146: 0 | AE146: 0 | AF146: 0 | AG146: 0 | AH146: 0 | AI146: 0 | AJ146: 0 | AK146: 0 | AL146: 0 | AM146: 47.7
A147: 0300 | B147: S | C147: 10 | D147: 0 | E147: 10 | F147: 0 | G147: 0 | H147: 0 | I147: 0 | J147: 0 | K147: 0 | L147: 0 | M147: 0 | N147: 0 | O147: 0 | P147: 0 | Q147: 0 | R147: 1 | S147: 1 | T147: 6 | U147: 2 | V147: 0 | W147: 0 | X147: 1 | Y147: 4 | Z147: 4 | AA147: 1 | AB147: 0 | AC147: 0 | AD147: 0 | AE147: 0 | AF147: 0 | AG147: 0 | AH147: 0 | AI147: 0 | AJ147: 0 | AK147: 0 | AL147: 0 | AM147: 39.7
A148: 0300 | B148: P | C148: 7 | D148: 0 | E148: 6 | F148: 0 | G148: 0 | H148: 1 | I148: 0 | J148: 0 | K148: 0 | L148: 0 | M148: 0 | N148: 0 | O148: 0 | P148: 0 | Q148: 0 | R148: 3 | S148: 2 | T148: 1 | U148: 1 | V148: 0 | W148: 0 | X148: 1 | Y148: 0 | Z148: 5 | AA148: 1 | AB148: 0 | AC148: 0 | AD148: 0 | AE148: 0 | AF148: 0 | AG148: 0 | AH148: 0 | AI148: 0 | AJ148: 0 | AK148: 0 | AL148: 0 | AM148: 44.5
A149: 0400 | B149: S | C149: 26 | D149: 0 | E149: 26 | F149: 0 | G149: 0 | H149: 0 | I149: 0 | J149: 0 | K149: 0 | L149: 0 | M149: 0 | N149: 0 | O149: 0 | P149: 0 | Q149: 0 | R149: 4 | S149: 4 | T149: 8 | U149: 10 | V149: 0 | W149: 0 | X149: 1 | Y149: 7 | Z149: 15 | AA149: 3 | AB149: 0 | AC149: 0 | AD149: 0 | AE149: 0 | AF149: 0 | AG149: 0 | AH149: 0 | AI149: 0 | AJ149: 0 | AK149: 0 | AL149: 49.7 | AM149: 43
A150: 0400 | B150: P | C150: 5 | D150: 0 | E150: 5 | F150: 0 | G150: 0 | H150: 0 | I150: 0 | J150: 0 | K150: 0 | L150: 0 | M150: 0 | N150: 0 | O150: 0 | P150: 0 | Q150: 0 | R150: 1 | S150: 0 | T150: 1 | U150: 3 | V150: 0 | W150: 0 | X150: 0 | Y150: 4 | Z150: 1 | AA150: 0 | AB150: 0 | AC150: 0 | AD150: 0 | AE150: 0 | AF150: 0 | AG150: 0 | AH150: 0 | AI150: 0 | AJ150: 0 | AK150: 0 | AL150: 0 | AM150: 39
A151: 0500 | B151: S | C151: 173 | D151: 2 | E151: 168 | F151: 2 | G151: 0 | H151: 1 | I151: 0 | J151: 0 | K151: 0 | L151: 0 | M151: 0 | N151: 0 | O151: 0 | P151: 0 | Q151: 0 | R151: 17 | S151: 30 | T151: 56 | U151: 70 | V151: 0 | W151: 0 | X151: 9 | Y151: 30 | Z151: 116 | AA151: 18 | AB151: 0 | AC151: 0 | AD151: 0 | AE151: 0 | AF151: 0 | AG151: 0 | AH151: 0 | AI151: 0 | AJ151: 0 | AK151: 0 | AL151: 48.6 | AM151: 43.2
A152: 0500 | B152: P | C152: 22 | D152: 0 | E152: 17 | F152: 1 | G152: 0 | H152: 4 | I152: 0 | J152: 0 | K152: 0 | L152: 0 | M152: 0 | N152: 0 | O152: 0 | P152: 0 | Q152: 0 | R152: 3 | S152: 7 | T152: 3 | U152: 9 | V152: 0 | W152: 0 | X152: 1 | Y152: 1 | Z152: 14 | AA152: 4 | AB152: 2 | AC152: 0 | AD152: 0 | AE152: 0 | AF152: 0 | AG152: 0 | AH152: 0 | AI152: 0 | AJ152: 0 | AK152: 0 | AL152: 54.6 | AM152: 47.7
A153: 0600 | B153: S | C153: 424 | D153: 6 | E153: 404 | F153: 6 | G153: 4 | H153: 4 | I153: 0 | J153: 0 | K153: 0 | L153: 0 | M153: 0 | N153: 0 | O153: 0 | P153: 0 | Q153: 0 | R153: 75 | S153: 70 | T153: 128 | U153: 151 | V153: 0 | W153: 0 | X153: 26 | Y153: 59 | Z153: 304 | AA153: 35 | AB153: 0 | AC153: 0 | AD153: 0 | AE153: 0 | AF153: 0 | AG153: 0 | AH153: 0 | AI153: 0 | AJ153: 0 | AK153: 0 | AL153: 48.4 | AM153: 43
A154: 0600 | B154: P | C154: 54 | D154: 1 | E154: 50 | F154: 0 | G154: 0 | H154: 3 | I154: 0 | J154: 0 | K154: 0 | L154: 0 | M154: 0 | N154: 0 | O154: 0 | P154: 0 | Q154: 0 | R154: 12 | S154: 11 | T154: 8 | U154: 23 | V154: 0 | W154: 0 | X154: 0 | Y154: 5 | Z154: 21 | AA154: 24 | AB154: 4 | AC154: 0 | AD154: 0 | AE154: 0 | AF154: 0 | AG154: 0 | AH154: 0 | AI154: 0 | AJ154: 0 | AK154: 0 | AL154: 56.7 | AM154: 49.5
A155: 0700 | B155: S | C155: 517 | D155: 5 | E155: 493 | F155: 5 | G155: 9 | H155: 4 | I155: 0 | J155: 0 | K155: 0 | L155: 0 | M155: 0 | N155: 0 | O155: 0 | P155: 1 | Q155: 0 | R155: 143 | S155: 119 | T155: 124 | U155: 131 | V155: 0 | W155: 0 | X155: 15 | Y155: 64 | Z155: 411 | AA155: 27 | AB155: 0 | AC155: 0 | AD155: 0 | AE155: 0 | AF155: 0 | AG155: 0 | AH155: 0 | AI155: 0 | AJ155: 0 | AK155: 0 | AL155: 48.2 | AM155: 43.8
A156: 0700 | B156: P | C156: 108 | D156: 2 | E156: 92 | F156: 2 | G156: 2 | H156: 8 | I156: 1 | J156: 1 | K156: 0 | L156: 0 | M156: 0 | N156: 0 | O156: 0 | P156: 0 | Q156: 0 | R156: 20 | S156: 28 | T156: 28 | U156: 32 | V156: 0 | W156: 1 | X156: 2 | Y156: 7 | Z156: 51 | AA156: 46 | AB156: 1 | AC156: 0 | AD156: 0 | AE156: 0 | AF156: 0 | AG156: 0 | AH156: 0 | AI156: 0 | AJ156: 0 | AK156: 0 | AL156: 53.3 | AM156: 47.7
A157: 0800 | B157: S | C157: 709 | D157: 7 | E157: 687 | F157: 5 | G157: 6 | H157: 3 | I157: 1 | J157: 0 | K157: 0 | L157: 0 | M157: 0 | N157: 0 | O157: 0 | P157: 0 | Q157: 0 | R157: 142 | S157: 172 | T157: 227 | U157: 168 | V157: 0 | W157: 0 | X157: 21 | Y157: 103 | Z157: 563 | AA157: 22 | AB157: 0 | AC157: 0 | AD157: 0 | AE157: 0 | AF157: 0 | AG157: 0 | AH157: 0 | AI157: 0 | AJ157: 0 | AK157: 0 | AL157: 47 | AM157: 43
A158: 0800 | B158: P | C158: 225 | D158: 0 | E158: 203 | F158: 1 | G158: 3 | H158: 17 | I158: 0 | J158: 0 | K158: 0 | L158: 1 | M158: 0 | N158: 0 | O158: 0 | P158: 0 | Q158: 0 | R158: 49 | S158: 57 | T158: 67 | U158: 52 | V158: 0 | W158: 0 | X158: 1 | Y158: 26 | Z158: 144 | AA158: 52 | AB158: 2 | AC158: 0 | AD158: 0 | AE158: 0 | AF158: 0 | AG158: 0 | AH158: 0 | AI158: 0 | AJ158: 0 | AK158: 0 | AL158: 52.2 | AM158: 46.4
A159: 0900 | B159: S | C159: 397 | D159: 4 | E159: 380 | F159: 5 | G159: 7 | H159: 0 | I159: 0 | J159: 1 | K159: 0 | L159: 0 | M159: 0 | N159: 0 | O159: 0 | P159: 0 | Q159: 0 | R159: 111 | S159: 93 | T159: 96 | U159: 97 | V159: 0 | W159: 0 | X159: 9 | Y159: 38 | Z159: 331 | AA159: 19 | AB159: 0 | AC159: 0 | AD159: 0 | AE159: 0 | AF159: 0 | AG159: 0 | AH159: 0 | AI159: 0 | AJ159: 0 | AK159: 0 | AL159: 48.1 | AM159: 44.2
A160: 0900 | B160: P | C160: 182 | D160: 3 | E160: 170 | F160: 0 | G160: 2 | H160: 5 | I160: 1 | J160: 1 | K160: 0 | L160: 0 | M160: 0 | N160: 0 | O160: 0 | P160: 0 | Q160: 0 | R160: 35 | S160: 51 | T160: 42 | U160: 54 | V160: 0 | W160: 2 | X160: 2 | Y160: 23 | Z160: 90 | AA160: 60 | AB160: 5 | AC160: 0 | AD160: 0 | AE160: 0 | AF160: 0 | AG160: 0 | AH160: 0 | AI160: 0 | AJ160: 0 | AK160: 0 | AL160: 54 | AM160: 46.9
A161: 1000 | B161: S | C161: 371 | D161: 5 | E161: 353 | F161: 4 | G161: 5 | H161: 1 | I161: 1 | J161: 1 | K161: 0 | L161: 0 | M161: 0 | N161: 0 | O161: 0 | P161: 0 | Q161: 1 | R161: 112 | S161: 87 | T161: 89 | U161: 83 | V161: 0 | W161: 0 | X161: 12 | Y161: 65 | Z161: 278 | AA161: 16 | AB161: 0 | AC161: 0 | AD161: 0 | AE161: 0 | AF161: 0 | AG161: 0 | AH161: 0 | AI161: 0 | AJ161: 0 | AK161: 0 | AL161: 47.4 | AM161: 42.8
A162: 1000 | B162: P | C162: 155 | D162: 0 | E162: 151 | F162: 0 | G162: 4 | H162: 0 | I162: 0 | J162: 0 | K162: 0 | L162: 0 | M162: 0 | N162: 0 | O162: 0 | P162: 0 | Q162: 0 | R162: 39 | S162: 44 | T162: 29 | U162: 43 | V162: 0 | W162: 0 | X162: 2 | Y162: 17 | Z162: 87 | AA162: 47 | AB162: 2 | AC162: 0 | AD162: 0 | AE162: 0 | AF162: 0 | AG162: 0 | AH162: 0 | AI162: 0 | AJ162: 0 | AK162: 0 | AL162: 53 | AM162: 47
A163: 1100 | B163: S | C163: 306 | D163: 1 | E163: 299 | F163: 3 | G163: 1 | H163: 1 | I163: 0 | J163: 0 | K163: 1 | L163: 0 | M163: 0 | N163: 0 | O163: 0 | P163: 0 | Q163: 0 | R163: 89 | S163: 75 | T163: 69 | U163: 73 | V163: 0 | W163: 2 | X163: 10 | Y163: 40 | Z163: 243 | AA163: 11 | AB163: 0 | AC163: 0 | AD163: 0 | AE163: 0 | AF163: 0 | AG163: 0 | AH163: 0 | AI163: 0 | AJ163: 0 | AK163: 0 | AL163: 46.8 | AM163: 42.8
A164: 1100 | B164: P | C164: 203 | D164: 4 | E164: 189 | F164: 3 | G164: 4 | H164: 3 | I164: 0 | J164: 0 | K164: 0 | L164: 0 | M164: 0 | N164: 0 | O164: 0 | P164: 0 | Q164: 0 | R164: 52 | S164: 44 | T164: 40 | U164: 67 | V164: 0 | W164: 0 | X164: 1 | Y164: 21 | Z164: 111 | AA164: 70 | AB164: 0 | AC164: 0 | AD164: 0 | AE164: 0 | AF164: 0 | AG164: 0 | AH164: 0 | AI164: 0 | AJ164: 0 | AK164: 0 | AL164: 52.9 | AM164: 47.5
A165: 1200 | B165: S | C165: 251 | D165: 2 | E165: 234 | F165: 6 | G165: 7 | H165: 0 | I165: 1 | J165: 1 | K165: 0 | L165: 0 | M165: 0 | N165: 0 | O165: 0 | P165: 0 | Q165: 0 | R165: 59 | S165: 60 | T165: 73 | U165: 59 | V165: 0 | W165: 1 | X165: 11 | Y165: 39 | Z165: 190 | AA165: 10 | AB165: 0 | AC165: 0 | AD165: 0 | AE165: 0 | AF165: 0 | AG165: 0 | AH165: 0 | AI165: 0 | AJ165: 0 | AK165: 0 | AL165: 47.3 | AM165: 42.5
A166: 1200 | B166: P | C166: 245 | D166: 1 | E166: 230 | F166: 3 | G166: 5 | H166: 4 | I166: 1 | J166: 0 | K166: 1 | L166: 0 | M166: 0 | N166: 0 | O166: 0 | P166: 0 | Q166: 0 | R166: 64 | S166: 65 | T166: 56 | U166: 60 | V166: 0 | W166: 1 | X166: 2 | Y166: 23 | Z166: 135 | AA166: 79 | AB166: 5 | AC166: 0 | AD166: 0 | AE166: 0 | AF166: 0 | AG166: 0 | AH166: 0 | AI166: 0 | AJ166: 0 | AK166: 0 | AL166: 53.5 | AM166: 47.5
A167: 1300 | B167: S | C167: 244 | D167: 1 | E167: 236 | F167: 3 | G167: 3 | H167: 1 | I167: 0 | J167: 0 | K167: 0 | L167: 0 | M167: 0 | N167: 0 | O167: 0 | P167: 0 | Q167: 0 | R167: 55 | S167: 54 | T167: 69 | U167: 66 | V167: 0 | W167: 0 | X167: 11 | Y167: 35 | Z167: 174 | AA167: 24 | AB167: 0 | AC167: 0 | AD167: 0 | AE167: 0 | AF167: 0 | AG167: 0 | AH167: 0 | AI167: 0 | AJ167: 0 | AK167: 0 | AL167: 48.8 | AM167: 43.5
A168: 1300 | B168: P | C168: 219 | D168: 4 | E168: 204 | F168: 1 | G168: 7 | H168: 2 | I168: 1 | J168: 0 | K168: 0 | L168: 0 | M168: 0 | N168: 0 | O168: 0 | P168: 0 | Q168: 0 | R168: 52 | S168: 40 | T168: 63 | U168: 64 | V168: 0 | W168: 0 | X168: 1 | Y168: 17 | Z168: 112 | AA168: 83 | AB168: 5 | AC168: 1 | AD168: 0 | AE168: 0 | AF168: 0 | AG168: 0 | AH168: 0 | AI168: 0 | AJ168: 0 | AK168: 0 | AL168: 54.7 | AM168: 48.8
A169: 1400 | B169: S | C169: 291 | D169: 2 | E169: 275 | F169: 6 | G169: 5 | H169: 1 | I169: 1 | J169: 1 | K169: 0 | L169: 0 | M169: 0 | N169: 0 | O169: 0 | P169: 0 | Q169: 0 | R169: 65 | S169: 66 | T169: 71 | U169: 89 | V169: 0 | W169: 0 | X169: 12 | Y169: 35 | Z169: 236 | AA169: 8 | AB169: 0 | AC169: 0 | AD169: 0 | AE169: 0 | AF169: 0 | AG169: 0 | AH169: 0 | AI169: 0 | AJ169: 0 | AK169: 0 | AL169: 47.7 | AM169: 43
A170: 1400 | B170: P | C170: 407 | D170: 2 | E170: 394 | F170: 2 | G170: 1 | H170: 6 | I170: 0 | J170: 0 | K170: 0 | L170: 0 | M170: 0 | N170: 0 | O170: 0 | P170: 0 | Q170: 2 | R170: 86 | S170: 102 | T170: 110 | U170: 109 | V170: 0 | W170: 1 | X170: 7 | Y170: 41 | Z170: 217 | AA170: 135 | AB170: 5 | AC170: 0 | AD170: 1 | AE170: 0 | AF170: 0 | AG170: 0 | AH170: 0 | AI170: 0 | AJ170: 0 | AK170: 0 | AL170: 53.1 | AM170: 47.3
A171: 1500 | B171: S | C171: 403 | D171: 3 | E171: 383 | F171: 4 | G171: 10 | H171: 3 | I171: 0 | J171: 0 | K171: 0 | L171: 0 | M171: 0 | N171: 0 | O171: 0 | P171: 0 | Q171: 0 | R171: 90 | S171: 100 | T171: 102 | U171: 111 | V171: 0 | W171: 0 | X171: 19 | Y171: 64 | Z171: 304 | AA171: 16 | AB171: 0 | AC171: 0 | AD171: 0 | AE171: 0 | AF171: 0 | AG171: 0 | AH171: 0 | AI171: 0 | AJ171: 0 | AK171: 0 | AL171: 47.3 | AM171: 42.8
A172: 1500 | B172: P | C172: 524 | D172: 3 | E172: 504 | F172: 2 | G172: 4 | H172: 11 | I172: 0 | J172: 0 | K172: 0 | L172: 0 | M172: 0 | N172: 0 | O172: 0 | P172: 0 | Q172: 0 | R172: 105 | S172: 135 | T172: 147 | U172: 137 | V172: 0 | W172: 1 | X172: 13 | Y172: 52 | Z172: 301 | AA172: 155 | AB172: 2 | AC172: 0 | AD172: 0 | AE172: 0 | AF172: 0 | AG172: 0 | AH172: 0 | AI172: 0 | AJ172: 0 | AK172: 0 | AL172: 51.8 | AM172: 46.6
A173: 1600 | B173: S | C173: 373 | D173: 0 | E173: 366 | F173: 3 | G173: 2 | H173: 1 | I173: 1 | J173: 0 | K173: 0 | L173: 0 | M173: 0 | N173: 0 | O173: 0 | P173: 0 | Q173: 0 | R173: 76 | S173: 91 | T173: 81 | U173: 125 | V173: 0 | W173: 0 | X173: 11 | Y173: 33 | Z173: 319 | AA173: 10 | AB173: 0 | AC173: 0 | AD173: 0 | AE173: 0 | AF173: 0 | AG173: 0 | AH173: 0 | AI173: 0 | AJ173: 0 | AK173: 0 | AL173: 47.3 | AM173: 43.4
A174: 1600 | B174: P | C174: 692 | D174: 7 | E174: 664 | F174: 5 | G174: 10 | H174: 5 | I174: 0 | J174: 1 | K174: 0 | L174: 0 | M174: 0 | N174: 0 | O174: 0 | P174: 0 | Q174: 0 | R174: 151 | S174: 166 | T174: 189 | U174: 186 | V174: 0 | W174: 2 | X174: 10 | Y174: 57 | Z174: 419 | AA174: 200 | AB174: 3 | AC174: 1 | AD174: 0 | AE174: 0 | AF174: 0 | AG174: 0 | AH174: 0 | AI174: 0 | AJ174: 0 | AK174: 0 | AL174: 52.2 | AM174: 47.2
A175: 1700 | B175: S | C175: 332 | D175: 3 | E175: 323 | F175: 2 | G175: 0 | H175: 2 | I175: 1 | J175: 1 | K175: 0 | L175: 0 | M175: 0 | N175: 0 | O175: 0 | P175: 0 | Q175: 0 | R175: 79 | S175: 90 | T175: 63 | U175: 100 | V175: 0 | W175: 3 | X175: 5 | Y175: 56 | Z175: 247 | AA175: 21 | AB175: 0 | AC175: 0 | AD175: 0 | AE175: 0 | AF175: 0 | AG175: 0 | AH175: 0 | AI175: 0 | AJ175: 0 | AK175: 0 | AL175: 48.4 | AM175: 43.6
A176: 1700 | B176: P | C176: 573 | D176: 9 | E176: 551 | F176: 3 | G176: 4 | H176: 4 | I176: 1 | J176: 0 | K176: 1 | L176: 0 | M176: 0 | N176: 0 | O176: 0 | P176: 0 | Q176: 0 | R176: 172 | S176: 130 | T176: 130 | U176: 141 | V176: 0 | W176: 2 | X176: 3 | Y176: 59 | Z176: 346 | AA176: 151 | AB176: 11 | AC176: 1 | AD176: 0 | AE176: 0 | AF176: 0 | AG176: 0 | AH176: 0 | AI176: 0 | AJ176: 0 | AK176: 0 | AL176: 52.7 | AM176: 47
A177: 1800 | B177: S | C177: 292 | D177: 1 | E177: 285 | F177: 3 | G177: 2 | H177: 0 | I177: 0 | J177: 1 | K177: 0 | L177: 0 | M177: 0 | N177: 0 | O177: 0 | P177: 0 | Q177: 0 | R177: 74 | S177: 80 | T177: 75 | U177: 63 | V177: 0 | W177: 0 | X177: 9 | Y177: 29 | Z177: 233 | AA177: 21 | AB177: 0 | AC177: 0 | AD177: 0 | AE177: 0 | AF177: 0 | AG177: 0 | AH177: 0 | AI177: 0 | AJ177: 0 | AK177: 0 | AL177: 48.1 | AM177: 44.1
A178: 1800 | B178: P | C178: 355 | D178: 7 | E178: 342 | F178: 1 | G178: 3 | H178: 2 | I178: 0 | J178: 0 | K178: 0 | L178: 0 | M178: 0 | N178: 0 | O178: 0 | P178: 0 | Q178: 0 | R178: 102 | S178: 100 | T178: 83 | U178: 70 | V178: 0 | W178: 1 | X178: 3 | Y178: 32 | Z178: 187 | AA178: 120 | AB178: 11 | AC178: 1 | AD178: 0 | AE178: 0 | AF178: 0 | AG178: 0 | AH178: 0 | AI178: 0 | AJ178: 0 | AK178: 0 | AL178: 54 | AM178: 48.2
A179: 1900 | B179: S | C179: 164 | D179: 0 | E179: 160 | F179: 1 | G179: 2 | H179: 1 | I179: 0 | J179: 0 | K179: 0 | L179: 0 | M179: 0 | N179: 0 | O179: 0 | P179: 0 | Q179: 0 | R179: 53 | S179: 48 | T179: 25 | U179: 38 | V179: 0 | W179: 0 | X179: 4 | Y179: 20 | Z179: 129 | AA179: 11 | AB179: 0 | AC179: 0 | AD179: 0 | AE179: 0 | AF179: 0 | AG179: 0 | AH179: 0 | AI179: 0 | AJ179: 0 | AK179: 0 | AL179: 48.5 | AM179: 43.9
A180: 1900 | B180: P | C180: 195 | D180: 1 | E180: 191 | F180: 0 | G180: 0 | H180: 3 | I180: 0 | J180: 0 | K180: 0 | L180: 0 | M180: 0 | N180: 0 | O180: 0 | P180: 0 | Q180: 0 | R180: 64 | S180: 52 | T180: 33 | U180: 46 | V180: 0 | W180: 0 | X180: 1 | Y180: 11 | Z180: 98 | AA180: 78 | AB180: 6 | AC180: 1 | AD180: 0 | AE180: 0 | AF180: 0 | AG180: 0 | AH180: 0 | AI180: 0 | AJ180: 0 | AK180: 0 | AL180: 54.6 | AM180: 49.2
A181: 2000 | B181: S | C181: 170 | D181: 1 | E181: 165 | F181: 0 | G181: 3 | H181: 0 | I181: 0 | J181: 1 | K181: 0 | L181: 0 | M181: 0 | N181: 0 | O181: 0 | P181: 0 | Q181: 0 | R181: 51 | S181: 56 | T181: 25 | U181: 38 | V181: 0 | W181: 1 | X181: 8 | Y181: 34 | Z181: 122 | AA181: 5 | AB181: 0 | AC181: 0 | AD181: 0 | AE181: 0 | AF181: 0 | AG181: 0 | AH181: 0 | AI181: 0 | AJ181: 0 | AK181: 0 | AL181: 46.6 | AM181: 42
A182: 2000 | B182: P | C182: 136 | D182: 1 | E182: 129 | F182: 0 | G182: 1 | H182: 5 | I182: 0 | J182: 0 | K182: 0 | L182: 0 | M182: 0 | N182: 0 | O182: 0 | P182: 0 | Q182: 0 | R182: 39 | S182: 32 | T182: 33 | U182: 32 | V182: 0 | W182: 1 | X182: 5 | Y182: 19 | Z182: 81 | AA182: 28 | AB182: 2 | AC182: 0 | AD182: 0 | AE182: 0 | AF182: 0 | AG182: 0 | AH182: 0 | AI182: 0 | AJ182: 0 | AK182: 0 | AL182: 51 | AM182: 44.8
A183: 2100 | B183: S | C183: 58 | D183: 1 | E183: 56 | F183: 0 | G183: 1 | H183: 0 | I183: 0 | J183: 0 | K183: 0 | L183: 0 | M183: 0 | N183: 0 | O183: 0 | P183: 0 | Q183: 0 | R183: 24 | S183: 14 | T183: 9 | U183: 11 | V183: 0 | W183: 0 | X183: 3 | Y183: 10 | Z183: 41 | AA183: 3 | AB183: 1 | AC183: 0 | AD183: 0 | AE183: 0 | AF183: 0 | AG183: 0 | AH183: 0 | AI183: 0 | AJ183: 0 | AK183: 0 | AL183: 47.9 | AM183: 43.1
A184: 2100 | B184: P | C184: 97 | D184: 0 | E184: 90 | F184: 1 | G184: 1 | H184: 5 | I184: 0 | J184: 0 | K184: 0 | L184: 0 | M184: 0 | N184: 0 | O184: 0 | P184: 0 | Q184: 0 | R184: 33 | S184: 27 | T184: 15 | U184: 22 | V184: 0 | W184: 0 | X184: 2 | Y184: 13 | Z184: 48 | AA184: 32 | AB184: 1 | AC184: 1 | AD184: 0 | AE184: 0 | AF184: 0 | AG184: 0 | AH184: 0 | AI184: 0 | AJ184: 0 | AK184: 0 | AL184: 53.3 | AM184: 47
A185: 2200 | B185: S | C185: 40 | D185: 0 | E185: 39 | F185: 0 | G185: 1 | H185: 0 | I185: 0 | J185: 0 | K185: 0 | L185: 0 | M185: 0 | N185: 0 | O185: 0 | P185: 0 | Q185: 0 | R185: 12 | S185: 8 | T185: 12 | U185: 8 | V185: 0 | W185: 0 | X185: 0 | Y185: 12 | Z185: 25 | AA185: 2 | AB185: 1 | AC185: 0 | AD185: 0 | AE185: 0 | AF185: 0 | AG185: 0 | AH185: 0 | AI185: 0 | AJ185: 0 | AK185: 0 | AL185: 48.5 | AM185: 42.8
A186: 2200 | B186: P | C186: 70 | D186: 1 | E186: 66 | F186: 0 | G186: 1 | H186: 2 | I186: 0 | J186: 0 | K186: 0 | L186: 0 | M186: 0 | N186: 0 | O186: 0 | P186: 0 | Q186: 0 | R186: 18 | S186: 18 | T186: 18 | U186: 16 | V186: 0 | W186: 0 | X186: 1 | Y186: 10 | Z186: 37 | AA186: 19 | AB186: 3 | AC186: 0 | AD186: 0 | AE186: 0 | AF186: 0 | AG186: 0 | AH186: 0 | AI186: 0 | AJ186: 0 | AK186: 0 | AL186: 53.8 | AM186: 46.8
A187: 2300 | B187: S | C187: 20 | D187: 0 | E187: 20 | F187: 0 | G187: 0 | H187: 0 | I187: 0 | J187: 0 | K187: 0 | L187: 0 | M187: 0 | N187: 0 | O187: 0 | P187: 0 | Q187: 0 | R187: 6 | S187: 8 | T187: 1 | U187: 5 | V187: 0 | W187: 0 | X187: 0 | Y187: 2 | Z187: 14 | AA187: 4 | AB187: 0 | AC187: 0 | AD187: 0 | AE187: 0 | AF187: 0 | AG187: 0 | AH187: 0 | AI187: 0 | AJ187: 0 | AK187: 0 | AL187: 52.6 | AM187: 45.7
A188: 2300 | B188: P | C188: 35 | D188: 0 | E188: 34 | F188: 0 | G188: 0 | H188: 1 | I188: 0 | J188: 0 | K188: 0 | L188: 0 | M188: 0 | N188: 0 | O188: 0 | P188: 0 | Q188: 0 | R188: 11 | S188: 8 | T188: 5 | U188: 11 | V188: 0 | W188: 0 | X188: 0 | Y188: 1 | Z188: 14 | AA188: 19 | AB188: 1 | AC188: 0 | AD188: 0 | AE188: 0 | AF188: 0 | AG188: 0 | AH188: 0 | AI188: 0 | AJ188: 0 | AK188: 0 | AL188: 56 | AM188: 50.5
A189: 07-19 | B189: S | C189: 4486 | D189: 34 | E189: 4314 | F189: 49 | G189: 57 | H189: 17 | I189: 6 | J189: 6 | K189: 1 | L189: 0 | M189: 0 | N189: 0 | O189: 0 | P189: 1 | Q189: 1 | R189: 1095 | S189: 1087 | T189: 1139 | U189: 1165 | V189: 0 | W189: 6 | X189: 145 | Y189: 601 | Z189: 3529 | AA189: 205 | AB189: 0 | AC189: 0 | AD189: 0 | AE189: 0 | AF189: 0 | AG189: 0 | AH189: 0 | AI189: 0 | AJ189: 0 | AK189: 0 | AL189: 47.7 | AM189: 43.3
A190: 07-19 | B190: P | C190: 3888 | D190: 42 | E190: 3694 | F190: 23 | G190: 49 | H190: 67 | I190: 5 | J190: 3 | K190: 2 | L190: 1 | M190: 0 | N190: 0 | O190: 0 | P190: 0 | Q190: 2 | R190: 927 | S190: 962 | T190: 984 | U190: 1015 | V190: 0 | W190: 11 | X190: 47 | Y190: 375 | Z190: 2200 | AA190: 1198 | AB190: 52 | AC190: 4 | AD190: 1 | AE190: 0 | AF190: 0 | AG190: 0 | AH190: 0 | AI190: 0 | AJ190: 0 | AK190: 0 | AL190: 52.9 | AM190: 47.2
A191: 06-22 | B191: S | C191: 5302 | D191: 42 | E191: 5099 | F191: 56 | G191: 67 | H191: 22 | I191: 6 | J191: 7 | K191: 1 | L191: 0 | M191: 0 | N191: 0 | O191: 0 | P191: 1 | Q191: 1 | R191: 1298 | S191: 1275 | T191: 1326 | U191: 1403 | V191: 0 | W191: 7 | X191: 186 | Y191: 724 | Z191: 4125 | AA191: 259 | AB191: 1 | AC191: 0 | AD191: 0 | AE191: 0 | AF191: 0 | AG191: 0 | AH191: 0 | AI191: 0 | AJ191: 0 | AK191: 0 | AL191: 47.7 | AM191: 43.3
A192: 06-22 | B192: P | C192: 4370 | D192: 45 | E192: 4154 | F192: 24 | G192: 51 | H192: 83 | I192: 5 | J192: 3 | K192: 2 | L192: 1 | M192: 0 | N192: 0 | O192: 0 | P192: 0 | Q192: 2 | R192: 1075 | S192: 1084 | T192: 1073 | U192: 1138 | V192: 0 | W192: 12 | X192: 55 | Y192: 423 | Z192: 2448 | AA192: 1360 | AB192: 65 | AC192: 6 | AD192: 1 | AE192: 0 | AF192: 0 | AG192: 0 | AH192: 0 | AI192: 0 | AJ192: 0 | AK192: 0 | AL192: 52.9 | AM192: 47.3
A193: 06-00 | B193: S | C193: 5362 | D193: 42 | E193: 5158 | F193: 56 | G193: 68 | H193: 22 | I193: 6 | J193: 7 | K193: 1 | L193: 0 | M193: 0 | N193: 0 | O193: 0 | P193: 1 | Q193: 1 | R193: 1316 | S193: 1291 | T193: 1339 | U193: 1416 | V193: 0 | W193: 7 | X193: 186 | Y193: 738 | Z193: 4164 | AA193: 265 | AB193: 2 | AC193: 0 | AD193: 0 | AE193: 0 | AF193: 0 | AG193: 0 | AH193: 0 | AI193: 0 | AJ193: 0 | AK193: 0 | AL193: 47.7 | AM193: 43.3
A194: 06-00 | B194: P | C194: 4475 | D194: 46 | E194: 4254 | F194: 24 | G194: 52 | H194: 86 | I194: 5 | J194: 3 | K194: 2 | L194: 1 | M194: 0 | N194: 0 | O194: 0 | P194: 0 | Q194: 2 | R194: 1104 | S194: 1110 | T194: 1096 | U194: 1165 | V194: 0 | W194: 12 | X194: 56 | Y194: 434 | Z194: 2499 | AA194: 1398 | AB194: 69 | AC194: 6 | AD194: 1 | AE194: 0 | AF194: 0 | AG194: 0 | AH194: 0 | AI194: 0 | AJ194: 0 | AK194: 0 | AL194: 52.9 | AM194: 47.3
A195: 00-00 | B195: S | C195: 5582 | D195: 45 | E195: 5372 | F195: 58 | G195: 68 | H195: 23 | I195: 6 | J195: 7 | K195: 1 | L195: 0 | M195: 0 | N195: 0 | O195: 0 | P195: 1 | Q195: 1 | R195: 1344 | S195: 1328 | T195: 1412 | U195: 1498 | V195: 0 | W195: 8 | X195: 197 | Y195: 782 | Z195: 4305 | AA195: 288 | AB195: 2 | AC195: 0 | AD195: 0 | AE195: 0 | AF195: 0 | AG195: 0 | AH195: 0 | AI195: 0 | AJ195: 0 | AK195: 0 | AL195: 47.7 | AM195: 43.2
A196: 00-00 | B196: P | C196: 4532 | D196: 46 | E196: 4303 | F196: 25 | G196: 52 | H196: 93 | I196: 5 | J196: 3 | K196: 2 | L196: 1 | M196: 0 | N196: 0 | O196: 0 | P196: 0 | Q196: 2 | R196: 1122 | S196: 1124 | T196: 1105 | U196: 1181 | V196: 0 | W196: 12 | X196: 58 | Y196: 443 | Z196: 2531 | AA196: 1410 | AB196: 71 | AC196: 6 | AD196: 1 | AE196: 0 | AF196: 0 | AG196: 0 | AH196: 0 | AI196: 0 | AJ196: 0 | AK196: 0 | AL196: 52.9 | AM196: 47.3
A199: Saturday, November 2, 2024
A201: Time | B201: Cd | C201: Total | D201: Cls | E201: Cls | F201: Cls | G201: Cls | H201: Cls | I201: Cls | J201: Cls | K201: Cls | L201: Cls | M201: Cls | N201: Cls | O201: Cls | P201: Cls | Q201: Cls | R201: Drop | S201: Drop | T201: Drop | U201: Drop | V201: Vbin | W201: Vbin | X201: Vbin | Y201: Vbin | Z201: Vbin | AA201: Vbin | AB201: Vbin | AC201: Vbin | AD201: Vbin | AE201: Vbin | AF201: Vbin | AG201: Vbin | AH201: Vbin | AI201: Vbin | AJ201: Vbin | AK201: Vbin | AL201: Vpp | AM201: Mean
A202: [-- | D202: 1 | E202: 2 | F202: 3 | G202: 4 | H202: 5 | I202: 6 | J202: 7 | K202: 8 | L202: 9 | M202: 10 | N202: 11 | O202: 12 | P202: 13 | Q202: 14 | R202: --00 | S202: --15 | T202: --30 | U202: --45 | V202: 0 | W202: 10 | X202: 20 | Y202: 30 | Z202: 40 | AA202: 50 | AB202: 60 | AC202: 70 | AD202: 80 | AE202: 90 | AF202: 100 | AG202: 110 | AH202: 120 | AI202: 130 | AJ202: 140 | AK202: 150 | AL202: 85
V203: 10 | W203: 20 | X203: 30 | Y203: 40 | Z203: 50 | AA203: 60 | AB203: 70 | AC203: 80 | AD203: 90 | AE203: 100 | AF203: 110 | AG203: 120 | AH203: 130 | AI203: 140 | AJ203: 150 | AK203: 160
A204: 0000 | B204: S | C204: 18 | D204: 0 | E204: 18 | F204: 0 | G204: 0 | H204: 0 | I204: 0 | J204: 0 | K204: 0 | L204: 0 | M204: 0 | N204: 0 | O204: 0 | P204: 0 | Q204: 0 | R204: 7 | S204: 2 | T204: 7 | U204: 2 | V204: 0 | W204: 0 | X204: 1 | Y204: 5 | Z204: 10 | AA204: 2 | AB204: 0 | AC204: 0 | AD204: 0 | AE204: 0 | AF204: 0 | AG204: 0 | AH204: 0 | AI204: 0 | AJ204: 0 | AK204: 0 | AL204: 49 | AM204: 42.5
A205: 0000 | B205: P | C205: 17 | D205: 0 | E205: 17 | F205: 0 | G205: 0 | H205: 0 | I205: 0 | J205: 0 | K205: 0 | L205: 0 | M205: 0 | N205: 0 | O205: 0 | P205: 0 | Q205: 0 | R205: 6 | S205: 2 | T205: 8 | U205: 1 | V205: 0 | W205: 0 | X205: 0 | Y205: 4 | Z205: 9 | AA205: 3 | AB205: 0 | AC205: 1 | AD205: 0 | AE205: 0 | AF205: 0 | AG205: 0 | AH205: 0 | AI205: 0 | AJ205: 0 | AK205: 0 | AL205: 53.7 | AM205: 46.1
A206: 0100 | B206: S | C206: 2 | D206: 0 | E206: 2 | F206: 0 | G206: 0 | H206: 0 | I206: 0 | J206: 0 | K206: 0 | L206: 0 | M206: 0 | N206: 0 | O206: 0 | P206: 0 | Q206: 0 | R206: 1 | S206: 0 | T206: 0 | U206: 1 | V206: 0 | W206: 0 | X206: 0 | Y206: 0 | Z206: 2 | AA206: 0 | AB206: 0 | AC206: 0 | AD206: 0 | AE206: 0 | AF206: 0 | AG206: 0 | AH206: 0 | AI206: 0 | AJ206: 0 | AK206: 0 | AL206: 0 | AM206: 42.1
A207: 0100 | B207: P | C207: 8 | D207: 0 | E207: 8 | F207: 0 | G207: 0 | H207: 0 | I207: 0 | J207: 0 | K207: 0 | L207: 0 | M207: 0 | N207: 0 | O207: 0 | P207: 0 | Q207: 0 | R207: 2 | S207: 2 | T207: 3 | U207: 1 | V207: 0 | W207: 0 | X207: 0 | Y207: 1 | Z207: 4 | AA207: 3 | AB207: 0 | AC207: 0 | AD207: 0 | AE207: 0 | AF207: 0 | AG207: 0 | AH207: 0 | AI207: 0 | AJ207: 0 | AK207: 0 | AL207: 0 | AM207: 48.3
A208: 0200 | B208: S | C208: 2 | D208: 0 | E208: 2 | F208: 0 | G208: 0 | H208: 0 | I208: 0 | J208: 0 | K208: 0 | L208: 0 | M208: 0 | N208: 0 | O208: 0 | P208: 0 | Q208: 0 | R208: 1 | S208: 0 | T208: 1 | U208: 0 | V208: 0 | W208: 0 | X208: 0 | Y208: 0 | Z208: 2 | AA208: 0 | AB208: 0 | AC208: 0 | AD208: 0 | AE208: 0 | AF208: 0 | AG208: 0 | AH208: 0 | AI208: 0 | AJ208: 0 | AK208: 0 | AL208: 0 | AM208: 44.8
A209: 0200 | B209: P | C209: 9 | D209: 0 | E209: 8 | F209: 0 | G209: 0 | H209: 1 | I209: 0 | J209: 0 | K209: 0 | L209: 0 | M209: 0 | N209: 0 | O209: 0 | P209: 0 | Q209: 0 | R209: 4 | S209: 2 | T209: 1 | U209: 2 | V209: 0 | W209: 0 | X209: 0 | Y209: 0 | Z209: 9 | AA209: 0 | AB209: 0 | AC209: 0 | AD209: 0 | AE209: 0 | AF209: 0 | AG209: 0 | AH209: 0 | AI209: 0 | AJ209: 0 | AK209: 0 | AL209: 0 | AM209: 44.3
A210: 0300 | B210: S | C210: 9 | D210: 0 | E210: 9 | F210: 0 | G210: 0 | H210: 0 | I210: 0 | J210: 0 | K210: 0 | L210: 0 | M210: 0 | N210: 0 | O210: 0 | P210: 0 | Q210: 0 | R210: 3 | S210: 2 | T210: 3 | U210: 1 | V210: 0 | W210: 0 | X210: 0 | Y210: 3 | Z210: 5 | AA210: 1 | AB210: 0 | AC210: 0 | AD210: 0 | AE210: 0 | AF210: 0 | AG210: 0 | AH210: 0 | AI210: 0 | AJ210: 0 | AK210: 0 | AL210: 0 | AM210: 44.5
A211: 0300 | B211: P | C211: 5 | D211: 0 | E211: 5 | F211: 0 | G211: 0 | H211: 0 | I211: 0 | J211: 0 | K211: 0 | L211: 0 | M211: 0 | N211: 0 | O211: 0 | P211: 0 | Q211: 0 | R211: 1 | S211: 3 | T211: 0 | U211: 1 | V211: 0 | W211: 0 | X211: 1 | Y211: 0 | Z211: 1 | AA211: 1 | AB211: 2 | AC211: 0 | AD211: 0 | AE211: 0 | AF211: 0 | AG211: 0 | AH211: 0 | AI211: 0 | AJ211: 0 | AK211: 0 | AL211: 0 | AM211: 52.5
... 314 more rows

Sheet Input2 (hidden)

Sheet Peaks
E2: =IF(Input2!$A$1="","Direction 1","Direction 1 / Lane1") -> Direction 1 | M2: =IF(Input2!$A$1="","Direction 2","Direction 1 / Lane2") -> Direction 2 | U2: =IF(Input2!$A$1="","Both Directions","Direction 1 / Both Lanes") -> Both Directions | AC2: Daily Maximums
E3: =LEFT(Input!$A$10,3) -> Wed | F3: =LEFT(Input!$A$73,3) -> Thu | G3: =LEFT(Input!$A$136,3) -> Fri | H3: =LEFT(Input!$A$199,3) -> Sat | I3: =LEFT(Input!$A$262,3) -> Sun | J3: =LEFT(Input!$A$325,3) -> Mon | K3: =LEFT(Input!$A$388,3) -> Tue | M3: =LEFT(Input!$A$10,3) -> Wed | N3: =LEFT(Input!$A$73,3) -> Thu | O3: =LEFT(Input!$A$136,3) -> Fri | P3: =LEFT(Input!$A$199,3) -> Sat | Q3: =LEFT(Input!$A$262,3) -> Sun | R3: =LEFT(Input!$A$325,3) -> Mon | S3: =LEFT(Input!$A$388,3) -> Tue | U3: =LEFT(Input!$A$10,3) -> Wed | V3: =LEFT(Input!$A$73,3) -> Thu | W3: =LEFT(Input!$A$136,3) -> Fri | X3: =LEFT(Input!$A$199,3) -> Sat | Y3: =LEFT(Input!$A$262,3) -> Sun | Z3: =LEFT(Input!$A$325,3) -> Mon | AA3: =LEFT(Input!$A$388,3) -> Tue | AC3: =IF(Input2!$A$1="","Direction 1","Dir1/Lane1") -> Direction 1 | AD3: =IF(Input2!$A$1="","Direction 2","Dir1/Lane2") -> Direction 2 | AE3: =IF(Input2!$A$1="","Both","Dir1/Both") -> Both
B4: Morning | C4: 0515 | D4: 0615 | E4: =SUM(Input!$S$26:$U$26,Input!$R$28) -> 13 | F4: =SUM(Input!$S$89:$U$89,Input!$R$91) -> 17 | G4: =SUM(Input!$S$152:$U$152,Input!$R$154) -> 31 | H4: =SUM(Input!$S$215:$U$215,Input!$R$217) -> 14 | I4: =SUM(Input!$S$278:$U$278,Input!$R$280) -> 5 | J4: =SUM(Input!$S$341:$U$341,Input!$R$343) -> 19 | K4: =SUM(Input!$S$404:$U$404,Input!$R$406) -> 27 | M4: =SUM(Input!$S$25:$U$25,Input!$R$27) -> 250 | N4: =SUM(Input!$S$88:$U$88,Input!$R$90) -> 231 | O4: =SUM(Input!$S$151:$U$151,Input!$R$153) -> 231 | P4: =SUM(Input!$S$214:$U$214,Input!$R$216) -> 58 | Q4: =SUM(Input!$S$277:$U$277,Input!$R$279) -> 31 | R4: =SUM(Input!$S$340:$U$340,Input!$R$342) -> 241 | S4: =SUM(Input!$S$403:$U$403,Input!$R$405) -> 236 | U4: =E4+M4 -> 263 | V4: =F4+N4 -> 248 | W4: =G4+O4 -> 262 | X4: =H4+P4 -> 72 | Y4: =I4+Q4 -> 36 | Z4: =J4+R4 -> 260 | AA4: =K4+S4 -> 263 | AC4: =MAX(E4:K4) -> 31 | AD4: =MAX(M4:S4) -> 250 | AE4: =MAX(U4:AA4) -> 263
C5: 0530 | D5: 0630 | E5: =SUM(Input!$T$26:$U$26,Input!$R$28:$S$28) -> 15 | F5: =SUM(Input!$T$89:$U$89,Input!$R$91:$S$91) -> 22 | G5: =SUM(Input!$T$152:$U$152,Input!$R$154:$S$154) -> 35 | H5: =SUM(Input!$T$215:$U$215,Input!$R$217:$S$217) -> 18 | I5: =SUM(Input!$T$278:$U$278,Input!$R$280:$S$280) -> 7 | J5: =SUM(Input!$T$341:$U$341,Input!$R$343:$S$343) -> 19 | K5: =SUM(Input!$T$404:$U$404,Input!$R$406:$S$406) -> 31 | M5: =SUM(Input!$T$25:$U$25,Input!$R$27:$S$27) -> 301 | N5: =SUM(Input!$T$88:$U$88,Input!$R$90:$S$90) -> 302 | O5: =SUM(Input!$T$151:$U$151,Input!$R$153:$S$153) -> 271 | P5: =SUM(Input!$T$214:$U$214,Input!$R$216:$S$216) -> 74 | Q5: =SUM(Input!$T$277:$U$277,Input!$R$279:$S$279) -> 38 | R5: =SUM(Input!$T$340:$U$340,Input!$R$342:$S$342) -> 302 | S5: =SUM(Input!$T$403:$U$403,Input!$R$405:$S$405) -> 316 | U5: 316 | V5: 324 | W5: 306 | X5: 92 | Y5: 45 | Z5: 321 | AA5: 347 | AC5: 35 | AD5: 316 | AE5: =MAX(U5:AA5) -> 347
C6: 0545 | D6: 0645 | E6: =SUM(Input!$U$26,Input!$R$28:$T$28) -> 26 | F6: =SUM(Input!$U$89,Input!$R$91:$T$91) -> 29 | G6: =SUM(Input!$U$152,Input!$R$154:$T$154) -> 40 | H6: =SUM(Input!$U$215,Input!$R$217:$T$217) -> 24 | I6: =SUM(Input!$U$278,Input!$R$280:$T$280) -> 14 | J6: =SUM(Input!$U$341,Input!$R$343:$T$343) -> 30 | K6: =SUM(Input!$U$404,Input!$R$406:$T$406) -> 36 | M6: =SUM(Input!$U$25,Input!$R$27:$T$27) -> 381 | N6: =SUM(Input!$U$88,Input!$R$90:$T$90) -> 394 | O6: =SUM(Input!$U$151,Input!$R$153:$T$153) -> 343 | P6: =SUM(Input!$U$214,Input!$R$216:$T$216) -> 83 | Q6: =SUM(Input!$U$277,Input!$R$279:$T$279) -> 47 | R6: =SUM(Input!$U$340,Input!$R$342:$T$342) -> 381 | S6: =SUM(Input!$U$403,Input!$R$405:$T$405) -> 419 | U6: 407 | V6: 423 | W6: 383 | X6: 107 | Y6: 61 | Z6: 411 | AA6: 455 | AC6: 40 | AD6: 419 | AE6: 455
C7: 0600 | D7: 0700 | E7: =SUM(Input!$R$28:$U$28) -> 42 | F7: =SUM(Input!$R$91:$U$91) -> 41 | G7: =SUM(Input!$R$154:$U$154) -> 54 | H7: =SUM(Input!$R$217:$U$217) -> 24 | I7: =SUM(Input!$R$280:$U$280) -> 17 | J7: =SUM(Input!$R$343:$U$343) -> 45 | K7: =SUM(Input!$R$406:$U$406) -> 46 | M7: =SUM(Input!$R$27:$U$27) -> 454 | N7: =SUM(Input!$R$90:$U$90) -> 491 | O7: =SUM(Input!$R$153:$U$153) -> 424 | P7: =SUM(Input!$R$216:$U$216) -> 97 | Q7: =SUM(Input!$R$279:$U$279) -> 53 | R7: =SUM(Input!$R$342:$U$342) -> 459 | S7: =SUM(Input!$R$405:$U$405) -> 491 | U7: 496 | V7: 532 | W7: 478 | X7: 121 | Y7: 70 | Z7: 504 | AA7: 537 | AC7: 54 | AD7: 491 | AE7: 537
C8: 0615 | D8: 0715 | E8: =SUM(Input!$S$28:$U$28,Input!$R$30) -> 51 | F8: =SUM(Input!$S$91:$U$91,Input!$R$93) -> 52 | G8: =SUM(Input!$S$154:$U$154,Input!$R$156) -> 62 | H8: =SUM(Input!$S$217:$U$217,Input!$R$219) -> 32 | I8: =SUM(Input!$S$280:$U$280,Input!$R$282) -> 19 | J8: =SUM(Input!$S$343:$U$343,Input!$R$345) -> 59 | K8: =SUM(Input!$S$406:$U$406,Input!$R$408) -> 54 | M8: =SUM(Input!$S$27:$U$27,Input!$R$29) -> 525 | N8: =SUM(Input!$S$90:$U$90,Input!$R$92) -> 546 | O8: =SUM(Input!$S$153:$U$153,Input!$R$155) -> 492 | P8: =SUM(Input!$S$216:$U$216,Input!$R$218) -> 91 | Q8: =SUM(Input!$S$279:$U$279,Input!$R$281) -> 62 | R8: =SUM(Input!$S$342:$U$342,Input!$R$344) -> 521 | S8: =SUM(Input!$S$405:$U$405,Input!$R$407) -> 558 | U8: 576 | V8: 598 | W8: 554 | X8: 123 | Y8: 81 | Z8: 580 | AA8: 612 | AC8: 62 | AD8: 558 | AE8: 612
C9: 0630 | D9: 0730 | E9: =SUM(Input!$T$28:$U$28,Input!$R$30:$S$30) -> 66 | F9: =SUM(Input!$T$91:$U$91,Input!$R$93:$S$93) -> 62 | G9: =SUM(Input!$T$154:$U$154,Input!$R$156:$S$156) -> 79 | H9: =SUM(Input!$T$217:$U$217,Input!$R$219:$S$219) -> 41 | I9: =SUM(Input!$T$280:$U$280,Input!$R$282:$S$282) -> 28 | J9: =SUM(Input!$T$343:$U$343,Input!$R$345:$S$345) -> 77 | K9: =SUM(Input!$T$406:$U$406,Input!$R$408:$S$408) -> 66 | M9: =SUM(Input!$T$27:$U$27,Input!$R$29:$S$29) -> 569 | N9: =SUM(Input!$T$90:$U$90,Input!$R$92:$S$92) -> 595 | O9: =SUM(Input!$T$153:$U$153,Input!$R$155:$S$155) -> 541 | P9: =SUM(Input!$T$216:$U$216,Input!$R$218:$S$218) -> 103 | Q9: =SUM(Input!$T$279:$U$279,Input!$R$281:$S$281) -> 73 | R9: =SUM(Input!$T$342:$U$342,Input!$R$344:$S$344) -> 557 | S9: =SUM(Input!$T$405:$U$405,Input!$R$407:$S$407) -> 577 | U9: 635 | V9: 657 | W9: 620 | X9: 144 | Y9: 101 | Z9: 634 | AA9: 643 | AC9: 79 | AD9: 595 | AE9: 657
C10: 0645 | D10: 0745 | E10: =SUM(Input!$U$28,Input!$R$30:$T$30) -> 81 | F10: =SUM(Input!$U$91,Input!$R$93:$T$93) -> 85 | G10: =SUM(Input!$U$154,Input!$R$156:$T$156) -> 99 | H10: =SUM(Input!$U$217,Input!$R$219:$T$219) -> 45 | I10: =SUM(Input!$U$280,Input!$R$282:$T$282) -> 27 | J10: =SUM(Input!$U$343,Input!$R$345:$T$345) -> 99 | K10: =SUM(Input!$U$406,Input!$R$408:$T$408) -> 84 | M10: =SUM(Input!$U$27,Input!$R$29:$T$29) -> 546 | N10: =SUM(Input!$U$90,Input!$R$92:$T$92) -> 568 | O10: =SUM(Input!$U$153,Input!$R$155:$T$155) -> 537 | P10: =SUM(Input!$U$216,Input!$R$218:$T$218) -> 132 | Q10: =SUM(Input!$U$279,Input!$R$281:$T$281) -> 85 | R10: =SUM(Input!$U$342,Input!$R$344:$T$344) -> 552 | S10: =SUM(Input!$U$405,Input!$R$407:$T$407) -> 537 | U10: 627 | V10: 653 | W10: 636 | X10: 177 | Y10: 112 | Z10: 651 | AA10: 621 | AC10: 99 | AD10: 568 | AE10: 653
C11: 0700 | D11: 0800 | E11: =SUM(Input!$R$30:$U$30) -> 103 | F11: =SUM(Input!$R$93:$U$93) -> 99 | G11: =SUM(Input!$R$156:$U$156) -> 108 | H11: =SUM(Input!$R$219:$U$219) -> 56 | I11: =SUM(Input!$R$282:$U$282) -> 40 | J11: =SUM(Input!$R$345:$U$345) -> 120 | K11: =SUM(Input!$R$408:$U$408) -> 97 | M11: =SUM(Input!$R$29:$U$29) -> 547 | N11: =SUM(Input!$R$92:$U$92) -> 540 | O11: =SUM(Input!$R$155:$U$155) -> 517 | P11: =SUM(Input!$R$218:$U$218) -> 181 | Q11: =SUM(Input!$R$281:$U$281) -> 102 | R11: =SUM(Input!$R$344:$U$344) -> 548 | S11: =SUM(Input!$R$407:$U$407) -> 537 | U11: 650 | V11: 639 | W11: 625 | X11: 237 | Y11: 142 | Z11: 668 | AA11: 634 | AC11: 120 | AD11: 548 | AE11: 668
C12: 0715 | D12: 0815 | E12: =SUM(Input!$S$30:$U$30,Input!$R$32) -> 126 | F12: =SUM(Input!$S$93:$U$93,Input!$R$95) -> 121 | G12: =SUM(Input!$S$156:$U$156,Input!$R$158) -> 137 | H12: =SUM(Input!$S$219:$U$219,Input!$R$221) -> 60 | I12: =SUM(Input!$S$282:$U$282,Input!$R$284) -> 51 | J12: =SUM(Input!$S$345:$U$345,Input!$R$347) -> 143 | K12: =SUM(Input!$S$408:$U$408,Input!$R$410) -> 117 | M12: =SUM(Input!$S$29:$U$29,Input!$R$31) -> 545 | N12: =SUM(Input!$S$92:$U$92,Input!$R$94) -> 532 | O12: =SUM(Input!$S$155:$U$155,Input!$R$157) -> 516 | P12: =SUM(Input!$S$218:$U$218,Input!$R$220) -> 224 | Q12: =SUM(Input!$S$281:$U$281,Input!$R$283) -> 145 | R12: =SUM(Input!$S$344:$U$344,Input!$R$346) -> 531 | S12: =SUM(Input!$S$407:$U$407,Input!$R$409) -> 527 | U12: 671 | V12: 653 | W12: 653 | X12: 284 | Y12: 196 | Z12: 674 | AA12: 644 | AC12: 143 | AD12: 545 | AE12: 674
C13: 0730 | D13: 0830 | E13: =SUM(Input!$T$30:$U$30,Input!$R$32:$S$32) -> 172 | F13: =SUM(Input!$T$93:$U$93,Input!$R$95:$S$95) -> 180 | G13: =SUM(Input!$T$156:$U$156,Input!$R$158:$S$158) -> 166 | H13: =SUM(Input!$T$219:$U$219,Input!$R$221:$S$221) -> 67 | I13: =SUM(Input!$T$282:$U$282,Input!$R$284:$S$284) -> 59 | J13: =SUM(Input!$T$345:$U$345,Input!$R$347:$S$347) -> 179 | K13: =SUM(Input!$T$408:$U$408,Input!$R$410:$S$410) -> 161 | M13: =SUM(Input!$T$29:$U$29,Input!$R$31:$S$31) -> 561 | N13: =SUM(Input!$T$92:$U$92,Input!$R$94:$S$94) -> 567 | O13: =SUM(Input!$T$155:$U$155,Input!$R$157:$S$157) -> 569 | P13: =SUM(Input!$T$218:$U$218,Input!$R$220:$S$220) -> 262 | Q13: =SUM(Input!$T$281:$U$281,Input!$R$283:$S$283) -> 168 | R13: =SUM(Input!$T$344:$U$344,Input!$R$346:$S$346) -> 555 | S13: =SUM(Input!$T$407:$U$407,Input!$R$409:$S$409) -> 571 | U13: 733 | V13: 747 | W13: 735 | X13: 329 | Y13: 227 | Z13: 734 | AA13: 732 | AC13: 180 | AD13: 571 | AE13: 747
C14: 0745 | D14: 0845 | E14: =SUM(Input!$U$30,Input!$R$32:$T$32) -> 205 | F14: =SUM(Input!$U$93,Input!$R$95:$T$95) -> 206 | G14: =SUM(Input!$U$156,Input!$R$158:$T$158) -> 205 | H14: =SUM(Input!$U$219,Input!$R$221:$T$221) -> 83 | I14: =SUM(Input!$U$282,Input!$R$284:$T$284) -> 69 | J14: =SUM(Input!$U$345,Input!$R$347:$T$347) -> 199 | K14: =SUM(Input!$U$408,Input!$R$410:$T$410) -> 191 | M14: =SUM(Input!$U$29,Input!$R$31:$T$31) -> 640 | N14: =SUM(Input!$U$92,Input!$R$94:$T$94) -> 652 | O14: =SUM(Input!$U$155,Input!$R$157:$T$157) -> 672 | P14: =SUM(Input!$U$218,Input!$R$220:$T$220) -> 289 | Q14: =SUM(Input!$U$281,Input!$R$283:$T$283) -> 198 | R14: =SUM(Input!$U$344,Input!$R$346:$T$346) -> 625 | S14: =SUM(Input!$U$407,Input!$R$409:$T$409) -> 684 | U14: 845 | V14: 858 | W14: 877 | X14: 372 | Y14: 267 | Z14: 824 | AA14: 875 | AC14: 206 | AD14: 684 | AE14: 877
C15: 0800 | D15: 0900 | E15: =SUM(Input!$R$32:$U$32) -> 223 | F15: =SUM(Input!$R$95:$U$95) -> 236 | G15: =SUM(Input!$R$158:$U$158) -> 225 | H15: =SUM(Input!$R$221:$U$221) -> 94 | I15: =SUM(Input!$R$284:$U$284) -> 68 | J15: =SUM(Input!$R$347:$U$347) -> 211 | K15: =SUM(Input!$R$410:$U$410) -> 213 | M15: =SUM(Input!$R$31:$U$31) -> 656 | N15: =SUM(Input!$R$94:$U$94) -> 716 | O15: =SUM(Input!$R$157:$U$157) -> 709 | P15: =SUM(Input!$R$220:$U$220) -> 321 | Q15: =SUM(Input!$R$283:$U$283) -> 229 | R15: =SUM(Input!$R$346:$U$346) -> 642 | S15: =SUM(Input!$R$409:$U$409) -> 702 | U15: 879 | V15: 952 | W15: 934 | X15: 415 | Y15: 297 | Z15: 853 | AA15: 915 | AC15: 236 | AD15: 716 | AE15: 952
C16: 0815 | D16: 0915 | E16: =SUM(Input!$S$32:$U$32,Input!$R$34) -> 221 | F16: =SUM(Input!$S$95:$U$95,Input!$R$97) -> 236 | G16: =SUM(Input!$S$158:$U$158,Input!$R$160) -> 211 | H16: =SUM(Input!$S$221:$U$221,Input!$R$223) -> 109 | I16: =SUM(Input!$S$284:$U$284,Input!$R$286) -> 87 | J16: =SUM(Input!$S$347:$U$347,Input!$R$349) -> 224 | K16: =SUM(Input!$S$410:$U$410,Input!$R$412) -> 229 | M16: =SUM(Input!$S$31:$U$31,Input!$R$33) -> 620 | N16: =SUM(Input!$S$94:$U$94,Input!$R$96) -> 708 | O16: =SUM(Input!$S$157:$U$157,Input!$R$159) -> 678 | P16: =SUM(Input!$S$220:$U$220,Input!$R$222) -> 355 | Q16: =SUM(Input!$S$283:$U$283,Input!$R$285) -> 238 | R16: =SUM(Input!$S$346:$U$346,Input!$R$348) -> 640 | S16: =SUM(Input!$S$409:$U$409,Input!$R$411) -> 691 | U16: 841 | V16: 944 | W16: 889 | X16: 464 | Y16: 325 | Z16: 864 | AA16: 920 | AC16: 236 | AD16: 708 | AE16: 944
C17: 0830 | D17: 0930 | E17: =SUM(Input!$T$32:$U$32,Input!$R$34:$S$34) -> 189 | F17: =SUM(Input!$T$95:$U$95,Input!$R$97:$S$97) -> 203 | G17: =SUM(Input!$T$158:$U$158,Input!$R$160:$S$160) -> 205 | H17: =SUM(Input!$T$221:$U$221,Input!$R$223:$S$223) -> 135 | I17: =SUM(Input!$T$284:$U$284,Input!$R$286:$S$286) -> 104 | J17: =SUM(Input!$T$347:$U$347,Input!$R$349:$S$349) -> 206 | K17: =SUM(Input!$T$410:$U$410,Input!$R$412:$S$412) -> 218 | M17: =SUM(Input!$T$31:$U$31,Input!$R$33:$S$33) -> 592 | N17: =SUM(Input!$T$94:$U$94,Input!$R$96:$S$96) -> 658 | O17: =SUM(Input!$T$157:$U$157,Input!$R$159:$S$159) -> 599 | P17: =SUM(Input!$T$220:$U$220,Input!$R$222:$S$222) -> 377 | Q17: =SUM(Input!$T$283:$U$283,Input!$R$285:$S$285) -> 288 | R17: =SUM(Input!$T$346:$U$346,Input!$R$348:$S$348) -> 588 | S17: =SUM(Input!$T$409:$U$409,Input!$R$411:$S$411) -> 648 | U17: 781 | V17: 861 | W17: 804 | X17: 512 | Y17: 392 | Z17: 794 | AA17: 866 | AC17: 218 | AD17: 658 | AE17: 866
C18: 0845 | D18: 0945 | E18: =SUM(Input!$U$32,Input!$R$34:$T$34) -> 172 | F18: =SUM(Input!$U$95,Input!$R$97:$T$97) -> 183 | G18: =SUM(Input!$U$158,Input!$R$160:$T$160) -> 180 | H18: =SUM(Input!$U$221,Input!$R$223:$T$223) -> 144 | I18: =SUM(Input!$U$284,Input!$R$286:$T$286) -> 129 | J18: =SUM(Input!$U$347,Input!$R$349:$T$349) -> 181 | K18: =SUM(Input!$U$410,Input!$R$412:$T$412) -> 190 | M18: =SUM(Input!$U$31,Input!$R$33:$T$33) -> 485 | N18: =SUM(Input!$U$94,Input!$R$96:$T$96) -> 547 | O18: =SUM(Input!$U$157,Input!$R$159:$T$159) -> 468 | P18: =SUM(Input!$U$220,Input!$R$222:$T$222) -> 395 | Q18: =SUM(Input!$U$283,Input!$R$285:$T$285) -> 316 | R18: =SUM(Input!$U$346,Input!$R$348:$T$348) -> 466 | S18: =SUM(Input!$U$409,Input!$R$411:$T$411) -> 507 | U18: 657 | V18: 730 | W18: 648 | X18: 539 | Y18: 445 | Z18: 647 | AA18: 697 | AC18: 190 | AD18: 547 | AE18: 730
C19: 0900 | D19: 1000 | E19: =SUM(Input!$R$34:$U$34) -> 155 | F19: =SUM(Input!$R$97:$U$97) -> 159 | G19: =SUM(Input!$R$160:$U$160) -> 182 | H19: =SUM(Input!$R$223:$U$223) -> 159 | I19: =SUM(Input!$R$286:$U$286) -> 151 | J19: =SUM(Input!$R$349:$U$349) -> 163 | K19: =SUM(Input!$R$412:$U$412) -> 173 | M19: =SUM(Input!$R$33:$U$33) -> 395 | N19: =SUM(Input!$R$96:$U$96) -> 420 | O19: =SUM(Input!$R$159:$U$159) -> 397 | P19: =SUM(Input!$R$222:$U$222) -> 401 | Q19: =SUM(Input!$R$285:$U$285) -> 350 | R19: =SUM(Input!$R$348:$U$348) -> 380 | S19: =SUM(Input!$R$411:$U$411) -> 426 | U19: 550 | V19: 579 | W19: 579 | X19: 560 | Y19: 501 | Z19: 543 | AA19: 599 | AC19: 182 | AD19: 426 | AE19: 599
B21: Middle Day | C21: 0915 | D21: 1015 | E21: =SUM(Input!$S$34:$U$34,Input!$R$36) -> 153 | F21: =SUM(Input!$S$97:$U$97,Input!$R$99) -> 164 | G21: =SUM(Input!$S$160:$U$160,Input!$R$162) -> 186 | H21: =SUM(Input!$S$223:$U$223,Input!$R$225) -> 183 | I21: =SUM(Input!$S$286:$U$286,Input!$R$288) -> 165 | J21: =SUM(Input!$S$349:$U$349,Input!$R$351) -> 140 | K21: =SUM(Input!$S$412:$U$412,Input!$R$414) -> 163 | M21: =SUM(Input!$S$33:$U$33,Input!$R$35) -> 363 | N21: =SUM(Input!$S$96:$U$96,Input!$R$98) -> 397 | O21: =SUM(Input!$S$159:$U$159,Input!$R$161) -> 398 | P21: =SUM(Input!$S$222:$U$222,Input!$R$224) -> 415 | Q21: =SUM(Input!$S$285:$U$285,Input!$R$287) -> 374 | R21: =SUM(Input!$S$348:$U$348,Input!$R$350) -> 340 | S21: =SUM(Input!$S$411:$U$411,Input!$R$413) -> 363 | U21: =E21+M21 -> 516 | V21: =F21+N21 -> 561 | W21: =G21+O21 -> 584 | X21: =H21+P21 -> 598 | Y21: =I21+Q21 -> 539 | Z21: =J21+R21 -> 480 | AA21: =K21+S21 -> 526 | AC21: =MAX(E21:K21) -> 186 | AD21: =MAX(M21:S21) -> 415 | AE21: =MAX(U21:AA21) -> 598
C22: 0930 | D22: 1030 | E22: =SUM(Input!$T$34:$U$34,Input!$R$36:$S$36) -> 154 | F22: =SUM(Input!$T$97:$U$97,Input!$R$99:$S$99) -> 166 | G22: =SUM(Input!$T$160:$U$160,Input!$R$162:$S$162) -> 179 | H22: =SUM(Input!$T$223:$U$223,Input!$R$225:$S$225) -> 178 | I22: =SUM(Input!$T$286:$U$286,Input!$R$288:$S$288) -> 180 | J22: =SUM(Input!$T$349:$U$349,Input!$R$351:$S$351) -> 139 | K22: =SUM(Input!$T$412:$U$412,Input!$R$414:$S$414) -> 140 | M22: =SUM(Input!$T$33:$U$33,Input!$R$35:$S$35) -> 328 | N22: =SUM(Input!$T$96:$U$96,Input!$R$98:$S$98) -> 342 | O22: =SUM(Input!$T$159:$U$159,Input!$R$161:$S$161) -> 392 | P22: =SUM(Input!$T$222:$U$222,Input!$R$224:$S$224) -> 432 | Q22: =SUM(Input!$T$285:$U$285,Input!$R$287:$S$287) -> 373 | R22: =SUM(Input!$T$348:$U$348,Input!$R$350:$S$350) -> 300 | S22: =SUM(Input!$T$411:$U$411,Input!$R$413:$S$413) -> 305 | U22: 482 | V22: 508 | W22: 571 | X22: 610 | Y22: 553 | Z22: 439 | AA22: 445 | AC22: 180 | AD22: 432 | AE22: =MAX(U22:AA22) -> 610
C23: 0945 | D23: 1045 | E23: =SUM(Input!$U$34,Input!$R$36:$T$36) -> 147 | F23: =SUM(Input!$U$97,Input!$R$99:$T$99) -> 176 | G23: =SUM(Input!$U$160,Input!$R$162:$T$162) -> 166 | H23: =SUM(Input!$U$223,Input!$R$225:$T$225) -> 200 | I23: =SUM(Input!$U$286,Input!$R$288:$T$288) -> 194 | J23: =SUM(Input!$U$349,Input!$R$351:$T$351) -> 156 | K23: =SUM(Input!$U$412,Input!$R$414:$T$414) -> 157 | M23: =SUM(Input!$U$33,Input!$R$35:$T$35) -> 325 | N23: =SUM(Input!$U$96,Input!$R$98:$T$98) -> 315 | O23: =SUM(Input!$U$159,Input!$R$161:$T$161) -> 385 | P23: =SUM(Input!$U$222,Input!$R$224:$T$224) -> 429 | Q23: =SUM(Input!$U$285,Input!$R$287:$T$287) -> 374 | R23: =SUM(Input!$U$348,Input!$R$350:$T$350) -> 286 | S23: =SUM(Input!$U$411,Input!$R$413:$T$413) -> 282 | U23: 472 | V23: 491 | W23: 551 | X23: 629 | Y23: 568 | Z23: 442 | AA23: 439 | AC23: 200 | AD23: 429 | AE23: 629
C24: 1000 | D24: 1100 | E24: =SUM(Input!$R$36:$U$36) -> 149 | F24: =SUM(Input!$R$99:$U$99) -> 183 | G24: =SUM(Input!$R$162:$U$162) -> 155 | H24: =SUM(Input!$R$225:$U$225) -> 237 | I24: =SUM(Input!$R$288:$U$288) -> 215 | J24: =SUM(Input!$R$351:$U$351) -> 156 | K24: =SUM(Input!$R$414:$U$414) -> 156 | M24: =SUM(Input!$R$35:$U$35) -> 323 | N24: =SUM(Input!$R$98:$U$98) -> 317 | O24: =SUM(Input!$R$161:$U$161) -> 371 | P24: =SUM(Input!$R$224:$U$224) -> 419 | Q24: =SUM(Input!$R$287:$U$287) -> 378 | R24: =SUM(Input!$R$350:$U$350) -> 259 | S24: =SUM(Input!$R$413:$U$413) -> 263 | U24: 472 | V24: 500 | W24: 526 | X24: 656 | Y24: 593 | Z24: 415 | AA24: 419 | AC24: 237 | AD24: 419 | AE24: 656
C25: 1015 | D25: 1115 | E25: =SUM(Input!$S$36:$U$36,Input!$R$38) -> 160 | F25: =SUM(Input!$S$99:$U$99,Input!$R$101) -> 182 | G25: =SUM(Input!$S$162:$U$162,Input!$R$164) -> 168 | H25: =SUM(Input!$S$225:$U$225,Input!$R$227) -> 247 | I25: =SUM(Input!$S$288:$U$288,Input!$R$290) -> 222 | J25: =SUM(Input!$S$351:$U$351,Input!$R$353) -> 162 | K25: =SUM(Input!$S$414:$U$414,Input!$R$416) -> 155 | M25: =SUM(Input!$S$35:$U$35,Input!$R$37) -> 311 | N25: =SUM(Input!$S$98:$U$98,Input!$R$100) -> 297 | O25: =SUM(Input!$S$161:$U$161,Input!$R$163) -> 348 | P25: =SUM(Input!$S$224:$U$224,Input!$R$226) -> 409 | Q25: =SUM(Input!$S$287:$U$287,Input!$R$289) -> 382 | R25: =SUM(Input!$S$350:$U$350,Input!$R$352) -> 244 | S25: =SUM(Input!$S$413:$U$413,Input!$R$415) -> 265 | U25: 471 | V25: 479 | W25: 516 | X25: 656 | Y25: 604 | Z25: 406 | AA25: 420 | AC25: 247 | AD25: 409 | AE25: 656
C26: 1030 | D26: 1130 | E26: =SUM(Input!$T$36:$U$36,Input!$R$38:$S$38) -> 157 | F26: =SUM(Input!$T$99:$U$99,Input!$R$101:$S$101) -> 179 | G26: =SUM(Input!$T$162:$U$162,Input!$R$164:$S$164) -> 168 | H26: =SUM(Input!$T$225:$U$225,Input!$R$227:$S$227) -> 272 | I26: =SUM(Input!$T$288:$U$288,Input!$R$290:$S$290) -> 228 | J26: =SUM(Input!$T$351:$U$351,Input!$R$353:$S$353) -> 169 | K26: =SUM(Input!$T$414:$U$414,Input!$R$416:$S$416) -> 170 | M26: =SUM(Input!$T$35:$U$35,Input!$R$37:$S$37) -> 302 | N26: =SUM(Input!$T$98:$U$98,Input!$R$100:$S$100) -> 300 | O26: =SUM(Input!$T$161:$U$161,Input!$R$163:$S$163) -> 336 | P26: =SUM(Input!$T$224:$U$224,Input!$R$226:$S$226) -> 408 | Q26: =SUM(Input!$T$287:$U$287,Input!$R$289:$S$289) -> 378 | R26: =SUM(Input!$T$350:$U$350,Input!$R$352:$S$352) -> 244 | S26: =SUM(Input!$T$413:$U$413,Input!$R$415:$S$415) -> 274 | U26: 459 | V26: 479 | W26: 504 | X26: 680 | Y26: 606 | Z26: 413 | AA26: 444 | AC26: 272 | AD26: 408 | AE26: 680
C27: 1045 | D27: 1145 | E27: =SUM(Input!$U$36,Input!$R$38:$T$38) -> 171 | F27: =SUM(Input!$U$99,Input!$R$101:$T$101) -> 165 | G27: =SUM(Input!$U$162,Input!$R$164:$T$164) -> 179 | H27: =SUM(Input!$U$225,Input!$R$227:$T$227) -> 274 | I27: =SUM(Input!$U$288,Input!$R$290:$T$290) -> 236 | J27: =SUM(Input!$U$351,Input!$R$353:$T$353) -> 169 | K27: =SUM(Input!$U$414,Input!$R$416:$T$416) -> 176 | M27: =SUM(Input!$U$35,Input!$R$37:$T$37) -> 282 | N27: =SUM(Input!$U$98,Input!$R$100:$T$100) -> 296 | O27: =SUM(Input!$U$161,Input!$R$163:$T$163) -> 316 | P27: =SUM(Input!$U$224,Input!$R$226:$T$226) -> 392 | Q27: =SUM(Input!$U$287,Input!$R$289:$T$289) -> 368 | R27: =SUM(Input!$U$350,Input!$R$352:$T$352) -> 254 | S27: =SUM(Input!$U$413,Input!$R$415:$T$415) -> 265 | U27: 453 | V27: 461 | W27: 495 | X27: 666 | Y27: 604 | Z27: 423 | AA27: 441 | AC27: 274 | AD27: 392 | AE27: 666
C28: 1100 | D28: 1200 | E28: =SUM(Input!$R$38:$U$38) -> 172 | F28: =SUM(Input!$R$101:$U$101) -> 156 | G28: =SUM(Input!$R$164:$U$164) -> 203 | H28: =SUM(Input!$R$227:$U$227) -> 259 | I28: =SUM(Input!$R$290:$U$290) -> 252 | J28: =SUM(Input!$R$353:$U$353) -> 193 | K28: =SUM(Input!$R$416:$U$416) -> 189 | M28: =SUM(Input!$R$37:$U$37) -> 282 | N28: =SUM(Input!$R$100:$U$100) -> 284 | O28: =SUM(Input!$R$163:$U$163) -> 306 | P28: =SUM(Input!$R$226:$U$226) -> 377 | Q28: =SUM(Input!$R$289:$U$289) -> 352 | R28: =SUM(Input!$R$352:$U$352) -> 271 | S28: =SUM(Input!$R$415:$U$415) -> 266 | U28: 454 | V28: 440 | W28: 509 | X28: 636 | Y28: 604 | Z28: 464 | AA28: 455 | AC28: 259 | AD28: 377 | AE28: 636
C29: 1115 | D29: 1215 | E29: =SUM(Input!$S$38:$U$38,Input!$R$40) -> 187 | F29: =SUM(Input!$S$101:$U$101,Input!$R$103) -> 150 | G29: =SUM(Input!$S$164:$U$164,Input!$R$166) -> 215 | H29: =SUM(Input!$S$227:$U$227,Input!$R$229) -> 274 | I29: =SUM(Input!$S$290:$U$290,Input!$R$292) -> 280 | J29: =SUM(Input!$S$353:$U$353,Input!$R$355) -> 192 | K29: =SUM(Input!$S$416:$U$416,Input!$R$418) -> 190 | M29: =SUM(Input!$S$37:$U$37,Input!$R$39) -> 275 | N29: =SUM(Input!$S$100:$U$100,Input!$R$102) -> 266 | O29: =SUM(Input!$S$163:$U$163,Input!$R$165) -> 276 | P29: =SUM(Input!$S$226:$U$226,Input!$R$228) -> 366 | Q29: =SUM(Input!$S$289:$U$289,Input!$R$291) -> 357 | R29: =SUM(Input!$S$352:$U$352,Input!$R$354) -> 278 | S29: =SUM(Input!$S$415:$U$415,Input!$R$417) -> 265 | U29: 462 | V29: 416 | W29: 491 | X29: 640 | Y29: 637 | Z29: 470 | AA29: 455 | AC29: 280 | AD29: 366 | AE29: 640
C30: 1130 | D30: 1230 | E30: =SUM(Input!$T$38:$U$38,Input!$R$40:$S$40) -> 202 | F30: =SUM(Input!$T$101:$U$101,Input!$R$103:$S$103) -> 165 | G30: =SUM(Input!$T$164:$U$164,Input!$R$166:$S$166) -> 236 | H30: =SUM(Input!$T$227:$U$227,Input!$R$229:$S$229) -> 295 | I30: =SUM(Input!$T$290:$U$290,Input!$R$292:$S$292) -> 292 | J30: =SUM(Input!$T$353:$U$353,Input!$R$355:$S$355) -> 200 | K30: =SUM(Input!$T$416:$U$416,Input!$R$418:$S$418) -> 194 | M30: =SUM(Input!$T$37:$U$37,Input!$R$39:$S$39) -> 278 | N30: =SUM(Input!$T$100:$U$100,Input!$R$102:$S$102) -> 239 | O30: =SUM(Input!$T$163:$U$163,Input!$R$165:$S$165) -> 261 | P30: =SUM(Input!$T$226:$U$226,Input!$R$228:$S$228) -> 361 | Q30: =SUM(Input!$T$289:$U$289,Input!$R$291:$S$291) -> 356 | R30: =SUM(Input!$T$352:$U$352,Input!$R$354:$S$354) -> 269 | S30: =SUM(Input!$T$415:$U$415,Input!$R$417:$S$417) -> 241 | U30: 480 | V30: 404 | W30: 497 | X30: 656 | Y30: 648 | Z30: 469 | AA30: 435 | AC30: 295 | AD30: 361 | AE30: 656
C31: 1145 | D31: 1245 | E31: =SUM(Input!$U$38,Input!$R$40:$T$40) -> 199 | F31: =SUM(Input!$U$101,Input!$R$103:$T$103) -> 189 | G31: =SUM(Input!$U$164,Input!$R$166:$T$166) -> 252 | H31: =SUM(Input!$U$227,Input!$R$229:$T$229) -> 308 | I31: =SUM(Input!$U$290,Input!$R$292:$T$292) -> 296 | J31: =SUM(Input!$U$353,Input!$R$355:$T$355) -> 216 | K31: =SUM(Input!$U$416,Input!$R$418:$T$418) -> 192 | M31: =SUM(Input!$U$37,Input!$R$39:$T$39) -> 282 | N31: =SUM(Input!$U$100,Input!$R$102:$T$102) -> 230 | O31: =SUM(Input!$U$163,Input!$R$165:$T$165) -> 265 | P31: =SUM(Input!$U$226,Input!$R$228:$T$228) -> 374 | Q31: =SUM(Input!$U$289,Input!$R$291:$T$291) -> 372 | R31: =SUM(Input!$U$352,Input!$R$354:$T$354) -> 257 | S31: =SUM(Input!$U$415,Input!$R$417:$T$417) -> 229 | U31: 481 | V31: 419 | W31: 517 | X31: 682 | Y31: 668 | Z31: 473 | AA31: 421 | AC31: 308 | AD31: 374 | AE31: 682
C32: 1200 | D32: 1300 | E32: =SUM(Input!$R$40:$U$40) -> 204 | F32: =SUM(Input!$R$103:$U$103) -> 214 | G32: =SUM(Input!$R$166:$U$166) -> 245 | H32: =SUM(Input!$R$229:$U$229) -> 315 | I32: =SUM(Input!$R$292:$U$292) -> 295 | J32: =SUM(Input!$R$355:$U$355) -> 207 | K32: =SUM(Input!$R$418:$U$418) -> 194 | M32: =SUM(Input!$R$39:$U$39) -> 270 | N32: =SUM(Input!$R$102:$U$102) -> 213 | O32: =SUM(Input!$R$165:$U$165) -> 251 | P32: =SUM(Input!$R$228:$U$228) -> 360 | Q32: =SUM(Input!$R$291:$U$291) -> 373 | R32: =SUM(Input!$R$354:$U$354) -> 245 | S32: =SUM(Input!$R$417:$U$417) -> 225 | U32: 474 | V32: 427 | W32: 496 | X32: 675 | Y32: 668 | Z32: 452 | AA32: 419 | AC32: 315 | AD32: 373 | AE32: 675
C33: 1215 | D33: 1315 | E33: =SUM(Input!$S$40:$U$40,Input!$R$42) -> 186 | F33: =SUM(Input!$S$103:$U$103,Input!$R$105) -> 224 | G33: =SUM(Input!$S$166:$U$166,Input!$R$168) -> 233 | H33: =SUM(Input!$S$229:$U$229,Input!$R$231) -> 320 | I33: =SUM(Input!$S$292:$U$292,Input!$R$294) -> 304 | J33: =SUM(Input!$S$355:$U$355,Input!$R$357) -> 208 | K33: =SUM(Input!$S$418:$U$418,Input!$R$420) -> 197 | M33: =SUM(Input!$S$39:$U$39,Input!$R$41) -> 261 | N33: =SUM(Input!$S$102:$U$102,Input!$R$104) -> 212 | O33: =SUM(Input!$S$165:$U$165,Input!$R$167) -> 247 | P33: =SUM(Input!$S$228:$U$228,Input!$R$230) -> 356 | Q33: =SUM(Input!$S$291:$U$291,Input!$R$293) -> 350 | R33: =SUM(Input!$S$354:$U$354,Input!$R$356) -> 227 | S33: =SUM(Input!$S$417:$U$417,Input!$R$419) -> 220 | U33: 447 | V33: 436 | W33: 480 | X33: 676 | Y33: 654 | Z33: 435 | AA33: 417 | AC33: 320 | AD33: 356 | AE33: 676
C34: 1230 | D34: 1330 | E34: =SUM(Input!$T$40:$U$40,Input!$R$42:$S$42) -> 180 | F34: =SUM(Input!$T$103:$U$103,Input!$R$105:$S$105) -> 224 | G34: =SUM(Input!$T$166:$U$166,Input!$R$168:$S$168) -> 208 | H34: =SUM(Input!$T$229:$U$229,Input!$R$231:$S$231) -> 309 | I34: =SUM(Input!$T$292:$U$292,Input!$R$294:$S$294) -> 325 | J34: =SUM(Input!$T$355:$U$355,Input!$R$357:$S$357) -> 208 | K34: =SUM(Input!$T$418:$U$418,Input!$R$420:$S$420) -> 207 | M34: =SUM(Input!$T$39:$U$39,Input!$R$41:$S$41) -> 223 | N34: =SUM(Input!$T$102:$U$102,Input!$R$104:$S$104) -> 222 | O34: =SUM(Input!$T$165:$U$165,Input!$R$167:$S$167) -> 241 | P34: =SUM(Input!$T$228:$U$228,Input!$R$230:$S$230) -> 321 | Q34: =SUM(Input!$T$291:$U$291,Input!$R$293:$S$293) -> 335 | R34: =SUM(Input!$T$354:$U$354,Input!$R$356:$S$356) -> 224 | S34: =SUM(Input!$T$417:$U$417,Input!$R$419:$S$419) -> 216 | U34: 403 | V34: 446 | W34: 449 | X34: 630 | Y34: 660 | Z34: 432 | AA34: 423 | AC34: 325 | AD34: 335 | AE34: 660
C35: 1245 | D35: 1345 | E35: =SUM(Input!$U$40,Input!$R$42:$T$42) -> 192 | F35: =SUM(Input!$U$103,Input!$R$105:$T$105) -> 230 | G35: =SUM(Input!$U$166,Input!$R$168:$T$168) -> 215 | H35: =SUM(Input!$U$229,Input!$R$231:$T$231) -> 309 | I35: =SUM(Input!$U$292,Input!$R$294:$T$294) -> 341 | J35: =SUM(Input!$U$355,Input!$R$357:$T$357) -> 191 | K35: =SUM(Input!$U$418,Input!$R$420:$T$420) -> 197 | M35: =SUM(Input!$U$39,Input!$R$41:$T$41) -> 210 | N35: =SUM(Input!$U$102,Input!$R$104:$T$104) -> 236 | O35: =SUM(Input!$U$165,Input!$R$167:$T$167) -> 237 | P35: =SUM(Input!$U$228,Input!$R$230:$T$230) -> 316 | Q35: =SUM(Input!$U$291,Input!$R$293:$T$293) -> 318 | R35: =SUM(Input!$U$354,Input!$R$356:$T$356) -> 208 | S35: =SUM(Input!$U$417,Input!$R$419:$T$419) -> 226 | U35: 402 | V35: 466 | W35: 452 | X35: 625 | Y35: 659 | Z35: 399 | AA35: 423 | AC35: 341 | AD35: 318 | AE35: 659
C36: 1300 | D36: 1400 | E36: =SUM(Input!$R$42:$U$42) -> 193 | F36: =SUM(Input!$R$105:$U$105) -> 237 | G36: =SUM(Input!$R$168:$U$168) -> 219 | H36: =SUM(Input!$R$231:$U$231) -> 320 | I36: =SUM(Input!$R$294:$U$294) -> 341 | J36: =SUM(Input!$R$357:$U$357) -> 198 | K36: =SUM(Input!$R$420:$U$420) -> 208 | M36: =SUM(Input!$R$41:$U$41) -> 206 | N36: =SUM(Input!$R$104:$U$104) -> 239 | O36: =SUM(Input!$R$167:$U$167) -> 244 | P36: =SUM(Input!$R$230:$U$230) -> 324 | Q36: =SUM(Input!$R$293:$U$293) -> 306 | R36: =SUM(Input!$R$356:$U$356) -> 203 | S36: =SUM(Input!$R$419:$U$419) -> 231 | U36: 399 | V36: 476 | W36: 463 | X36: 644 | Y36: 647 | Z36: 401 | AA36: 439 | AC36: 341 | AD36: 324 | AE36: 647
C37: 1315 | D37: 1415 | E37: =SUM(Input!$S$42:$U$42,Input!$R$44) -> 218 | F37: =SUM(Input!$S$105:$U$105,Input!$R$107) -> 253 | G37: =SUM(Input!$S$168:$U$168,Input!$R$170) -> 253 | H37: =SUM(Input!$S$231:$U$231,Input!$R$233) -> 319 | I37: =SUM(Input!$S$294:$U$294,Input!$R$296) -> 303 | J37: =SUM(Input!$S$357:$U$357,Input!$R$359) -> 228 | K37: =SUM(Input!$S$420:$U$420,Input!$R$422) -> 214 | M37: =SUM(Input!$S$41:$U$41,Input!$R$43) -> 210 | N37: =SUM(Input!$S$104:$U$104,Input!$R$106) -> 230 | O37: =SUM(Input!$S$167:$U$167,Input!$R$169) -> 254 | P37: =SUM(Input!$S$230:$U$230,Input!$R$232) -> 323 | Q37: =SUM(Input!$S$293:$U$293,Input!$R$295) -> 304 | R37: =SUM(Input!$S$356:$U$356,Input!$R$358) -> 195 | S37: =SUM(Input!$S$419:$U$419,Input!$R$421) -> 217 | U37: 428 | V37: 483 | W37: 507 | X37: 642 | Y37: 607 | Z37: 423 | AA37: 431 | AC37: 319 | AD37: 323 | AE37: 642
C38: 1330 | D38: 1430 | E38: =SUM(Input!$T$42:$U$42,Input!$R$44:$S$44) -> 239 | F38: =SUM(Input!$T$105:$U$105,Input!$R$107:$S$107) -> 272 | G38: =SUM(Input!$T$168:$U$168,Input!$R$170:$S$170) -> 315 | H38: =SUM(Input!$T$231:$U$231,Input!$R$233:$S$233) -> 306 | I38: =SUM(Input!$T$294:$U$294,Input!$R$296:$S$296) -> 282 | J38: =SUM(Input!$T$357:$U$357,Input!$R$359:$S$359) -> 250 | K38: =SUM(Input!$T$420:$U$420,Input!$R$422:$S$422) -> 214 | M38: =SUM(Input!$T$41:$U$41,Input!$R$43:$S$43) -> 229 | N38: =SUM(Input!$T$104:$U$104,Input!$R$106:$S$106) -> 228 | O38: =SUM(Input!$T$167:$U$167,Input!$R$169:$S$169) -> 266 | P38: =SUM(Input!$T$230:$U$230,Input!$R$232:$S$232) -> 325 | Q38: =SUM(Input!$T$293:$U$293,Input!$R$295:$S$295) -> 306 | R38: =SUM(Input!$T$356:$U$356,Input!$R$358:$S$358) -> 206 | S38: =SUM(Input!$T$419:$U$419,Input!$R$421:$S$421) -> 237 | U38: 468 | V38: 500 | W38: 581 | X38: 631 | Y38: 588 | Z38: 456 | AA38: 451 | AC38: 315 | AD38: 325 | AE38: 631
C39: 1345 | D39: 1445 | E39: =SUM(Input!$U$42,Input!$R$44:$T$44) -> 283 | F39: =SUM(Input!$U$105,Input!$R$107:$T$107) -> 298 | G39: =SUM(Input!$U$168,Input!$R$170:$T$170) -> 362 | H39: =SUM(Input!$U$231,Input!$R$233:$T$233) -> 299 | I39: =SUM(Input!$U$294,Input!$R$296:$T$296) -> 258 | J39: =SUM(Input!$U$357,Input!$R$359:$T$359) -> 285 | K39: =SUM(Input!$U$420,Input!$R$422:$T$422) -> 272 | M39: =SUM(Input!$U$41,Input!$R$43:$T$43) -> 273 | N39: =SUM(Input!$U$104,Input!$R$106:$T$106) -> 234 | O39: =SUM(Input!$U$167,Input!$R$169:$T$169) -> 268 | P39: =SUM(Input!$U$230,Input!$R$232:$T$232) -> 305 | Q39: =SUM(Input!$U$293,Input!$R$295:$T$295) -> 294 | R39: =SUM(Input!$U$356,Input!$R$358:$T$358) -> 243 | S39: =SUM(Input!$U$419,Input!$R$421:$T$421) -> 254 | U39: 556 | V39: 532 | W39: 630 | X39: 604 | Y39: 552 | Z39: 528 | AA39: 526 | AC39: 362 | AD39: 305 | AE39: 630
C40: 1400 | D40: 1500 | E40: =SUM(Input!$R$44:$U$44) -> 322 | F40: =SUM(Input!$R$107:$U$107) -> 299 | G40: =SUM(Input!$R$170:$U$170) -> 407 | H40: =SUM(Input!$R$233:$U$233) -> 305 | I40: =SUM(Input!$R$296:$U$296) -> 263 | J40: =SUM(Input!$R$359:$U$359) -> 322 | K40: =SUM(Input!$R$422:$U$422) -> 297 | M40: =SUM(Input!$R$43:$U$43) -> 330 | N40: =SUM(Input!$R$106:$U$106) -> 276 | O40: =SUM(Input!$R$169:$U$169) -> 291 | P40: =SUM(Input!$R$232:$U$232) -> 317 | Q40: =SUM(Input!$R$295:$U$295) -> 293 | R40: =SUM(Input!$R$358:$U$358) -> 282 | S40: =SUM(Input!$R$421:$U$421) -> 277 | U40: 652 | V40: 575 | W40: 698 | X40: 622 | Y40: 556 | Z40: 604 | AA40: 574 | AC40: 407 | AD40: 330 | AE40: 698
B42: Evening | C42: 1415 | D42: 1515 | E42: =SUM(Input!$S$44:$U$44,Input!$R$46) -> 366 | F42: =SUM(Input!$S$107:$U$107,Input!$R$109) -> 361 | G42: =SUM(Input!$S$170:$U$170,Input!$R$172) -> 426 | H42: =SUM(Input!$S$233:$U$233,Input!$R$235) -> 306 | I42: =SUM(Input!$S$296:$U$296,Input!$R$298) -> 300 | J42: =SUM(Input!$S$359:$U$359,Input!$R$361) -> 357 | K42: =SUM(Input!$S$422:$U$422,Input!$R$424) -> 341 | M42: =SUM(Input!$S$43:$U$43,Input!$R$45) -> 377 | N42: =SUM(Input!$S$106:$U$106,Input!$R$108) -> 304 | O42: =SUM(Input!$S$169:$U$169,Input!$R$171) -> 316 | P42: =SUM(Input!$S$232:$U$232,Input!$R$234) -> 296 | Q42: =SUM(Input!$S$295:$U$295,Input!$R$297) -> 279 | R42: =SUM(Input!$S$358:$U$358,Input!$R$360) -> 320 | S42: =SUM(Input!$S$421:$U$421,Input!$R$423) -> 324 | U42: =E42+M42 -> 743 | V42: =F42+N42 -> 665 | W42: =G42+O42 -> 742 | X42: =H42+P42 -> 602 | Y42: =I42+Q42 -> 579 | Z42: =J42+R42 -> 677 | AA42: =K42+S42 -> 665 | AC42: =MAX(E42:K42) -> 426 | AD42: =MAX(M42:S42) -> 377 | AE42: =MAX(U42:AA42) -> 743
C43: 1430 | D43: 1530 | E43: =SUM(Input!$T$44:$U$44,Input!$R$46:$S$46) -> 435 | F43: =SUM(Input!$T$107:$U$107,Input!$R$109:$S$109) -> 399 | G43: =SUM(Input!$T$170:$U$170,Input!$R$172:$S$172) -> 459 | H43: =SUM(Input!$T$233:$U$233,Input!$R$235:$S$235) -> 319 | I43: =SUM(Input!$T$296:$U$296,Input!$R$298:$S$298) -> 295 | J43: =SUM(Input!$T$359:$U$359,Input!$R$361:$S$361) -> 398 | K43: =SUM(Input!$T$422:$U$422,Input!$R$424:$S$424) -> 400 | M43: =SUM(Input!$T$43:$U$43,Input!$R$45:$S$45) -> 422 | N43: =SUM(Input!$T$106:$U$106,Input!$R$108:$S$108) -> 348 | O43: =SUM(Input!$T$169:$U$169,Input!$R$171:$S$171) -> 350 | P43: =SUM(Input!$T$232:$U$232,Input!$R$234:$S$234) -> 300 | Q43: =SUM(Input!$T$295:$U$295,Input!$R$297:$S$297) -> 283 | R43: =SUM(Input!$T$358:$U$358,Input!$R$360:$S$360) -> 371 | S43: =SUM(Input!$T$421:$U$421,Input!$R$423:$S$423) -> 357 | U43: 857 | V43: 747 | W43: 809 | X43: 619 | Y43: 578 | Z43: 769 | AA43: 757 | AC43: 459 | AD43: 422 | AE43: =MAX(U43:AA43) -> 857
C44: 1445 | D44: 1545 | E44: =SUM(Input!$U$44,Input!$R$46:$T$46) -> 454 | F44: =SUM(Input!$U$107,Input!$R$109:$T$109) -> 425 | G44: =SUM(Input!$U$170,Input!$R$172:$T$172) -> 496 | H44: =SUM(Input!$U$233,Input!$R$235:$T$235) -> 343 | I44: =SUM(Input!$U$296,Input!$R$298:$T$298) -> 321 | J44: =SUM(Input!$U$359,Input!$R$361:$T$361) -> 473 | K44: =SUM(Input!$U$422,Input!$R$424:$T$424) -> 426 | M44: =SUM(Input!$U$43,Input!$R$45:$T$45) -> 454 | N44: =SUM(Input!$U$106,Input!$R$108:$T$108) -> 377 | O44: =SUM(Input!$U$169,Input!$R$171:$T$171) -> 381 | P44: =SUM(Input!$U$232,Input!$R$234:$T$234) -> 316 | Q44: =SUM(Input!$U$295,Input!$R$297:$T$297) -> 293 | R44: =SUM(Input!$U$358,Input!$R$360:$T$360) -> 389 | S44: =SUM(Input!$U$421,Input!$R$423:$T$423) -> 386 | U44: 908 | V44: 802 | W44: 877 | X44: 659 | Y44: 614 | Z44: 862 | AA44: 812 | AC44: 496 | AD44: 454 | AE44: 908
C45: 1500 | D45: 1600 | E45: =SUM(Input!$R$46:$U$46) -> 488 | F45: =SUM(Input!$R$109:$U$109) -> 508 | G45: =SUM(Input!$R$172:$U$172) -> 524 | H45: =SUM(Input!$R$235:$U$235) -> 328 | I45: =SUM(Input!$R$298:$U$298) -> 308 | J45: =SUM(Input!$R$361:$U$361) -> 546 | K45: =SUM(Input!$R$424:$U$424) -> 478 | M45: =SUM(Input!$R$45:$U$45) -> 430 | N45: =SUM(Input!$R$108:$U$108) -> 375 | O45: =SUM(Input!$R$171:$U$171) -> 403 | P45: =SUM(Input!$R$234:$U$234) -> 286 | Q45: =SUM(Input!$R$297:$U$297) -> 286 | R45: =SUM(Input!$R$360:$U$360) -> 374 | S45: =SUM(Input!$R$423:$U$423) -> 386 | U45: 918 | V45: 883 | W45: 927 | X45: 614 | Y45: 594 | Z45: 920 | AA45: 864 | AC45: 546 | AD45: 430 | AE45: 927
C46: 1515 | D46: 1615 | E46: =SUM(Input!$S$46:$U$46,Input!$R$48) -> 497 | F46: =SUM(Input!$S$109:$U$109,Input!$R$111) -> 548 | G46: =SUM(Input!$S$172:$U$172,Input!$R$174) -> 570 | H46: =SUM(Input!$S$235:$U$235,Input!$R$237) -> 333 | I46: =SUM(Input!$S$298:$U$298,Input!$R$300) -> 296 | J46: =SUM(Input!$S$361:$U$361,Input!$R$363) -> 598 | K46: =SUM(Input!$S$424:$U$424,Input!$R$426) -> 518 | M46: =SUM(Input!$S$45:$U$45,Input!$R$47) -> 416 | N46: =SUM(Input!$S$108:$U$108,Input!$R$110) -> 387 | O46: =SUM(Input!$S$171:$U$171,Input!$R$173) -> 389 | P46: =SUM(Input!$S$234:$U$234,Input!$R$236) -> 309 | Q46: =SUM(Input!$S$297:$U$297,Input!$R$299) -> 283 | R46: =SUM(Input!$S$360:$U$360,Input!$R$362) -> 379 | S46: =SUM(Input!$S$423:$U$423,Input!$R$425) -> 378 | U46: 913 | V46: 935 | W46: 959 | X46: 642 | Y46: 579 | Z46: 977 | AA46: 896 | AC46: 598 | AD46: 416 | AE46: 977
C47: 1530 | D47: 1630 | E47: =SUM(Input!$T$46:$U$46,Input!$R$48:$S$48) -> 510 | F47: =SUM(Input!$T$109:$U$109,Input!$R$111:$S$111) -> 615 | G47: =SUM(Input!$T$172:$U$172,Input!$R$174:$S$174) -> 601 | H47: =SUM(Input!$T$235:$U$235,Input!$R$237:$S$237) -> 329 | I47: =SUM(Input!$T$298:$U$298,Input!$R$300:$S$300) -> 298 | J47: =SUM(Input!$T$361:$U$361,Input!$R$363:$S$363) -> 628 | K47: =SUM(Input!$T$424:$U$424,Input!$R$426:$S$426) -> 543 | M47: =SUM(Input!$T$45:$U$45,Input!$R$47:$S$47) -> 390 | N47: =SUM(Input!$T$108:$U$108,Input!$R$110:$S$110) -> 393 | O47: =SUM(Input!$T$171:$U$171,Input!$R$173:$S$173) -> 380 | P47: =SUM(Input!$T$234:$U$234,Input!$R$236:$S$236) -> 308 | Q47: =SUM(Input!$T$297:$U$297,Input!$R$299:$S$299) -> 262 | R47: =SUM(Input!$T$360:$U$360,Input!$R$362:$S$362) -> 337 | S47: =SUM(Input!$T$423:$U$423,Input!$R$425:$S$425) -> 350 | U47: 900 | V47: 1008 | W47: 981 | X47: 637 | Y47: 560 | Z47: 965 | AA47: 893 | AC47: 628 | AD47: 393 | AE47: 1008
C48: 1545 | D48: 1645 | E48: =SUM(Input!$U$46,Input!$R$48:$T$48) -> 535 | F48: =SUM(Input!$U$109,Input!$R$111:$T$111) -> 700 | G48: =SUM(Input!$U$172,Input!$R$174:$T$174) -> 643 | H48: =SUM(Input!$U$235,Input!$R$237:$T$237) -> 307 | I48: =SUM(Input!$U$298,Input!$R$300:$T$300) -> 265 | J48: =SUM(Input!$U$361,Input!$R$363:$T$363) -> 635 | K48: =SUM(Input!$U$424,Input!$R$426:$T$426) -> 586 | M48: =SUM(Input!$U$45,Input!$R$47:$T$47) -> 356 | N48: =SUM(Input!$U$108,Input!$R$110:$T$110) -> 372 | O48: =SUM(Input!$U$171,Input!$R$173:$T$173) -> 359 | P48: =SUM(Input!$U$234,Input!$R$236:$T$236) -> 299 | Q48: =SUM(Input!$U$297,Input!$R$299:$T$299) -> 249 | R48: =SUM(Input!$U$360,Input!$R$362:$T$362) -> 315 | S48: =SUM(Input!$U$423,Input!$R$425:$T$425) -> 324 | U48: 891 | V48: 1072 | W48: 1002 | X48: 606 | Y48: 514 | Z48: 950 | AA48: 910 | AC48: 700 | AD48: 372 | AE48: 1072
C49: 1600 | D49: 1700 | E49: =SUM(Input!$R$48:$U$48) -> 586 | F49: =SUM(Input!$R$111:$U$111) -> 758 | G49: =SUM(Input!$R$174:$U$174) -> 692 | H49: =SUM(Input!$R$237:$U$237) -> 307 | I49: =SUM(Input!$R$300:$U$300) -> 254 | J49: =SUM(Input!$R$363:$U$363) -> 651 | K49: =SUM(Input!$R$426:$U$426) -> 622 | M49: =SUM(Input!$R$47:$U$47) -> 356 | N49: =SUM(Input!$R$110:$U$110) -> 370 | O49: =SUM(Input!$R$173:$U$173) -> 373 | P49: =SUM(Input!$R$236:$U$236) -> 320 | Q49: =SUM(Input!$R$299:$U$299) -> 239 | R49: =SUM(Input!$R$362:$U$362) -> 307 | S49: =SUM(Input!$R$425:$U$425) -> 315 | U49: 942 | V49: 1128 | W49: 1065 | X49: 627 | Y49: 493 | Z49: 958 | AA49: 937 | AC49: 758 | AD49: 373 | AE49: 1128
C50: 1615 | D50: 1715 | E50: =SUM(Input!$S$48:$U$48,Input!$R$50) -> 612 | F50: =SUM(Input!$S$111:$U$111,Input!$R$113) -> 816 | G50: =SUM(Input!$S$174:$U$174,Input!$R$176) -> 713 | H50: =SUM(Input!$S$237:$U$237,Input!$R$239) -> 277 | I50: =SUM(Input!$S$300:$U$300,Input!$R$302) -> 247 | J50: =SUM(Input!$S$363:$U$363,Input!$R$365) -> 663 | K50: =SUM(Input!$S$426:$U$426,Input!$R$428) -> 663 | M50: =SUM(Input!$S$47:$U$47,Input!$R$49) -> 367 | N50: =SUM(Input!$S$110:$U$110,Input!$R$112) -> 361 | O50: =SUM(Input!$S$173:$U$173,Input!$R$175) -> 376 | P50: =SUM(Input!$S$236:$U$236,Input!$R$238) -> 294 | Q50: =SUM(Input!$S$299:$U$299,Input!$R$301) -> 225 | R50: =SUM(Input!$S$362:$U$362,Input!$R$364) -> 347 | S50: =SUM(Input!$S$425:$U$425,Input!$R$427) -> 309 | U50: 979 | V50: 1177 | W50: 1089 | X50: 571 | Y50: 472 | Z50: 1010 | AA50: 972 | AC50: 816 | AD50: 376 | AE50: 1177
C51: 1630 | D51: 1730 | E51: =SUM(Input!$T$48:$U$48,Input!$R$50:$S$50) -> 651 | F51: =SUM(Input!$T$111:$U$111,Input!$R$113:$S$113) -> 864 | G51: =SUM(Input!$T$174:$U$174,Input!$R$176:$S$176) -> 677 | H51: =SUM(Input!$T$237:$U$237,Input!$R$239:$S$239) -> 254 | I51: =SUM(Input!$T$300:$U$300,Input!$R$302:$S$302) -> 235 | J51: =SUM(Input!$T$363:$U$363,Input!$R$365:$S$365) -> 697 | K51: =SUM(Input!$T$426:$U$426,Input!$R$428:$S$428) -> 707 | M51: =SUM(Input!$T$47:$U$47,Input!$R$49:$S$49) -> 371 | N51: =SUM(Input!$T$110:$U$110,Input!$R$112:$S$112) -> 352 | O51: =SUM(Input!$T$173:$U$173,Input!$R$175:$S$175) -> 375 | P51: =SUM(Input!$T$236:$U$236,Input!$R$238:$S$238) -> 272 | Q51: =SUM(Input!$T$299:$U$299,Input!$R$301:$S$301) -> 228 | R51: =SUM(Input!$T$362:$U$362,Input!$R$364:$S$364) -> 408 | S51: =SUM(Input!$T$425:$U$425,Input!$R$427:$S$427) -> 334 | U51: 1022 | V51: 1216 | W51: 1052 | X51: 526 | Y51: 463 | Z51: 1105 | AA51: 1041 | AC51: 864 | AD51: 408 | AE51: 1216
C52: 1645 | D52: 1745 | E52: =SUM(Input!$U$48,Input!$R$50:$T$50) -> 653 | F52: =SUM(Input!$U$111,Input!$R$113:$T$113) -> 878 | G52: =SUM(Input!$U$174,Input!$R$176:$T$176) -> 618 | H52: =SUM(Input!$U$237,Input!$R$239:$T$239) -> 251 | I52: =SUM(Input!$U$300,Input!$R$302:$T$302) -> 247 | J52: =SUM(Input!$U$363,Input!$R$365:$T$365) -> 722 | K52: =SUM(Input!$U$426,Input!$R$428:$T$428) -> 712 | M52: =SUM(Input!$U$47,Input!$R$49:$T$49) -> 348 | N52: =SUM(Input!$U$110,Input!$R$112:$T$112) -> 366 | O52: =SUM(Input!$U$173,Input!$R$175:$T$175) -> 357 | P52: =SUM(Input!$U$236,Input!$R$238:$T$238) -> 252 | Q52: =SUM(Input!$U$299,Input!$R$301:$T$301) -> 217 | R52: =SUM(Input!$U$362,Input!$R$364:$T$364) -> 406 | S52: =SUM(Input!$U$425,Input!$R$427:$T$427) -> 337 | U52: 1001 | V52: 1244 | W52: 975 | X52: 503 | Y52: 464 | Z52: 1128 | AA52: 1049 | AC52: 878 | AD52: 406 | AE52: 1244
C53: 1700 | D53: 1800 | E53: =SUM(Input!$R$50:$U$50) -> 636 | F53: =SUM(Input!$R$113:$U$113) -> 863 | G53: =SUM(Input!$R$176:$U$176) -> 573 | H53: =SUM(Input!$R$239:$U$239) -> 229 | I53: =SUM(Input!$R$302:$U$302) -> 240 | J53: =SUM(Input!$R$365:$U$365) -> 677 | K53: =SUM(Input!$R$428:$U$428) -> 721 | M53: =SUM(Input!$R$49:$U$49) -> 336 | N53: =SUM(Input!$R$112:$U$112) -> 372 | O53: =SUM(Input!$R$175:$U$175) -> 332 | P53: =SUM(Input!$R$238:$U$238) -> 222 | Q53: =SUM(Input!$R$301:$U$301) -> 212 | R53: =SUM(Input!$R$364:$U$364) -> 392 | S53: =SUM(Input!$R$427:$U$427) -> 326 | U53: 972 | V53: 1235 | W53: 905 | X53: 451 | Y53: 452 | Z53: 1069 | AA53: 1047 | AC53: 863 | AD53: 392 | AE53: 1235
C54: 1715 | D54: 1815 | E54: =SUM(Input!$S$50:$U$50,Input!$R$52) -> 656 | F54: =SUM(Input!$S$113:$U$113,Input!$R$115) -> 741 | G54: =SUM(Input!$S$176:$U$176,Input!$R$178) -> 503 | H54: =SUM(Input!$S$239:$U$239,Input!$R$241) -> 212 | I54: =SUM(Input!$S$302:$U$302,Input!$R$304) -> 223 | J54: =SUM(Input!$S$365:$U$365,Input!$R$367) -> 651 | K54: =SUM(Input!$S$428:$U$428,Input!$R$430) -> 697 | M54: =SUM(Input!$S$49:$U$49,Input!$R$51) -> 317 | N54: =SUM(Input!$S$112:$U$112,Input!$R$114) -> 371 | O54: =SUM(Input!$S$175:$U$175,Input!$R$177) -> 327 | P54: =SUM(Input!$S$238:$U$238,Input!$R$240) -> 229 | Q54: =SUM(Input!$S$301:$U$301,Input!$R$303) -> 216 | R54: =SUM(Input!$S$364:$U$364,Input!$R$366) -> 387 | S54: =SUM(Input!$S$427:$U$427,Input!$R$429) -> 333 | U54: 973 | V54: 1112 | W54: 830 | X54: 441 | Y54: 439 | Z54: 1038 | AA54: 1030 | AC54: 741 | AD54: 387 | AE54: 1112
C55: 1730 | D55: 1830 | E55: =SUM(Input!$T$50:$U$50,Input!$R$52:$S$52) -> 604 | F55: =SUM(Input!$T$113:$U$113,Input!$R$115:$S$115) -> 623 | G55: =SUM(Input!$T$176:$U$176,Input!$R$178:$S$178) -> 473 | H55: =SUM(Input!$T$239:$U$239,Input!$R$241:$S$241) -> 209 | I55: =SUM(Input!$T$302:$U$302,Input!$R$304:$S$304) -> 214 | J55: =SUM(Input!$T$365:$U$365,Input!$R$367:$S$367) -> 604 | K55: =SUM(Input!$T$428:$U$428,Input!$R$430:$S$430) -> 636 | M55: =SUM(Input!$T$49:$U$49,Input!$R$51:$S$51) -> 315 | N55: =SUM(Input!$T$112:$U$112,Input!$R$114:$S$114) -> 343 | O55: =SUM(Input!$T$175:$U$175,Input!$R$177:$S$177) -> 317 | P55: =SUM(Input!$T$238:$U$238,Input!$R$240:$S$240) -> 230 | Q55: =SUM(Input!$T$301:$U$301,Input!$R$303:$S$303) -> 189 | R55: =SUM(Input!$T$364:$U$364,Input!$R$366:$S$366) -> 338 | S55: =SUM(Input!$T$427:$U$427,Input!$R$429:$S$429) -> 321 | U55: 919 | V55: 966 | W55: 790 | X55: 439 | Y55: 403 | Z55: 942 | AA55: 957 | AC55: 636 | AD55: 343 | AE55: 966
C56: 1745 | D56: 1845 | E56: =SUM(Input!$U$50,Input!$R$52:$T$52) -> 558 | F56: =SUM(Input!$U$113,Input!$R$115:$T$115) -> 502 | G56: =SUM(Input!$U$176,Input!$R$178:$T$178) -> 426 | H56: =SUM(Input!$U$239,Input!$R$241:$T$241) -> 187 | I56: =SUM(Input!$U$302,Input!$R$304:$T$304) -> 187 | J56: =SUM(Input!$U$365,Input!$R$367:$T$367) -> 508 | K56: =SUM(Input!$U$428,Input!$R$430:$T$430) -> 557 | M56: =SUM(Input!$U$49,Input!$R$51:$T$51) -> 314 | N56: =SUM(Input!$U$112,Input!$R$114:$T$114) -> 335 | O56: =SUM(Input!$U$175,Input!$R$177:$T$177) -> 329 | P56: =SUM(Input!$U$238,Input!$R$240:$T$240) -> 223 | Q56: =SUM(Input!$U$301,Input!$R$303:$T$303) -> 173 | R56: =SUM(Input!$U$364,Input!$R$366:$T$366) -> 323 | S56: =SUM(Input!$U$427,Input!$R$429:$T$429) -> 312 | U56: 872 | V56: 837 | W56: 755 | X56: 410 | Y56: 360 | Z56: 831 | AA56: 869 | AC56: 558 | AD56: 335 | AE56: 872
C57: 1800 | D57: 1900 | E57: =SUM(Input!$R$52:$U$52) -> 479 | F57: =SUM(Input!$R$115:$U$115) -> 382 | G57: =SUM(Input!$R$178:$U$178) -> 355 | H57: =SUM(Input!$R$241:$U$241) -> 172 | I57: =SUM(Input!$R$304:$U$304) -> 171 | J57: =SUM(Input!$R$367:$U$367) -> 436 | K57: =SUM(Input!$R$430:$U$430) -> 458 | M57: =SUM(Input!$R$51:$U$51) -> 298 | N57: =SUM(Input!$R$114:$U$114) -> 312 | O57: =SUM(Input!$R$177:$U$177) -> 292 | P57: =SUM(Input!$R$240:$U$240) -> 200 | Q57: =SUM(Input!$R$303:$U$303) -> 153 | R57: =SUM(Input!$R$366:$U$366) -> 327 | S57: =SUM(Input!$R$429:$U$429) -> 292 | U57: 777 | V57: 694 | W57: 647 | X57: 372 | Y57: 324 | Z57: 763 | AA57: 750 | AC57: 479 | AD57: 327 | AE57: 777
C58: 1815 | D58: 1915 | E58: =SUM(Input!$S$52:$U$52,Input!$R$54) -> 402 | F58: =SUM(Input!$S$115:$U$115,Input!$R$117) -> 335 | G58: =SUM(Input!$S$178:$U$178,Input!$R$180) -> 317 | H58: =SUM(Input!$S$241:$U$241,Input!$R$243) -> 153 | I58: =SUM(Input!$S$304:$U$304,Input!$R$306) -> 155 | J58: =SUM(Input!$S$367:$U$367,Input!$R$369) -> 340 | K58: =SUM(Input!$S$430:$U$430,Input!$R$432) -> 372 | M58: =SUM(Input!$S$51:$U$51,Input!$R$53) -> 255 | N58: =SUM(Input!$S$114:$U$114,Input!$R$116) -> 317 | O58: =SUM(Input!$S$177:$U$177,Input!$R$179) -> 271 | P58: =SUM(Input!$S$240:$U$240,Input!$R$242) -> 164 | Q58: =SUM(Input!$S$303:$U$303,Input!$R$305) -> 130 | R58: =SUM(Input!$S$366:$U$366,Input!$R$368) -> 298 | S58: =SUM(Input!$S$429:$U$429,Input!$R$431) -> 258 | U58: 657 | V58: 652 | W58: 588 | X58: 317 | Y58: 285 | Z58: 638 | AA58: 630 | AC58: 402 | AD58: 317 | AE58: 657
C59: 1830 | D59: 1930 | E59: =SUM(Input!$T$52:$U$52,Input!$R$54:$S$54) -> 324 | F59: =SUM(Input!$T$115:$U$115,Input!$R$117:$S$117) -> 281 | G59: =SUM(Input!$T$178:$U$178,Input!$R$180:$S$180) -> 269 | H59: =SUM(Input!$T$241:$U$241,Input!$R$243:$S$243) -> 140 | I59: =SUM(Input!$T$304:$U$304,Input!$R$306:$S$306) -> 141 | J59: =SUM(Input!$T$367:$U$367,Input!$R$369:$S$369) -> 256 | K59: =SUM(Input!$T$430:$U$430,Input!$R$432:$S$432) -> 302 | M59: =SUM(Input!$T$51:$U$51,Input!$R$53:$S$53) -> 226 | N59: =SUM(Input!$T$114:$U$114,Input!$R$116:$S$116) -> 284 | O59: =SUM(Input!$T$177:$U$177,Input!$R$179:$S$179) -> 239 | P59: =SUM(Input!$T$240:$U$240,Input!$R$242:$S$242) -> 130 | Q59: =SUM(Input!$T$303:$U$303,Input!$R$305:$S$305) -> 121 | R59: =SUM(Input!$T$366:$U$366,Input!$R$368:$S$368) -> 264 | S59: =SUM(Input!$T$429:$U$429,Input!$R$431:$S$431) -> 232 | U59: 550 | V59: 565 | W59: 508 | X59: 270 | Y59: 262 | Z59: 520 | AA59: 534 | AC59: 324 | AD59: 284 | AE59: 565
C60: 1845 | D60: 1945 | E60: =SUM(Input!$U$52,Input!$R$54:$T$54) -> 268 | F60: =SUM(Input!$U$115,Input!$R$117:$T$117) -> 244 | G60: =SUM(Input!$U$178,Input!$R$180:$T$180) -> 219 | H60: =SUM(Input!$U$241,Input!$R$243:$T$243) -> 125 | I60: =SUM(Input!$U$304,Input!$R$306:$T$306) -> 132 | J60: =SUM(Input!$U$367,Input!$R$369:$T$369) -> 208 | K60: =SUM(Input!$U$430,Input!$R$432:$T$432) -> 248 | M60: =SUM(Input!$U$51,Input!$R$53:$T$53) -> 202 | N60: =SUM(Input!$U$114,Input!$R$116:$T$116) -> 247 | O60: =SUM(Input!$U$177,Input!$R$179:$T$179) -> 189 | P60: =SUM(Input!$U$240,Input!$R$242:$T$242) -> 107 | Q60: =SUM(Input!$U$303,Input!$R$305:$T$305) -> 117 | R60: =SUM(Input!$U$366,Input!$R$368:$T$368) -> 238 | S60: =SUM(Input!$U$429,Input!$R$431:$T$431) -> 192 | U60: 470 | V60: 491 | W60: 408 | X60: 232 | Y60: 249 | Z60: 446 | AA60: 440 | AC60: 268 | AD60: 247 | AE60: 491

Sheet Peaks2 (hidden)
E2: Direction 2 / Lane1 | M2: Direction 2 / Lane2 | U2: Direction 2 / Both Lanes | AC2: All Lanes | AK2: Daily Maximums
E3: =LEFT(Input2!$A$10,3) ->  | F3: =LEFT(Input2!$A$73,3) ->  | G3: =LEFT(Input2!$A$136,3) ->  | H3: =LEFT(Input2!$A$199,3) ->  | I3: =LEFT(Input2!$A$262,3) ->  | J3: =LEFT(Input2!$A$325,3) ->  | K3: =LEFT(Input2!$A$388,3) ->  | M3: =LEFT(Input2!$A$10,3) ->  | N3: =LEFT(Input2!$A$73,3) ->  | O3: =LEFT(Input2!$A$136,3) ->  | P3: =LEFT(Input2!$A$199,3) ->  | Q3: =LEFT(Input2!$A$262,3) ->  | R3: =LEFT(Input2!$A$325,3) ->  | S3: =LEFT(Input2!$A$388,3) ->  | U3: =LEFT(Input2!$A$10,3) ->  | V3: =LEFT(Input2!$A$73,3) ->  | W3: =LEFT(Input2!$A$136,3) ->  | X3: =LEFT(Input2!$A$199,3) ->  | Y3: =LEFT(Input2!$A$262,3) ->  | Z3: =LEFT(Input2!$A$325,3) ->  | AA3: =LEFT(Input2!$A$388,3) ->  | AC3: =LEFT(Input2!$A$10,3) ->  | AD3: =LEFT(Input2!$A$73,3) ->  | AE3: =LEFT(Input2!$A$136,3) ->  | AF3: =LEFT(Input2!$A$199,3) ->  | AG3: =LEFT(Input2!$A$262,3) ->  | AH3: =LEFT(Input2!$A$325,3) ->  | AI3: =LEFT(Input2!$A$388,3) ->  | AK3: Dir2/Lane1 | AL3: Dir2/Lane2 | AM3: Dir2/Both | AN3: All Lanes
B4: Morning | C4: 0515 | D4: 0615 | AK4: =MAX(E4:K4) -> 0 | AL4: =MAX(M4:S4) -> 0 | AM4: =MAX(U4:AA4) -> 0 | AN4: =MAX(AC4:AI4) -> 0
C5: 0530 | D5: 0630 | AK5: 0 | AL5: 0 | AM5: 0 | AN5: 0
C6: 0545 | D6: 0645 | AK6: 0 | AL6: 0 | AM6: 0 | AN6: 0
C7: 0600 | D7: 0700 | AK7: 0 | AL7: 0 | AM7: 0 | AN7: 0
C8: 0615 | D8: 0715 | AK8: 0 | AL8: 0 | AM8: 0 | AN8: 0
C9: 0630 | D9: 0730 | AK9: 0 | AL9: 0 | AM9: 0 | AN9: 0
C10: 0645 | D10: 0745 | AK10: 0 | AL10: 0 | AM10: 0 | AN10: 0
C11: 0700 | D11: 0800 | AK11: 0 | AL11: 0 | AM11: 0 | AN11: 0
C12: 0715 | D12: 0815 | AK12: 0 | AL12: 0 | AM12: 0 | AN12: 0
C13: 0730 | D13: 0830 | AK13: 0 | AL13: 0 | AM13: 0 | AN13: 0
C14: 0745 | D14: 0845 | AK14: 0 | AL14: 0 | AM14: 0 | AN14: 0
C15: 0800 | D15: 0900 | AK15: 0 | AL15: 0 | AM15: 0 | AN15: 0
C16: 0815 | D16: 0915 | AK16: 0 | AL16: 0 | AM16: 0 | AN16: 0
C17: 0830 | D17: 0930 | AK17: 0 | AL17: 0 | AM17: 0 | AN17: 0
C18: 0845 | D18: 0945 | AK18: 0 | AL18: 0 | AM18: 0 | AN18: 0
C19: 0900 | D19: 1000 | AK19: 0 | AL19: 0 | AM19: 0 | AN19: 0
B21: Middle Day | C21: 0915 | D21: 1015 | AK21: =MAX(E21:K21) -> 0 | AL21: =MAX(M21:S21) -> 0 | AM21: =MAX(U21:AA21) -> 0 | AN21: =MAX(AC21:AI21) -> 0
C22: 0930 | D22: 1030 | AK22: 0 | AL22: 0 | AM22: 0 | AN22: 0
C23: 0945 | D23: 1045 | AK23: 0 | AL23: 0 | AM23: 0 | AN23: 0
C24: 1000 | D24: 1100 | AK24: 0 | AL24: 0 | AM24: 0 | AN24: 0
C25: 1015 | D25: 1115 | AK25: 0 | AL25: 0 | AM25: 0 | AN25: 0
C26: 1030 | D26: 1130 | AK26: 0 | AL26: 0 | AM26: 0 | AN26: 0
C27: 1045 | D27: 1145 | AK27: 0 | AL27: 0 | AM27: 0 | AN27: 0
C28: 1100 | D28: 1200 | AK28: 0 | AL28: 0 | AM28: 0 | AN28: 0
C29: 1115 | D29: 1215 | AK29: 0 | AL29: 0 | AM29: 0 | AN29: 0
C30: 1130 | D30: 1230 | AK30: 0 | AL30: 0 | AM30: 0 | AN30: 0
C31: 1145 | D31: 1245 | AK31: 0 | AL31: 0 | AM31: 0 | AN31: 0
C32: 1200 | D32: 1300 | AK32: 0 | AL32: 0 | AM32: 0 | AN32: 0
C33: 1215 | D33: 1315 | AK33: 0 | AL33: 0 | AM33: 0 | AN33: 0
C34: 1230 | D34: 1330 | AK34: 0 | AL34: 0 | AM34: 0 | AN34: 0
C35: 1245 | D35: 1345 | AK35: 0 | AL35: 0 | AM35: 0 | AN35: 0
C36: 1300 | D36: 1400 | AK36: 0 | AL36: 0 | AM36: 0 | AN36: 0
C37: 1315 | D37: 1415 | AK37: 0 | AL37: 0 | AM37: 0 | AN37: 0
C38: 1330 | D38: 1430 | AK38: 0 | AL38: 0 | AM38: 0 | AN38: 0
C39: 1345 | D39: 1445 | AK39: 0 | AL39: 0 | AM39: 0 | AN39: 0
C40: 1400 | D40: 1500 | AK40: 0 | AL40: 0 | AM40: 0 | AN40: 0
B42: Evening | C42: 1415 | D42: 1515 | AK42: =MAX(E42:K42) -> 0 | AL42: =MAX(M42:S42) -> 0 | AM42: =MAX(U42:AA42) -> 0 | AN42: =MAX(AC42:AI42) -> 0
C43: 1430 | D43: 1530 | AK43: 0 | AL43: 0 | AM43: 0 | AN43: 0
C44: 1445 | D44: 1545 | AK44: 0 | AL44: 0 | AM44: 0 | AN44: 0
C45: 1500 | D45: 1600 | AK45: 0 | AL45: 0 | AM45: 0 | AN45: 0
C46: 1515 | D46: 1615 | AK46: 0 | AL46: 0 | AM46: 0 | AN46: 0
C47: 1530 | D47: 1630 | AK47: 0 | AL47: 0 | AM47: 0 | AN47: 0
C48: 1545 | D48: 1645 | AK48: 0 | AL48: 0 | AM48: 0 | AN48: 0
C49: 1600 | D49: 1700 | AK49: 0 | AL49: 0 | AM49: 0 | AN49: 0
C50: 1615 | D50: 1715 | AK50: 0 | AL50: 0 | AM50: 0 | AN50: 0
C51: 1630 | D51: 1730 | AK51: 0 | AL51: 0 | AM51: 0 | AN51: 0
C52: 1645 | D52: 1745 | AK52: 0 | AL52: 0 | AM52: 0 | AN52: 0
C53: 1700 | D53: 1800 | AK53: 0 | AL53: 0 | AM53: 0 | AN53: 0
C54: 1715 | D54: 1815 | AK54: 0 | AL54: 0 | AM54: 0 | AN54: 0
C55: 1730 | D55: 1830 | AK55: 0 | AL55: 0 | AM55: 0 | AN55: 0
C56: 1745 | D56: 1845 | AK56: 0 | AL56: 0 | AM56: 0 | AN56: 0
C57: 1800 | D57: 1900 | AK57: 0 | AL57: 0 | AM57: 0 | AN57: 0
C58: 1815 | D58: 1915 | AK58: 0 | AL58: 0 | AM58: 0 | AN58: 0
C59: 1830 | D59: 1930 | AK59: 0 | AL59: 0 | AM59: 0 | AN59: 0
C60: 1845 | D60: 1945 | AK60: 0 | AL60: 0 | AM60: 0 | AN60: 0

Sheet Volume
B2: Hour | C2: Volume
B3: 0 | C3: =IFERROR(ROUND(AVERAGEIF(Input!$A$12:$A$448,0,Input!$C$12:$C$448)*2,0),0) -> 24
B4: 100 | C4: =IFERROR(ROUND(AVERAGEIF(Input!$A$12:$A$448,100,Input!$C$12:$C$448)*2,0),0) -> 13
B5: 200 | C5: =IFERROR(ROUND(AVERAGEIF(Input!$A$12:$A$448,200,Input!$C$12:$C$448)*2,0),0) -> 8
B6: 300 | C6: =IFERROR(ROUND(AVERAGEIF(Input!$A$12:$A$448,300,Input!$C$12:$C$448)*2,0),0) -> 15
B7: 400 | C7: =IFERROR(ROUND(AVERAGEIF(Input!$A$12:$A$448,400,Input!$C$12:$C$448)*2,0),0) -> 32
B8: 500 | C8: =IFERROR(ROUND(AVERAGEIF(Input!$A$12:$A$448,500,Input!$C$12:$C$448)*2,0),0) -> 151
B9: 600 | C9: =IFERROR(ROUND(AVERAGEIF(Input!$A$12:$A$448,600,Input!$C$12:$C$448)*2,0),0) -> 391
B10: 700 | C10: =IFERROR(ROUND(AVERAGEIF(Input!$A$12:$A$448,700,Input!$C$12:$C$448)*2,0),0) -> 514
B11: 800 | C11: =IFERROR(ROUND(AVERAGEIF(Input!$A$12:$A$448,800,Input!$C$12:$C$448)*2,0),0) -> 749
B12: 900 | C12: =IFERROR(ROUND(AVERAGEIF(Input!$A$12:$A$448,900,Input!$C$12:$C$448)*2,0),0) -> 559
B13: 1000 | C13: =IFERROR(ROUND(AVERAGEIF(Input!$A$12:$A$448,1000,Input!$C$12:$C$448)*2,0),0) -> 512
B14: 1100 | C14: =IFERROR(ROUND(AVERAGEIF(Input!$A$12:$A$448,1100,Input!$C$12:$C$448)*2,0),0) -> 509
B15: 1200 | C15: =IFERROR(ROUND(AVERAGEIF(Input!$A$12:$A$448,1200,Input!$C$12:$C$448)*2,0),0) -> 516
B16: 1300 | C16: =IFERROR(ROUND(AVERAGEIF(Input!$A$12:$A$448,1300,Input!$C$12:$C$448)*2,0),0) -> 496
B17: 1400 | C17: =IFERROR(ROUND(AVERAGEIF(Input!$A$12:$A$448,1400,Input!$C$12:$C$448)*2,0),) -> 612
B18: 1500 | C18: =IFERROR(ROUND(AVERAGEIF(Input!$A$12:$A$448,1500,Input!$C$12:$C$448)*2,0),0) -> 817
B19: 1600 | C19: =IFERROR(ROUND(AVERAGEIF(Input!$A$12:$A$448,1600,Input!$C$12:$C$448)*2,0),0) -> 879
B20: 1700 | C20: =IFERROR(ROUND(AVERAGEIF(Input!$A$12:$A$448,1700,Input!$C$12:$C$448)*2,0),0) -> 876
B21: 1800 | C21: =IFERROR(ROUND(AVERAGEIF(Input!$A$12:$A$448,1800,Input!$C$12:$C$448)*2,0),0) -> 618
B22: 1900 | C22: =IFERROR(ROUND(AVERAGEIF(Input!$A$12:$A$448,1900,Input!$C$12:$C$448)*2,0),0) -> 347
B23: 2000 | C23: =IFERROR(ROUND(AVERAGEIF(Input!$A$12:$A$448,2000,Input!$C$12:$C$448)*2,0),0) -> 232
B24: 2100 | C24: =IFERROR(ROUND(AVERAGEIF(Input!$A$12:$A$448,2100,Input!$C$12:$C$448)*2,0),0) -> 154
B25: 2200 | C25: =IFERROR(ROUND(AVERAGEIF(Input!$A$12:$A$448,2200,Input!$C$12:$C$448)*2,0),) -> 82
B26: 2300 | C26: =IFERROR(ROUND(AVERAGEIF(Input!$A$12:$A$448,2300,Input!$C$12:$C$448)*2,0),0) -> 43

Sheet Volume 2 (hidden)
B2: Hour | C2: Volume
B3: 0 | C3: =IFERROR(ROUND(AVERAGEIF(Input2!$A$12:$A$448,0,Input2!$C$12:$C$448)*2,0),0) -> 0
B4: 100 | C4: =IFERROR(ROUND(AVERAGEIF(Input2!$A$12:$A$448,100,Input2!$C$12:$C$448)*2,0),0) -> 0
B5: 200 | C5: =IFERROR(ROUND(AVERAGEIF(Input2!$A$12:$A$448,200,Input2!$C$12:$C$448)*2,0),0) -> 0
B6: 300 | C6: =IFERROR(ROUND(AVERAGEIF(Input2!$A$12:$A$448,300,Input2!$C$12:$C$448)*2,0),0) -> 0
B7: 400 | C7: =IFERROR(ROUND(AVERAGEIF(Input2!$A$12:$A$448,400,Input2!$C$12:$C$448)*2,0),0) -> 0
B8: 500 | C8: =IFERROR(ROUND(AVERAGEIF(Input2!$A$12:$A$448,500,Input2!$C$12:$C$448)*2,0),0) -> 0
B9: 600 | C9: =IFERROR(ROUND(AVERAGEIF(Input2!$A$12:$A$448,600,Input2!$C$12:$C$448)*2,0),0) -> 0
B10: 700 | C10: =IFERROR(ROUND(AVERAGEIF(Input2!$A$12:$A$448,700,Input2!$C$12:$C$448)*2,0),0) -> 0
B11: 800 | C11: =IFERROR(ROUND(AVERAGEIF(Input2!$A$12:$A$448,800,Input2!$C$12:$C$448)*2,0),0) -> 0
B12: 900 | C12: =IFERROR(ROUND(AVERAGEIF(Input2!$A$12:$A$448,900,Input2!$C$12:$C$448)*2,0),0) -> 0
B13: 1000 | C13: =IFERROR(ROUND(AVERAGEIF(Input2!$A$12:$A$448,1000,Input2!$C$12:$C$448)*2,0),0) -> 0
B14: 1100 | C14: =IFERROR(ROUND(AVERAGEIF(Input2!$A$12:$A$448,1100,Input2!$C$12:$C$448)*2,0),0) -> 0
B15: 1200 | C15: =IFERROR(ROUND(AVERAGEIF(Input2!$A$12:$A$448,1200,Input2!$C$12:$C$448)*2,0),0) -> 0
B16: 1300 | C16: =IFERROR(ROUND(AVERAGEIF(Input2!$A$12:$A$448,1300,Input2!$C$12:$C$448)*2,0),0) -> 0
B17: 1400 | C17: =IFERROR(ROUND(AVERAGEIF(Input2!$A$12:$A$448,1400,Input2!$C$12:$C$448)*2,0),) -> 0
B18: 1500 | C18: =IFERROR(ROUND(AVERAGEIF(Input2!$A$12:$A$448,1500,Input2!$C$12:$C$448)*2,0),0) -> 0
B19: 1600 | C19: =IFERROR(ROUND(AVERAGEIF(Input2!$A$12:$A$448,1600,Input2!$C$12:$C$448)*2,0),0) -> 0
B20: 1700 | C20: =IFERROR(ROUND(AVERAGEIF(Input2!$A$12:$A$448,1700,Input2!$C$12:$C$448)*2,0),0) -> 0
B21: 1800 | C21: =IFERROR(ROUND(AVERAGEIF(Input2!$A$12:$A$448,1800,Input2!$C$12:$C$448)*2,0),0) -> 0
B22: 1900 | C22: =IFERROR(ROUND(AVERAGEIF(Input2!$A$12:$A$448,1900,Input2!$C$12:$C$448)*2,0),0) -> 0
B23: 2000 | C23: =IFERROR(ROUND(AVERAGEIF(Input2!$A$12:$A$448,2000,Input2!$C$12:$C$448)*2,0),0) -> 0
B24: 2100 | C24: =IFERROR(ROUND(AVERAGEIF(Input2!$A$12:$A$448,2100,Input2!$C$12:$C$448)*2,0),0) -> 0
B25: 2200 | C25: =IFERROR(ROUND(AVERAGEIF(Input2!$A$12:$A$448,2200,Input2!$C$12:$C$448)*2,0),) -> 0
B26: 2300 | C26: =IFERROR(ROUND(AVERAGEIF(Input2!$A$12:$A$448,2300,Input2!$C$12:$C$448)*2,0),0) -> 0

Sheet Count Programme (hidden)
A1: Count Site ID | B1: Road ID | C1: Road Name | D1: Start | E1: End | F1: Carr_way No. | G1: Start Name | H1: End Name | I1: Width | J1: Number of Lanes | K1: Pavement Type | L1: Use | M1: Traffic Management Level | N1: Region | O1: Area | P1: Sub Area | Q1: Urban / Rural | R1: Hierarchy | S1: Final Hierarchy | T1: ADT | U1: Date | V1: Sample Group | W1: 2014/15 | X1: 2015/16 | Y1: 2016/17
A2: ATC1 | B2: 11044 | C2: WHANGAPARAOA RD (11044) | D2: 3144 | E2: 3850 | F2: 6376 | G2: POPLAR RD | H2: DOBELL RD | I2: 13.1 | J2: 2 | K2: Thin Surfaced Flexible | L2: ADT > 20000 | M2: >= 10,000 vpd Rural/>=15,000 v | O2: ALBANY | P2: Hibiscus and Bays : Hibiscus Coast | Q2: Urban | R2: ROAD - ARTERIAL | S2: Regional | T2: 25667 | U2: 2013-10-15
A3: ATC2 | B3: 11044 | C3: WHANGAPARAOA RD (11044) | D3: 3144 | E3: 3850 | F3: 6376 | G3: POPLAR RD | H3: DOBELL RD | I3: 13.1 | J3: 2 | K3: Thin Surfaced Flexible | L3: ADT > 20000 | M3: >= 10,000 vpd Rural/>=15,000 v | O3: ALBANY | P3: Hibiscus and Bays : Hibiscus Coast | Q3: Urban | R3: ROAD - ARTERIAL | S3: Regional | T3: 25667 | U3: 2013-10-15
A4: ATC3 | B4: 22320 | C4: GLENCOE RD (22320) | D4: 871 | E4: 950 | F4: 8772 | G4: JOHN DOWNS DR | H4: SARTORS AVE | I4: 12.8 | J4: 2 | K4: Thin Surfaced Flexible | L4: ADT 4000-10000 | M4: < 10,000 vpd Rural/<15,000 vpd | O4: ALBANY | P4: Hibiscus and Bays : East Coast Bays | Q4: Urban | R4: ROAD - COLLECTO | S4: Arterial
A5: ATC4 | B5: 40827 | C5: HARBOUR VIEW RD (WAITAKERE) (40827) | D5: 0 | E5: 91 | F5: 12115 | G5: TE ATATU RD RAB | H5: PRINGLE RD | I5: 10.3 | J5: 2 | K5: Thin Surfaced Flexible | L5: ADT 2000-4000 | M5: < 10,000 vpd Rural/<15,000 vpd | O5: WAITAKERE | P5: Henderson-Massey | Q5: Urban | R5: ROAD - COLLECTO | S5: Primary Collector | T5: 2654 | U5: 1986-07-11
A6: ATC5 | B6: 40827 | C6: HARBOUR VIEW RD (WAITAKERE) (40827) | D6: 91 | E6: 412 | F6: 13390 | G6: PRINGLE RD | H6: BEACH RD RAB | I6: 10.3 | J6: 2 | K6: Thin Surfaced Flexible | L6: ADT 2000-4000 | M6: < 10,000 vpd Rural/<15,000 vpd | O6: WAITAKERE | P6: Henderson-Massey | Q6: Urban | R6: ROAD - COLLECTO | S6: Primary Collector | T6: 3183 | U6: 2020-10-14
A7: ATC6 | B7: 40496 | C7: RANUI STATION RD (40496) | D7: 0 | E7: 233 | F7: 11547 | G7: SWANSON RD | H7: RANUI SCHOOL RD | I7: 10.5 | J7: 2 | K7: Thin Surfaced Flexible | L7: ADT 2000-4000 | M7: < 10,000 vpd Rural/<15,000 vpd | O7: WAITAKERE | P7: Henderson-Massey | Q7: Urban | R7: ROAD - LOCAL | S7: Primary Collector | T7: 2766 | U7: 2008-06-02
A8: ATC7 | B8: 40496 | C8: RANUI STATION RD (40496) | D8: 233 | E8: 321 | F8: 11548 | G8: RANUI SCHOOL RD | H8: ROBERTSON RD | I8: 10.5 | J8: 2 | K8: Thin Surfaced Flexible | L8: ADT 2000-4000 | M8: < 10,000 vpd Rural/<15,000 vpd | O8: WAITAKERE | P8: Henderson-Massey | Q8: Urban | R8: ROAD - LOCAL | S8: Primary Collector
A9: ATC8 | B9: 10994 | C9: VIPOND RD (STANMORE BAY) (10994) | D9: 752 | E9: 1475 | F9: 4376 | G9: DUNCANSBY RD | H9: COOPER RD | I9: 9.8 | J9: 2 | K9: Thin Surfaced Flexible | L9: ADT 4000-10000 | M9: < 10,000 vpd Rural/<15,000 vpd | O9: ALBANY | P9: Hibiscus and Bays : Hibiscus Coast | Q9: Urban | R9: ROAD - COLLECTO | S9: Arterial | T9: 6694 | U9: 2011-11-11
A10: ATC9 | B10: 10994 | C10: VIPOND RD (STANMORE BAY) (10994) | D10: 752 | E10: 1475 | F10: 4376 | G10: DUNCANSBY RD | H10: COOPER RD | I10: 9.8 | J10: 2 | K10: Thin Surfaced Flexible | L10: ADT 4000-10000 | M10: < 10,000 vpd Rural/<15,000 vpd | O10: ALBANY | P10: Hibiscus and Bays : Hibiscus Coast | Q10: Urban | R10: ROAD - COLLECTO | S10: Arterial | T10: 6694 | U10: 2011-11-11 | X10: 2024-11-11
A11: ATC10 | B11: 40259 | C11: WAIPAREIRA AVE (40259) | D11: 0 | E11: 220 | F11: 11019 | G11: TE PAI PL | H11: MOSELLE AVE | I11: 11 | J11: 2 | K11: Thin Surfaced Flexible | L11: ADT 2000-4000 | M11: < 10,000 vpd Rural/<15,000 vpd | O11: WAITAKERE | P11: Henderson-Massey | Q11: Urban | R11: ROAD - LOCAL | S11: Secondary Collector | T11: 3090 | U11: 1993-05-31
A12: ATC11 | B12: 40259 | C12: WAIPAREIRA AVE (40259) | D12: 0 | E12: 220 | F12: 11019 | G12: TE PAI PL | H12: MOSELLE AVE | I12: 11 | J12: 2 | K12: Thin Surfaced Flexible | L12: ADT 2000-4000 | M12: < 10,000 vpd Rural/<15,000 vpd | O12: WAITAKERE | P12: Henderson-Massey | Q12: Urban | R12: ROAD - LOCAL | S12: Secondary Collector | T12: 3090 | U12: 1993-05-31
A13: ATC12 | B13: 40519 | C13: POOKS RD (40519) | D13: 0 | E13: 225 | F13: 11576 | G13: METCALFE RD | H13: PUTNEY PL | I13: 8 | J13: 2 | K13: Thin Surfaced Flexible | L13: ADT 2000-4000 | M13: < 10,000 vpd Rural/<15,000 vpd | O13: WAITAKERE | P13: Henderson-Massey | Q13: Urban | R13: ROAD - LOCAL | S13: Primary Collector | T13: 3438 | U13: 2008-07-07
A14: ATC13 | B14: 40519 | C14: POOKS RD (40519) | D14: 225 | E14: 559 | F14: 11577 | G14: PUTNEY PL | H14: RANUI AVE | I14: 8 | J14: 2 | K14: Thin Surfaced Flexible | L14: ADT 2000-4000 | M14: < 10,000 vpd Rural/<15,000 vpd | O14: WAITAKERE | P14: Henderson-Massey | Q14: Urban | R14: ROAD - LOCAL | S14: Secondary Collector | T14: 3870 | U14: 2014-06-12
A15: ATC14 | B15: 20438 | C15: LINGFIELD ST (20438) | D15: 0 | E15: 487 | F15: 7575 | G15: CHARTWELL AVE | H15: BLENHEIM ST | I15: 8 | J15: 2 | K15: Thin Surfaced Flexible | L15: ADT 500-2000 | M15: < 10,000 vpd Rural/<15,000 vpd | O15: NORTH SHORE | P15: Kaipatiki | Q15: Urban | R15: ROAD - LOCAL | S15: Secondary Collector | T15: 1885 | U15: 2014-05-08
A16: ATC15 | B16: 20438 | C16: LINGFIELD ST (20438) | D16: 0 | E16: 487 | F16: 7575 | G16: CHARTWELL AVE | H16: BLENHEIM ST | I16: 8 | J16: 2 | K16: Thin Surfaced Flexible | L16: ADT 500-2000 | M16: < 10,000 vpd Rural/<15,000 vpd | O16: NORTH SHORE | P16: Kaipatiki | Q16: Urban | R16: ROAD - LOCAL | S16: Secondary Collector | T16: 1885 | U16: 2014-05-08
A17: ATC16 | B17: 40485 | C17: RED HILLS RD (MASSEY) (40485) | D17: 0 | E17: 422 | F17: 13372 | G17: DON BUCK RD RAB | H17: BIRDWOOD RD | I17: 6.8 | J17: 2 | K17: Thin Surfaced Flexible | L17: ADT 4000-10000 | M17: < 10,000 vpd Rural/<15,000 vpd | O17: WAITAKERE | P17: Henderson-Massey | Q17: Urban | R17: ROAD - COLLECTO | S17: Arterial | T17: 8828 | U17: 2022-03-29
A18: ATC17 | B18: 40844 | C18: GREAT NORTH RD (WAITAKERE) (40844) | D18: 3841 | E18: 4308 | F18: 13225 | G18: PALMER AVE | H18: HEPBURN RD | I18: 15 | J18: 4 | K18: Thin Surfaced Flexible | L18: ADT > 20000 | M18: >= 15,000 vpd Urban road, low | O18: WHAU | P18: Whau | Q18: Urban | R18: ROAD - ARTERIAL | S18: Regional | T18: 32184 | U18: 2023-05-29
A19: ATC18 | B19: 40844 | C19: GREAT NORTH RD (WAITAKERE) (40844) | D19: 3841 | E19: 4308 | F19: 13225 | G19: PALMER AVE | H19: HEPBURN RD | I19: 15 | J19: 4 | K19: Thin Surfaced Flexible | L19: ADT > 20000 | M19: >= 15,000 vpd Urban road, low | O19: WHAU | P19: Whau | Q19: Urban | R19: ROAD - ARTERIAL | S19: Regional | T19: 32184 | U19: 2023-05-29
A20: ATC19 | B20: 40442 | C20: SCENIC DR (TITIRANGI) (40442) | D20: 9593 | E20: 9713 | F20: 11424 | G20: QUINNS RD | H20: SPEED DERESTRICTION | I20: 6 | J20: 2 | K20: Thin Surfaced Flexible | L20: ADT 500-2000 | M20: < 10,000 vpd Rural/<15,000 vpd | O20: WAITAKERE | P20: Waitakere Ranges | Q20: Rural | R20: ROAD - ARTERIAL | S20: Primary Collector | T20: 607 | U20: 2019-08-12
A21: ATC20 | B21: 40442 | C21: SCENIC DR (TITIRANGI) (40442) | D21: 9170 | E21: 9593 | F21: 11423 | G21: WEST COAST RD (START ISLAND RHS) | H21: QUINNS RD | I21: 7.5 | J21: 2 | K21: Thin Surfaced Flexible | L21: ADT 500-2000 | M21: < 10,000 vpd Rural/<15,000 vpd | O21: WAITAKERE | P21: Waitakere Ranges | Q21: Rural | R21: ROAD - ARTERIAL | S21: Primary Collector | T21: 2781 | U21: 2019-08-12
A22: ATC21 | B22: 40533 | C22: PIHA RD (40533) | D22: 0 | E22: 300 | F22: 13317 | G22: SCENIC DR (QUINNS RD) | H22: SPEED DERESTRICTION | I22: 6 | J22: 2 | K22: Thin Surfaced Flexible | L22: ADT 2000-4000 | M22: < 10,000 vpd Rural/<15,000 vpd | O22: WAITAKERE | P22: Waitakere Ranges | Q22: Rural | R22: ROAD - ARTERIAL | S22: Arterial | T22: 2210 | U22: 2019-08-12
